Workbook

Sheet 1 年次別，死亡数・粗死亡率・年齢調整死亡率・死亡性比
A1: 第3章 死 亡
A2: 1 年次別にみた死亡数・粗死亡率(人口千対)・年齢調整死亡率及び死亡性比
A4: 年次 | B4: 死亡数 | E4: 粗死亡率 | H4: 年齢調整死亡率 2) | K4: 死亡性比
B5: 総数 | C5: 男 | D5: 女 | E5: 総数 | F5: 男 | G5: 女 | H5: 総数 | I5: 男 | J5: 女
A6: 1950 昭和25年 | B6: 2568 | C6: 1369 | D6: 1199 | E6: 8.182252668 | F6: 8.759357604 | G6: 7.609799441 | H6: 14.38314571 | I6: … | J6: … | K6: 114.1784821 | M6: 313850 | N6: 156290 | O6: 157560
A7: 55 30 | B7: 2565 | C7: 1376 | D7: 1189 | E7: 6.012376354 | F7: 6.401756761 | G7: 5.616995545 | H7: 11.33922859 | I7: … | J7: … | K7: 115.7275021 | M7: 426620 | N7: 214941 | O7: 211679
A8: 60 35 | B8: 2927 | C8: 1603 | D8: 1316 | E8: 5.587594662 | F8: 6.063540457 | G8: 5.071838194 | H8: 11.73701994 | I8: 14.42139087 | J8: 9.722406859 | K8: 121.8085106 | M8: 523839 | N8: 264367 | O8: 259472
A9: 65 40 | B9: 3893 | C9: 2143 | D9: 1750 | E9: 4.897422092 | F9: 5.35555861 | G9: 4.433039571 | H9: 10.6873075 | I9: 12.7161372 | J9: 9.023112158 | K9: 122.4571429 | M9: 794908 | N9: 400145 | O9: 394763
A10: 70 45 | B10: 4660 | C10: 2647 | D10: 2013 | E10: 4.613299568 | F10: 5.260783414 | G10: 3.97068048 | H10: 9.114072591 | I10: 11.19455125 | J10: 7.408944499 | K10: 131.4952807 | M10: 1010123 | N10: 503157 | O10: 506966
A11: 72 47 | B11: 4775 | C11: 2707 | D11: 2068 | E11: 4.344455747 | F11: 4.952188604 | G11: 3.743155799 | H11: … | I11: … | J11: … | K11: 130.8994197 | M11: 1099102 | N11: 546627 | O11: 552475
A12: 73 48 | B12: 5173 | C12: 2872 | D12: 2301 | E12: 4.488982338 | F12: 5.008449142 | G12: 3.97446394 | H12: … | I12: … | J12: … | K12: 124.8152977 | M12: 1152377 | N12: 573431 | O12: 578946
A13: 74 49 | B13: 5156 | C13: 2821 | D13: 2335 | E13: 4.291309682 | F13: 4.743823444 | G13: 3.847865135 | H13: 8.401773618 | I13: 10.02551678 | J13: 7.071819452 | K13: 120.8137045 | M13: 1201498 | N13: 594668 | O13: 606830
A14: 75 50 | B14: 5405 | C14: 2919 | D14: 2486 | E14: 4.356717204 | F14: 4.749948335 | G14: 3.970738564 | H14: 8.263264002 | I14: 9.777843397 | J14: 7.023891403 | K14: 117.4175382 | M14: 1240613 | N14: 614533 | O14: 626080
A15: 76 51 | B15: 5460 | C15: 3069 | D15: 2391 | E15: 4.28051316 | F15: 4.863184316 | G15: 3.709967726 | H15: 7.015041298 | I15: 8.575426058 | J15: 6.333177496 | K15: 128.3563363 | M15: 1275548 | N15: 631068 | O15: 644480
A16: 77 52 | B16: 5623 | C16: 3107 | D16: 2516 | E16: 4.306528645 | F16: 4.817509873 | G16: 3.807776885 | H16: 7.880216325 | I16: 9.835378807 | J16: 6.407401952 | K16: 123.4896661 | M16: 1305692 | N16: 644939 | O16: 660753
A17: 78 53 | B17: 5717 | C17: 3172 | D17: 2545 | E17: 4.286529411 | F17: 4.819928856 | G17: 3.766954998 | H17: 7.534926581 | I17: 9.191177918 | J17: 6.173820297 | K17: 124.6365422 | M17: 1333713 | N17: 658101 | O17: 675612
A18: 79 54 | B18: 5835 | C18: 3267 | D18: 2568 | E18: 4.268083948 | F18: 4.844974173 | G18: 3.706606506 | H18: 7.154137253 | I18: 8.708243121 | J18: 5.845106595 | K18: 127.2196262 | M18: 1367124 | N18: 674307 | O18: 692817
A19: 80 55 | B19: 6342 | C19: 3443 | D19: 2899 | E19: 4.524321976 | F19: 4.982222885 | G19: 4.079076966 | H19: 7.546971698 | I19: 9.168114857 | J19: 6.261740028 | K19: 118.7650914 | M19: 1401757 | N19: 691057 | O19: 710700
A20: 81 56 | B20: 6437 | C20: 3610 | D20: 2827 | E20: 4.493875289 | F20: 5.118897381 | G20: 3.887706212 | H20: 7.242966989 | I20: 9.018835092 | J20: 5.808343623 | K20: 127.6972055 | M20: 1432394 | N20: 705230 | O20: 727164
A21: 82 57 | B21: 6676 | C21: 3730 | D21: 2946 | E21: 4.562989209 | F21: 5.185979225 | G21: 3.960587716 | H21: 7.052468451 | I21: 8.797885699 | J21: 5.642900358 | K21: 126.6123557 | M21: 1463076 | N21: 719247 | O21: 743829
A22: 83 58 | B22: 6882 | C22: 3887 | D22: 2995 | E22: 4.608378249 | F22: 5.304876884 | G22: 3.937447824 | H22: 6.8065841 | I22: 8.645224556 | J22: 5.352441715 | K22: 129.7829716 | M22: 1493367 | N22: 732722 | O22: 760645
A23: 84 59 | B23: 6856 | C23: 3824 | D23: 3032 | E23: 4.511226743 | F23: 5.14154717 | G23: 3.907120831 | H23: 6.412438676 | I23: 8.033847894 | J23: 5.106292241 | K23: 126.121372 | M23: 1519764 | N23: 743745 | O23: 776019
A24: 85 60 | B24: 7226 | C24: 3968 | D24: 3258 | E24: 4.692792868 | F24: 5.280148611 | G24: 4.132870912 | H24: 6.444812672 | I24: 8.100339209 | J24: 5.158558571 | K24: 121.7925107 | M24: 1539808 | N24: 751494 | O24: 788314
A25: 86 61 | B25: 7127 | C25: 4021 | D25: 3106 | E25: 4.548555688 | F25: 5.265632223 | G25: 3.866839301 | H25: 6.125488725 | I25: 8.242974723 | J25: 4.638777263 | K25: 129.4591114 | M25: 1566871 | N25: 763631 | O25: 803240
A26: 87 62 | B26: 7074 | C26: 4036 | D26: 3038 | E26: 4.440106578 | F26: 5.206828221 | G26: 3.713623178 | H26: 5.590941753 | I26: 7.37680243 | J26: 4.225861048 | K26: 132.8505596 | M26: 1593205 | N26: 775136 | O26: 818069
A27: 88 63 | B27: 7761 | C27: 4316 | D27: 3445 | E27: 4.794111415 | F27: 5.491855741 | G27: 4.13580321 | H27: 5.838338957 | I27: 7.575880671 | J27: 4.514257487 | K27: 125.2830189 | M27: 1618861 | N27: 785891 | O27: 832970
A28: 89 平成元年 | B28: 8103 | C28: 4520 | D28: 3583 | E28: 4.925551412 | F28: 5.668692514 | G28: 4.226566619 | H28: 5.765031076 | I28: 7.529727639 | J28: 4.422851904 | K28: 126.1512699 | M28: 1645095 | N28: 797362 | O28: 847733
A29: 90 2 | B29: 8278 | C29: 4643 | D29: 3635 | E29: 4.962877342 | F29: 5.75201779 | G29: 4.222869948 | H29: 5.60463035 | I29: 7.406156495 | J29: 4.237994881 | K29: 127.7303989 | M29: 1667984 | N29: 807195 | O29: 860789
A30: 91 3 | B30: 8342 | C30: 4785 | D30: 3557 | E30: 4.921568766 | F30: 5.841898806 | G30: 4.060942682 | H30: 5.354858338 | I30: 7.322193935 | J30: 3.913699428 | K30: 134.5234748 | M30: 1694988 | N30: 819083 | O30: 875905
A31: 92 4 | B31: 8808 | C31: 4992 | D31: 3816 | E31: 5.137393788 | F31: 6.037706639 | G31: 4.29882706 | H31: 5.357078244 | I31: 7.232232671 | J31: 3.949419347 | K31: 130.8176101 | M31: 1714488 | N31: 826804 | O31: 887684
A32: 93 5 | B32: 9428 | C32: 5271 | D32: 4157 | E32: 5.454547558 | F32: 6.335313695 | G32: 4.637112742 | H32: 5.456932647 | I32: 7.336613927 | J32: 4.059469142 | K32: 126.7981718 | M32: 1728466 | N32: 832003 | O32: 896463
A33: 94 6 | B33: 8934 | C33: 5096 | D33: 3838 | E33: 5.132907487 | F33: 6.093463397 | G33: 4.244504705 | H33: 4.926849509 | I33: 6.767330827 | J33: 3.552409539 | K33: 132.7774883 | M33: 1740534 | N33: 836306 | O33: 904228
A34: 95 7 | B34: 9398 | C34: 5288 | D34: 4110 | E34: 5.364127696 | F34: 6.290939287 | G34: 4.509372583 | H34: 4.88753041 | I34: 6.643247893 | J34: 3.581497217 | K34: 128.6618005 | M34: 1752009 | N34: 840574 | O34: 911435
A35: 96 8 | B35: 9512 | C35: 5383 | D35: 4129 | E35: 5.360262378 | F35: 6.325395352 | G35: 4.470908236 | H35: 4.721457386 | I35: 6.499324256 | J35: 3.409131205 | K35: 130.3705498 | M35: 1774540 | N35: 851014 | O35: 923526
A36: 97 9 | B36: 9840 | C36: 5630 | D36: 4210 | E36: 5.493459489 | F36: 6.561175091 | G36: 4.511634337 | H36: 4.633561421 | I36: 6.500249571 | J36: 3.279034122 | K36: 133.7292162 | M36: 1791221 | N36: 858078 | O36: 933143
A37: 98 10 | B37: 9995 | C37: 5707 | D37: 4288 | E37: 5.541860313 | F37: 6.616918999 | G37: 4.556563875 | H37: 4.478400626 | I37: 6.312868943 | J37: 3.147333089 | K37: 133.0923507 | M37: 1803546 | N37: 862486 | O37: 941060
A38: 99 11 | B38: 10806 | C38: 6044 | D38: 4762 | E38: 5.963480717 | F38: 6.987008603 | G38: 5.028537637 | H38: 4.623836044 | I38: 6.400753629 | J38: 3.329669258 | K38: 126.9214616 | M38: 1812029 | N38: 865034 | O38: 946995
A39: 2000 12 | B39: 10800 | C39: 6127 | D39: 4673 | E39: 5.944920313 | F39: 7.075409056 | G39: 4.915222147 | H39: 4.389883592 | I39: 6.174672625 | J39: 3.066488191 | K39: 131.1149155 | M39: 1816677 | N39: 865957 | O39: 950720
A40: 01 13 | B40: 10803 | C40: 6114 | D40: 4689 | E40: 5.888207452 | F40: 6.999844295 | G40: 4.878094453 | H40: 4.182314123 | I40: 5.891509462 | J40: 2.938959626 | K40: 130.3902751 | M40: 1834684 | N40: 873448 | O40: 961236
A41: 02 14 | B41: 11151 | C41: 6328 | D41: 4823 | E41: 6.033189848 | F41: 7.202941277 | G41: 4.973467279 | H41: 3.928934935 | I41: 5.586721222 | J41: 2.711254006 | K41: 131.2046444 | M41: 1848276 | N41: 878530 | O41: 969746
A42: 03 15 | B42: 11769 | C42: 6476 | D42: 5293 | E42: 6.319397797 | F42: 7.330410677 | G42: 5.406990167 | H42: 3.967985973 | I42: 5.503306771 | J42: 2.819056431 | K42: 122.3502739 | M42: 1862361 | N42: 883443 | O42: 978918
A43: 04 16 | B43: 12348 | C43: 6859 | D43: 5489 | E43: 6.593677695 | F43: 7.733696547 | G43: 5.568038304 | H43: 4.158717458 | I43: 5.819023638 | J43: 2.910068812 | K43: 124.9590089 | M43: 1872703 | N43: 886898 | O43: 985805
A44: 05 17 | B44: 13105 | C44: 7313 | D44: 5792 | E44: 6.967546281 | F44: 8.3 | G44: 5.9 | H44: 4.186175153 | I44: 5.929256601 | J44: 2.899572169 | K44: 126.2603591 | M44: 1874479 | N44: 885751 | O44: 988728
A45: 06 18 | B45: 13268 | C45: 7224 | D45: 6044 | E45: 7.024986141 | F45: 8.110265481 | G45: 6.056330689 | H45: 4.039137445 | I45: 5.613578088 | J45: 2.89182289 | K45: 119.5234944 | M45: 1888687 | N45: 890723 | O45: 997964
A46: 07 19 | B46: 14044 | C46: 7695 | D46: 6349 | E46: 7.413648208 | F46: 8.634493314 | G46: 6.329057141 | H46: 4.070505052 | I46: 5.730696257 | J46: 2.868032399 | K46: 121.200189 | M46: 1894344 | N46: 891193 | O46: 1003151
A47: 08 20 | B47: 14366 | C47: 7764 | D47: 6602 | E47: 7.567134218 | F47: 8.714313293 | G47: 6.552691 | H47: 3.987311053 | I47: 5.555541258 | J47: 2.83220576 | K47: 117.6007271 | M47: 1898473 | N47: 890948 | O47: 1007525
A48: 09 21 | B48: 14506 | C48: 7931 | D48: 6575 | E48: 7.617585248 | F48: 8.89103632 | G48: 6.49539247 | H48: 3.851519931 | I48: 5.428225383 | J48: 2.706896558 | K48: 120.6235741 | M48: 1904278 | N48: 892022 | O48: 1012256
A49: 10 22 | B49: 15482 | C49: 8321 | D49: 7161 | E49: 8.11989884 | F49: 9.314044832 | G49: 7.067064578 | H49: 3.9 | I49: 5.4 | J49: 2.8 | K49: 116.1988549 | M49: 1906674 | N49: 893382 | O49: 1013292
A50: 11 23 | B50: 15926 | C50: 8511 | D50: 7415 | E50: 8.286440488 | F50: 9.461786544 | G50: 7.252386979 | H50: 3.868786591 | I50: 5.385288709 | J50: 2.759072711 | K50: 114.7808496 | M50: 1921935 | N50: 899513 | O50: 1022422
A51: 12 24 | B51: 16228 | C51: 8666 | D51: 7562 | E51: 8.413626051 | F51: 9.615395284 | G51: 7.359517592 | H51: 3.75529017 | I51: 5.280711431 | J51: 2.617652694 | K51: 114.5993124 | M51: 1928776 | N51: 901263 | O51: 1027513
A52: 13 25 | B52: 16844 | C52: 8726 | D52: 8118 | E52: 8.699563937 | F52: 9.652088982 | G52: 7.865242565 | H52: 3.716687623 | I52: 5.074667667 | J52: 2.712480879 | K52: 107.4895294 | M52: 1936189 | N52: 904053 | O52: 1032136
A53: 14 26 | B53: 17668 | C53: 9233 | D53: 8435 | E53: 9.094802558 | F53: 10.18972331 | G53: 8.13765811 | H53: 3.708046608 | I53: 5.121410999 | J53: 2.67732483 | K53: 109.4605809 | M53: 1942648 | N53: 906109 | O53: 1036539
A54: 15 3) 27 | B54: 17523 | C54: 9083 | D54: 8440 | E54: 9.016082617 | F54: 10.02199034 | G54: 8.137135805 | H54: 3.462036439 | I54: 4.783804633 | J54: 2.481248333 | K54: 107.6184834 | M54: 1952356 | N54: 910614 | O54: 1041742
A55: 16 28 | B55: =SUM(C55:D55) -> 18504 | C55: ='3 月・性別，区別死亡数'!$C$6 -> 9654 | D55: ='3 月・性別，区別死亡数'!$C$7 -> 8850 | E55: =B55/M55*1000 -> 9.448505289 | F55: =C55/N55*1000 -> 10.57956371 | G55: =D55/O55*1000 -> 8.461684822 | H55: =調整死亡率算出!$E$11/100 -> 3.600013918 | I55: =調整死亡率算出!$E$12/100 -> 5.00400258 | J55: =調整死亡率算出!$E$13/100 -> 2.568737747 | K55: =C55/D55*100 -> 109.0847458 | M55: =[1]人口!$B$42 -> 1958405 | N55: =[1]人口!$B$43 -> 912514 | O55: =[1]人口!$B$44 -> 1045891
A56: 1) 本市の集計による。
A57: * 昭和35年の総数には性別不詳を含む。
A58: 2) 住民基本台帳の人口により算出(平成27年については、3)参照)。
A59: 3) 率算出に用いた人口は「平成27年国勢調査 年齢・国籍不詳をあん分した人口(参考表)」(総務省統計局)における 日本人人口による。

Sheet 2 区別，年次別死亡数・死亡率
A1: 2 区別にみた年次別死亡数及び粗死亡率(人口千対)
A3: 年次 | B3: 総数 | C3: 中央区 | D3: 北区 | E3: 東区 | F3: 白石区 | G3: 厚別区 | H3: 豊平区 | I3: 清田区 | J3: 南区 | K3: 西区 | L3: 手稲区
B4: 死亡数 | N4: =[1]年次別人口!C3 -> 総数 | O4: =[1]年次別人口!D3 -> 中央区 | P4: =[1]年次別人口!E3 -> 北区 | Q4: =[1]年次別人口!F3 -> 東区 | R4: =[1]年次別人口!G3 -> 白石区 | S4: =[1]年次別人口!H3 -> 厚別区 | T4: =[1]年次別人口!I3 -> 豊平区 | U4: =[1]年次別人口!J3 -> 清田区 | V4: =[1]年次別人口!K3 -> 南区 | W4: =[1]年次別人口!L3 -> 西区 | X4: =[1]年次別人口!M3 -> 手稲区
A5: 85 60 | B5: =SUM(C5:L5) -> 7226 | C5: 1081 | D5: 1010 | E5: 1094 | F5: 1107 | G5: … | H5: 1092 | I5: … | J5: 596 | K5: 1246 | L5: … | N5: =[1]年次別人口!C4 -> 1539808 | O5: =[1]年次別人口!D4 -> 180845 | P5: =[1]年次別人口!E4 -> 212508 | Q5: =[1]年次別人口!F4 -> 224539 | R5: =[1]年次別人口!G4 -> 263938 | S5: =[1]年次別人口!H4 -> 0 | T5: =[1]年次別人口!I4 -> 249956 | U5: =[1]年次別人口!J4 -> 0 | V5: =[1]年次別人口!K4 -> 141743 | W5: =[1]年次別人口!L4 -> 269450 | X5: =[1]年次別人口!M4 -> 0
A6: 1986 昭和61年 | B6: 7127 | C6: 993 | D6: 1002 | E6: 1076 | F6: 1210 | G6: … | H6: 1044 | I6: … | J6: 602 | K6: 1200 | L6: … | N6: =[1]年次別人口!C5 -> 1566871 | O6: =[1]年次別人口!D5 -> 182427 | P6: =[1]年次別人口!E5 -> 214728 | Q6: =[1]年次別人口!F5 -> 224730 | R6: =[1]年次別人口!G5 -> 272037 | S6: =[1]年次別人口!H5 -> 0 | T6: =[1]年次別人口!I5 -> 255105 | U6: =[1]年次別人口!J5 -> 0 | V6: =[1]年次別人口!K5 -> 142892 | W6: =[1]年次別人口!L5 -> 274952 | X6: =[1]年次別人口!M5 -> 0
A7: 1987 昭和62年 | B7: 7074 | C7: 1021 | D7: 941 | E7: 1036 | F7: 1138 | G7: … | H7: 1061 | I7: … | J7: 618 | K7: 1259 | L7: … | N7: =[1]年次別人口!C6 -> 1593205 | O7: =[1]年次別人口!D6 -> 182818 | P7: =[1]年次別人口!E6 -> 217384 | Q7: =[1]年次別人口!F6 -> 225693 | R7: =[1]年次別人口!G6 -> 280378 | S7: =[1]年次別人口!H6 -> 0 | T7: =[1]年次別人口!I6 -> 260488 | U7: =[1]年次別人口!J6 -> 0 | V7: =[1]年次別人口!K6 -> 144547 | W7: =[1]年次別人口!L6 -> 281897 | X7: =[1]年次別人口!M6 -> 0
A8: 1988 昭和63年 | B8: 7761 | C8: 1071 | D8: 1069 | E8: 1091 | F8: 1309 | G8: … | H8: 1152 | I8: … | J8: 648 | K8: 1421 | L8: … | N8: =[1]年次別人口!C7 -> 1618861 | O8: =[1]年次別人口!D7 -> 182735 | P8: =[1]年次別人口!E7 -> 220308 | Q8: =[1]年次別人口!F7 -> 227252 | R8: =[1]年次別人口!G7 -> 287265 | S8: =[1]年次別人口!H7 -> 0 | T8: =[1]年次別人口!I7 -> 266739 | U8: =[1]年次別人口!J7 -> 0 | V8: =[1]年次別人口!K7 -> 145661 | W8: =[1]年次別人口!L7 -> 288901 | X8: =[1]年次別人口!M7 -> 0
A9: 89 平成元年 | B9: 8103 | C9: 1093 | D9: 1081 | E9: 1196 | F9: 1362 | G9: … | H9: 1277 | I9: … | J9: 698 | K9: 1396 | L9: … | N9: =[1]年次別人口!C8 -> 1645095 | O9: =[1]年次別人口!D8 -> 181535 | P9: =[1]年次別人口!E8 -> 224721 | Q9: =[1]年次別人口!F8 -> 230623 | R9: =[1]年次別人口!G8 -> 294751 | S9: =[1]年次別人口!H8 -> 0 | T9: =[1]年次別人口!I8 -> 272011 | U9: =[1]年次別人口!J8 -> 0 | V9: =[1]年次別人口!K8 -> 146535 | W9: =[1]年次別人口!L8 -> 294919 | X9: =[1]年次別人口!M8 -> 0
A10: 90 2 | B10: 8278 | C10: 1082 | D10: 1121 | E10: 1199 | F10: 978 | G10: 408 | H10: 1286 | I10: … | J10: 726 | K10: 957 | L10: 521 | N10: =[1]年次別人口!C9 -> 1667984 | O10: =[1]年次別人口!D9 -> 179184 | P10: =[1]年次別人口!E9 -> 230918 | Q10: =[1]年次別人口!F9 -> 232999 | R10: =[1]年次別人口!G9 -> 188043 | S10: =[1]年次別人口!H9 -> 112623 | T10: =[1]年次別人口!I9 -> 277801 | U10: =[1]年次別人口!J9 -> 0 | V10: =[1]年次別人口!K9 -> 148393 | W10: =[1]年次別人口!L9 -> 190807 | X10: =[1]年次別人口!M9 -> 110974
A11: 91 3 | B11: 8342 | C11: 1094 | D11: 1112 | E11: 1124 | F11: 884 | G11: 431 | H11: 1336 | I11: … | J11: 811 | K11: 995 | L11: 555 | N11: =[1]年次別人口!C10 -> 1694988 | O11: =[1]年次別人口!D10 -> 177997 | P11: =[1]年次別人口!E10 -> 234595 | Q11: =[1]年次別人口!F10 -> 236454 | R11: =[1]年次別人口!G10 -> 190543 | S11: =[1]年次別人口!H10 -> 115650 | T11: =[1]年次別人口!I10 -> 281463 | U11: =[1]年次別人口!J10 -> 0 | V11: =[1]年次別人口!K10 -> 150378 | W11: =[1]年次別人口!L10 -> 192601 | X11: =[1]年次別人口!M10 -> 115307
A12: 92 4 | B12: 8808 | C12: 1074 | D12: 1119 | E12: 1241 | F12: 1002 | G12: 482 | H12: 1432 | I12: … | J12: 818 | K12: 1037 | L12: 603 | N12: =[1]年次別人口!C11 -> 1714488 | O12: =[1]年次別人口!D11 -> 176981 | P12: =[1]年次別人口!E11 -> 239907 | Q12: =[1]年次別人口!F11 -> 237749 | R12: =[1]年次別人口!G11 -> 191928 | S12: =[1]年次別人口!H11 -> 117351 | T12: =[1]年次別人口!I11 -> 285597 | U12: =[1]年次別人口!J11 -> 0 | V12: =[1]年次別人口!K11 -> 152014 | W12: =[1]年次別人口!L11 -> 193258 | X12: =[1]年次別人口!M11 -> 119703
A13: 1993 平成5年 | B13: 9428 | C13: 1155 | D13: 1284 | E13: 1303 | F13: 1084 | G13: 565 | H13: 1513 | I13: … | J13: 849 | K13: 1065 | L13: 610 | N13: =[1]年次別人口!C12 -> 1728466 | O13: =[1]年次別人口!D12 -> 174994 | P13: =[1]年次別人口!E12 -> 243771 | Q13: =[1]年次別人口!F12 -> 238168 | R13: =[1]年次別人口!G12 -> 191918 | S13: =[1]年次別人口!H12 -> 119386 | T13: =[1]年次別人口!I12 -> 288941 | U13: =[1]年次別人口!J12 -> 0 | V13: =[1]年次別人口!K12 -> 153020 | W13: =[1]年次別人口!L12 -> 194009 | X13: =[1]年次別人口!M12 -> 124259
A14: 94 6 | B14: 8934 | C14: 1034 | D14: 1227 | E14: 1233 | F14: 1059 | G14: 515 | H14: 1453 | I14: … | J14: 803 | K14: 1019 | L14: 591 | N14: =[1]年次別人口!C13 -> 1740534 | O14: =[1]年次別人口!D13 -> 173594 | P14: =[1]年次別人口!E13 -> 247942 | Q14: =[1]年次別人口!F13 -> 238547 | R14: =[1]年次別人口!G13 -> 191099 | S14: =[1]年次別人口!H13 -> 121427 | T14: =[1]年次別人口!I13 -> 292470 | U14: =[1]年次別人口!J13 -> 0 | V14: =[1]年次別人口!K13 -> 154474 | W14: =[1]年次別人口!L13 -> 193597 | X14: =[1]年次別人口!M13 -> 127384
A15: 95 7 | B15: 9398 | C15: 1123 | D15: 1280 | E15: 1283 | F15: 1068 | G15: 549 | H15: 1548 | I15: … | J15: 844 | K15: 1053 | L15: 650 | N15: =[1]年次別人口!C14 -> 1752009 | O15: =[1]年次別人口!D14 -> 173358 | P15: =[1]年次別人口!E14 -> 251419 | Q15: =[1]年次別人口!F14 -> 241319 | R15: =[1]年次別人口!G14 -> 192102 | S15: =[1]年次別人口!H14 -> 122738 | T15: =[1]年次別人口!I14 -> 296647 | U15: =[1]年次別人口!J14 -> 0 | V15: =[1]年次別人口!K14 -> 155650 | W15: =[1]年次別人口!L14 -> 194308 | X15: =[1]年次別人口!M14 -> 129484
A16: 96 8 | B16: 9512 | C16: 1098 | D16: 1363 | E16: 1352 | F16: 933 | G16: 557 | H16: 1542 | I16: … | J16: 946 | K16: 1054 | L16: 667 | N16: =[1]年次別人口!C15 -> 1774540 | O16: =[1]年次別人口!D15 -> 175812 | P16: =[1]年次別人口!E15 -> 253271 | Q16: =[1]年次別人口!F15 -> 243767 | R16: =[1]年次別人口!G15 -> 193494 | S16: =[1]年次別人口!H15 -> 124213 | T16: =[1]年次別人口!I15 -> 300609 | U16: =[1]年次別人口!J15 -> 0 | V16: =[1]年次別人口!K15 -> 156831 | W16: =[1]年次別人口!L15 -> 194629 | X16: =[1]年次別人口!M15 -> 131914
A17: 97 9 | B17: 9840 | C17: 1158 | D17: 1313 | E17: 1298 | F17: 1063 | G17: 639 | H17: 1638 | I17: … | J17: 920 | K17: 1130 | L17: 681 | N17: =[1]年次別人口!C16 -> 1791221 | O17: =[1]年次別人口!D16 -> 178405 | P17: =[1]年次別人口!E16 -> 255530 | Q17: =[1]年次別人口!F16 -> 245544 | R17: =[1]年次別人口!G16 -> 194555 | S17: =[1]年次別人口!H16 -> 124531 | T17: =[1]年次別人口!I16 -> 305192 | U17: =[1]年次別人口!J16 -> 0 | V17: =[1]年次別人口!K16 -> 157297 | W17: =[1]年次別人口!L16 -> 196727 | X17: =[1]年次別人口!M16 -> 133440
A18: 1998 平成10年 | B18: 9995 | C18: 1107 | D18: 1412 | E18: 1369 | F18: 1114 | G18: 609 | H18: 1080 | I18: 682 | J18: 954 | K18: 1112 | L18: 556 | N18: =[1]年次別人口!C17 -> 1803546 | O18: =[1]年次別人口!D17 -> 179801 | P18: =[1]年次別人口!E17 -> 257132 | Q18: =[1]年次別人口!F17 -> 247420 | R18: =[1]年次別人口!G17 -> 194903 | S18: =[1]年次別人口!H17 -> 125679 | T18: =[1]年次別人口!I17 -> 202316 | U18: =[1]年次別人口!J17 -> 106984 | V18: =[1]年次別人口!K17 -> 157438 | W18: =[1]年次別人口!L17 -> 197627 | X18: =[1]年次別人口!M17 -> 134246
A19: 99 11 | B19: 10806 | C19: 1209 | D19: 1537 | E19: 1420 | F19: 1183 | G19: 644 | H19: 1201 | I19: 574 | J19: 1000 | K19: 1281 | L19: 757 | N19: =[1]年次別人口!C18 -> 1812029 | O19: =[1]年次別人口!D18 -> 180515 | P19: =[1]年次別人口!E18 -> 258640 | Q19: =[1]年次別人口!F18 -> 247756 | R19: =[1]年次別人口!G18 -> 195162 | S19: =[1]年次別人口!H18 -> 126780 | T19: =[1]年次別人口!I18 -> 203514 | U19: =[1]年次別人口!J18 -> 108731 | V19: =[1]年次別人口!K18 -> 157152 | W19: =[1]年次別人口!L18 -> 198486 | X19: =[1]年次別人口!M18 -> 135293
A20: 2000 12 | B20: 10800 | C20: 1238 | D20: 1447 | E20: 1430 | F20: 1175 | G20: 674 | H20: 1207 | I20: 645 | J20: 1026 | K20: 1190 | L20: 768 | N20: =[1]年次別人口!C19 -> 1816677 | O20: =[1]年次別人口!D19 -> 180488 | P20: =[1]年次別人口!E19 -> 259139 | Q20: =[1]年次別人口!F19 -> 248140 | R20: =[1]年次別人口!G19 -> 196793 | S20: =[1]年次別人口!H19 -> 127325 | T20: =[1]年次別人口!I19 -> 203918 | U20: =[1]年次別人口!J19 -> 109635 | V20: =[1]年次別人口!K19 -> 156441 | W20: =[1]年次別人口!L19 -> 199013 | X20: =[1]年次別人口!M19 -> 135785
A21: 01 13 | B21: 10803 | C21: 1213 | D21: 1504 | E21: 1409 | F21: 1243 | G21: 677 | H21: 1224 | I21: 511 | J21: 1020 | K21: 1205 | L21: 797 | N21: =[1]年次別人口!C20 -> 1834684 | O21: =[1]年次別人口!D20 -> 185064 | P21: =[1]年次別人口!E20 -> 262443 | Q21: =[1]年次別人口!F20 -> 249707 | R21: =[1]年次別人口!G20 -> 198580 | S21: =[1]年次別人口!H20 -> 128443 | T21: =[1]年次別人口!I20 -> 205066 | U21: =[1]年次別人口!J20 -> 110759 | V21: =[1]年次別人口!K20 -> 156589 | W21: =[1]年次別人口!L20 -> 201453 | X21: =[1]年次別人口!M20 -> 136580
A22: 02 14 | B22: 11151 | C22: 1249 | D22: 1601 | E22: 1488 | F22: 1268 | G22: 691 | H22: 1202 | I22: 603 | J22: 1024 | K22: 1236 | L22: 789 | N22: =[1]年次別人口!C21 -> 1848276 | O22: =[1]年次別人口!D21 -> 190254 | P22: =[1]年次別人口!E21 -> 265023 | Q22: =[1]年次別人口!F21 -> 251256 | R22: =[1]年次別人口!G21 -> 199164 | S22: =[1]年次別人口!H21 -> 129105 | T22: =[1]年次別人口!I21 -> 205981 | U22: =[1]年次別人口!J21 -> 111613 | V22: =[1]年次別人口!K21 -> 155571 | W22: =[1]年次別人口!L21 -> 203048 | X22: =[1]年次別人口!M21 -> 137261
A23: 03 15 | B23: 11769 | C23: 1290 | D23: 1610 | E23: 1651 | F23: 1241 | G23: 803 | H23: 1201 | I23: 610 | J23: 1104 | K23: 1360 | L23: 899 | N23: =[1]年次別人口!C22 -> 1862361 | O23: =[1]年次別人口!D22 -> 194901 | P23: =[1]年次別人口!E22 -> 268387 | Q23: =[1]年次別人口!F22 -> 252494 | R23: =[1]年次別人口!G22 -> 200077 | S23: =[1]年次別人口!H22 -> 129660 | T23: =[1]年次別人口!I22 -> 207859 | U23: =[1]年次別人口!J22 -> 112333 | V23: =[1]年次別人口!K22 -> 155234 | W23: =[1]年次別人口!L22 -> 203782 | X23: =[1]年次別人口!M22 -> 137634
A24: 04 16 | B24: 12348 | C24: 1432 | D24: 1844 | E24: 1675 | F24: 1340 | G24: 751 | H24: 1296 | I24: 626 | J24: 1129 | K24: 1400 | L24: 855 | N24: =[1]年次別人口!C23 -> 1872703 | O24: =[1]年次別人口!D23 -> 198946 | P24: =[1]年次別人口!E23 -> 271222 | Q24: =[1]年次別人口!F23 -> 253520 | R24: =[1]年次別人口!G23 -> 200856 | S24: =[1]年次別人口!H23 -> 129645 | T24: =[1]年次別人口!I23 -> 208605 | U24: =[1]年次別人口!J23 -> 112473 | V24: =[1]年次別人口!K23 -> 154348 | W24: =[1]年次別人口!L23 -> 205526 | X24: =[1]年次別人口!M23 -> 137562
A25: 05 17 | B25: 13105 | C25: 1481 | D25: 1924 | E25: 1760 | F25: 1420 | G25: 832 | H25: 1413 | I25: 651 | J25: 1172 | K25: 1537 | L25: 915 | N25: =[1]年次別人口!C24 -> 1874479 | O25: =[1]年次別人口!D24 -> 201612 | P25: =[1]年次別人口!E24 -> 271750 | Q25: =[1]年次別人口!F24 -> 253138 | R25: =[1]年次別人口!G24 -> 200866 | S25: =[1]年次別人口!H24 -> 129346 | T25: =[1]年次別人口!I24 -> 208576 | U25: =[1]年次別人口!J24 -> 112398 | V25: =[1]年次別人口!K24 -> 152505 | W25: =[1]年次別人口!L24 -> 206905 | X25: =[1]年次別人口!M24 -> 137383
A26: 06 18 | B26: 13268 | C26: 1447 | D26: 1940 | E26: 1789 | F26: 1435 | G26: 867 | H26: 1402 | I26: 732 | J26: 1203 | K26: 1481 | L26: 972 | N26: 1889460 | O26: 206768 | P26: 273792 | Q26: 254899 | R26: 202638 | S26: 129500 | T26: 209102 | U26: 113572 | V26: 151858 | W26: 208975 | X26: 138356
A27: 07 19 | B27: 14044 | C27: 1576 | D27: 1962 | E27: 1758 | F27: 1507 | G27: 982 | H27: 1543 | I27: 772 | J27: 1278 | K27: 1584 | L27: 1082 | N27: 1895901 | O27: 210166 | P27: 276240 | Q27: 255210 | R27: 203006 | S27: 128963 | T27: 209334 | U27: 114646 | V27: 150261 | W27: 209532 | X27: 138543
A28: 08 20 | B28: 14366 | C28: 1547 | D28: 2023 | E28: 1894 | F28: 1573 | G28: 966 | H28: 1613 | I28: 784 | J28: 1297 | K28: 1615 | L28: 1054 | N28: 1900815 | O28: 213591 | P28: 276624 | Q28: 255365 | R28: 203180 | S28: 129034 | T28: 209789 | U28: 115606 | V28: 148867 | W28: 210231 | X28: 138647
A29: 09 21 | B29: 14506 | C29: 1571 | D29: 2057 | E29: 1860 | F29: 1581 | G29: 934 | H29: 1540 | I29: 856 | J29: 1362 | K29: 1654 | L29: 1091 | N29: 1907404 | O29: 216780 | P29: 278310 | Q29: 255376 | R29: 203764 | S29: 128668 | T29: 211014 | U29: 116022 | V29: 147757 | W29: 210564 | X29: 139149
A30: 10 22 | B30: 15482 | C30: 1679 | D30: 2252 | E30: 2085 | F30: 1617 | G30: 980 | H30: 1666 | I30: 851 | J30: 1484 | K30: 1702 | L30: 1166 | N30: 1906674 | O30: 218964 | P30: 277240 | Q30: 254909 | R30: 203771 | S30: 128133 | T30: 211221 | U30: 116261 | V30: 145958 | W30: 210771 | X30: 139446
A31: 11 23 | B31: 15926 | C31: 1710 | D31: 2296 | E31: 2100 | F31: 1733 | G31: 1085 | H31: 1703 | I31: 889 | J31: 1508 | K31: 1760 | L31: 1142 | N31: 1921935 | O31: 223614 | P31: 280423 | Q31: 256523 | R31: 205395 | S31: 128630 | T31: 213788 | U31: 116589 | V31: 145217 | W31: 211671 | X31: 140085
A32: 12 24 | B32: 16228 | C32: 1844 | D32: 2279 | E32: 2089 | F32: 1735 | G32: 1064 | H32: 1782 | I32: 892 | J32: 1459 | K32: 1770 | L32: 1314 | N32: 1928776 | O32: 226938 | P32: 281330 | Q32: 257367 | R32: 206800 | S32: 128739 | T32: 215694 | U32: 116655 | V32: 144080 | W32: 210751 | X32: 140422
A33: 13 25 | B33: 16844 | C33: 1851 | D33: 2423 | E33: 2184 | F33: 1819 | G33: 1085 | H33: 1873 | I33: 929 | J33: 1494 | K33: 1881 | L33: 1305 | N33: 1936189 | O33: 230015 | P33: 281985 | Q33: 258747 | R33: 208404 | S33: 128663 | T33: 217208 | U33: 116279 | V33: 143100 | W33: 211268 | X33: 140520
A34: 14 26 | B34: 17668 | C34: 1954 | D34: 2573 | E34: 2325 | F34: 1949 | G34: 1200 | H34: 1883 | I34: 960 | J34: 1582 | K34: 1885 | L34: 1357 | N34: 1942648 | O34: 233080 | P34: 283513 | Q34: 259508 | R34: 209064 | S34: 128133 | T34: 218136 | U34: 116199 | V34: 141960 | W34: 212322 | X34: 140733
A35: 15 27 | B35: 17523 | C35: 1894 | D35: 2571 | E35: 2253 | F35: 1885 | G35: 1193 | H35: 1866 | I35: 994 | J35: 1524 | K35: 1969 | L35: 1374 | N35: 1943527 | O35: 235736 | P35: 283298 | Q35: 260791 | R35: 208989 | S35: 127359 | T35: 217532 | U35: 115326 | V35: 140753 | W35: 213012 | X35: 140740
A36: 16 28 | B36: =SUM(C36:L36) -> 18504 | C36: ='3 月・性別，区別死亡数'!$C$8 -> 1995 | D36: ='3 月・性別，区別死亡数'!$C$11 -> 2558 | E36: ='3 月・性別，区別死亡数'!$C$14 -> 2449 | F36: ='3 月・性別，区別死亡数'!$C$17 -> 2027 | G36: ='3 月・性別，区別死亡数'!$C$20 -> 1282 | H36: ='3 月・性別，区別死亡数'!$C$23 -> 2074 | I36: ='3 月・性別，区別死亡数'!$C$26 -> 1036 | J36: ='3 月・性別，区別死亡数'!$C$29 -> 1607 | K36: ='3 月・性別，区別死亡数'!$C$32 -> 2042 | L36: ='3 月・性別，区別死亡数'!$C$35 -> 1434 | N36: =[1]年次別人口!C35 -> 1958405 | O36: =[1]年次別人口!D35 -> 239820 | P36: =[1]年次別人口!E35 -> 286905 | Q36: =[1]年次別人口!F35 -> 263476 | R36: =[1]年次別人口!G35 -> 210171 | S36: =[1]年次別人口!H35 -> 126906 | T36: =[1]年次別人口!I35 -> 219660 | U36: =[1]年次別人口!J35 -> 115905 | V36: =[1]年次別人口!K35 -> 140184 | W36: =[1]年次別人口!L35 -> 214169 | X36: =[1]年次別人口!M35 -> 141209
B37: 粗死亡率
A38: 85 60 | B38: =B5/N5*1000 -> 4.692792868 | C38: 5.97749454 | D38: 4.752762249 | E38: 4.872204829 | F38: 4.194166812 | G38: ・ | H38: =H5/T5*1000 -> 4.368768903 | I38: ・ | J38: =J5/V5*1000 -> 4.204793182 | K38: =K5/W5*1000 -> 4.624234552 | L38: ・
A39: 1986 昭和61年 | B39: 4.548555688 | C39: 5.4432732 | D39: 4.666368615 | E39: 4.787967784 | F39: 4.447924363 | G39: ・ | H39: =H6/T6*1000 -> 4.092432528 | I39: ・ | J39: =J6/V6*1000 -> 4.212972035 | K39: =K6/W6*1000 -> 4.364398149 | L39: ・
A40: 1987 昭和62年 | B40: 4.440106578 | C40: 5.584789244 | D40: 4.328745446 | E40: 4.590306301 | F40: 4.058806326 | G40: ・ | H40: 4.07312429 | I40: ・ | J40: 4.275425986 | K40: 4.466170268 | L40: ・
A41: 1988 昭和63年 | B41: 4.794111415 | C41: 5.860946179 | D41: 4.852297692 | E41: 4.800837836 | F41: 4.556768141 | G41: ・ | H41: 4.318828518 | I41: ・ | J41: 4.448685647 | K41: 4.918639949 | L41: ・
A42: 89 平成元年 | B42: 4.925551412 | C42: 6.020877517 | D42: 4.810409352 | E42: 5.185952832 | F42: 4.620849463 | G42: ・ | H42: 4.694663083 | I42: ・ | J42: 4.763367114 | K42: 4.733503097 | L42: ・
A43: 90 2 | B43: 4.962877342 | C43: 6.038485579 | D43: 4.854537108 | E43: 5.145944832 | F43: 5.200938083 | G43: 3.622705842 | H43: 4.629212998 | I43: ・ | J43: 4.892414063 | K43: 5.015539262 | L43: 4.694793375
A44: 91 3 | B44: 4.921568766 | C44: 6.146171003 | D44: 4.740083975 | E44: 4.75356729 | F44: 4.63937274 | G44: 3.726761781 | H44: 4.746627443 | I44: ・ | J44: 5.393076115 | K44: 5.166120633 | L44: 4.813237705
A45: 92 4 | B45: 5.137393788 | C45: 6.068448025 | D45: 4.664307419 | E45: 5.21979062 | F45: 5.220707765 | G45: 4.107336111 | H45: 5.014058271 | I45: ・ | J45: 5.381083321 | K45: 5.365883948 | L45: 5.037467733
A46: 1993 平成5年 | B46: 5.454547558 | C46: 6.600226293 | D46: 5.267238515 | E46: 5.470928084 | F46: 5.648245605 | G46: 4.732548205 | H46: 5.236363133 | I46: ・ | J46: 5.548294341 | K46: 5.489436057 | L46: 4.909101152
A47: 94 6 | B47: 5.132907487 | C47: 5.956427065 | D47: 4.948738011 | E47: 5.168792733 | F47: 5.541630254 | G47: 4.241231357 | H47: 4.968030909 | I47: ・ | J47: 5.198285796 | K47: 5.263511315 | L47: 4.639515167
A48: 95 7 | B48: 5.364127696 | C48: 6.477924295 | D48: 5.0911029 | E48: 5.316614108 | F48: 5.559546491 | G48: 4.472942365 | H48: 5.218323462 | I48: ・ | J48: 5.422422101 | K48: 5.419231323 | L48: 5.019925242
A49: 96 8 | B49: 5.360262378 | C49: 6.245307488 | D49: 5.381587312 | E49: 5.546279849 | F49: 4.821854941 | G49: 4.484232729 | H49: 5.129586939 | I49: ・ | J49: 6.03197072 | K49: 5.415431411 | L49: 5.056324575
A50: 97 9 | B50: 5.493459489 | C50: 6.490849472 | D50: 5.138339921 | E50: 5.286221614 | F50: 5.46375061 | G50: 5.131252459 | H50: 5.367113162 | I50: ・ | J50: 5.848808305 | K50: 5.744000569 | L50: 5.103417266
A51: 1998 平成10年 | B51: 5.541860313 | C51: 6.156806692 | D51: 5.491342968 | E51: 5.533101609 | F51: 5.715663689 | G51: 4.845678276 | H51: 5.338183831 | I51: 6.374785015 | J51: 6.059528195 | K51: 5.626761526 | L51: 4.141650403
A52: 99 11 | B52: 5.963480717 | C52: 6.697504363 | D52: 5.942622951 | E52: 5.731445454 | F52: 6.06163085 | G52: 5.079665562 | H52: 5.901313915 | I52: 5.279083242 | J52: 6.363266137 | K52: 6.453855688 | L52: 5.595263613
A53: 2000 12 | B53: 5.944920313 | C53: 6.859181774 | D53: 5.583875835 | E53: 5.762875796 | F53: 5.970740829 | G53: 5.293540153 | H53: 5.919045891 | I53: 5.883157751 | J53: 6.558383033 | K53: 5.979508876 | L53: 5.656000295
A54: 01 13 | B54: =B21/[1]年次別人口!C20*1000 -> 5.888207452 | C54: =C21/[1]年次別人口!D20*1000 -> 6.554489258 | D54: =D21/[1]年次別人口!E20*1000 -> 5.730768205 | E54: =E21/[1]年次別人口!F20*1000 -> 5.642613143 | F54: =F21/[1]年次別人口!G20*1000 -> 6.259442038 | G54: =G21/[1]年次別人口!H20*1000 -> 5.27082052 | H54: =H21/[1]年次別人口!I20*1000 -> 5.968810042 | I54: =I21/[1]年次別人口!J20*1000 -> 4.613620564 | J54: =J21/[1]年次別人口!K20*1000 -> 6.513867513 | K54: =K21/[1]年次別人口!L20*1000 -> 5.981544082 | L54: =L21/[1]年次別人口!M20*1000 -> 5.83540782
A55: 02 14 | B55: =B22/[1]年次別人口!C21*1000 -> 6.033189848 | C55: =C22/[1]年次別人口!D21*1000 -> 6.564907965 | D55: =D22/[1]年次別人口!E21*1000 -> 6.040985122 | E55: =E22/[1]年次別人口!F21*1000 -> 5.922246633 | F55: =F22/[1]年次別人口!G21*1000 -> 6.36661244 | G55: =G22/[1]年次別人口!H21*1000 -> 5.352232679 | H55: =H22/[1]年次別人口!I21*1000 -> 5.835489681 | I55: =I22/[1]年次別人口!J21*1000 -> 5.402596472 | J55: =J22/[1]年次別人口!K21*1000 -> 6.582203624 | K55: =K22/[1]年次別人口!L21*1000 -> 6.087230606 | L55: =L22/[1]年次別人口!M21*1000 -> 5.748173188
A56: 03 15 | B56: =B23/[1]年次別人口!C22*1000 -> 6.319397797 | C56: =C23/[1]年次別人口!D22*1000 -> 6.618744901 | D56: =D23/[1]年次別人口!E22*1000 -> 5.99880024 | E56: =E23/[1]年次別人口!F22*1000 -> 6.538769238 | F56: =F23/[1]年次別人口!G22*1000 -> 6.202611994 | G56: =G23/[1]年次別人口!H22*1000 -> 6.193120469 | H56: =H23/[1]年次別人口!I22*1000 -> 5.777955249 | I56: =I23/[1]年次別人口!J22*1000 -> 5.430283176 | J56: =J23/[1]年次別人口!K22*1000 -> 7.111844055 | K56: =K23/[1]年次別人口!L22*1000 -> 6.673798471 | L56: =L23/[1]年次別人口!M22*1000 -> 6.531816266
A57: 04 16 | B57: 6.6 | C57: 7.2 | D57: 6.8 | E57: 6.6 | F57: 6.7 | G57: 5.8 | H57: 6.2 | I57: 5.6 | J57: 7.3 | K57: 6.8 | L57: 6.2
A58: 05 17 | B58: =B25/N25*1000 -> 6.991275976 | C58: =C25/O25*1000 -> 7.345792909 | D58: 7.080036799 | E58: =E25/Q25*1000 -> 6.952729341 | F58: 7.069389543 | G58: 6.432359717 | H58: 6.774509052 | I58: 5.791918006 | J58: 7.684993935 | K58: =K25/W25*1000 -> 7.428530002 | L58: 6.66021269
A59: 06 18 | B59: =B26/[1]年次別人口!C25*1000 -> 7.022112138 | C59: =C26/[1]年次別人口!D25*1000 -> 6.998181537 | D59: =D26/[1]年次別人口!E25*1000 -> 7.085670874 | E59: =E26/[1]年次別人口!F25*1000 -> 7.018466138 | F59: =F26/[1]年次別人口!G25*1000 -> 7.081593778 | G59: =G26/[1]年次別人口!H25*1000 -> 6.694980695 | H59: =H26/[1]年次別人口!I25*1000 -> 6.704861742 | I59: =I26/[1]年次別人口!J25*1000 -> 6.44525059 | J59: =J26/[1]年次別人口!K25*1000 -> 7.921874383 | K59: =K26/[1]年次別人口!L25*1000 -> 7.086972126 | L59: =L26/[1]年次別人口!M25*1000 -> 7.025354882
A60: 07 19 | B60: =B27/[1]年次別人口!C26*1000 -> 7.407559783 | C60: =C27/[1]年次別人口!D26*1000 -> 7.498834255 | D60: =D27/[1]年次別人口!E26*1000 -> 7.102519548 | E60: =E27/[1]年次別人口!F26*1000 -> 6.88844481 | F60: =F27/[1]年次別人口!G26*1000 -> 7.423425909 | G60: =G27/[1]年次別人口!H26*1000 -> 7.61458713 | H60: =H27/[1]年次別人口!I26*1000 -> 7.370995634 | I60: =I27/[1]年次別人口!J26*1000 -> 6.733771784 | J60: =J27/[1]年次別人口!K26*1000 -> 8.50520095 | K60: =K27/[1]年次別人口!L26*1000 -> 7.559704484 | L60: =L27/[1]年次別人口!M26*1000 -> 7.80984965
A61: 08 20 | B61: =B28/[1]年次別人口!C27*1000 -> 7.557810729 | C61: =C28/[1]年次別人口!D27*1000 -> 7.242814538 | D61: =D28/[1]年次別人口!E27*1000 -> 7.313176008 | E61: =E28/[1]年次別人口!F27*1000 -> 7.416834727 | F61: =F28/[1]年次別人口!G27*1000 -> 7.741903731 | G61: =G28/[1]年次別人口!H27*1000 -> 7.486398934 | H61: =H28/[1]年次別人口!I27*1000 -> 7.688677671 | I61: =I28/[1]年次別人口!J27*1000 -> 6.781654931 | J61: =J28/[1]年次別人口!K27*1000 -> 8.712474894 | K61: =K28/[1]年次別人口!L27*1000 -> 7.682025962 | L61: =L28/[1]年次別人口!M27*1000 -> 7.602039712
A62: 09 21 | B62: =B29/[1]年次別人口!C28*1000 -> 7.605100964 | C62: =C29/[1]年次別人口!D28*1000 -> 7.246978504 | D62: =D29/[1]年次別人口!E28*1000 -> 7.39103877 | E62: =E29/[1]年次別人口!F28*1000 -> 7.283378234 | F62: =F29/[1]年次別人口!G28*1000 -> 7.75897607 | G62: =G29/[1]年次別人口!H28*1000 -> 7.258992135 | H62: =H29/[1]年次別人口!I28*1000 -> 7.298093965 | I62: =I29/[1]年次別人口!J28*1000 -> 7.377911086 | J62: =J29/[1]年次別人口!K28*1000 -> 9.217837395 | K62: =K29/[1]年次別人口!L28*1000 -> 7.855093938 | L62: =L29/[1]年次別人口!M28*1000 -> 7.840516281
A63: 10 22 | B63: =B30/[1]年次別人口!C28*1000 -> 8.116791199 | C63: =C30/[1]年次別人口!D28*1000 -> 7.745179445 | D63: =D30/[1]年次別人口!E28*1000 -> 8.09169631 | E63: =E30/[1]年次別人口!F28*1000 -> 8.164432053 | F63: =F30/[1]年次別人口!G28*1000 -> 7.935651047 | G63: =G30/[1]年次別人口!H28*1000 -> 7.616501383 | H63: =H30/[1]年次別人口!I28*1000 -> 7.895210744 | I63: =I30/[1]年次別人口!J28*1000 -> 7.334815811 | J63: =J30/[1]年次別人口!K28*1000 -> 10.0435174 | K63: =K30/[1]年次別人口!L28*1000 -> 8.083053133 | L63: =L30/[1]年次別人口!M28*1000 -> 8.37950686
A64: 11 23 | B64: 8.286440488 | C64: 7.647106174 | D64: 8.187630829 | E64: 8.18640044 | F64: 8.437401105 | G64: 8.435046257 | H64: 7.965835313 | I64: 7.625076122 | J64: 10.38445912 | K64: 8.314790406 | L64: 8.152193311
A65: 12 24 | B65: 8.413626051 | C65: 8.125567336 | D65: 8.100806882 | E65: 8.116813733 | F65: 8.389748549 | G65: 8.264783787 | H65: 8.261704081 | I65: 7.646478934 | J65: 10.12631871 | K65: 8.398536662 | L65: 9.357508083
A66: 13 25 | B66: 8.699563937 | C66: 8.047301263 | D66: 8.592655638 | E66: 8.440677573 | F66: 8.728239381 | G66: 8.432882802 | H66: 8.623070973 | I66: 7.989404794 | J66: 10.44025157 | K66: 8.90338338 | L66: 9.286934244
A67: 14 26 | B67: 9.094802558 | C67: 8.383387678 | D67: 9.075421586 | E67: 8.959261372 | F67: 9.322504114 | G67: 9.3652689 | H67: 8.632229435 | I67: 8.261688999 | J67: 11.14398422 | K67: 8.878024887 | L67: 9.642372436
A68: 15 1)27 | B68: 9.016082617 | C68: 8.034411375 | D68: 9.075249384 | E68: 8.639101809 | F68: 9.019613472 | G68: 9.36722179 | H68: 8.578048287 | I68: 8.619045142 | J68: 10.82747792 | K68: 9.243610689 | L68: 9.762682961
A69: 16 28 | B69: =B36/[1]年次別人口!C35*1000 -> 9.448505289 | C69: =C36/[1]年次別人口!D35*1000 -> 8.318739054 | D69: =D36/[1]年次別人口!E35*1000 -> 8.915843223 | E69: =E36/[1]年次別人口!F35*1000 -> 9.294964247 | F69: =F36/[1]年次別人口!G35*1000 -> 9.644527551 | G69: =G36/[1]年次別人口!H35*1000 -> 10.10196523 | H69: =H36/[1]年次別人口!I35*1000 -> 9.4418647 | I69: =I36/[1]年次別人口!J35*1000 -> 8.938354687 | J69: =J36/[1]年次別人口!K35*1000 -> 11.46350511 | K69: =K36/[1]年次別人口!L35*1000 -> 9.534526472 | L69: =L36/[1]年次別人口!M35*1000 -> 10.15516008
A70: 1) 率算出(総数・各区)に用いた人口は「平成27年国勢調査 年齢・国籍不詳をあん分した人口(参考表)」 (総務省統計局)にお
A71: ける日本人人口による。

Sheet 3 月・性別，区別死亡数
A1: 3 月・性別にみた区別死亡数及び粗死亡率(人口千対)
O2: 平成28年
A3: 区 ・ 性 | C3: 総 数 | D3: 1 月 | E3: 2 月 | F3: 3 月 | G3: 4 月 | H3: 5 月 | I3: 6 月 | J3: 7 月 | K3: 8 月 | L3: 9 月 | M3: 10月 | N3: 11月 | O3: 12月
C4: 死亡数
A5: 総数 | C5: =SUM(C8,C11,C14,C17,C20,C23,C26,C29,C32,C35) -> 18504 | D5: 1731 | E5: 1519 | F5: =SUM(F8,F11,F14,F17,F20,F23,F26,F29,F32,F35) -> 1565 | G5: 1451 | H5: 1505 | I5: 1417 | J5: 1435 | K5: 1469 | L5: 1527 | M5: 1655 | N5: 1567 | O5: 1663
B6: 男 | C6: 9654 | D6: 895 | E6: 796 | F6: 848 | G6: 759 | H6: 779 | I6: 749 | J6: 722 | K6: 766 | L6: 787 | M6: 889 | N6: 787 | O6: 877
B7: 女 | C7: 8850 | D7: 836 | E7: 723 | F7: 717 | G7: 692 | H7: 726 | I7: 668 | J7: 713 | K7: 703 | L7: 740 | M7: 766 | N7: 780 | O7: 786
A8: 中央 | C8: =SUM(D8:O8) -> 1995 | D8: =SUM(D9:D10) -> 173 | E8: =SUM(E9:E10) -> 167 | F8: 160 | G8: 154 | H8: 155 | I8: 155 | J8: 149 | K8: =SUM(K9:K10) -> 155 | L8: =SUM(L9:L10) -> 190 | M8: =SUM(M9:M10) -> 182 | N8: =SUM(N9:N10) -> 170 | O8: 185
B9: 男 | C9: 979 | D9: 81 | E9: 73 | F9: 79 | G9: 77 | H9: 74 | I9: 82 | J9: 75 | K9: 75 | L9: 96 | M9: 87 | N9: 94 | O9: 86
B10: 女 | C10: 1016 | D10: 92 | E10: 94 | F10: 81 | G10: 77 | H10: 81 | I10: 73 | J10: 74 | K10: 80 | L10: 94 | M10: 95 | N10: 76 | O10: 99
A11: 北 | C11: 2558 | D11: =SUM(D12:D13) -> 275 | E11: =SUM(E12:E13) -> 210 | F11: 214 | G11: 186 | H11: 182 | I11: 203 | J11: 215 | K11: =SUM(K12:K13) -> 167 | L11: =SUM(L12:L13) -> 216 | M11: =SUM(M12:M13) -> 235 | N11: =SUM(N12:N13) -> 243 | O11: 212
B12: 男 | C12: 1298 | D12: 160 | E12: 113 | F12: 109 | G12: 86 | H12: 89 | I12: 86 | J12: 98 | K12: 86 | L12: 109 | M12: 131 | N12: 120 | O12: 111
B13: 女 | C13: 1260 | D13: 115 | E13: 97 | F13: 105 | G13: 100 | H13: 93 | I13: 117 | J13: 117 | K13: 81 | L13: 107 | M13: 104 | N13: 123 | O13: 101
A14: 東 | C14: 2449 | D14: =SUM(D15:D16) -> 205 | E14: =SUM(E15:E16) -> 191 | F14: 217 | G14: 199 | H14: 217 | I14: 181 | J14: 177 | K14: =SUM(K15:K16) -> 211 | L14: =SUM(L15:L16) -> 216 | M14: =SUM(M15:M16) -> 231 | N14: =SUM(N15:N16) -> 184 | O14: 220
B15: 男 | C15: 1311 | D15: 105 | E15: 120 | F15: 117 | G15: 118 | H15: 117 | I15: 90 | J15: 84 | K15: 113 | L15: 112 | M15: 127 | N15: 95 | O15: 113
B16: 女 | C16: 1138 | D16: 100 | E16: 71 | F16: 100 | G16: 81 | H16: 100 | I16: 91 | J16: 93 | K16: 98 | L16: 104 | M16: 104 | N16: 89 | O16: 107
A17: 白石 | C17: 2027 | D17: =SUM(D18:D19) -> 186 | E17: =SUM(E18:E19) -> 151 | F17: 163 | G17: 173 | H17: 175 | I17: 153 | J17: 183 | K17: =SUM(K18:K19) -> 166 | L17: =SUM(L18:L19) -> 153 | M17: =SUM(M18:M19) -> 165 | N17: =SUM(N18:N19) -> 168 | O17: 191
B18: 男 | C18: 1045 | D18: 90 | E18: 86 | F18: 91 | G18: 87 | H18: 84 | I18: 80 | J18: 91 | K18: 82 | L18: 81 | M18: 87 | N18: 84 | O18: 102
B19: 女 | C19: 982 | D19: 96 | E19: 65 | F19: 72 | G19: 86 | H19: 91 | I19: 73 | J19: 92 | K19: 84 | L19: 72 | M19: 78 | N19: 84 | O19: 89
A20: 厚別 | C20: 1282 | D20: =SUM(D21:D22) -> 130 | E20: =SUM(E21:E22) -> 114 | F20: 110 | G20: 83 | H20: 101 | I20: 104 | J20: 101 | K20: =SUM(K21:K22) -> 102 | L20: =SUM(L21:L22) -> 97 | M20: =SUM(M21:M22) -> 110 | N20: =SUM(N21:N22) -> 113 | O20: 117
B21: 男 | C21: 670 | D21: 64 | E21: 52 | F21: 55 | G21: 45 | H21: 55 | I21: 57 | J21: 54 | K21: 58 | L21: 49 | M21: 59 | N21: 60 | O21: 62
B22: 女 | C22: 612 | D22: 66 | E22: 62 | F22: 55 | G22: 38 | H22: 46 | I22: 47 | J22: 47 | K22: 44 | L22: 48 | M22: 51 | N22: 53 | O22: 55
A23: 豊平 | C23: 2074 | D23: =SUM(D24:D25) -> 187 | E23: =SUM(E24:E25) -> 175 | F23: 189 | G23: 153 | H23: 169 | I23: 151 | J23: 155 | K23: =SUM(K24:K25) -> 165 | L23: =SUM(L24:L25) -> 178 | M23: =SUM(M24:M25) -> 184 | N23: =SUM(N24:N25) -> 182 | O23: 186
B24: 男 | C24: 1075 | D24: 101 | E24: 88 | F24: 111 | G24: 67 | H24: 83 | I24: 81 | J24: 80 | K24: 88 | L24: 89 | M24: 104 | N24: 89 | O24: 94
B25: 女 | C25: 999 | D25: 86 | E25: 87 | F25: 78 | G25: 86 | H25: 86 | I25: 70 | J25: 75 | K25: 77 | L25: 89 | M25: 80 | N25: 93 | O25: 92
A26: 清田 | C26: 1036 | D26: =SUM(D27:D28) -> 90 | E26: =SUM(E27:E28) -> 88 | F26: 92 | G26: 100 | H26: 68 | I26: 84 | J26: 70 | K26: =SUM(K27:K28) -> 78 | L26: =SUM(L27:L28) -> 76 | M26: =SUM(M27:M28) -> 100 | N26: =SUM(N27:N28) -> 80 | O26: 110
B27: 男 | C27: 548 | D27: 46 | E27: 43 | F27: 46 | G27: 55 | H27: 39 | I27: 60 | J27: 33 | K27: 40 | L27: 39 | M27: 53 | N27: 36 | O27: 58
B28: 女 | C28: 488 | D28: 44 | E28: 45 | F28: 46 | G28: 45 | H28: 29 | I28: 24 | J28: 37 | K28: 38 | L28: 37 | M28: 47 | N28: 44 | O28: 52
A29: 南 | C29: 1607 | D29: =SUM(D30:D31) -> 153 | E29: =SUM(E30:E31) -> 137 | F29: 154 | G29: 116 | H29: 124 | I29: 127 | J29: 113 | K29: =SUM(K30:K31) -> 132 | L29: =SUM(L30:L31) -> 123 | M29: =SUM(M30:M31) -> 150 | N29: =SUM(N30:N31) -> 133 | O29: 145
B30: 男 | C30: 873 | D30: 74 | E30: 75 | F30: 83 | G30: 64 | H30: 60 | I30: 77 | J30: 63 | K30: 65 | L30: 69 | M30: 88 | N30: 67 | O30: 88
B31: 女 | C31: 734 | D31: 79 | E31: 62 | F31: 71 | G31: 52 | H31: 64 | I31: 50 | J31: 50 | K31: 67 | L31: 54 | M31: 62 | N31: 66 | O31: 57
A32: 西 | C32: 2042 | D32: =SUM(D33:D34) -> 199 | E32: =SUM(E33:E34) -> 161 | F32: 152 | G32: 179 | H32: 188 | I32: 152 | J32: 155 | K32: =SUM(K33:K34) -> 177 | L32: =SUM(L33:L34) -> 158 | M32: =SUM(M33:M34) -> 168 | N32: =SUM(N33:N34) -> 187 | O32: 166
B33: 男 | C33: 1109 | D33: 109 | E33: 80 | F33: 90 | G33: 110 | H33: 109 | I33: 77 | J33: 84 | K33: 98 | L33: 83 | M33: 92 | N33: 90 | O33: 87
B34: 女 | C34: 933 | D34: 90 | E34: 81 | F34: 62 | G34: 69 | H34: 79 | I34: 75 | J34: 71 | K34: 79 | L34: 75 | M34: 76 | N34: 97 | O34: 79
A35: 手稲 | C35: 1434 | D35: =SUM(D36:D37) -> 133 | E35: =SUM(E36:E37) -> 125 | F35: 114 | G35: 108 | H35: 126 | I35: 107 | J35: 117 | K35: =SUM(K36:K37) -> 116 | L35: =SUM(L36:L37) -> 120 | M35: =SUM(M36:M37) -> 130 | N35: =SUM(N36:N37) -> 107 | O35: 131
B36: 男 | C36: 746 | D36: 65 | E36: 66 | F36: 67 | G36: 50 | H36: 69 | I36: 59 | J36: 60 | K36: 61 | L36: 60 | M36: 61 | N36: 52 | O36: 76
B37: 女 | C37: 688 | D37: 68 | E37: 59 | F37: 47 | G37: 58 | H37: 57 | I37: 48 | J37: 57 | K37: 55 | L37: 60 | M37: 69 | N37: 55 | O37: 55
C38: 粗死亡率 | Q38: =[1]人口!B9 -> (国調年)日本人推計人口 (国調年以外)国調ベース人口 | R38: =[1]人口!C9 -> １月 | S38: =[1]人口!D9 -> ２月 | T38: =[1]人口!E9 -> ３月 | U38: =[1]人口!F9 -> ４月 | V38: =[1]人口!G9 -> ５月 | W38: =[1]人口!H9 -> ６月 | X38: =[1]人口!I9 -> ７月 | Y38: =[1]人口!J9 -> ８月 | Z38: =[1]人口!K9 -> ９月 | AA38: =[1]人口!L9 -> １０月 | AB38: =[1]人口!M9 -> １１月 | AC38: =[1]人口!N9 -> １２月
A39: 総数 | C39: =C5/Q39*1000 -> 9.448505289 | D39: =D5/(R39/$Q$50*R$50)*1000 -> 10.46380785 | E39: 9.816700157 | F39: 9.462400393 | G39: 9.066868811 | H39: 9.081830154 | I39: 8.833126396 | J39: 8.655269899 | K39: 8.859514229 | L39: 9.513809768 | M39: 9.97734249 | N39: 9.75952666 | O39: 10.02261328 | Q39: =[1]人口!B10 -> 1958405 | R39: =[1]人口!C10 -> 1953110 | S39: =[1]人口!D10 -> 1952879 | T39: =[1]人口!E10 -> 1952686 | U39: =[1]人口!F10 -> 1952405 | V39: =[1]人口!G10 -> 1956512 | W39: =[1]人口!H10 -> 1957110 | X39: =[1]人口!I10 -> 1957450 | Y39: =[1]人口!J10 -> 1957633 | Z39: =[1]人口!K10 -> 1958143 | AA39: =[1]人口!L10 -> 1958405 | AB39: =[1]人口!M10 -> 1958845 | AC39: =[1]人口!N10 -> 1958983
A40: 中央 | C40: =C8/Q40*1000 -> 8.318739054 | D40: =D8/(R40/$Q$50*R$50)*1000 -> 8.579369055 | E40: 8.848704269 | F40: 7.928881615 | G40: 7.882757203 | H40: 7.650853509 | I40: 7.902346884 | J40: 7.349897806 | K40: 7.636327219 | L40: 9.661553851 | M40: 8.959945766 | N40: 8.64937903 | O40: 9.109764387 | Q40: =[1]人口!B11 -> 239820 | R40: =[1]人口!C11 -> 238073 | S40: =[1]人口!D11 -> 238188 | T40: =[1]人口!E11 -> 238247 | U40: =[1]人口!F11 -> 238343 | V40: =[1]人口!G11 -> 239189 | W40: =[1]人口!H11 -> 239296 | X40: =[1]人口!I11 -> 239345 | Y40: =[1]人口!J11 -> 239644 | Z40: =[1]人口!K11 -> 239920 | AA40: =[1]人口!L11 -> 239820 | AB40: =[1]人口!M11 -> 239786 | AC40: =[1]人口!N11 -> 239764
A41: 北 | C41: =C11/Q41*1000 -> 8.915843223 | D41: =D11/(R41/$Q$50*R$50)*1000 -> 11.36380059 | E41: 9.274430843 | F41: 8.84195796 | G41: 7.958558818 | H41: 7.511042965 | I41: 8.647497338 | J41: 8.861041439 | K41: 6.881080979 | L41: 9.192707788 | M41: 9.670504624 | N41: 10.32709792 | O41: 8.720351961 | Q41: =[1]人口!B12 -> 286905 | R41: =[1]人口!C12 -> 285712 | S41: =[1]人口!D12 -> 285769 | T41: =[1]人口!E12 -> 285749 | U41: =[1]人口!F12 -> 285127 | V41: =[1]人口!G12 -> 286082 | W41: =[1]人口!H12 -> 286395 | X41: =[1]人口!I12 -> 286466 | Y41: =[1]人口!J12 -> 286536 | Z41: =[1]人口!K12 -> 286662 | AA41: =[1]人口!L12 -> 286905 | AB41: =[1]人口!M12 -> 287070 | AC41: =[1]人口!N12 -> 287026
A42: 東 | C42: =C14/Q42*1000 -> 9.294964247 | D42: =D14/(R42/$Q$50*R$50)*1000 -> 9.23470022 | E42: 9.196296855 | F42: 9.771726071 | G42: 9.246190583 | H42: 9.739148946 | I42: 8.392527982 | J42: 7.939236202 | K42: 9.456383463 | L42: 10.00698727 | M42: 10.35119071 | N42: 8.51741958 | O42: 9.854312339 | Q42: =[1]人口!B13 -> 263476 | R42: =[1]人口!C13 -> 262090 | S42: =[1]人口!D13 -> 262122 | T42: =[1]人口!E13 -> 262185 | U42: =[1]人口!F13 -> 262573 | V42: =[1]人口!G13 -> 263062 | W42: =[1]人口!H13 -> 263115 | X42: =[1]人口!I13 -> 263217 | Y42: =[1]人口!J13 -> 263437 | Z42: =[1]人口!K13 -> 263336 | AA42: =[1]人口!L13 -> 263476 | AB42: =[1]人口!M13 -> 263554 | AC42: =[1]人口!N13 -> 263582
A43: 白石 | C43: =C17/Q43*1000 -> 9.644527551 | D43: =D17/(R43/$Q$50*R$50)*1000 -> 10.48280076 | E43: 9.098706794 | F43: 9.188338766 | G43: 10.07076158 | H43: 9.84982591 | I43: 8.890815301 | J43: 10.2827503 | K43: 9.325658039 | L43: 8.880071931 | M43: 9.268950122 | N43: 9.747652973 | O43: 10.71737548 | Q43: =[1]人口!B14 -> 210171 | R43: =[1]人口!C14 -> 209486 | S43: =[1]人口!D14 -> 209450 | T43: =[1]人口!E14 -> 209445 | U43: =[1]人口!F14 -> 209577 | V43: =[1]人口!G14 -> 209763 | W43: =[1]人口!H14 -> 209947 | X43: =[1]人口!I14 -> 210117 | Y43: =[1]人口!J14 -> 210159 | Z43: =[1]人口!K14 -> 210201 | AA43: =[1]人口!L14 -> 210171 | AB43: =[1]人口!M14 -> 210266 | AC43: =[1]人口!N14 -> 210409
A44: 厚別 | C44: =C20/Q44*1000 -> 10.10196523 | D44: =D20/(R44/$Q$50*R$50)*1000 -> 12.01928542 | E44: 11.27500761 | F44: 10.18404126 | G44: 7.957626386 | H44: 9.372188134 | I44: 9.976332943 | J44: 9.382807426 | K44: 9.486903666 | L44: 9.328761184 | M44: 10.23363495 | N44: 10.86889679 | O44: 10.89422335 | Q44: =[1]人口!B15 -> 126906 | R44: =[1]人口!C15 -> 127698 | S44: =[1]人口!D15 -> 127606 | T44: =[1]人口!E15 -> 127524 | U44: =[1]人口!F15 -> 127249 | V44: =[1]人口!G15 -> 127233 | W44: =[1]人口!H15 -> 127181 | X44: =[1]人口!I15 -> 127089 | Y44: =[1]人口!J15 -> 126939 | Z44: =[1]人口!K15 -> 126855 | AA44: =[1]人口!L15 -> 126906 | AB44: =[1]人口!M15 -> 126839 | AC44: =[1]人口!N15 -> 126797
A45: 豊平 | C45: =C23/Q45*1000 -> 9.4418647 | D45: =D23/(R45/$Q$50*R$50)*1000 -> 10.08674286 | E45: 10.08751331 | F45: 10.1976974 | G45: 8.527337183 | H45: 9.094345565 | I45: 8.392710706 | J45: 8.338421441 | K45: 8.87432188 | L45: 9.887448095 | M45: 9.889770995 | N45: 10.10637087 | O45: 9.991355385 | Q45: =[1]人口!B16 -> 219660 | R45: =[1]人口!C16 -> 218882 | S45: =[1]人口!D16 -> 218946 | T45: =[1]人口!E16 -> 218816 | U45: =[1]人口!F16 -> 218896 | V45: =[1]人口!G16 -> 219399 | W45: =[1]人口!H16 -> 219500 | X45: =[1]人口!I16 -> 219466 | Y45: =[1]人口!J16 -> 219517 | Z45: =[1]人口!K16 -> 219632 | AA45: =[1]人口!L16 -> 219660 | AB45: =[1]人口!M16 -> 219703 | AC45: =[1]人口!N16 -> 219790
A46: 清田 | C46: =C26/Q46*1000 -> 8.938354687 | D46: =D26/(R46/$Q$50*R$50)*1000 -> 9.179486551 | E46: 9.59449782 | F46: 9.379909744 | G46: 10.5390463 | H46: 6.940588639 | I46: 8.860682881 | J46: 7.145279542 | K46: 7.956173601 | L46: 8.006839319 | M46: 10.18631777 | N46: 8.414808684 | O46: 11.19529053 | Q46: =[1]人口!B17 -> 115905 | R46: =[1]人口!C17 -> 115756 | S46: =[1]人口!D17 -> 115756 | T46: =[1]人口!E17 -> 115800 | U46: =[1]人口!F17 -> 115760 | V46: =[1]人口!G17 -> 115673 | W46: =[1]人口!H17 -> 115657 | X46: =[1]人口!I17 -> 115664 | Y46: =[1]人口!J17 -> 115747 | Z46: =[1]人口!K17 -> 115801 | AA46: =[1]人口!L17 -> 115905 | AB46: =[1]人口!M17 -> 115986 | AC46: =[1]人口!N17 -> 116005
A47: 南 | C47: =C29/Q47*1000 -> 11.46350511 | D47: =D29/(R47/$Q$50*R$50)*1000 -> 12.81425509 | E47: 12.29142307 | F47: 12.94216896 | G47: 10.08192634 | H47: 10.38364151 | I47: 10.99457864 | J47: 9.470841519 | K47: 11.09731629 | L47: 10.68620749 | M47: 12.633166 | N47: 11.57082549 | O47: 12.2158947 | Q47: =[1]人口!B18 -> 140184 | R47: =[1]人口!C18 -> 140967 | S47: =[1]人口!D18 -> 140670 | T47: =[1]人口!E18 -> 140486 | U47: =[1]人口!F18 -> 140370 | V47: =[1]人口!G18 -> 140991 | W47: =[1]人口!H18 -> 140924 | X47: =[1]人口!I18 -> 140867 | Y47: =[1]人口!J18 -> 140435 | Z47: =[1]人口!K18 -> 140424 | AA47: =[1]人口!L18 -> 140184 | AB47: =[1]人口!M18 -> 140232 | AC47: =[1]人口!N18 -> 140140
A48: 西 | C48: =C32/Q48*1000 -> 9.534526472 | D48: =D32/(R48/$Q$50*R$50)*1000 -> 11.00806282 | E48: 9.521478103 | F48: 8.409626446 | G48: 10.2224906 | H48: 10.37085983 | I48: 8.66663551 | J48: 8.548126419 | K48: 9.75985884 | L48: 8.999864601 | M48: 9.261302387 | N48: 10.65397691 | O48: 9.151433357 | Q48: =[1]人口!B19 -> 214169 | R48: =[1]人口!C19 -> 213433 | S48: =[1]人口!D19 -> 213405 | T48: =[1]人口!E19 -> 213396 | U48: =[1]人口!F19 -> 213627 | V48: =[1]人口!G19 -> 214024 | W48: =[1]人口!H19 -> 213970 | X48: =[1]人口!I19 -> 214082 | Y48: =[1]人口!J19 -> 214116 | Z48: =[1]人口!K19 -> 214181 | AA48: =[1]人口!L19 -> 214169 | AB48: =[1]人口!M19 -> 214136 | AC48: =[1]人口!N19 -> 214160
A49: 手稲 | C49: =C35/Q49*1000 -> 10.15516008 | D49: =D35/(R49/$Q$50*R$50)*1000 -> 11.13555534 | E49: 11.19117387 | F49: 9.543069838 | G49: 9.352441388 | H49: 10.54326773 | I49: 9.249955713 | J49: 9.787333149 | K49: 9.706018916 | L49: 10.37334108 | M49: 10.86926973 | N49: 9.240265302 | O49: 10.94505103 | Q49: =[1]人口!B20 -> 141209 | R49: =[1]人口!C20 -> 141013 | S49: =[1]人口!D20 -> 140967 | T49: =[1]人口!E20 -> 141038 | U49: =[1]人口!F20 -> 140883 | V49: =[1]人口!G20 -> 141096 | W49: =[1]人口!H20 -> 141125 | X49: =[1]人口!I20 -> 141137 | Y49: =[1]人口!J20 -> 141103 | Z49: =[1]人口!K20 -> 141131 | AA49: =[1]人口!L20 -> 141209 | AB49: =[1]人口!M20 -> 141273 | AC49: =[1]人口!N20 -> 141310
Q50: =[1]人口!B21 -> 366 | R50: =[1]人口!C21 -> 31 | S50: =[1]人口!D21 -> 29 | T50: =[1]人口!E21 -> 31 | U50: =[1]人口!F21 -> 30 | V50: =[1]人口!G21 -> 31 | W50: =[1]人口!H21 -> 30 | X50: =[1]人口!I21 -> 31 | Y50: =[1]人口!J21 -> 31 | Z50: =[1]人口!K21 -> 30 | AA50: =[1]人口!L21 -> 31 | AB50: =[1]人口!M21 -> 30 | AC50: =[1]人口!N21 -> 31

Sheet 4 年次別，死因順位
A1: 4 年次別にみた死因順位
A3: 年次 | B3: 第1位 | D3: 第2位 | F3: 第3位 | H3: 第4位 | J3: 第5位 | L3: 第6位 | N3: 第7位 | P3: 第8位 | R3: 第9位 | T3: 第10位
B4: 死 因 | C4: 死亡数 死亡率1) | D4: 死 因 | E4: 死亡数 死亡率1) | F4: 死 因 | G4: 死亡数 死亡率1) | H4: 死 因 | I4: 死亡数 死亡率1) | J4: 死 因 | K4: 死亡数 死亡率1) | L4: 死 因 | M4: 死亡数 死亡率1) | N4: 死 因 | O4: 死亡数 死亡率1) | P4: 死 因 | Q4: 死亡数 死亡率1) | R4: 死 因 | S4: 死亡数 死亡率1) | T4: 死 因 | U4: 死亡数 死亡率1)
A5: 1985 昭和60年 | B5: 悪性新生物 | C5: 1986 | D5: 心疾患 | E5: 1511 | F5: 脳血管疾患 | G5: 1075 | H5: 肺炎及び 気管支炎 | I5: 544 | J5: 不慮の事故 及び有害作用 | K5: 266 | L5: 自 殺 | M5: 261 | N5: 腎炎，ﾈﾌﾛｰｾﾞ症 候群及びﾈﾌﾛｰｾﾞ | O5: 176 | P5: 慢性肝疾患 及び肝硬変 | Q5: 152 | R5: 良性及び性質 不詳の新生物 | S5: 118 | T5: 糖尿病 | U5: 89
C6: 128.9771192 | E6: 98.1291174 | G6: 69.81389888 | I6: 35.32907999 | K6: 17.27488102 | M6: 16.95016522 | O6: 11.42999647 | Q6: 9.871360585 | S6: 7.663293086 | U6: 5.779941395
A7: 86 61 | B7: 悪性新生物 | C7: 2075 | D7: 心疾患 | E7: 1468 | F7: 脳血管疾患 | G7: 940 | H7: 肺炎及び 気管支炎 | I7: 502 | J7: 自 殺 | K7: 287 | L7: 不慮の事故 及び有害作用 | M7: 265 | N7: 腎炎，ﾈﾌﾛｰｾﾞ症 候群及びﾈﾌﾛｰｾﾞ | O7: 184 | P7: 慢性肝疾患 及び肝硬変 | Q7: 176 | R7: 良性及び性質 不詳の新生物 | S7: 107 | T7: 糖尿病 | U7: 98
C8: 132.4295363 | E8: 93.6899081 | G8: 59.99217549 | I8: 32.03837457 | K8: 18.31675996 | M8: 16.91268777 | O8: 11.74314924 | Q8: 11.23257754 | S8: 6.828896572 | U8: 6.254503402
A9: 1987 昭和62年 | B9: 悪性新生物 | C9: 2071 | D9: 心疾患 | E9: 1496 | F9: 脳血管疾患 | G9: 908 | H9: 肺炎及び 気管支炎 | I9: 500 | J9: 不慮の事故 及び有害作用 | K9: 255 | L9: 自 殺 | M9: 238 | N9: 腎炎、ﾈﾌﾛｰｾﾞ症 候群及びﾈﾌﾛｰｾﾞ | O9: 206 | P9: 良性及び性質 不詳の新生物 | Q9: 130 | R9: 慢性肝疾患 及び肝硬変 | S9: 128 | T9: 糖尿病 | U9: 98
C10: 129.9895494 | E10: 93.89877637 | G10: 56.99203806 | I10: 31.38328087 | K10: 16.00547324 | M10: 14.93844169 | O10: 12.92991172 | Q10: 8.159653026 | S10: 8.034119903 | U10: 6.151123051
A11: 1988 昭和63年 | B11: 悪性新生物 | C11: 2288 | D11: 心疾患 | E11: 1716 | F11: 脳血管疾患 | G11: 899 | H11: 肺炎及び 気管支炎 | I11: 589 | J11: 不慮の事故 及び有害作用 | K11: 302 | L11: 自 殺 | M11: 275 | N11: 腎炎、ﾈﾌﾛｰｾﾞ症 候群及びﾈﾌﾛｰｾﾞ | O11: 207 | P11: 慢性肝疾患 及び肝硬変 | Q11: 165 | R11: 良性及び性質 不詳の新生物 | S11: 115 | T11: 糖尿病 | U11: 101
C12: 141.3339379 | E12: 106.0004534 | G12: 55.53287157 | I12: 36.38360551 | K12: 18.65509145 | M12: 16.98725215 | O12: 12.78676798 | Q12: 10.19235129 | S12: 7.103759989 | U12: 6.238954425
A13: 89 平成元年 | B13: 悪性新生物 | C13: 2524 | D13: 心疾患 | E13: 1673 | F13: 脳血管疾患 | G13: 906 | H13: 肺炎及び 気管支炎 | I13: 745 | J13: 不慮の事故 及び有害作用 | K13: 274 | L13: 自 殺 | M13: 251 | N13: 腎炎、ﾈﾌﾛｰｾﾞ症 候群及びﾈﾌﾛｰｾﾞ | O13: 220 | P13: 慢性肝疾患 及び肝硬変 | Q13: 171 | R13: 良性及び性質 不詳の新生物 | S13: 121 | T13: 糖尿病 | U13: 108
C14: 153.42579 | E14: 101.6962546 | G14: 55.07280735 | I14: 45.28613849 | K14: 16.65557308 | M14: 15.25747753 | O14: 13.37308788 | Q14: 10.39453649 | S14: 7.355198332 | U14: 6.564970412
A15: 90 2 | B15: 悪性新生物 | C15: 2483 | D15: 心疾患 | E15: 1786 | F15: 肺炎及び 気管支炎 | G15: 870 | H15: 脳血管疾患 | I15: 859 | J15: 不慮の事故 及び有害作用 | K15: 343 | L15: 腎炎、ﾈﾌﾛｰｾﾞ症 候群及びﾈﾌﾛｰｾﾞ | M15: 230 | N15: 自殺 | O15: 208 | P15: 慢性肝疾患 及び肝硬変 | Q15: 153 | R15: 糖尿病 | S15: 121 | T15: 良性及び性質 不詳の新生物 | U15: 103
C16: 148.8623392 | E16: 107.0753676 | G16: 52.15877371 | I16: 51.49929496 | K16: 20.56374641 | M16: 13.78910109 | O16: 12.4701436 | Q16: 9.172749859 | S16: 7.254266228 | U16: 6.175119186
A17: 91 3 | B17: 悪性新生物 | C17: 2569 | D17: 心疾患 | E17: 1714 | F17: 脳血管疾患 | G17: 905 | H17: 肺炎及び 気管支炎 | I17: 776 | J17: 不慮の事故 及び有害作用 | K17: 304 | L17: 腎炎、ﾈﾌﾛｰｾﾞ症 候群及びﾈﾌﾛｰｾﾞ | M17: 229 | N17: 自殺 | O17: 192 | P17: 慢性肝疾患 及び肝硬変 | Q17: 176 | R17: 糖尿病 | S17: 126 | T17: 良性及び性質 不詳の新生物 | U17: 117
C18: 151.5644949 | E18: 101.1216599 | G18: 53.39270838 | I18: 45.78203504 | K18: 17.93523022 | M18: 13.51042013 | O18: 11.32751382 | Q18: 10.38355434 | S18: 7.433680946 | U18: 6.902703736
A19: 92 4 | B19: 悪性新生物 | C19: 2684 | D19: 心疾患 | E19: 1894 | F19: 脳血管疾患 | G19: 955 | H19: 肺炎及び 気管支炎 | I19: 861 | J19: 不慮の事故 及び有害作用 | K19: 296 | L19: 腎炎、ﾈﾌﾛｰｾﾞ症 候群及びﾈﾌﾛｰｾﾞ | M19: 248 | N19: 自殺 | O19: 219 | P19: 慢性肝疾患 及び肝硬変 | Q19: 169 | R19: 糖尿病 | S19: 106 | T19: 良性及び性質 不詳の新生物 | U19: 102
C20: 156.548194 | E20: 110.4702978 | G20: 55.70176053 | I20: 50.21907415 | K20: 17.26462944 | M20: 14.4649598 | O20: 12.77349273 | Q20: 9.857170187 | S20: 6.182603786 | U20: 5.949297983
A21: 1993 平成5年 | B21: 悪性新生物 | C21: 2767 | D21: 心疾患 | E21: 1944 | F21: 肺炎及び 気管支炎 | G21: 1142 | H21: 脳血管疾患 | I21: 982 | J21: 不慮の事故 及び有害作用 | K21: 326 | L21: 自 殺 | M21: 241 | N21: 腎炎、ﾈﾌﾛｰｾﾞ症 候群及びﾈﾌﾛｰｾﾞ | O21: 229 | P21: 慢性肝疾患 及び肝硬変 | Q21: 192 | R21: 糖尿病 | S21: 123 | T21: 循環系のその 他の疾患 | U21: 119
C22: 160.084144 | E22: 112.4696696 | G22: 66.07014544 | I22: 56.8133825 | K22: 18.86065448 | M22: 13.94299917 | O22: 13.24874195 | Q22: 11.10811552 | S22: 7.116136505 | U22: 6.884717432
A23: 94 6 | B23: 悪性新生物 | C23: 2779 | D23: 心疾患 | E23: 1637 | F23: 脳血管疾患 | G23: 1005 | H23: 肺炎及び 気管支炎 | I23: 971 | J23: 不慮の事故 及び有害作用 | K23: 349 | L23: 腎炎、ﾈﾌﾛｰｾﾞ症 候群及びﾈﾌﾛｰｾﾞ | M23: 255 | N23: 自殺 | O23: 222 | P23: 慢性肝疾患 及び肝硬変 | Q23: 161 | R23: 糖尿病 | S23: 125 | T23: 循環系のその 他の疾患 | U23: 113
C24: 159.6636435 | E24: 94.05159566 | G24: 57.74090021 | I24: 55.78747672 | K24: 20.05131758 | M24: 14.65067617 | O24: 12.75470631 | Q24: 9.250034759 | S24: 7.181704006 | U24: 6.492260421
A25: 95 7 | B25: 悪性新生物 | C25: 3083 | D25: 心疾患 | E25: 1574 | F25: 脳血管疾患 | G25: 1278 | H25: 肺 炎 | I25: 727 | J25: 不慮の事故 | K25: 377 | L25: 自 殺 | M25: 228 | N25: 腎 不 全 | O25: 204 | P25: 肝疾患 | Q25: 156 | R25: 糖尿病 | S25: 142 | T25: 慢性閉塞性 肺疾患 | U25: 129
C26: 175.9694157 | E26: 89.83972114 | G26: 72.94483076 | I26: 41.49522063 | K26: 21.5181543 | M26: 13.01363178 | O26: 11.6437758 | Q26: 8.904063849 | S26: 8.104981196 | U26: 7.362975875
A27: 96 8 | B27: 悪性新生物 | C27: 3295 | D27: 心疾患 | E27: 1536 | F27: 脳血管疾患 | G27: 1292 | H27: 肺 炎 | I27: 689 | J27: 不慮の事故 | K27: 356 | L27: 自 殺 | M27: 248 | N27: 腎 不 全 | O27: 228 | P27: 肝疾患 | Q27: 158 | R27: 糖尿病 | S27: 133 | T27: 慢性閉塞性 肺疾患 | U27: 102
C28: 185.6819232 | E28: 86.55764311 | G28: 72.80760084 | I28: 38.82696361 | K28: 20.06153707 | M28: 13.97545279 | O28: 12.84840015 | Q28: 8.903715893 | S28: 7.494900087 | U28: 5.747968488
A29: 97 9 | B29: 悪性新生物 | C29: 3352 | D29: 心疾患 | E29: 1541 | F29: 脳血管疾患 | G29: 1345 | H29: 肺 炎 | I29: 728 | J29: 不慮の事故 | K29: 370 | L29: 自 殺 | M29: 308 | N29: 腎 不 全 | O29: 234 | P29: 肝疾患 | Q29: 183 | R29: 糖尿病 | S29: 130 | T29: 慢性閉塞性 肺疾患 | U29: 122
C30: 187.1349208 | E30: 86.03070196 | G30: 75.08844526 | I30: 40.64266777 | K30: 20.65630093 | M30: 17.19497482 | O30: 13.06371464 | Q30: 10.21649478 | S30: 7.257619244 | U30: 6.810996521
A31: 98 10 | B31: 悪性新生物 | C31: 3439 | D31: 心疾患 | E31: 1591 | F31: 脳血管疾患 | G31: 1307 | H31: 肺 炎 | I31: 748 | J31: 自 殺 | K31: 413 | L31: 不慮の事故 | M31: 322 | N31: 腎 不 全 | O31: 198 | P31: 肝疾患 | Q31: 145 | R31: 糖尿病 | S31: 144 | T31: その他の 新生物 | U31: 94
C32: 190.6799161 | E32: 88.21510513 | G32: 72.46834846 | I32: 41.47385207 | K32: 22.89933276 | M32: 17.85371707 | O32: 10.97837261 | Q32: 8.039717312 | S32: 7.984270986 | U32: 5.211954672
A33: 99 11 | B33: 悪性新生物 | C33: 3515 | D33: 心疾患 | E33: 1726 | F33: 脳血管疾患 | G33: 1418 | H33: 肺 炎 | I33: 910 | J33: 自 殺 | K33: 442 | L33: 不慮の事故 | M33: 360 | N33: 腎 不 全 | O33: 222 | P33: 肝疾患 | Q33: 166 | R33: 糖尿病 | S33: 158 | T33: その他の 新生物 | U33: 124
C34: 193.9814429 | E34: 95.25233868 | G34: 78.25481822 | I34: 50.21994681 | K34: 24.39254559 | M34: 19.86723171 | O34: 12.25145955 | Q34: 9.161001286 | S34: 8.719507249 | U34: 6.843157587
A35: 2000 12 | B35: 悪性新生物 | C35: 3727 | D35: 心疾患 | E35: 1651 | F35: 脳血管疾患 | G35: 1439 | H35: 肺 炎 | I35: 820 | J35: 自 殺 | K35: 475 | L35: 不慮の事故 | M35: 355 | N35: 腎 不 全 | O35: 228 | P35: 肝疾患 | Q35: 148 | R35: 糖尿病 | S35: 141 | T35: 慢性閉塞性 肺疾患 | U35: 125
C36: 205.1547964 | E36: 90.88021701 | G36: 79.21055862 | I36: 45.13735793 | K36: 26.14664027 | M36: 19.54117325 | O36: 12.55038733 | Q36: 8.146742652 | S36: 7.761423742 | U36: 6.880694807
A37: 01 13 | B37: 悪性新生物 | C37: 3765 | D37: 心疾患 | E37: 1669 | F37: 脳血管疾患 | G37: 1341 | H37: 肺 炎 | I37: 803 | J37: 不慮の事故 | K37: 375 | L37: 自 殺 | M37: 351 | N37: 腎 不 全 | O37: 257 | P37: 糖尿病 | Q37: 161 | R37: 肝疾患 | S37: 135 | T37: 大動脈瘤及び解離 慢性閉塞性肺疾患 | U37: 128
C38: 205.2124508 | E38: 90.96934404 | G38: 73.09160597 | I38: 43.7677551 | K38: 20.43948713 | M38: 19.13135995 | O38: 14.00786184 | Q38: 8.77535314 | S38: 7.358215366 | U38: 6.976678273
A39: 02 14 | B39: 悪性新生物 | C39: 3926 | D39: 心疾患 | E39: 1624 | F39: 脳血管疾患 | G39: 1415 | H39: 肺 炎 | I39: 820 | J39: 自 殺 | K39: 394 | L39: 不慮の事故 | M39: 363 | N39: 腎 不 全 | O39: 289 | P39: 肝 疾 患 | Q39: 150 | R39: 大動脈瘤及び解離 | S39: 139 | T39: 糖 尿 病 | U39: 136
C40: 212.4141633 | E40: 87.86566508 | G40: 76.55783011 | I40: 44.36566833 | K40: 21.31716259 | M40: 19.63992391 | O40: 15.63619286 | Q40: 8.115671036 | S40: 7.520521827 | U40: 7.358208406
A41: 03 15 | B41: 悪性新生物 | C41: 3997 | D41: 心疾患 | E41: 1761 | F41: 脳血管疾患 | G41: 1468 | H41: 肺 炎 | I41: 960 | J41: 自 殺 | K41: 467 | L41: 不慮の事故 | M41: 390 | N41: 腎 不 全 | O41: 278 | P41: 肝 疾 患 | Q41: 148 | R41: 慢性閉塞性肺疾患 | S41: 144 | T41: 糖 尿 病 | U41: 140
C42: 214.6200441 | E42: 94.55739247 | G42: 78.8246747 | I42: 51.54747119 | K42: 25.07569692 | M42: 20.94116017 | O42: 14.92728853 | Q42: 7.946901809 | S42: 7.732120679 | U42: 7.517339549
A43: 04 16 | B43: 悪性新生物 | C43: 4372 | D43: 心疾患 | E43: 1793 | F43: 脳血管疾患 | G43: 1423 | H43: 肺 炎 | I43: 1022 | J43: 自 殺 | K43: 442 | L43: 不慮の事故 | M43: 399 | N43: 腎 不 全 | O43: 236 | P43: 肝 疾 患 | Q43: 166 | R43: 慢性閉塞性肺疾患 | S43: 147 | T43: 糖 尿 病 | U43: 132
C44: 233.4593366 | E44: 95.7439594 | G44: 75.98642177 | I44: 54.57352287 | K44: 23.60224766 | M44: 21.30610139 | O44: 12.60210509 | Q44: 8.86419256 | S44: 7.849616303 | U44: 7.048635048
A45: 05 17 | B45: 悪性新生物 | C45: 4490 | D45: 心疾患 | E45: 1933 | F45: 脳血管疾患 | G45: 1598 | H45: 肺 炎 | I45: 1054 | J45: 自 殺 | K45: 472 | L45: 不慮の事故 | M45: 346 | N45: 腎 不 全 | O45: 291 | P45: 肝 疾 患 | Q45: 169 | R45: 慢性閉塞性肺疾患 | S45: 138 | T45: 糖 尿 病 | U45: 164
C46: 239.5 | E46: 103.1 | G46: 85.3 | I46: 56.2 | K46: 25.2 | M46: 18.5 | O46: 15.47162127 | Q46: 8.985237096 | S46: 7.4 | U46: 8.719401679
A47: 06 18 | B47: 悪性新生物 | C47: 4565 | D47: 心疾患 | E47: 2074 | F47: 脳血管疾患 | G47: 1408 | H47: 肺 炎 | I47: 1117 | J47: 不慮の事故 | K47: 415 | L47: 自 殺 | M47: 409 | N47: 腎 不 全 | O47: 287 | P47: 糖 尿 病 | Q47: 174 | R47: 肝 疾 患 | S47: 159 | T47: 大動脈瘤及び解離 | U47: 152
C48: 241.6034211 | E48: 109.7668117 | G48: 74.51864554 | I48: 59.11741979 | K48: 21.96394737 | M48: 21.64639632 | O48: 15.18952505 | Q48: 9.208980344 | S48: 8.415102728 | U48: 8.044626507
A49: 07 19 | B49: 悪性新生物 | C49: 4695 | D49: 心疾患 | E49: 2268 | F49: 脳血管疾患 | G49: 1492 | H49: 肺 炎 | I49: 1172 | J49: 自 殺 | K49: 419 | L49: 不慮の事故 | M49: 372 | N49: 腎 不 全 | O49: 326 | P49: 糖 尿 病 | Q49: 177 | R49: 敗 血 症 | S49: 171 | T49: 慢性閉塞性肺疾患 | U49: 164
C50: 247.6395128 | E50: 119.6264995 | G50: 78.69609225 | I50: 61.81757381 | K50: 22.10031009 | M50: 19.62127769 | O50: 17.19499067 | Q50: 9.335930515 | S50: 9.019458294 | U50: 8.650240703
A51: 08 20 | B51: 悪性新生物 | C51: 4735 | D51: 心疾患 | E51: 2219 | F51: 脳血管疾患 | G51: 1380 | H51: 肺 炎 | I51: 1298 | J51: 自 殺 | K51: 477 | L51: 不慮の事故 | M51: 367 | N51: 腎 不 全 | O51: 341 | P51: 大動脈瘤及び解離 | Q51: 192 | R51: 糖 尿 病 | S51: 188 | T51: 敗 血 症 | U51: 185
C52: 249.103674 | E52: 116.7393986 | G52: 72.60043718 | I52: 68.28649816 | K52: 25.09449894 | M52: 19.30750757 | O52: 17.93967325 | Q52: 10.10093039 | S52: 9.890494341 | U52: 9.732667303
A53: 09 21 | B53: 悪性新生物 | C53: 4981 | D53: 心疾患 | E53: 2137 | F53: 脳血管疾患 | G53: 1335 | H53: 肺 炎 | I53: 1222 | J53: 自 殺 | K53: 420 | L53: 不慮の事故 | M53: 383 | N53: 腎 不 全 | O53: 356 | P53: 老衰 | Q53: 231 | R53: 肝疾患 | S53: 201 | T53: 大動脈瘤及び解離 | U53: 200
C54: 261.1402723 | E54: 112.0370933 | G54: 69.99041629 | I54: 64.06613387 | K54: 22.01945681 | M54: 20.07964752 | O54: 18.66411101 | Q54: 12.11070125 | S54: 10.5378829 | U54: 10.48545562
A55: 10 22 | B55: 悪性新生物 | C55: 5256 | D55: 心疾患 | E55: 2313 | F55: 肺 炎 | G55: 1439 | H55: 脳血管疾患 | I55: 1372 | J55: 自 殺 | K55: 431 | L55: 不慮の事故 | M55: 387 | N55: 腎不全 | O55: 329 | P55: 老衰 | Q55: 222 | R55: 大動脈瘤及び解離 | S55: 207 | T55: 慢性閉塞性肺疾患 | U55: 194
C56: 275.6632754 | E56: 121.3107222 | G56: 75.4717377 | I56: 71.9577652 | K56: 22.60480816 | M56: 20.29712473 | O56: 17.25517839 | Q56: 11.64331186 | S56: 10.8566016 | U56: 10.17478604
A57: 11 23 | B57: 悪性新生物 | C57: 5326 | D57: 心疾患 | E57: 2421 | F57: 肺 炎 | G57: 1473 | H57: 脳血管疾患 | I57: 1368 | J57: 不慮の事故 | K57: 449 | L57: 自 殺 | M57: 434 | N57: 腎 不 全 | O57: 411 | P57: 老 衰 | Q57: 256 | R57: 糖 尿 病 | S57: 211 | T57: 大動脈瘤及び解離 | U57: 197
A58: 11 23 | B58: 悪性新生物 | C58: 277.1165518 | D58: 心疾患 | E58: 125.9667991 | F58: 肺 炎 | G58: 76.64150973 | H58: 脳血管疾患 | I58: 71.17826565 | J58: 不慮の事故 | K58: 23.36187228 | L58: 自 殺 | M58: 22.58140884 | N58: 腎 不 全 | O58: 21.38469823 | P58: 老 衰 | Q58: 13.31990936 | R58: 糖 尿 病 | S58: 10.97851904 | T58: 大動脈瘤及び解離 | U58: 10.2500865
A59: 12 24 | B59: 悪性新生物 | C59: 5302 | D59: 心疾患 | E59: 2363 | F59: 肺 炎 | G59: 1581 | H59: 脳血管疾患 | I59: 1348 | J59: 自 殺 | K59: 403 | L59: 老 衰 | M59: 392 | N59: 腎 不 全 | O59: 387 | P59: 不慮の事故 | Q59: 366 | R59: 敗 血 症 | S59: 239 | T59: 肝 疾 患 | U59: 223
A60: 12 24 | B60: 悪性新生物 | C60: 274.8893599 | D60: 心疾患 | E60: 122.5129305 | F60: 肺 炎 | G60: 81.96908298 | H60: 脳血管疾患 | I60: 69.8888829 | J60: 自 殺 | K60: 20.89407998 | L60: 老 衰 | M60: 20.3237701 | N60: 腎 不 全 | O60: 20.06453834 | P60: 不慮の事故 | Q60: 18.97576494 | R60: 敗 血 症 | S60: 12.3912782 | T60: 肝 疾 患 | U60: 11.56173656
A61: 13 25 | B61: 悪性新生物 | C61: 5674 | D61: 心疾患 | E61: 2287 | F61: 肺 炎 | G61: 1477 | H61: 脳血管疾患 | I61: 1384 | J61: 老 衰 | K61: 514 | L61: 腎 不 全 | M61: 407 | N61: 自 殺 | O61: 374 | P61: 不慮の事故 | Q61: 370 | R61: 敗 血 症 | S61: 241 | T61: 大動脈瘤及び解離 | U61: 230
A62: 13 25 | B62: 悪性新生物 | C62: 293.0499037 | D62: 心疾患 | E62: 118.1186341 | F62: 肺 炎 | G62: 76.28387518 | H62: 脳血管疾患 | I62: 71.48062508 | J62: 老 衰 | K62: 26.54699515 | L62: 腎 不 全 | M62: 21.02067515 | N62: 自 殺 | O62: 19.31629608 | P62: 不慮の事故 | Q62: 19.10970468 | R62: 敗 血 症 | S62: 12.44713197 | T62: 大動脈瘤及び解離 | U62: 11.87900561
A63: 14 26 | B63: 悪性新生物 | C63: 5783 | D63: 心疾患 | E63: 2393 | F63: 肺 炎 | G63: 1597 | H63: 脳血管疾患 | I63: 1389 | J63: 老 衰 | K63: 626 | L63: 不慮の事故 | M63: 411 | N63: 腎 不 全 | O63: 400 | P63: 自 殺 | Q63: 345 | R63: 敗 血 症 | S63: 239 | T63: 大動脈瘤及び解離 | U63: 223
A64: 14 26 | B64: 悪性新生物 | C64: 297.6864568 | D64: 心疾患 | E64: 123.1823779 | F64: 肺 炎 | G64: 82.20737879 | H64: 脳血管疾患 | I64: 71.50034386 | J64: 老 衰 | K64: 32.22405706 | L64: 不慮の事故 | M64: 21.15668922 | N64: 腎 不 全 | O64: 20.5904518 | P64: 自 殺 | Q64: 17.75926467 | R64: 敗 血 症 | S64: 12.30279495 | T64: 大動脈瘤及び解離 | U64: 11.47917688
A65: 15 2）27 | B65: 悪性新生物 | C65: 5769 | D65: 心疾患 | E65: 2303 | F65: 肺 炎 | G65: 1567 | H65: 脳血管疾患 | I65: 1361 | J65: 老 衰 | K65: 715 | L65: 腎 不 全 | M65: 418 | N65: 不慮の事故 | O65: 395 | P65: 自 殺 | Q65: 322 | R65: 大動脈瘤及び解離 | S65: 250 | T65: 肝 疾 患 | U65: 228
A66: 15 2）27 | B66: 悪性新生物 | C66: 296.8314821 | D66: 心疾患 | E66: 118.4959098 | F66: 肺 炎 | G66: 80.62661337 | H66: 脳血管疾患 | I66: 70.02732661 | J66: 老 衰 | K66: 36.78878657 | L66: 腎 不 全 | M66: 21.50729061 | N66: 不慮の事故 | O66: 20.3238751 | P66: 自 殺 | Q66: 16.56781717 | R66: 大動脈瘤及び解離 | S66: 12.86321209 | T66: 肝 疾 患 | U66: 11.73124942
A67: 16 28 | B67: ='[2]■4 年次別，死因順位'!$B$5 -> 悪性新生物 | C67: ='[2]■4 年次別，死因順位'!$C$5 -> 6003 | D67: ='[2]■4 年次別，死因順位'!$D$5 -> 心疾患 | E67: ='[2]■4 年次別，死因順位'!$E$5 -> 2414 | F67: ='[2]■4 年次別，死因順位'!$F$5 -> 肺 炎 | G67: ='[2]■4 年次別，死因順位'!$G$5 -> 1736 | H67: ='[2]■4 年次別，死因順位'!$H$5 -> 脳血管疾患 | I67: ='[2]■4 年次別，死因順位'!$I$5 -> 1448 | J67: ='[2]■4 年次別，死因順位'!$J$5 -> 老 衰 | K67: ='[2]■4 年次別，死因順位'!$K$5 -> 893 | L67: ='[2]■4 年次別，死因順位'!$L$5 -> 不慮の事故 | M67: ='[2]■4 年次別，死因順位'!$M$5 -> 449 | N67: ='[2]■4 年次別，死因順位'!$N$5 -> 腎 不 全 | O67: ='[2]■4 年次別，死因順位'!$O$5 -> 436 | P67: ='[2]■4 年次別，死因順位'!$P$5 -> 自 殺 | Q67: ='[2]■4 年次別，死因順位'!$Q$5 -> 315 | R67: ='[2]■4 年次別，死因順位'!$R$5 -> 大動脈瘤及び解離 | S67: ='[2]■4 年次別，死因順位'!$S$5 -> 266 | T67: ='[2]■4 年次別，死因順位'!$T$5 -> 敗 血 症 | U67: ='[2]■4 年次別，死因順位'!$U$5 -> 217
C68: =C67/'1 年次別，死亡数・粗死亡率・年齢調整死亡率・死亡性比'!$M55*100000 -> 306.5249527 | E68: =E67/'1 年次別，死亡数・粗死亡率・年齢調整死亡率・死亡性比'!$M55*100000 -> 123.2635742 | G68: =G67/'1 年次別，死亡数・粗死亡率・年齢調整死亡率・死亡性比'!$M55*100000 -> 88.64356453 | I68: =I67/'1 年次別，死亡数・粗死亡率・年齢調整死亡率・死亡性比'!$M55*100000 -> 73.93771973 | K68: =K67/'1 年次別，死亡数・粗死亡率・年齢調整死亡率・死亡性比'!$M55*100000 -> 45.5983313 | M68: =M67/'1 年次別，死亡数・粗死亡率・年齢調整死亡率・死亡性比'!$M55*100000 -> 22.92682055 | O68: =O67/'1 年次別，死亡数・粗死亡率・年齢調整死亡率・死亡性比'!$M55*100000 -> 22.26301506 | Q68: =Q67/'1 年次別，死亡数・粗死亡率・年齢調整死亡率・死亡性比'!$M55*100000 -> 16.08451776 | S68: =S67/'1 年次別，死亡数・粗死亡率・年齢調整死亡率・死亡性比'!$M55*100000 -> 13.58248166 | U68: =U67/'1 年次別，死亡数・粗死亡率・年齢調整死亡率・死亡性比'!$M55*100000 -> 11.08044557
A69: * 死亡率は人口10万対
A70: 1) 率算出に用いた人口は国勢調査年は国勢調査の総人口、国勢調査年以外は推計人口 (国勢調査ベース) による (平成27年については2)を参照)。
A71: 2) 率算出に用いた人口は「平成27年国勢調査 年齢・国籍不詳をあん分した人口 (参考表)」 (総務省統計局)における日本人人口による。

Sheet 5 死因順位・総数
A1: 5 性・年齢(5歳階級)別にみた死因順位
A3: 死亡数、死亡率(人口10万対)、割合(％)2) | E3: 総数 | W3: ='3 月・性別，区別死亡数'!$O$2 -> 平成28年
A4: 年齢 | B4: 人口1） | C4: 死亡 総数 | D4: 第1位 | H4: 第2位 | L4: 第3位 | P4: 第4位 | T4: 第5位
D5: 死 因 | E5: 死亡数 | F5: 死亡率 | G5: 割合 (％) | H5: 死 因 | I5: 死亡数 | J5: 死亡率 | K5: 割合 (％) | L5: 死 因 | M5: 死亡数 | N5: 死亡率 | O5: 割合 (％) | P5: 死 因 | Q5: 死亡数 | R5: 死亡率 | S5: 割合 (％) | T5: 死 因 | U5: 死亡数 | V5: 死亡率 | W5: 割合 (％)
A6: 総数 | B6: =[1]人口!$B$39 -> 1958405 | C6: ='9 性・年齢別，区別死亡数'!B6 -> 18504 | D6: 悪性新生物 | E6: 6003 | F6: =IF(E6>0,E6/$B6*100000,"") -> 306.5249527 | G6: =IF(E6>0,E6/$C6*100,"") -> 32.44163424 | H6: 心疾患 | I6: 2414 | J6: =IF(I6>0,I6/$B6*100000,"") -> 123.2635742 | K6: =IF(I6>0,I6/$C6*100,"") -> 13.04582793 | L6: 肺 炎 | M6: 1736 | N6: =IF(M6>0,M6/$B6*100000,"") -> 88.64356453 | O6: =IF(M6>0,M6/$C6*100,"") -> 9.381755296 | P6: 脳血管疾患 | Q6: 1448 | R6: =IF(Q6>0,Q6/$B6*100000,"") -> 73.93771973 | S6: =IF(Q6>0,Q6/$C6*100,"") -> 7.825335063 | T6: 老 衰 | U6: 893 | V6: =IF(U6>0,U6/$B6*100000,"") -> 45.5983313 | W6: =IF(U6>0,U6/$C6*100,"") -> 4.825983571 | Y6: 悪性新生物
A7: 0歳 3） | B7: =[1]出生数!$G$4 -> 14021 | C7: ='9 性・年齢別，区別死亡数'!$C$6 -> 29 | D7: その他の感染症及び 寄生虫症 | E7: 8 | F7: =IF(E7>0,E7/$B7*100000,"") -> 57.05727124 | G7: =IF(E7>0,E7/$C7*100,"") -> 27.5862069 | H7: 乳幼児突然死症候群 | I7: 7 | J7: =IF(I7>0,I7/$B7*100000,"") -> 49.92511233 | K7: =IF(I7>0,I7/$C7*100,"") -> 24.13793103 | L7: 周産期に特異的な呼吸障害及び心血管障害 | M7: 5 | N7: =IF(M7>0,M7/$B7*100000,"") -> 35.66079452 | O7: =IF(M7>0,M7/$C7*100,"") -> 17.24137931 | P7: 不慮の事故 | Q7: 3 | R7: =IF(Q7>0,Q7/$B7*100000,"") -> 21.39647671 | S7: =IF(Q7>0,Q7/$C7*100,"") -> 10.34482759 | T7: 腸管感染症 その他の感染症及び 寄生虫症 心疾患 妊娠期間及び胎児発育に関連する障害 その他のすべての疾患 | U7: 1 | V7: =IF(U7>0,U7/$B7*100000,"") -> 7.132158905 | W7: =IF(U7>0,U7/$C7*100,"") -> 3.448275862 | Y7: 心疾患
A8: 1～ 4 | B8: ='[1]年齢階級・区別人口(住基）'!$E$3-'[1]年齢階級・区別人口(住基）'!$D$3 -> 57931 | C8: =SUM('9 性・年齢別，区別死亡数'!$D$6:$G$6) -> 7 | D8: 敗 血 症 | E8: 2 | F8: 3.452383007 | G8: =IF(E8>0,E8/$C8*100,"") -> 28.57142857 | H8: その他の感染症及び 寄生虫症 不慮の事故 | I8: 1 | J8: 1.726191504 | K8: =IF(I8>0,I8/$C8*100,"") -> 14.28571429 | O8: =IF(M8>0,M8/$C8*100,"") ->  | S8: =IF(Q8>0,Q8/$C8*100,"") ->  | W8: =IF(U8>0,U8/$C8*100,"") ->  | Y8: 脳血管疾患
A9: 5～ 9 | B9: ='[1]年齢階級・区別人口(住基）'!$F$3 -> 75101 | C9: ='9 性・年齢別，区別死亡数'!$I$6 -> 6 | D9: 悪性新生物 その他の新生物 | E9: 1 | F9: 1.331540193 | G9: =IF(E9>0,E9/$C9*100,"") -> 16.66666667 | K9: =IF(I9>0,I9/$C9*100,"") ->  | O9: =IF(M9>0,M9/$C9*100,"") ->  | S9: =IF(Q9>0,Q9/$C9*100,"") ->  | W9: =IF(U9>0,U9/$C9*100,"") ->  | Y9: 肺 炎
A10: 10～14 | B10: ='[1]年齢階級・区別人口(住基）'!$G$3 -> 76956 | C10: ='9 性・年齢別，区別死亡数'!$J$6 -> 5 | D10: 悪性新生物 心疾患 自 殺 | E10: 1 | F10: 1.299443838 | G10: =IF(E10>0,E10/$C10*100,"") -> 20 | K10: =IF(I10>0,I10/$C10*100,"") ->  | O10: =IF(M10>0,M10/$C10*100,"") ->  | S10: =IF(Q10>0,Q10/$C10*100,"") ->  | W10: =IF(U10>0,U10/$C10*100,"") ->  | Y10: 不慮の事故
A11: 15～19 | B11: ='[1]年齢階級・区別人口(住基）'!$H$3 -> 82952 | C11: ='9 性・年齢別，区別死亡数'!$K$6 -> 20 | D11: 不慮の事故 自 殺 | E11: 6 | F11: 7.233098659 | G11: 30 | L11: 悪性新生物 心疾患 その他の感染症及び 寄生虫症 | M11: 2 | N11: 2.411032886 | O11: 10 | Y11: 自 殺
A12: 20～24 | B12: ='[1]年齢階級・区別人口(住基）'!$I$3 -> 96261 | C12: ='9 性・年齢別，区別死亡数'!$L$6 -> 29 | D12: 自 殺 | E12: 14 | F12: 14.5437924 | G12: 48.27586207 | H12: 不慮の事故 | I12: 5 | J12: 5.194211571 | K12: 17.24137931 | L12: 悪性新生物 | M12: 2 | N12: 2.077684628 | O12: 6.896551724 | P12: 心疾患 ヘルニア及び腸閉塞 その他の感染症及び 寄生虫症 他 殺 | Q12: 1 | R12: 1.038842314 | S12: 3.448275862 | Y12: 腎 不 全
A13: 25～29 | B13: ='[1]年齢階級・区別人口(住基）'!$J$3 -> 104925 | C13: ='9 性・年齢別，区別死亡数'!$M$6 -> 51 | D13: 自 殺 | E13: 31 | F13: 29.54491303 | G13: 60.78431373 | H13: 不慮の事故 | I13: 7 | J13: 6.671431975 | K13: 13.7254902 | L13: 悪性新生物 | M13: 3 | N13: 2.859185132 | O13: 5.882352941 | P13: 心疾患 | Q13: 2 | R13: 1.906123421 | S13: 3.921568627 | T13: その他の新生物 糖 尿 病 脳血管疾患 他 殺 | U13: 1 | V13: 0.9530617107 | W13: 1.960784314 | Y13: 老 衰
A14: 30～34 | B14: ='[1]年齢階級・区別人口(住基）'!$K$3 -> 119912 | C14: ='9 性・年齢別，区別死亡数'!$N$6 -> 50 | D14: 自 殺 | E14: 18 | F14: 15.01100807 | G14: 36 | H14: 悪性新生物 | I14: 10 | J14: 8.339448929 | K14: 20 | L14: 不慮の事故 | M14: 6 | N14: 5.003669358 | O14: 12 | P14: 脳血管疾患 | Q14: 4 | R14: 3.335779572 | S14: 8 | T14: 心疾患 | U14: 2 | V14: 1.667889786 | W14: 4 | Y14: 慢性閉塞性 肺疾患
A15: 35～39 | B15: ='[1]年齢階級・区別人口(住基）'!$L$3 -> 132782 | C15: ='9 性・年齢別，区別死亡数'!$O$6 -> 103 | D15: 自 殺 | E15: 35 | F15: 26.35899444 | G15: 33.98058252 | H15: 悪性新生物 | I15: 22 | J15: 16.56851079 | K15: 21.3592233 | L15: 不慮の事故 | M15: 13 | N15: 9.79048365 | O15: 12.62135922 | P15: 心疾患 | Q15: 10 | R15: 7.531141269 | S15: 9.708737864 | T15: 脳血管疾患 | U15: 4 | V15: 3.012456508 | W15: 3.883495146 | Y15: その他の 新生物
A16: 40～44 | B16: ='[1]年齢階級・区別人口(住基）'!$M$3 -> 154777 | C16: ='9 性・年齢別，区別死亡数'!$P$6 -> 162 | D16: 悪性新生物 | E16: 44 | F16: 28.42799641 | G16: 27.16049383 | H16: 自 殺 | I16: 23 | J16: 14.86008903 | K16: 14.19753086 | L16: 心疾患 | M16: 16 | N16: 10.33745324 | O16: 9.87654321 | P16: 脳血管疾患 | Q16: 14 | R16: 9.045271584 | S16: 8.641975309 | T16: 不慮の事故 | U16: 13 | V16: 8.399180757 | W16: 8.024691358 | Y16: 糖 尿 病
A17: 45～49 | B17: ='[1]年齢階級・区別人口(住基）'!$N$3 -> 146635 | C17: ='9 性・年齢別，区別死亡数'!$Q$6 -> 249 | D17: 悪性新生物 | E17: 103 | F17: 70.24243871 | G17: 41.36546185 | H17: 自 殺 | I17: 33 | J17: 22.504859 | K17: 13.25301205 | L17: 心疾患 | M17: 18 | N17: 12.27537764 | O17: 7.228915663 | P17: 脳血管疾患 | Q17: 17 | R17: 11.59341221 | S17: 6.827309237 | T17: 不慮の事故 | U17: 12 | V17: 8.183585092 | W17: 4.819277108 | Y17: 先天奇形， 変形及び 染色体異常
A18: 50～54 | B18: ='[1]年齢階級・区別人口(住基）'!$O$3 -> 127605 | C18: ='9 性・年齢別，区別死亡数'!$R$6 -> 281 | D18: 悪性新生物 | E18: 124 | F18: 97.17487559 | G18: 44.12811388 | H18: 自 殺 | I18: 34 | J18: 26.64472395 | K18: 12.09964413 | L18: 心疾患 | M18: 25 | N18: 19.59170879 | O18: 8.896797153 | P18: 脳血管疾患 | Q18: 22 | R18: 17.24070373 | S18: 7.829181495 | T18: 不慮の事故 | U18: 17 | V18: 13.32236198 | W18: 6.049822064 | Y18: 周産期に 発生した病態
A19: 55～59 | B19: ='[1]年齢階級・区別人口(住基）'!$P$3 -> 121555 | C19: ='9 性・年齢別，区別死亡数'!$S$6 -> 492 | D19: 悪性新生物 | E19: 245 | F19: 201.5548517 | G19: 49.79674797 | H19: 脳血管疾患 | I19: 39 | J19: 32.0842417 | K19: 7.926829268 | L19: 心疾患 | M19: 37 | N19: 30.43889597 | O19: 7.520325203 | P19: 肝 疾 患 | Q19: 22 | R19: 18.09880301 | S19: 4.471544715 | T19: 不慮の事故 | U19: 20 | V19: 16.45345728 | W19: 4.06504065 | Y19: 乳幼児突然死 症候群
A20: 60～64 | B20: ='[1]年齢階級・区別人口(住基）'!$Q$3 -> 132805 | C20: ='9 性・年齢別，区別死亡数'!$T$6 -> 857 | D20: 悪性新生物 | E20: 449 | F20: 338.0896804 | G20: 52.39206534 | H20: 心疾患 | I20: 80 | J20: 60.23869583 | K20: 9.334889148 | L20: 脳血管疾患 | M20: 50 | N20: 37.6491849 | O20: 5.834305718 | P20: 肝 疾 患 | Q20: 30 | R20: 22.58951094 | S20: 3.500583431 | T20: 肺 炎 自 殺 | U20: 28 | V20: 21.08354354 | W20: 3.267211202 | Y20: インフルエンザ
A21: 65～69 | B21: ='[1]年齢階級・区別人口(住基）'!$R$3 -> 156774 | C21: ='9 性・年齢別，区別死亡数'!$U$6 -> 1494 | D21: 悪性新生物 | E21: 795 | F21: 507.0993915 | G21: 53.21285141 | H21: 心疾患 | I21: 137 | J21: 87.38693916 | K21: 9.170013387 | L21: 脳血管疾患 | M21: 104 | N21: 66.33753046 | O21: 6.961178046 | P21: 肺 炎 | Q21: 40 | R21: 25.51443479 | S21: 2.677376171 | T21: 不慮の事故 | U21: 33 | V21: 21.0494087 | W21: 2.208835341 | Y21: 敗 血 症
A22: 70～74 | B22: ='[1]年齢階級・区別人口(住基）'!$S$3 -> 106730 | C22: ='9 性・年齢別，区別死亡数'!$V$6 -> 1609 | D22: 悪性新生物 | E22: 773 | F22: 724.2574721 | G22: 48.04226227 | H22: 心疾患 | I22: 182 | J22: 170.5237515 | K22: 11.31137352 | L22: 脳血管疾患 | M22: 100 | N22: 93.69436897 | O22: 6.215040398 | P22: 肺 炎 | Q22: 92 | R22: 86.19881945 | S22: 5.717837166 | T22: 腎 不 全 | U22: 33 | V22: 30.91914176 | W22: 2.050963331 | Y22: ヘルニア及び 腸閉塞
A23: 75～79 | B23: ='[1]年齢階級・区別人口(住基）'!$T$3 -> 87913 | C23: ='9 性・年齢別，区別死亡数'!$W$6 -> 2171 | D23: 悪性新生物 | E23: 891 | F23: 1013.501985 | G23: 41.04099493 | H23: 心疾患 | I23: 240 | J23: 272.9971677 | K23: 11.05481345 | L23: 肺 炎 | M23: 173 | N23: 196.7854584 | O23: 7.968678029 | P23: 脳血管疾患 | Q23: 156 | R23: 177.448159 | S23: 7.185628743 | T23: 不慮の事故 | U23: 48 | V23: 54.59943353 | W23: 2.21096269 | Y23: 貧 血
A24: 80～84 | B24: ='[1]年齢階級・区別人口(住基）'!$U$3 -> 69786 | C24: ='9 性・年齢別，区別死亡数'!$X$6 -> 3020 | D24: 悪性新生物 | E24: 1023 | F24: 1465.910068 | G24: 33.87417219 | H24: 心疾患 | I24: 367 | J24: 525.8934457 | K24: 12.15231788 | L24: 肺 炎 | M24: 308 | N24: 441.3492678 | O24: 10.1986755 | P24: 脳血管疾患 | Q24: 247 | R24: 353.9391855 | S24: 8.178807947 | T24: 腎 不 全 | U24: 77 | V24: 110.3373169 | W24: 2.549668874 | Y24: 喘 息
A25: 85～89 | B25: ='[1]年齢階級・区別人口(住基）'!$V$3 -> 44821 | C25: ='9 性・年齢別，区別死亡数'!$Y$6 -> 3487 | D25: 悪性新生物 | E25: 850 | F25: 1896.432476 | G25: 24.37625466 | H25: 心疾患 | I25: 490 | J25: 1093.237545 | K25: 14.05219386 | L25: 肺 炎 | M25: 442 | N25: 986.1448874 | O25: 12.67565242 | P25: 脳血管疾患 | Q25: 320 | R25: 713.9510497 | S25: 9.176942931 | T25: 老 衰 | U25: 165 | V25: 368.13101 | W25: 4.731861199
A26: 90歳～ | B26: =SUM('[1]年齢階級・区別人口(住基）'!$W$3:$Y$3) -> 25794 | C26: =SUM('9 性・年齢別，区別死亡数'!Z6:AB6) -> 4382 | D26: 心疾患 | E26: 803 | F26: 3113.127084 | G26: 18.32496577 | H26: 悪性新生物 | I26: 665 | J26: 2578.118942 | K26: 15.17571885 | L26: 老 衰 | M26: 640 | N26: 2481.197178 | O26: 14.6052031 | P26: 肺 炎 | Q26: 627 | R26: 2430.79786 | S26: 14.30853492 | T26: 脳血管疾患 | U26: 370 | V26: 1434.442118 | W26: 8.443633044
A27: 1) 総数は推計人口(国勢調査ベース・10月1現在)、年齢別は住民基本台帳による10月1日現在の人口である。 | L27: 2） それぞれの年齢階級別死亡数を100とした場合の割合である。
A28: 3) 乳児の死因については乳児死因簡単分類を使用。死亡率は出生10万対の率である。 | L28: 4) 出生数
A29: 注) 「心疾患」は「心疾患(高血圧症を除く）」である。

Sheet 5 死因順位・男
A1: 5 性・年齢(5歳階級)別にみた死因順位(つづき)
A3: 死亡数、死亡率(人口10万対)、割合(％)2) | E3: 男 | W3: ='3 月・性別，区別死亡数'!$O$2 -> 平成28年
A4: 年齢 | B4: 人口1） | C4: 死亡 総数 | D4: 第1位 | H4: 第2位 | L4: 第3位 | P4: 第4位 | T4: 第5位
D5: 死 因 | E5: 死亡数 | F5: 死亡率 | G5: 割合 (％) | H5: 死 因 | I5: 死亡数 | J5: 死亡率 | K5: 割合 (％) | L5: 死 因 | M5: 死亡数 | N5: 死亡率 | O5: 割合 (％) | P5: 死 因 | Q5: 死亡数 | R5: 死亡率 | S5: 割合 (％) | T5: 死 因 | U5: 死亡数 | V5: 死亡率 | W5: 割合 (％)
A6: 総数 | B6: =[1]人口!$B$40 -> 912514 | C6: ='9 性・年齢別，区別死亡数'!B18 -> 9654 | D6: 悪性新生物 | E6: 3413 | F6: =IF(E6>0,E6/$B6*100000,"") -> 374.0216588 | G6: =IF(E6>0,E6/$C6*100,"") -> 35.35322146 | H6: 心疾患 | I6: 1073 | J6: =IF(I6>0,I6/$B6*100000,"") -> 117.587237 | K6: =IF(I6>0,I6/$C6*100,"") -> 11.11456391 | L6: 肺 炎 | M6: 1009 | N6: =IF(M6>0,M6/$B6*100000,"") -> 110.573646 | O6: =IF(M6>0,M6/$C6*100,"") -> 10.45162627 | P6: 脳血管疾患 | Q6: 718 | R6: =IF(Q6>0,Q6/$B6*100000,"") -> 78.6837243 | S6: =IF(Q6>0,Q6/$C6*100,"") -> 7.437331676 | T6: 不慮の事故 | U6: 252 | V6: =IF(U6>0,U6/$B6*100000,"") -> 27.61601466 | W6: =IF(U6>0,U6/$C6*100,"") -> 2.610316967 | Y6: 悪性新生物
A7: 0歳 3） | B7: =[1]出生数!$H$4 -> 7144 | C7: ='9 性・年齢別，区別死亡数'!$C$18 -> 14 | D7: 先天奇形，変形及び 染色体異常 | E7: 4 | F7: 55.99104143 | G7: =IF(E7>0,E7/$C7*100,"") -> 28.57142857 | H7: 周産期に特異的な呼吸障害及び心血管障害 乳幼児突然死症候群 | I7: 3 | J7: 41.99328108 | K7: =IF(I7>0,I7/$C7*100,"") -> 21.42857143 | O7: =IF(M7>0,M7/$C7*100,"") ->  | P7: その他の感染症及び 寄生虫症 妊娠期間及び胎児発育に関連する障害 不慮の事故 | Q7: 1 | R7: 13.99776036 | S7: =IF(Q7>0,Q7/$C7*100,"") -> 7.142857143 | W7: =IF(U7>0,U7/$C7*100,"") ->  | Y7: 心疾患
A8: 1～ 4 | B8: ='[1]年齢階級・区別人口(住基）'!$E$4-'[1]年齢階級・区別人口(住基）'!$D$4 -> 29769 | C8: =SUM('9 性・年齢別，区別死亡数'!$D$18:$G$18) -> 4 | D8: 敗 血 症 先天奇形，変形及び 染色体異常 不慮の事故 | E8: 1 | F8: 3.359199167 | G8: =IF(E8>0,E8/$C8*100,"") -> 25 | K8: =IF(I8>0,I8/$C8*100,"") ->  | O8: =IF(M8>0,M8/$C8*100,"") ->  | S8: =IF(Q8>0,Q8/$C8*100,"") ->  | W8: =IF(U8>0,U8/$C8*100,"") ->  | Y8: 脳血管疾患
A9: 5～ 9 | B9: ='[1]年齢階級・区別人口(住基）'!$F$4 -> 38259 | C9: ='9 性・年齢別，区別死亡数'!$I$18 -> 4 | D9: 悪性新生物 その他の新生物 | E9: 1 | F9: 2.613764082 | G9: =IF(E9>0,E9/$C9*100,"") -> 25 | K9: =IF(I9>0,I9/$C9*100,"") ->  | O9: =IF(M9>0,M9/$C9*100,"") ->  | S9: =IF(Q9>0,Q9/$C9*100,"") ->  | W9: =IF(U9>0,U9/$C9*100,"") ->  | Y9: 肺 炎
A10: 10～14 | B10: ='[1]年齢階級・区別人口(住基）'!$G$4 -> 39176 | C10: ='9 性・年齢別，区別死亡数'!$J$18 -> 4 | D10: 悪性新生物 自 殺 | E10: 1 | F10: 2.552583214 | G10: =IF(E10>0,E10/$C10*100,"") -> 25 | K10: =IF(I10>0,I10/$C10*100,"") ->  | O10: =IF(M10>0,M10/$C10*100,"") ->  | S10: =IF(Q10>0,Q10/$C10*100,"") ->  | W10: =IF(U10>0,U10/$C10*100,"") ->  | Y10: 不慮の事故
A11: 15～19 | B11: ='[1]年齢階級・区別人口(住基）'!$H$4 -> 41923 | C11: ='9 性・年齢別，区別死亡数'!$K$18 -> 14 | D11: 不慮の事故 自 殺 | E11: 4 | F11: 9.541301911 | G11: 28.57142857 | L11: 悪性新生物 心疾患 | M11: 2 | N11: 4.770650955 | O11: 14.28571429 | T11: 先天奇形，変形及び 染色体異常 | U11: 1 | V11: 2.385325478 | W11: 7.142857143 | Y11: 自 殺
A12: 20～24 | B12: ='[1]年齢階級・区別人口(住基）'!$I$4 -> 46634 | C12: ='9 性・年齢別，区別死亡数'!$L$18 -> 17 | D12: 自 殺 | E12: 7 | F12: 15.01050736 | G12: 41.17647059 | H12: 不慮の事故 | I12: 5 | J12: 10.72179097 | K12: 29.41176471 | L12: 悪性新生物 | M12: 2 | N12: 4.288716387 | O12: 11.76470588 | P12: 先天奇形，変形及び 染色体異常 | Q12: 1 | R12: 2.144358194 | S12: 5.882352941 | Y12: 腎 不 全
A13: 25～29 | B13: ='[1]年齢階級・区別人口(住基）'!$J$4 -> 50125 | C13: ='9 性・年齢別，区別死亡数'!$M$18 -> 36 | D13: 自 殺 | E13: 22 | F13: 43.89027431 | G13: 61.11111111 | H13: 不慮の事故 | I13: 7 | J13: 13.96508728 | K13: 19.44444444 | L13: 悪性新生物 その他の新生物 糖 尿 病 心疾患 脳血管疾患 | M13: 1 | N13: 1.995012469 | O13: 2.777777778 | Y13: 老 衰
A14: 30～34 | B14: ='[1]年齢階級・区別人口(住基）'!$K$4 -> 57799 | C14: ='9 性・年齢別，区別死亡数'!$N$18 -> 33 | D14: 自 殺 | E14: 13 | F14: 22.49173861 | G14: 39.39393939 | H14: 悪性新生物 不慮の事故 | I14: 5 | J14: 8.650668697 | K14: 15.15151515 | P14: 脳血管疾患 | Q14: 3 | R14: 5.190401218 | S14: 9.090909091 | T14: 貧 血 心疾患 肝 疾 患 | U14: 1 | V14: 1.730133739 | W14: 3.03030303 | Y14: 慢性閉塞性肺疾患
A15: 35～39 | B15: ='[1]年齢階級・区別人口(住基）'!$L$4 -> 64460 | C15: ='9 性・年齢別，区別死亡数'!$O$18 -> 60 | D15: 自 殺 | E15: 23 | F15: 35.68104251 | G15: 38.33333333 | H15: 悪性新生物 | I15: 10 | J15: 15.51349674 | K15: 16.66666667 | L15: 不慮の事故 | M15: 9 | N15: 13.96214707 | O15: 15 | P15: 心疾患 | Q15: 5 | R15: 7.756748371 | S15: 8.333333333 | T15: 脳血管疾患 | U15: 2 | V15: 3.102699348 | W15: 3.333333333 | Y15: その他の新生物
A16: 40～44 | B16: ='[1]年齢階級・区別人口(住基）'!$M$4 -> 74828 | C16: ='9 性・年齢別，区別死亡数'!$P$18 -> 102 | D16: 自 殺 | E16: 20 | F16: 26.72796279 | G16: 19.60784314 | H16: 悪性新生物 | I16: 19 | J16: 25.39156465 | K16: 18.62745098 | L16: 不慮の事故 | M16: 13 | N16: 17.37317582 | O16: 12.74509804 | P16: 心疾患 | Q16: 11 | R16: 14.70037954 | S16: 10.78431373 | T16: 脳血管疾患 | U16: 10 | V16: 13.3639814 | W16: 9.803921569 | Y16: 糖 尿 病
A17: 45～49 | B17: ='[1]年齢階級・区別人口(住基）'!$N$4 -> 70252 | C17: ='9 性・年齢別，区別死亡数'!$Q$18 -> 146 | D17: 悪性新生物 | E17: 40 | F17: 56.93788077 | G17: 27.39726027 | H17: 自 殺 | I17: 27 | J17: 38.43306952 | K17: 18.49315068 | L17: 心疾患 | M17: 17 | N17: 24.19859933 | O17: 11.64383562 | P17: 脳血管疾患 | Q17: 11 | R17: 15.65791721 | S17: 7.534246575 | T17: 不慮の事故 | U17: 10 | V17: 14.23447019 | W17: 6.849315068 | Y17: 先天奇形，変形 及び染色体異常
A18: 50～54 | B18: ='[1]年齢階級・区別人口(住基）'!$O$4 -> 60019 | C18: ='9 性・年齢別，区別死亡数'!$R$18 -> 166 | D18: 悪性新生物 | E18: 56 | F18: 93.30378713 | G18: 33.73493976 | H18: 自 殺 | I18: 27 | J18: 44.98575451 | K18: 16.26506024 | L18: 心疾患 | M18: 21 | N18: 34.98892018 | O18: 12.65060241 | P18: 脳血管疾患 | Q18: 13 | R18: 21.65980773 | S18: 7.831325301 | T18: 不慮の事故 | U18: 9 | V18: 14.9952515 | W18: 5.421686747 | Y18: 周産期に 発生した病態
A19: 55～59 | B19: ='[1]年齢階級・区別人口(住基）'!$P$4 -> 57400 | C19: ='9 性・年齢別，区別死亡数'!$S$18 -> 321 | D19: 悪性新生物 | E19: 145 | F19: 252.6132404 | G19: 45.17133956 | H19: 心疾患 脳血管疾患 | I19: 25 | J19: 43.55400697 | K19: 7.788161994 | P19: 肝 疾 患 | Q19: 18 | R19: 31.35888502 | S19: 5.607476636 | T19: 自 殺 | U19: 15 | V19: 26.13240418 | W19: 4.672897196 | Y19: 乳幼児突然死 症候群
A20: 60～64 | B20: ='[1]年齢階級・区別人口(住基）'!$Q$4 -> 63084 | C20: ='9 性・年齢別，区別死亡数'!$T$18 -> 577 | D20: 悪性新生物 | E20: 267 | F20: 423.2451969 | G20: 46.27383016 | H20: 心疾患 | I20: 60 | J20: 95.1112802 | K20: 10.39861352 | L20: 脳血管疾患 | M20: 32 | N20: 50.72601611 | O20: 5.54592721 | P20: 肺 炎 肝 疾 患 | Q20: 23 | R20: 36.45932408 | S20: 3.986135182 | Y20: インフルエンザ
A21: 65～69 | B21: ='[1]年齢階級・区別人口(住基）'!$R$4 -> 72620 | C21: ='9 性・年齢別，区別死亡数'!$U$18 -> 973 | D21: 悪性新生物 | E21: 485 | F21: 667.8600936 | G21: 49.84583762 | H21: 心疾患 | I21: 101 | J21: 139.0801432 | K21: 10.38026721 | L21: 脳血管疾患 | M21: 70 | N21: 96.39217846 | O21: 7.194244604 | P21: 肺 炎 | Q21: 32 | R21: 44.06499587 | S21: 3.288797533 | T21: 糖 尿 病 大動脈瘤及び解離 不慮の事故 | U21: 16 | V21: 22.03249793 | W21: 1.644398767 | Y21: 敗 血 症
A22: 70～74 | B22: ='[1]年齢階級・区別人口(住基）'!$S$4 -> 47463 | C22: ='9 性・年齢別，区別死亡数'!$V$18 -> 1069 | D22: 悪性新生物 | E22: 518 | F22: 1091.376441 | G22: 48.4565014 | H22: 心疾患 | I22: 112 | J22: 235.9732845 | K22: 10.47708138 | L22: 肺 炎 | M22: 70 | N22: 147.4833028 | O22: 6.548175865 | P22: 脳血管疾患 | Q22: 66 | R22: 139.0556855 | S22: 6.173994387 | T22: 腎 不 全 | U22: 22 | V22: 46.35189516 | W22: 2.057998129 | Y22: ヘルニア及び腸閉塞
A23: 75～79 | B23: ='[1]年齢階級・区別人口(住基）'!$T$4 -> 36800 | C23: ='9 性・年齢別，区別死亡数'!$W$18 -> 1316 | D23: 悪性新生物 | E23: 566 | F23: 1538.043478 | G23: 43.00911854 | H23: 心疾患 | I23: 140 | J23: 380.4347826 | K23: 10.63829787 | L23: 肺 炎 | M23: 113 | N23: 307.0652174 | O23: 8.58662614 | P23: 脳血管疾患 | Q23: 93 | R23: 252.7173913 | S23: 7.066869301 | T23: 不慮の事故 | U23: 30 | V23: 81.52173913 | W23: 2.279635258 | Y23: 貧 血
A24: 80～84 | B24: ='[1]年齢階級・区別人口(住基）'!$U$4 -> 26924 | C24: ='9 性・年齢別，区別死亡数'!$X$18 -> 1757 | D24: 悪性新生物 | E24: 596 | F24: 2213.63839 | G24: 33.92145703 | H24: 肺 炎 | I24: 207 | J24: 768.8307829 | K24: 11.78144565 | L24: 心疾患 | M24: 203 | N24: 753.9741495 | O24: 11.55378486 | P24: 脳血管疾患 | Q24: 141 | R24: 523.6963304 | S24: 8.025042686 | T24: 腎 不 全 | U24: 41 | V24: 152.2804932 | W24: 2.333523051 | Y24: 喘 息
A25: 85～89 | B25: ='[1]年齢階級・区別人口(住基）'!$V$4 -> 14991 | C25: ='9 性・年齢別，区別死亡数'!$Y$18 -> 1692 | D25: 悪性新生物 | E25: 455 | F25: 3035.154426 | G25: 26.89125296 | H25: 肺 炎 | I25: 258 | J25: 1721.03262 | K25: 15.24822695 | L25: 心疾患 | M25: 191 | N25: 1274.097792 | O25: 11.28841608 | P25: 脳血管疾患 | Q25: 142 | R25: 947.2350077 | S25: 8.392434988 | T25: 老 衰 | U25: 60 | V25: 400.2401441 | W25: 3.546099291 | Y25: 肝 疾 患
A26: 90歳～ | B26: =SUM('[1]年齢階級・区別人口(住基）'!$W$4:$Y$4) -> 6179 | C26: =SUM('9 性・年齢別，区別死亡数'!Z18:AB18) -> 1349 | D26: 肺 炎 | E26: 287 | F26: 4644.764525 | G26: 21.27501853 | H26: 悪性新生物 | I26: 244 | J26: 3948.859039 | K26: 18.0874722 | L26: 心疾患 | M26: 183 | N26: 2961.644279 | O26: 13.56560415 | P26: 老 衰 | Q26: 116 | R26: 1877.326428 | S26: 8.598962194 | T26: 脳血管疾患 | U26: 109 | V26: 1764.039489 | W26: 8.080059303
A27: 1) 総数は推計人口(国勢調査ベース・10月1日現在)、年齢別は住民基本台帳による10月1日現在の人口である。 | L27: 2） それぞれの年齢階級別死亡数を100とした場合の割合である。
A28: 3) 乳児の死因については乳児死因簡単分類を使用。死亡率は出生10万対の率である。 | L28: 4) 出生数
A29: 注) 「心疾患」は「心疾患(高血圧症を除く）」である。

Sheet 5 死因順位・女
A1: 5 性・年齢(5歳階級)別にみた死因順位(つづき)
A3: 死亡数、死亡率(人口10万対)、割合(％)2) | E3: 女 | W3: ='3 月・性別，区別死亡数'!$O$2 -> 平成28年
A4: 年齢 | B4: 人口 1） | C4: 死亡 総数 | D4: 第1位 | H4: 第2位 | L4: 第3位 | P4: 第4位 | T4: 第5位
D5: 死 因 | E5: 死亡数 | F5: 死亡率 | G5: 割合 (％) | H5: 死 因 | I5: 死亡数 | J5: 死亡率 | K5: 割合 (％) | L5: 死 因 | M5: 死亡数 | N5: 死亡率 | O5: 割合 (％) | P5: 死 因 | Q5: 死亡数 | R5: 死亡率 | S5: 割合 (％) | T5: 死 因 | U5: 死亡数 | V5: 死亡率 | W5: 割合 (％)
A6: 総数 | B6: =[1]人口!$B$41 -> 1045891 | C6: ='9 性・年齢別，区別死亡数'!$B$30 -> 8850 | D6: 悪性新生物 | E6: 2590 | F6: =IF(E6>0,E6/$B6*100000,"") -> 247.6357479 | G6: =IF(E6>0,E6/$C6*100,"") -> 29.26553672 | H6: 心疾患 | I6: 1341 | J6: =IF(I6>0,I6/$B6*100000,"") -> 128.2160378 | K6: =IF(I6>0,I6/$C6*100,"") -> 15.15254237 | L6: 脳血管疾患 | M6: 730 | N6: =IF(M6>0,M6/$B6*100000,"") -> 69.79694825 | O6: =IF(M6>0,M6/$C6*100,"") -> 8.248587571 | P6: 肺 炎 | Q6: 727 | R6: =IF(Q6>0,Q6/$B6*100000,"") -> 69.51011147 | S6: =IF(Q6>0,Q6/$C6*100,"") -> 8.214689266 | T6: 老 衰 | U6: 671 | V6: =IF(U6>0,U6/$B6*100000,"") -> 64.15582503 | W6: =IF(U6>0,U6/$C6*100,"") -> 7.581920904 | Y6: 悪性新生物
A7: 0歳 3） | B7: =[1]出生数!$I$4 -> 6877 | C7: ='9 性・年齢別，区別死亡数'!$C$30 -> 15 | D7: 先天奇形，変形及び 染色体異常 乳幼児突然死症候群 | E7: 4 | F7: =IF(E7>0,E7/$B7*100000,"") -> 58.16489748 | G7: =IF(E7>0,E7/$C7*100,"") -> 26.66666667 | J7: =IF(I7>0,I7/$B7*100000,"") ->  | K7: =IF(I7>0,I7/$C7*100,"") ->  | L7: 周産期に特異的な呼吸障害及び心血管障害 不慮の事故 | M7: 2 | N7: =IF(M7>0,M7/$B7*100000,"") -> 29.08244874 | O7: =IF(M7>0,M7/$C7*100,"") -> 13.33333333 | R7: =IF(Q7>0,Q7/$B7*100000,"") ->  | S7: =IF(Q7>0,Q7/$C7*100,"") ->  | T7: 腸管感染症 心疾患 その他のすべての疾患 | U7: 1 | V7: =IF(U7>0,U7/$B7*100000,"") -> 14.54122437 | W7: =IF(U7>0,U7/$C7*100,"") -> 6.666666667 | Y7: 心疾患
A8: 1～ 4 | B8: ='[1]年齢階級・区別人口(住基）'!$E$5-'[1]年齢階級・区別人口(住基）'!$D$5 -> 28162 | C8: =SUM('9 性・年齢別，区別死亡数'!$D$30:$G$30) -> 3 | D8: 敗 血 症 | E8: 1 | F8: 3.55088417 | G8: =IF(E8>0,E8/$C8*100,"") -> 33.33333333 | K8: =IF(I8>0,I8/$C8*100,"") ->  | O8: =IF(M8>0,M8/$C8*100,"") ->  | S8: =IF(Q8>0,Q8/$C8*100,"") ->  | W8: =IF(U8>0,U8/$C8*100,"") ->  | Y8: 脳血管疾患
A9: 5～ 9 | B9: ='[1]年齢階級・区別人口(住基）'!$F$5 -> 36842 | C9: ='9 性・年齢別，区別死亡数'!$I$30 -> 2 | G9: =IF(E9>0,E9/$C9*100,"") ->  | K9: =IF(I9>0,I9/$C9*100,"") ->  | O9: =IF(M9>0,M9/$C9*100,"") ->  | S9: =IF(Q9>0,Q9/$C9*100,"") ->  | W9: =IF(U9>0,U9/$C9*100,"") ->  | Y9: 肺 炎
A10: 10～14 | B10: ='[1]年齢階級・区別人口(住基）'!$G$5 -> 37780 | C10: ='9 性・年齢別，区別死亡数'!$J$30 -> 1 | D10: 心疾患 | E10: 1 | F10: 2.646903123 | G10: =IF(E10>0,E10/$C10*100,"") -> 100 | K10: =IF(I10>0,I10/$C10*100,"") ->  | O10: =IF(M10>0,M10/$C10*100,"") ->  | S10: =IF(Q10>0,Q10/$C10*100,"") ->  | W10: =IF(U10>0,U10/$C10*100,"") ->  | Y10: 不慮の事故
A11: 15～19 | B11: ='[1]年齢階級・区別人口(住基）'!$H$5 -> 41029 | C11: ='9 性・年齢別，区別死亡数'!$K$30 -> 6 | D11: 不慮の事故 自 殺 | E11: 2 | F11: 4.874600892 | G11: 33.33333333 | L11: 先天奇形，変形及び 染色体異常 | M11: 1 | N11: 2.437300446 | O11: 16.66666667 | Y11: 自 殺
A12: 20～24 | B12: ='[1]年齢階級・区別人口(住基）'!$I$5 -> 49627 | C12: ='9 性・年齢別，区別死亡数'!$L$30 -> 12 | D12: 自 殺 | E12: 7 | F12: 14.10522498 | G12: 58.33333333 | H12: 心疾患 ヘルニア及び腸閉塞 他 殺 | I12: 1 | J12: 2.01503214 | K12: 8.333333333 | Y12: 腎 不 全
A13: 25～29 | B13: ='[1]年齢階級・区別人口(住基）'!$J$5 -> 54800 | C13: ='9 性・年齢別，区別死亡数'!$M$30 -> 15 | D13: 自 殺 | E13: 9 | F13: 16.42335766 | G13: 60 | H13: 悪性新生物 | I13: 2 | J13: 3.649635036 | K13: 13.33333333 | L13: 心疾患 他 殺 | M13: 1 | N13: 1.824817518 | O13: 6.666666667 | Y13: 老 衰
A14: 30～34 | B14: ='[1]年齢階級・区別人口(住基）'!$K$5 -> 62113 | C14: ='9 性・年齢別，区別死亡数'!$N$30 -> 17 | D14: 悪性新生物 自 殺 | E14: 5 | F14: 8.049844638 | G14: 29.41176471 | L14: 心疾患 脳血管疾患 筋骨格系及び 結合組織の疾患 先天奇形，変形及び 染色体異常 不慮の事故 他 殺 | M14: 1 | N14: 1.609968928 | O14: 5.882352941 | Y14: 慢性閉塞性肺疾患
A15: 35～39 | B15: ='[1]年齢階級・区別人口(住基）'!$L$5 -> 68322 | C15: ='9 性・年齢別，区別死亡数'!$O$30 -> 43 | D15: 悪性新生物 自 殺 | E15: 12 | F15: 17.56388864 | G15: 27.90697674 | L15: 心疾患 | M15: 5 | N15: 7.318286935 | O15: 11.62790698 | P15: 不慮の事故 | Q15: 4 | R15: 5.854629548 | S15: 9.302325581 | T15: 脳血管疾患 | U15: 2 | V15: 2.927314774 | W15: 4.651162791 | Y15: その他の新生物
A16: 40～44 | B16: ='[1]年齢階級・区別人口(住基）'!$M$5 -> 79949 | C16: ='9 性・年齢別，区別死亡数'!$P$30 -> 60 | D16: 悪性新生物 | E16: 25 | F16: 31.26993458 | G16: 41.66666667 | H16: 心疾患 | I16: 5 | J16: 6.253986917 | K16: 8.333333333 | L16: 脳血管疾患 | M16: 4 | N16: 5.003189533 | O16: 6.666666667 | P16: 肝 疾 患 自 殺 | Q16: 3 | R16: 3.75239215 | S16: 5 | Y16: 糖 尿 病
A17: 45～49 | B17: ='[1]年齢階級・区別人口(住基）'!$N$5 -> 76383 | C17: ='9 性・年齢別，区別死亡数'!$Q$30 -> 103 | D17: 悪性新生物 | E17: 63 | F17: 82.47908566 | G17: 61.16504854 | H17: 脳血管疾患 自 殺 | I17: 6 | J17: 7.855151015 | K17: 5.825242718 | P17: 敗 血 症 | Q17: 3 | R17: 3.927575508 | S17: 2.912621359 | T17: 肺 炎 筋骨格系及び 結合組織の疾患 不慮の事故 | U17: 2 | V17: 2.618383672 | W17: 1.941747573 | Y17: 先天奇形，変形 及び染色体異常
A18: 50～54 | B18: ='[1]年齢階級・区別人口(住基）'!$O$5 -> 67586 | C18: ='9 性・年齢別，区別死亡数'!$R$30 -> 115 | D18: 悪性新生物 | E18: 68 | F18: 100.6125529 | G18: 59.13043478 | H18: 脳血管疾患 | I18: 9 | J18: 13.3163673 | K18: 7.826086957 | L18: 不慮の事故 | M18: 8 | N18: 11.83677093 | O18: 6.956521739 | P18: 自 殺 | Q18: 7 | R18: 10.35717456 | S18: 6.086956522 | T18: 心疾患 | U18: 4 | V18: 5.918385464 | W18: 3.47826087 | Y18: 周産期に 発生した病態
A19: 55～59 | B19: ='[1]年齢階級・区別人口(住基）'!$P$5 -> 64155 | C19: ='9 性・年齢別，区別死亡数'!$S$30 -> 171 | D19: 悪性新生物 | E19: 100 | F19: 155.8724963 | G19: 58.47953216 | H19: 脳血管疾患 | I19: 14 | J19: 21.82214948 | K19: 8.187134503 | L19: 心疾患 | M19: 12 | N19: 18.70469956 | O19: 7.01754386 | P19: 不慮の事故 | Q19: 7 | R19: 10.91107474 | S19: 4.093567251 | T19: 肝 疾 患 自 殺 | U19: 4 | V19: 6.234899852 | W19: 2.339181287 | Y19: 乳幼児突然死 症候群
A20: 60～64 | B20: ='[1]年齢階級・区別人口(住基）'!$Q$5 -> 69721 | C20: ='9 性・年齢別，区別死亡数'!$T$30 -> 280 | D20: 悪性新生物 | E20: 182 | F20: 261.0404326 | G20: 65 | H20: 心疾患 | I20: 20 | J20: 28.68576182 | K20: 7.142857143 | L20: 脳血管疾患 | M20: 18 | N20: 25.81718564 | O20: 6.428571429 | P20: 肝 疾 患 自 殺 | Q20: 7 | R20: 10.04001664 | S20: 2.5 | Y20: インフルエンザ
A21: 65～69 | B21: ='[1]年齢階級・区別人口(住基）'!$R$5 -> 84154 | C21: ='9 性・年齢別，区別死亡数'!$U$30 -> 521 | D21: 悪性新生物 | E21: 310 | F21: 368.3722699 | G21: 59.50095969 | H21: 心疾患 | I21: 36 | J21: 42.77871521 | K21: 6.909788868 | L21: 脳血管疾患 | M21: 34 | N21: 40.40211992 | O21: 6.525911708 | P21: 不慮の事故 | Q21: 17 | R21: 20.20105996 | S21: 3.262955854 | T21: 大動脈瘤及び解離 | U21: 10 | V21: 11.88297645 | W21: 1.919385797 | Y21: 敗 血 症
A22: 70～74 | B22: ='[1]年齢階級・区別人口(住基）'!$S$5 -> 59267 | C22: ='9 性・年齢別，区別死亡数'!$V$30 -> 540 | D22: 悪性新生物 | E22: 255 | F22: =IF(E22>0,E22/$B22*100000,"") -> 430.2562978 | G22: 47.22222222 | H22: 心疾患 | I22: 70 | J22: 118.1095719 | K22: 12.96296296 | L22: 脳血管疾患 | M22: 34 | N22: 57.36750637 | O22: 6.296296296 | P22: 肺 炎 | Q22: 22 | R22: 37.12015118 | S22: 4.074074074 | T22: 不慮の事故 | U22: 16 | V22: 26.99647359 | W22: 2.962962963 | Y22: ヘルニア及び腸閉塞
A23: 75～79 | B23: ='[1]年齢階級・区別人口(住基）'!$T$5 -> 51113 | C23: ='9 性・年齢別，区別死亡数'!$W$30 -> 855 | D23: 悪性新生物 | E23: 325 | F23: 635.8460666 | G23: 38.01169591 | H23: 心疾患 | I23: 100 | J23: 195.6449436 | K23: 11.69590643 | L23: 脳血管疾患 | M23: 63 | N23: 123.2563144 | O23: 7.368421053 | P23: 肺 炎 | Q23: 60 | R23: 117.3869661 | S23: 7.01754386 | T23: 不慮の事故 | U23: 18 | V23: 35.21608984 | W23: 2.105263158 | Y23: 貧 血
A24: 80～84 | B24: ='[1]年齢階級・区別人口(住基）'!$U$5 -> 42862 | C24: ='9 性・年齢別，区別死亡数'!$X$30 -> 1263 | D24: 悪性新生物 | E24: 427 | F24: 996.2204284 | G24: 33.80839272 | H24: 心疾患 | I24: 164 | J24: 382.6233027 | K24: 12.98495645 | L24: 脳血管疾患 | M24: 106 | N24: 247.3053054 | O24: 8.392715756 | P24: 肺 炎 | Q24: 101 | R24: 235.6399608 | S24: 7.996832937 | T24: 腎 不 全 | U24: 36 | V24: 83.99048108 | W24: 2.850356295 | Y24: 喘 息
A25: 85～89 | B25: ='[1]年齢階級・区別人口(住基）'!$V$5 -> 29830 | C25: ='9 性・年齢別，区別死亡数'!$Y$30 -> 1795 | D25: 悪性新生物 | E25: 395 | F25: 1324.170298 | G25: 22.00557103 | H25: 心疾患 | I25: 299 | J25: 1002.346631 | K25: 16.65738162 | L25: 肺 炎 | M25: 184 | N25: 616.8286959 | O25: 10.25069638 | P25: 脳血管疾患 | Q25: 178 | R25: 596.7147167 | S25: 9.91643454 | T25: 老 衰 | U25: 105 | V25: 351.9946363 | W25: 5.849582173 | Y25: 肝 疾 患
A26: 90歳～ | B26: =SUM('[1]年齢階級・区別人口(住基）'!$W$5:$Y$5) -> 19615 | C26: =SUM('9 性・年齢別，区別死亡数'!Z30:AB30) -> 3033 | D26: 心疾患 | E26: 620 | F26: 3160.846291 | G26: 20.44180679 | H26: 老 衰 | I26: 524 | J26: 2671.42493 | K26: 17.2766238 | L26: 悪性新生物 | M26: 421 | N26: 2146.316594 | O26: 13.88064622 | P26: 肺 炎 | Q26: 340 | R26: 1733.367321 | S26: 11.21002308 | T26: 脳血管疾患 | U26: 261 | V26: 1330.614326 | W26: 8.605341246
A27: 1) 総数は推計人口(国勢調査ベース・10月1日現在)、年齢別は住民基本台帳による10月1日現在の人口である。 | L27: 2） それぞれの年齢階級別死亡数を100とした場合の割合である。
A28: 3) 乳児の死因については乳児死因簡単分類を使用。死亡率は出生10万対の率である。 | L28: 4) 出生数
A29: 注) 「心疾患」は「心疾患(高血圧症を除く）」である。

Sheet 6 死亡の場所別，年次別死亡数・百分率
A1: 6 死亡の場所別にみた年次別死亡数及び百分率
A3: 年次 | B3: 総数 | C3: 施設内 | I3: 施設外
C4: 総 数 | D4: 病院 | E4: 診療所 | F4: 介護老人 保健施設 | G4: 助産所 | H4: 老 人 ホーム | I4: 総 数 | J4: 自宅 | K4: その他
B5: 死亡数
A6: 85 60 | B6: =SUM(C6,I6) -> 7226 | C6: =SUM(D6:H6) -> 6241 | D6: 5906 | E6: 335 | F6: … | G6: 0 | H6: … | I6: =SUM(J6:K6) -> 985 | J6: 688 | K6: 297
A7: 1986 昭和61年 | B7: =SUM(C7,I7) -> 7127 | C7: =SUM(D7:H7) -> 6117 | D7: 5855 | E7: 262 | F7: … | G7: 0 | H7: … | I7: =SUM(J7:K7) -> 1010 | J7: 714 | K7: 296
A8: 1987 昭和62年 | B8: =SUM(C8,I8) -> 7074 | C8: =SUM(D8:H8) -> 6167 | D8: 5885 | E8: 282 | F8: … | G8: 0 | H8: … | I8: =SUM(J8:K8) -> 907 | J8: 642 | K8: 265
A9: 1988 昭和63年 | B9: 7761 | C9: 6892 | D9: 6640 | E9: 252 | F9: … | G9: 0 | H9: … | I9: 869 | J9: 610 | K9: 259
A10: 89 平成元年 | B10: 8103 | C10: 7327 | D10: 7097 | E10: 230 | F10: 0 | G10: 0 | H10: … | I10: 776 | J10: 530 | K10: 246
A11: 90 2 | B11: 8278 | C11: 7514 | D11: 7279 | E11: 232 | F11: 3 | G11: 0 | H11: … | I11: 764 | J11: 540 | K11: 224
A12: 91 3 | B12: 8342 | C12: 7535 | D12: 7319 | E12: 213 | F12: 3 | G12: 0 | H12: … | I12: 807 | J12: 576 | K12: 231
A13: 92 4 | B13: 8808 | C13: 7947 | D13: 7709 | E13: 238 | F13: 0 | G13: 0 | H13: … | I13: 861 | J13: 609 | K13: 252
A14: 1993 平成5年 | B14: 9428 | C14: 8497 | D14: 8264 | E14: 230 | F14: 3 | G14: 0 | H14: … | I14: 931 | J14: 654 | K14: 277
A15: 94 6 | B15: 8934 | C15: 8056 | D15: 7827 | E15: 229 | F15: 0 | G15: 0 | H15: … | I15: 878 | J15: 639 | K15: 239
A16: 95 7 | B16: 9398 | C16: 8470 | D16: 8246 | E16: 199 | F16: 5 | G16: 0 | H16: 20 | I16: 928 | J16: 697 | K16: 231
A17: 96 8 | B17: 9512 | C17: 8580 | D17: 8357 | E17: 178 | F17: 10 | G17: 0 | H17: 35 | I17: 932 | J17: 730 | K17: 202
A18: 97 9 | B18: 9840 | C18: 8727 | D18: 8499 | E18: 170 | F18: 21 | G18: 0 | H18: 37 | I18: 1113 | J18: 816 | K18: 297
A19: 1998 平成10年 | B19: 9995 | C19: 8774 | D19: 8536 | E19: 174 | F19: 27 | G19: 0 | H19: 37 | I19: 1221 | J19: 898 | K19: 323
A20: 99 11 | B20: 10806 | C20: 9501 | D20: 9234 | E20: 200 | F20: 27 | G20: 0 | H20: 40 | I20: 1305 | J20: 986 | K20: 319
A21: 2000 12 | B21: 10800 | C21: 9368 | D21: 9081 | E21: 196 | F21: 33 | G21: 0 | H21: 58 | I21: 1432 | J21: 1037 | K21: 395
A22: 01 13 | B22: 10803 | C22: 9462 | D22: 9159 | E22: 200 | F22: 33 | G22: 0 | H22: 70 | I22: 1341 | J22: 988 | K22: 353
A23: 02 14 | B23: 11151 | C23: 9727 | D23: 9450 | E23: 179 | F23: 32 | G23: 0 | H23: 66 | I23: 1424 | J23: 1073 | K23: 351
A24: 03 15 | B24: 11769 | C24: 10185 | D24: 9880 | E24: 211 | F24: 26 | G24: 0 | H24: 68 | I24: 1584 | J24: 1176 | K24: 408
A25: 04 16 | B25: 12348 | C25: 10727 | D25: 10411 | E25: 196 | F25: 51 | G25: 0 | H25: 69 | I25: 1621 | J25: 1175 | K25: 446
A26: 05 17 | B26: 13105 | C26: 11393 | D26: 11076 | E26: 196 | F26: 43 | G26: 0 | H26: 78 | I26: 1712 | J26: 1281 | K26: 431
A27: 06 18 | B27: 13268 | C27: 11530 | D27: 11200 | E27: 210 | F27: 40 | G27: 0 | H27: 80 | I27: 1738 | J27: 1324 | K27: 414
A28: 07 19 | B28: 14044 | C28: 12277 | D28: 11898 | E28: 209 | F28: 53 | G28: 0 | H28: 117 | I28: 1767 | J28: 1404 | K28: 363
A29: 08 20 | B29: 14366 | C29: 12398 | D29: 11987 | E29: 219 | F29: 61 | G29: 0 | H29: 131 | I29: 1968 | J29: 1535 | K29: 433
A30: 09 21 | B30: 14506 | C30: 12601 | D30: 12192 | E30: 237 | F30: 50 | G30: 0 | H30: 122 | I30: 1905 | J30: 1508 | K30: 397
A31: 10 22 | B31: 15482 | C31: 13436 | D31: 12913 | E31: 284 | F31: 75 | G31: 0 | H31: 164 | I31: 2046 | J31: 1647 | K31: 399
A32: 11 23 | B32: 15926 | C32: 13757 | D32: 13205 | E32: 315 | F32: 77 | G32: 0 | H32: 160 | I32: 2169 | J32: 1797 | K32: 372
A33: 12 24 | B33: 16228 | C33: 14070 | D33: 13468 | E33: 282 | F33: 88 | G33: 0 | H33: 232 | I33: 2158 | J33: 1782 | K33: 376
A34: 13 25 | B34: 16844 | C34: 14632 | D34: 13973 | E34: 251 | F34: 130 | G34: 0 | H34: 278 | I34: 2212 | J34: 1834 | K34: 378
A35: 14 26 | B35: 17668 | C35: 15391 | D35: 14624 | E35: 222 | F35: 167 | G35: 0 | H35: 378 | I35: 2277 | J35: 1914 | K35: 363
A36: 15 27 | B36: 17523 | C36: 15332 | D36: 14491 | E36: 256 | F36: 191 | G36: 0 | H36: 394 | I36: 2191 | J36: 1825 | K36: 366
A37: 16 28 | B37: =SUM(C37,I37) -> 18504 | C37: =SUM(D37:H37) -> 16083 | D37: ='7 死亡の場所別，区別死亡数'!D$5 -> 15105 | E37: ='7 死亡の場所別，区別死亡数'!E$5 -> 267 | F37: ='7 死亡の場所別，区別死亡数'!F$5 -> 201 | G37: ='7 死亡の場所別，区別死亡数'!G$5 -> 0 | H37: ='7 死亡の場所別，区別死亡数'!H$5 -> 510 | I37: =SUM(J37:K37) -> 2421 | J37: ='7 死亡の場所別，区別死亡数'!J$5 -> 2053 | K37: ='7 死亡の場所別，区別死亡数'!K$5 -> 368
B38: 百分率
A39: 85 60 | B39: =SUM(C39,I39) -> 100 | C39: =C6/$B6*100 -> 86.3686687 | D39: 81.73263216 | E39: 4.636036535 | F39: ・ | G39: =G6/$B6*100 -> 0 | H39: ・ | I39: =I6/$B6*100 -> 13.6313313 | J39: 9.52117354 | K39: 4.110157764
A40: 1986 昭和61年 | B40: =SUM(C40,I40) -> 100 | C40: 85.82853936 | D40: 82.15237828 | E40: 3.676161078 | F40: ・ | G40: =G7/$B7*100 -> 0 | H40: ・ | I40: 14.17146064 | J40: 10.01824049 | K40: 4.153220149
A41: 1987 昭和62年 | B41: =SUM(C41,I41) -> 100 | C41: 87.17839977 | D41: 83.1919706 | E41: 3.986429177 | F41: ・ | G41: =G8/$B8*100 -> 0 | H41: ・ | I41: 12.82160023 | J41: 9.075487701 | K41: 3.746112525
A42: 1988 昭和63年 | B42: 100 | C42: 88.80298931 | D42: 85.55598505 | E42: 3.247004252 | F42: ・ | G42: 0 | H42: ・ | I42: 11.19701069 | J42: 7.85981188 | K42: 3.337198815
A43: 89 平成元年 | B43: 100 | C43: 90.42330001 | D43: 87.58484512 | E43: 2.838454893 | F43: 0 | G43: 0 | H43: ・ | I43: 9.576699988 | J43: 6.540787363 | K43: 3.035912625
A44: 90 2 | B44: 100 | C44: 90.77071756 | D44: 87.9318676 | E44: 2.802609326 | F44: 0.03624063784 | G44: 0 | H44: ・ | I44: 9.229282435 | J44: 6.52331481 | K44: 2.705967625
A45: 91 3 | B45: 100 | C45: 90.3260609 | D45: 87.73675378 | E45: 2.553344522 | F45: 0.0359625989 | G45: 0 | H45: ・ | I45: 9.673939103 | J45: 6.904818988 | K45: 2.769120115
A46: 92 4 | B46: 100 | C46: 90.22479564 | D46: 87.52270663 | E46: 2.70208901 | F46: 0 | G46: 0 | H46: ・ | I46: 9.77520436 | J46: 6.914168937 | K46: 2.861035422
A47: 1993 平成5年 | B47: 100 | C47: 90.1251591 | D47: 87.6537972 | E47: 2.43954179 | F47: 0.03182011031 | G47: 0 | H47: ・ | I47: 9.874840899 | J47: 6.936784048 | K47: 2.938056852
A48: 94 6 | B48: 100 | C48: 90.1723752 | D48: 87.60913365 | E48: 2.563241549 | F48: 0 | G48: 0 | H48: ・ | I48: 9.827624804 | J48: 7.15245131 | K48: 2.675173495
A49: 95 7 | B49: 100 | C49: 90.12555863 | D49: 87.74207278 | E49: 2.117471803 | F49: 0.05320280911 | G49: 0 | H49: 0.2128112364 | I49: 9.874441371 | J49: 7.41647159 | K49: 2.457969781
A50: 96 8 | B50: 100 | C50: 90.20185029 | D50: 87.85744323 | E50: 1.871320437 | F50: 0.1051303616 | G50: 0 | H50: 0.3679562658 | I50: 9.798149706 | J50: 7.6745164 | K50: 2.123633305
A51: 97 9 | B51: 100 | C51: 88.68902439 | D51: 86.37195122 | E51: 1.727642276 | F51: 0.2134146341 | G51: 0 | H51: 0.3760162602 | I51: 11.31097561 | J51: 8.292682927 | K51: 3.018292683
A52: 1998 平成10年 | B52: 100 | C52: 87.78389195 | D52: 85.40270135 | E52: 1.740870435 | F52: 0.2701350675 | G52: 0 | H52: 0.3701850925 | I52: 12.21610805 | J52: 8.984492246 | K52: 3.231615808
A53: 99 11 | B53: 100 | C53: 87.9233759 | D53: 85.45252637 | E53: 1.850823617 | F53: 0.2498611882 | G53: 0 | H53: 0.3701647233 | I53: 12.0766241 | J53: 9.124560429 | K53: 2.952063668
A54: 2000 12 | B54: 100 | C54: 86.74074074 | D54: 84.08333333 | E54: 1.814814815 | F54: 0.3055555556 | G54: 0 | H54: 0.537037037 | I54: 13.25925926 | J54: 9.601851852 | K54: 3.657407407
A55: 01 13 | B55: 100 | C55: 87.58678145 | D55: 84.782005 | E55: 1.851337591 | F55: 0.3054707026 | G55: 0 | H55: 0.647968157 | I55: 12.41321855 | J55: 9.145607702 | K55: 3.267610849
A56: 02 14 | B56: 100 | C56: 87.22984486 | D56: 84.74576271 | E56: 1.605237198 | F56: 0.2869697785 | G56: 0 | H56: 0.5918751681 | I56: 12.77015514 | J56: 9.622455385 | K56: 3.147699758
A57: 03 15 | B57: 100 | C57: 86.54091257 | D57: 83.94935848 | E57: 1.792845611 | F57: 0.2209193644 | G57: 0 | H57: 0.577789107 | I57: 13.45908743 | J57: 9.992352791 | K57: 3.466734642
A58: 04 16 | B58: 100 | C58: 86.93628386 | D58: 84.3 | E58: 1.6 | F58: 0.4 | G58: 0 | H58: 0.5951926746 | I58: 13.06371614 | J58: 9.5 | K58: 3.6
A59: 05 17 | B59: 100 | C59: 86.93628386 | D59: 84.51735979 | E59: 1.495612362 | F59: 0.3281190385 | G59: 0 | H59: 0.5951926746 | I59: 13.06371614 | J59: 9.774895078 | K59: 3.288821061
A60: 06 18 | B60: 100 | C60: 86.90081399 | D60: 84.41362677 | E60: 1.582755502 | F60: 0.3014772385 | G60: 0 | H60: 0.6029544769 | I60: 13.09918601 | J60: 9.978896593 | K60: 3.120289418
A61: 07 19 | B61: 100 | C61: 87.4181145 | D61: 84.71945315 | E61: 1.488180006 | F61: 0.3773853603 | G61: 0 | H61: 0.8330959841 | I61: 12.5818855 | J61: 9.997151809 | K61: 2.584733694
A62: 08 20 | B62: 100 | C62: 86.30098844 | D62: 83.44006682 | E62: 1.524432688 | F62: 0.4246136712 | G62: 0 | H62: 0.911875261 | I62: 13.69901156 | J62: 10.68495058 | K62: 3.014060977
A63: 09 21 | B63: 100 | C63: 86.8675031 | D63: 84.04798015 | E63: 1.633806701 | F63: 0.3446849579 | G63: 0 | H63: 0.8410312974 | I63: 13.1324969 | J63: 10.39569833 | K63: 2.736798566
A64: 10 22 | B64: 100 | C64: 86.78465315 | D64: 83.40653662 | E64: 1.834388322 | F64: 0.4844335357 | G64: 0 | H64: 1.059294665 | I64: 13.21534685 | J64: 10.63816044 | K64: 2.57718641
A65: 11 23 | B65: 100 | C65: 86.38076102 | D65: 82.91473063 | E65: 1.977897777 | F65: 0.4834861233 | G65: 0 | H65: 1.00464649 | I65: 13.61923898 | J65: 11.28343589 | K65: 2.335803089
A66: 12 24 | B66: 100 | C66: 86.70199655 | D66: 82.99235889 | E66: 1.737737244 | F66: 0.5422726152 | G66: 0 | H66: 1.429627804 | I66: 13.29800345 | J66: 10.98102046 | K66: 2.316982992
A67: 13 25 | B67: 100 | C67: 86.86772738 | D67: 82.95535502 | E67: 1.490144859 | F67: 0.7717881738 | G67: 0 | H67: 1.650439326 | I67: 13.13227262 | J67: 10.88815008 | K67: 2.244122536
A68: 14 26 | B68: 100 | C68: 87.11229341 | D68: 82.77111161 | E68: 1.256508943 | F68: 0.9452116821 | G68: 0 | H68: 2.139461173 | I68: 12.88770659 | J68: 10.83314467 | K68: 2.05456192
A69: 15 27 | B69: 100 | C69: 87.49643326 | D69: 82.69702676 | E69: 1.460937054 | F69: 1.089996005 | G69: 0 | H69: 2.248473435 | I69: 12.50356674 | J69: 10.4148833 | K69: 2.088683445
A70: 16 28 | B70: =SUM(C70,I70) -> 100 | C70: =C37/$B37*100 -> 86.91634241 | D70: 81.6309987 | E70: 1.442931258 | F70: 1.086251621 | G70: 0 | H70: 2.75616083 | I70: 13.08365759 | J70: 11.0948984 | K70: 1.988759187
A71: 注) 平成6年までは老人ホームでの死亡は自宅又はその他に含まれる。

Sheet 7 死亡の場所別，区別死亡数
A1: 7 死亡の場所別にみた区別死亡数
K2: ='3 月・性別，区別死亡数'!$O$2 -> 平成28年
A3: 区 | B3: 総数 | C3: 施設内 | I3: 施設外
C4: 総 数 | D4: 病 院 | E4: 診療所 | F4: 介護老人 保健施設 | G4: 助産所 | H4: 老 人 ホーム | I4: 総 数 | J4: 自 宅 | K4: その他
A5: 総数 | B5: =SUM(B6:B15) -> 18504 | C5: =SUM(C6:C15) -> 16083 | D5: 15105 | E5: 267 | F5: 201 | G5: 0 | H5: 510 | I5: =SUM(I6:I15) -> 2421 | J5: 2053 | K5: 368
A6: 中央 | B6: =SUM(C6,I6) -> 1995 | C6: =SUM(D6:H6) -> 1677 | D6: 1596 | E6: 9 | F6: 33 | G6: 0 | H6: 39 | I6: =SUM(J6:K6) -> 318 | J6: 263 | K6: 55
A7: 北 | B7: 2558 | C7: =SUM(D7:H7) -> 2214 | D7: 2059 | E7: 54 | F7: 28 | G7: 0 | H7: 73 | I7: =SUM(J7:K7) -> 344 | J7: 285 | K7: 59
A8: 東 | B8: 2449 | C8: 2095 | D8: 1938 | E8: 28 | F8: 19 | G8: 0 | H8: 110 | I8: 354 | J8: 299 | K8: 55
A9: 白石 | B9: 2027 | C9: 1750 | D9: 1684 | E9: 10 | F9: 12 | G9: 0 | H9: 44 | I9: 277 | J9: 230 | K9: 47
A10: 厚別 | B10: 1282 | C10: 1146 | D10: 1080 | E10: 5 | F10: 27 | G10: 0 | H10: 34 | I10: 136 | J10: 124 | K10: 12
A11: 豊平 | B11: 2074 | C11: 1813 | D11: 1718 | E11: 23 | F11: 20 | G11: 0 | H11: 52 | I11: 261 | J11: 215 | K11: 46
A12: 清田 | B12: 1036 | C12: 917 | D12: 854 | E12: 10 | F12: 10 | G12: 0 | H12: 43 | I12: 119 | J12: 96 | K12: 23
A13: 南 | B13: 1607 | C13: 1446 | D13: 1356 | E13: 32 | F13: 10 | G13: 0 | H13: 48 | I13: 161 | J13: 135 | K13: 26
A14: 西 | B14: 2042 | C14: 1748 | D14: 1659 | E14: 23 | F14: 29 | G14: 0 | H14: 37 | I14: 294 | J14: 269 | K14: 25
A15: 手稲 | B15: 1434 | C15: 1277 | D15: 1161 | E15: 73 | F15: 13 | G15: 0 | H15: 30 | I15: =SUM(J15:K15) -> 157 | J15: 137 | K15: 20

Sheet 8 性・年齢別，年次別死亡数
A1: 8 性・年齢（5歳階級）別にみた年次別死亡数
A3: 年次 | B3: 年齢 階級
B4: 総数 | C4: 0歳 | D4: 1 | E4: 2 | F4: 3 | G4: 4 | H4: 0～4 | I4: 5～9 | J4: 10～14 | K4: 15～19 | L4: 20～24 | M4: 25～29 | N4: 30～34 | O4: 35～39 | P4: 40～44 | Q4: 45～49 | R4: 50～54 | S4: 55～59 | T4: 60～64 | U4: 65～69 | V4: 70～74 | W4: 75～79 | X4: 80～84 | Y4: 85～89 | Z4: 90～94 | AA4: 95～99 | AB4: 100～ | AC4: 不 詳
B5: 総数
A6: 85 60 | B6: 7226 | C6: 101 | D6: 13 | E6: 10 | F6: 7 | G6: 5 | H6: 136 | I6: 25 | J6: 25 | K6: 53 | L6: 82 | M6: 76 | N6: 79 | O6: 163 | P6: 171 | Q6: 268 | R6: 377 | S6: 479 | T6: 595 | U6: 702 | V6: 933 | W6: 1073 | X6: 1016 | Y6: 674 | Z6: 234 | AA6: 62 | AB6: 3 | AC6: 0
A7: 1986 昭和61年 | B7: 7127 | C7: 86 | D7: 10 | E7: 12 | F7: 6 | G7: 6 | H7: 120 | I7: 24 | J7: 22 | K7: 42 | L7: 68 | M7: 70 | N7: 79 | O7: 174 | P7: 193 | Q7: 260 | R7: 390 | S7: 505 | T7: 583 | U7: 671 | V7: 891 | W7: 1069 | X7: 1005 | Y7: 655 | Z7: 241 | AA7: 60 | AB7: 5 | AC7: 0
A8: 1987 昭和62年 | B8: 7074 | C8: 88 | D8: 16 | E8: 7 | F8: 9 | G8: 8 | H8: 128 | I8: 14 | J8: 18 | K8: 49 | L8: 68 | M8: 64 | N8: 88 | O8: 156 | P8: 172 | Q8: 258 | R8: 395 | S8: 505 | T8: 589 | U8: 637 | V8: 856 | W8: 1069 | X8: 996 | Y8: 681 | Z8: 264 | AA8: 56 | AB8: 11 | AC8: 0
A9: 1988 昭和63年 | B9: 7761 | C9: 80 | D9: 7 | E9: 1 | F9: 8 | G9: 3 | H9: 99 | I9: 21 | J9: 19 | K9: 64 | L9: 77 | M9: 63 | N9: 82 | O9: 134 | P9: 206 | Q9: 255 | R9: 380 | S9: 494 | T9: 644 | U9: 711 | V9: 964 | W9: 1167 | X9: 1128 | Y9: 822 | Z9: 344 | AA9: 76 | AB9: 10 | AC9: 1
A10: 89 平成元年 | B10: 8103 | C10: 75 | D10: 6 | E10: 11 | F10: 8 | G10: 5 | H10: 105 | I10: 21 | J10: 21 | K10: 66 | L10: 72 | M10: 76 | N10: 70 | O10: 135 | P10: 225 | Q10: 290 | R10: 334 | S10: 523 | T10: 696 | U10: 764 | V10: 1017 | W10: 1197 | X10: 1179 | Y10: 869 | Z10: 362 | AA10: 72 | AB10: 8 | AC10: 1
A11: 90 2 | B11: 8278 | C11: 85 | D11: 10 | E11: 9 | F11: 6 | G11: 7 | H11: 117 | I11: 27 | J11: 10 | K11: 54 | L11: 81 | M11: 52 | N11: 78 | O11: 131 | P11: 201 | Q11: 293 | R11: 339 | S11: 497 | T11: 684 | U11: 830 | V11: 957 | W11: 1185 | X11: 1230 | Y11: 990 | Z11: 418 | AA11: 93 | AB11: 10 | AC11: 1
A12: 91 3 | B12: 8342 | C12: 63 | D12: 6 | E12: 7 | F12: 4 | G12: 3 | H12: 83 | I12: 22 | J12: 12 | K12: 55 | L12: 69 | M12: 72 | N12: 55 | O12: 113 | P12: 223 | Q12: 275 | R12: 415 | S12: 540 | T12: 702 | U12: 891 | V12: 957 | W12: 1175 | X12: 1237 | Y12: 931 | Z12: 395 | AA12: 106 | AB12: 14 | AC12: 0
A13: 92 4 | B13: 8808 | C13: 57 | D13: 11 | E13: 6 | F13: 3 | G13: 2 | H13: 79 | I13: 16 | J13: 25 | K13: 46 | L13: 73 | M13: 68 | N13: 52 | O13: 95 | P13: 228 | Q13: 277 | R13: 380 | S13: 572 | T13: 789 | U13: 923 | V13: 1019 | W13: 1290 | X13: 1353 | Y13: 935 | Z13: 478 | AA13: 106 | AB13: 3 | AC13: 1
A14: 1993 平成5年 | B14: 9428 | C14: 51 | D14: 13 | E14: 7 | F14: 4 | G14: 4 | H14: 79 | I14: 21 | J14: 18 | K14: 39 | L14: 72 | M14: 52 | N14: 92 | O14: 97 | P14: 228 | Q14: 322 | R14: 408 | S14: 576 | T14: 807 | U14: 997 | V14: 1134 | W14: 1239 | X14: 1480 | Y14: 1073 | Z14: 542 | AA14: 135 | AB14: 17 | AC14: 0
A15: 94 6 | B15: 8934 | C15: 65 | D15: 10 | E15: 14 | F15: 11 | G15: 4 | H15: 104 | I15: 21 | J15: 15 | K15: 31 | L15: 66 | M15: 67 | N15: 84 | O15: 92 | P15: 205 | Q15: 324 | R15: 419 | S15: 486 | T15: 677 | U15: 967 | V15: 1014 | W15: 1213 | X15: 1406 | Y15: 1055 | Z15: 540 | AA15: 129 | AB15: 19 | AC15: 0
A16: 95 7 | B16: 9398 | C16: 53 | D16: 11 | E16: 4 | F16: 6 | G16: 2 | H16: 76 | I16: 17 | J16: 16 | K16: 42 | L16: 71 | M16: 57 | N16: 78 | O16: 90 | P16: 178 | Q16: 322 | R16: 407 | S16: 506 | T16: 797 | U16: 1027 | V16: 1071 | W16: 1279 | X16: 1405 | Y16: 1200 | Z16: 593 | AA16: 149 | AB16: 17 | AC16: 0
A17: 96 8 | B17: 9512 | C17: 55 | D17: 10 | E17: 0 | F17: 3 | G17: 3 | H17: 71 | I17: 10 | J17: 10 | K17: 37 | L17: 76 | M17: 68 | N17: 68 | O17: 98 | P17: 202 | Q17: 357 | R17: 389 | S17: 540 | T17: 774 | U17: 1020 | V17: 1146 | W17: 1226 | X17: 1444 | Y17: 1200 | Z17: 592 | AA17: 166 | AB17: 18 | AC17: 0
A18: 97 9 | B18: 9840 | C18: 52 | D18: 7 | E18: 6 | F18: 4 | G18: 2 | H18: 71 | I18: 17 | J18: 9 | K18: 44 | L18: 64 | M18: 58 | N18: 57 | O18: 93 | P18: 163 | Q18: 349 | R18: 431 | S18: 554 | T18: 774 | U18: 1024 | V18: 1236 | W18: 1268 | X18: 1458 | Y18: 1265 | Z18: 667 | AA18: 206 | AB18: 32 | AC18: 0
A19: 1998 平成10年 | B19: 9995 | C19: 45 | D19: 6 | E19: 5 | F19: 8 | G19: 6 | H19: 70 | I19: 8 | J19: 12 | K19: 32 | L19: 61 | M19: 75 | N19: 89 | O19: 88 | P19: 179 | Q19: 368 | R19: 441 | S19: 527 | T19: 728 | U19: 1084 | V19: 1163 | W19: 1313 | X19: 1469 | Y19: 1293 | Z19: 738 | AA19: 221 | AB19: 36 | AC19: 0
A20: 99 11 | B20: 10806 | C20: 32 | D20: 11 | E20: 5 | F20: 9 | G20: 2 | H20: 59 | I20: 11 | J20: 11 | K20: 49 | L20: 65 | M20: 77 | N20: 93 | O20: 125 | P20: 143 | Q20: 351 | R20: 495 | S20: 592 | T20: 780 | U20: 1089 | V20: 1282 | W20: 1422 | X20: 1542 | Y20: 1454 | Z20: 833 | AA20: 296 | AB20: 37 | AC20: 0
A21: 2000 12 | B21: 10800 | C21: 34 | D21: 5 | E21: 0 | F21: 6 | G21: 6 | H21: 51 | I21: 10 | J21: 12 | K21: 41 | L21: 57 | M21: 97 | N21: 85 | O21: 100 | P21: 145 | Q21: 292 | R21: 595 | S21: 630 | T21: 756 | U21: 1059 | V21: 1345 | W21: 1436 | X21: 1489 | Y21: 1420 | Z21: 844 | AA21: 290 | AB21: 46 | AC21: 0
A22: 01 13 | B22: 10803 | C22: 33 | D22: 6 | E22: 4 | F22: 0 | G22: 4 | H22: 47 | I22: 7 | J22: 3 | K22: 27 | L22: 66 | M22: 63 | N22: 90 | O22: 116 | P22: 160 | Q22: 287 | R22: 530 | S22: 550 | T22: 721 | U22: 1041 | V22: 1352 | W22: 1527 | X22: 1533 | Y22: 1398 | Z22: 925 | AA22: 302 | AB22: 58 | AC22: 0
A23: 02 14 | B23: 11151 | C23: 31 | D23: 7 | E23: 4 | F23: 2 | G23: 0 | H23: 44 | I23: 7 | J23: 11 | K23: 27 | L23: 48 | M23: 88 | N23: 94 | O23: 113 | P23: 141 | Q23: 265 | R23: 502 | S23: 602 | T23: 747 | U23: 1031 | V23: 1367 | W23: 1572 | X23: 1563 | Y23: 1492 | Z23: 993 | AA23: 370 | AB23: 74 | AC23: 0
A24: 03 15 | B24: 11769 | C24: 40 | D24: 6 | E24: 1 | F24: 3 | G24: 1 | H24: 51 | I24: 15 | J24: 5 | K24: 28 | L24: 49 | M24: 84 | N24: 113 | O24: 102 | P24: 177 | Q24: 264 | R24: 530 | S24: 621 | T24: 720 | U24: 1041 | V24: 1390 | W24: 1617 | X24: 1709 | Y24: 1644 | Z24: 1098 | AA24: 431 | AB24: 80 | AC24: 0
A25: 04 16 | B25: 12348 | C25: 45 | D25: 3 | E25: 3 | F25: 1 | G25: 2 | H25: 54 | I25: 4 | J25: 6 | K25: 23 | L25: 74 | M25: 77 | N25: 102 | O25: 124 | P25: 187 | Q25: 284 | R25: 486 | S25: 676 | T25: 838 | U25: 987 | V25: 1465 | W25: 1793 | X25: 1783 | Y25: 1624 | Z25: 1188 | AA25: 463 | AB25: 110 | AC25: 0
A26: 05 17 | B26: 13105 | C26: 38 | D26: 17 | E26: 2 | F26: 0 | G26: 0 | H26: 57 | I26: 8 | J26: 5 | K26: 22 | L26: 61 | M26: 73 | N26: 92 | O26: 144 | P26: 175 | Q26: 224 | R26: 445 | S26: 751 | T26: 917 | U26: 1032 | V26: 1482 | W26: 1888 | X26: 1975 | Y26: 1742 | Z26: 1317 | AA26: 582 | AB26: 113 | AC26: 0
A27: 06 18 | B27: 13268 | C27: 34 | D27: 4 | E27: 1 | F27: 5 | G27: 3 | H27: 47 | I27: 12 | J27: 5 | K27: 36 | L27: 58 | M27: 73 | N27: 102 | O27: 110 | P27: 170 | Q27: 245 | R27: 415 | S27: 719 | T27: 822 | U27: 1046 | V27: 1450 | W27: 1885 | X27: 2026 | Y27: 1877 | Z27: 1418 | AA27: 617 | AB27: 135 | AC27: 0
A28: 07 19 | B28: 14044 | C28: 34 | D28: 4 | E28: 5 | F28: 3 | G28: 1 | H28: 47 | I28: 6 | J28: 3 | K28: 31 | L28: 55 | M28: 60 | N28: 79 | O28: 117 | P28: 164 | Q28: 252 | R28: 391 | S28: 728 | T28: 932 | U28: 1098 | V28: 1492 | W28: 1963 | X28: 2233 | Y28: 2039 | Z28: 1532 | AA28: 682 | AB28: 140 | AC28: 0
A29: 08 20 | B29: 14366 | C29: 34 | D29: 2 | E29: 4 | F29: 2 | G29: 0 | H29: 42 | I29: 13 | J29: 6 | K29: 21 | L29: 65 | M29: 67 | N29: 97 | O29: 138 | P29: 156 | Q29: 232 | R29: 345 | S29: 716 | T29: 908 | U29: 1132 | V29: 1463 | W29: 2105 | X29: 2281 | Y29: 2105 | Z29: 1556 | AA29: 752 | AB29: 166 | AC29: 0
A30: 09 21 | B30: 14506 | C30: 33 | D30: 3 | E30: 1 | F30: 2 | G30: 2 | H30: 41 | I30: 5 | J30: 5 | K30: 24 | L30: 58 | M30: 49 | N30: 78 | O30: 120 | P30: 165 | Q30: 235 | R30: 365 | S30: 695 | T30: 899 | U30: 1149 | V30: 1483 | W30: 1932 | X30: 2442 | Y30: 2262 | Z30: 1555 | AA30: 765 | AB30: 179 | AC30: 0
A31: 10 22 | B31: 15482 | C31: 26 | D31: 3 | E31: 3 | F31: 1 | G31: 2 | H31: 35 | I31: 8 | J31: 7 | K31: 15 | L31: 38 | M31: 65 | N31: 87 | O31: 112 | P31: 133 | Q31: 237 | R31: 385 | S31: 636 | T31: 1043 | U31: 1204 | V31: 1424 | W31: 2075 | X31: 2646 | Y31: 2451 | Z31: 1811 | AA31: 849 | AB31: 221 | AC31: 0
A32: 11 23 | B32: 15926 | C32: 40 | D32: 5 | E32: 2 | F32: 2 | G32: 2 | H32: 51 | I32: 3 | J32: 9 | K32: 21 | L32: 48 | M32: 61 | N32: 83 | O32: 116 | P32: 164 | Q32: 246 | R32: 342 | S32: 616 | T32: 1065 | U32: 1155 | V32: 1476 | W32: 2088 | X32: 2694 | Y32: 2672 | Z32: 1882 | AA32: 878 | AB32: 256 | AC32: 0
A33: 12 24 | B33: 16228 | C33: 34 | D33: 3 | E33: 3 | F33: 2 | G33: 4 | H33: 46 | I33: 11 | J33: 12 | K33: 14 | L33: 59 | M33: 54 | N33: 65 | O33: 110 | P33: 171 | Q33: 225 | R33: 307 | S33: 569 | T33: 1048 | U33: 1216 | V33: 1443 | W33: 2096 | X33: 2764 | Y33: 2770 | Z33: 2028 | AA33: 966 | AB33: 254 | AC33: 0
A34: 13 25 | B34: 16844 | C34: 34 | D34: 5 | E34: 2 | F34: 1 | G34: 2 | H34: 44 | I34: 5 | J34: 3 | K34: 21 | L34: 40 | M34: 41 | N34: 83 | O34: 109 | P34: 160 | Q34: 235 | R34: 340 | S34: 510 | T34: 999 | U34: 1215 | V34: 1582 | W34: 2082 | X34: 2937 | Y34: 3007 | Z34: 2165 | AA34: 1015 | AB34: 251 | AC34: 0
A35: 14 26 | B35: 17668 | C35: 26 | D35: 3 | E35: 3 | F35: 3 | G35: 0 | H35: 35 | I35: 7 | J35: 11 | K35: 19 | L35: 36 | M35: 56 | N35: 72 | O35: 104 | P35: 162 | Q35: 229 | R35: 293 | S35: 484 | T35: 944 | U35: 1331 | V35: 1664 | W35: 2178 | X35: 2941 | Y35: 3257 | Z35: 2443 | AA35: 1111 | AB35: 291 | AC35: 0
A36: 15 27 | B36: 17523 | C36: 27 | D36: 4 | E36: 3 | F36: 2 | G36: 1 | H36: 37 | I36: 5 | J36: 5 | K36: 23 | L36: 32 | M36: 47 | N36: 54 | O36: 68 | P36: 160 | Q36: 216 | R36: 331 | S36: 453 | T36: 899 | U36: 1354 | V36: 1609 | W36: 2064 | X36: 2944 | Y36: 3269 | Z36: 2497 | AA36: 1141 | AB36: 315 | AC36: 0
A37: 16 28 | B37: =SUM(B70,B103) -> 18504 | C37: 29 | D37: 4 | E37: 2 | F37: 1 | G37: 0 | H37: 36 | I37: 6 | J37: 5 | K37: 20 | L37: 29 | M37: 51 | N37: 50 | O37: 103 | P37: 162 | Q37: 249 | R37: 281 | S37: 492 | T37: 857 | U37: 1494 | V37: 1609 | W37: 2171 | X37: 3020 | Y37: 3487 | Z37: 2735 | AA37: 1265 | AB37: 382 | AC37: 0
B38: 男
A39: 85 60 | B39: 3968 | C39: 48 | D39: 12 | E39: 8 | F39: 4 | G39: 2 | H39: 74 | I39: 17 | J39: 17 | K39: 37 | L39: 56 | M39: 48 | N39: 41 | O39: 100 | P39: 105 | Q39: 169 | R39: 235 | S39: 317 | T39: 354 | U39: 417 | V39: 538 | W39: 573 | X39: 484 | Y39: 289 | Z39: 78 | AA39: 18 | AB39: 1 | AC39: 0
A40: 1986 昭和61年 | B40: 4021 | C40: 49 | D40: 6 | E40: 7 | F40: 3 | G40: 3 | H40: 68 | I40: 14 | J40: 12 | K40: 30 | L40: 44 | M40: 47 | N40: 53 | O40: 113 | P40: 112 | Q40: 161 | R40: 259 | S40: 358 | T40: 384 | U40: 401 | V40: 509 | W40: 591 | X40: 464 | Y40: 287 | Z40: 95 | AA40: 18 | AB40: 1 | AC40: 0
A41: 1987 昭和62年 | B41: 4036 | C41: 42 | D41: 7 | E41: 2 | F41: 6 | G41: 3 | H41: 60 | I41: 8 | J41: 13 | K41: 37 | L41: 54 | M41: 46 | N41: 55 | O41: 106 | P41: 94 | Q41: 162 | R41: 251 | S41: 343 | T41: 405 | U41: 376 | V41: 522 | W41: 582 | X41: 509 | Y41: 286 | Z41: 102 | AA41: 21 | AB41: 4 | AC41: 0
A42: 1988 昭和63年 | B42: 4316 | C42: 41 | D42: 4 | E42: 0 | F42: 6 | G42: 2 | H42: 53 | I42: 13 | J42: 10 | K42: 38 | L42: 57 | M42: 37 | N42: 54 | O42: 83 | P42: 134 | Q42: 150 | R42: 245 | S42: 337 | T42: 429 | U42: 423 | V42: 589 | W42: 628 | X42: 519 | Y42: 346 | Z42: 139 | AA42: 29 | AB42: 2 | AC42: 1
A43: 89 平成元年 | B43: 4520 | C43: 50 | D43: 5 | E43: 6 | F43: 1 | G43: 2 | H43: 64 | I43: 12 | J43: 14 | K43: 41 | L43: 49 | M43: 48 | N43: 47 | O43: 79 | P43: 137 | Q43: 185 | R43: 200 | S43: 354 | T43: 473 | U43: 463 | V43: 585 | W43: 654 | X43: 596 | Y43: 370 | Z43: 122 | AA43: 24 | AB43: 2 | AC43: 1
A44: 90 2 | B44: 4643 | C44: 45 | D44: 3 | E44: 6 | F44: 4 | G44: 7 | H44: 65 | I44: 21 | J44: 8 | K44: 42 | L44: 55 | M44: 35 | N44: 51 | O44: 79 | P44: 138 | Q44: 184 | R44: 232 | S44: 321 | T44: 473 | U44: 526 | V44: 556 | W44: 648 | X44: 596 | Y44: 429 | Z44: 146 | AA44: 36 | AB44: 1 | AC44: 1
A45: 91 3 | B45: 4785 | C45: 36 | D45: 4 | E45: 3 | F45: 3 | G45: 2 | H45: 48 | I45: 16 | J45: 8 | K45: 44 | L45: 52 | M45: 51 | N45: 35 | O45: 72 | P45: 137 | Q45: 156 | R45: 255 | S45: 366 | T45: 455 | U45: 584 | V45: 576 | W45: 676 | X45: 632 | Y45: 449 | Z45: 138 | AA45: 32 | AB45: 3 | AC45: 0
A46: 92 4 | B46: 4992 | C46: 33 | D46: 7 | E46: 5 | F46: 2 | G46: 0 | H46: 47 | I46: 8 | J46: 7 | K46: 27 | L46: 54 | M46: 48 | N46: 30 | O46: 65 | P46: 148 | Q46: 178 | R46: 264 | S46: 390 | T46: 531 | U46: 588 | V46: 605 | W46: 740 | X46: 667 | Y46: 399 | Z46: 165 | AA46: 30 | AB46: 1 | AC46: 0
A47: 1993 平成5年 | B47: 5271 | C47: 29 | D47: 8 | E47: 5 | F47: 3 | G47: 2 | H47: 47 | I47: 9 | J47: 12 | K47: 26 | L47: 47 | M47: 36 | N47: 52 | O47: 50 | P47: 138 | Q47: 198 | R47: 261 | S47: 394 | T47: 536 | U47: 670 | V47: 688 | W47: 700 | X47: 733 | Y47: 447 | Z47: 186 | AA47: 37 | AB47: 4 | AC47: 0
A48: 94 6 | B48: 5096 | C48: 40 | D48: 4 | E48: 6 | F48: 6 | G48: 2 | H48: 58 | I48: 14 | J48: 8 | K48: 22 | L48: 56 | M48: 47 | N48: 54 | O48: 62 | P48: 143 | Q48: 219 | R48: 274 | S48: 312 | T48: 454 | U48: 651 | V48: 625 | W48: 709 | X48: 705 | Y48: 446 | Z48: 200 | AA48: 36 | AB48: 1 | AC48: 0
A49: 95 7 | B49: 5288 | C49: 26 | D49: 5 | E49: 3 | F49: 3 | G49: 2 | H49: 39 | I49: 8 | J49: 9 | K49: 33 | L49: 56 | M49: 38 | N49: 55 | O49: 60 | P49: 100 | Q49: 198 | R49: 260 | S49: 341 | T49: 542 | U49: 705 | V49: 642 | W49: 742 | X49: 687 | Y49: 523 | Z49: 207 | AA49: 39 | AB49: 4 | AC49: 0
A50: 96 8 | B50: 5383 | C50: 35 | D50: 6 | E50: 0 | F50: 2 | G50: 2 | H50: 45 | I50: 6 | J50: 5 | K50: 27 | L50: 49 | M50: 45 | N50: 50 | O50: 66 | P50: 129 | Q50: 235 | R50: 263 | S50: 360 | T50: 485 | U50: 692 | V50: 710 | W50: 667 | X50: 745 | Y50: 523 | Z50: 210 | AA50: 66 | AB50: 5 | AC50: 0
A51: 97 9 | B51: 5630 | C51: 29 | D51: 2 | E51: 1 | F51: 2 | G51: 2 | H51: 36 | I51: 9 | J51: 6 | K51: 36 | L51: 47 | M51: 45 | N51: 34 | O51: 59 | P51: 100 | Q51: 225 | R51: 292 | S51: 363 | T51: 519 | U51: 695 | V51: 773 | W51: 725 | X51: 773 | Y51: 569 | Z51: 256 | AA51: 64 | AB51: 4 | AC51: 0
A52: 1998 平成10年 | B52: 5707 | C52: 25 | D52: 4 | E52: 3 | F52: 5 | G52: 4 | H52: 41 | I52: 4 | J52: 8 | K52: 27 | L52: 45 | M52: 48 | N52: 59 | O52: 53 | P52: 117 | Q52: 231 | R52: 279 | S52: 349 | T52: 496 | U52: 727 | V52: 776 | W52: 732 | X52: 788 | Y52: 575 | Z52: 285 | AA52: 61 | AB52: 6 | AC52: 0
A53: 99 11 | B53: 6044 | C53: 18 | D53: 5 | E53: 2 | F53: 5 | G53: 1 | H53: 31 | I53: 5 | J53: 5 | K53: 35 | L53: 45 | M53: 53 | N53: 52 | O53: 73 | P53: 92 | Q53: 209 | R53: 318 | S53: 397 | T53: 531 | U53: 752 | V53: 821 | W53: 786 | X53: 809 | Y53: 641 | Z53: 295 | AA53: 82 | AB53: 12 | AC53: 0
A54: 2000 12 | B54: 6127 | C54: 23 | D54: 1 | E54: 0 | F54: 2 | G54: 3 | H54: 29 | I54: 5 | J54: 7 | K54: 25 | L54: 41 | M54: 64 | N54: 58 | O54: 64 | P54: 94 | Q54: 190 | R54: 401 | S54: 423 | T54: 527 | U54: 731 | V54: 875 | W54: 799 | X54: 808 | Y54: 605 | Z54: 296 | AA54: 80 | AB54: 5 | AC54: 0
A55: 01 13 | B55: 6114 | C55: 15 | D55: 3 | E55: 2 | F55: 0 | G55: 1 | H55: 21 | I55: 5 | J55: 1 | K55: 21 | L55: 41 | M55: 42 | N55: 53 | O55: 76 | P55: 103 | Q55: 178 | R55: 332 | S55: 367 | T55: 496 | U55: 717 | V55: 888 | W55: 904 | X55: 787 | Y55: 662 | Z55: 343 | AA55: 70 | AB55: 7 | AC55: 0
A56: 02 14 | B56: 6328 | C56: 18 | D56: 3 | E56: 0 | F56: 1 | G56: 0 | H56: 22 | I56: 6 | J56: 6 | K56: 20 | L56: 37 | M56: 64 | N56: 57 | O56: 70 | P56: 96 | Q56: 160 | R56: 329 | S56: 398 | T56: 504 | U56: 728 | V56: 920 | W56: 942 | X56: 803 | Y56: 666 | Z56: 367 | AA56: 114 | AB56: 19 | AC56: 0
A57: 03 15 | B57: 6476 | C57: 20 | D57: 3 | E57: 0 | F57: 2 | G57: 0 | H57: 25 | I57: 9 | J57: 2 | K57: 18 | L57: 33 | M57: 60 | N57: 72 | O57: 64 | P57: 109 | Q57: 167 | R57: 365 | S57: 426 | T57: 475 | U57: 703 | V57: 913 | W57: 967 | X57: 880 | Y57: 685 | Z57: 361 | AA57: 121 | AB57: 21 | AC57: 0
A58: 04 16 | B58: 6859 | C58: 26 | D58: 1 | E58: 3 | F58: 0 | G58: 1 | H58: 31 | I58: 2 | J58: 3 | K58: 17 | L58: 43 | M58: 53 | N58: 79 | O58: 79 | P58: 116 | Q58: 187 | R58: 334 | S58: 432 | T58: 566 | U58: 658 | V58: 970 | W58: 1162 | X58: 874 | Y58: 702 | Z58: 414 | AA58: 116 | AB58: 21 | AC58: 0
A59: 05 17 | B59: 7313 | C59: 21 | D59: 3 | E59: 1 | F59: 0 | G59: 0 | H59: 25 | I59: 3 | J59: 4 | K59: 15 | L59: 44 | M59: 44 | N59: 58 | O59: 86 | P59: 120 | Q59: 161 | R59: 286 | S59: 496 | T59: 642 | U59: 682 | V59: 987 | W59: 1194 | X59: 1047 | Y59: 782 | Z59: 460 | AA59: 155 | AB59: 22 | AC59: 0
A60: 06 18 | B60: 7224 | C60: 13 | D60: 1 | E60: 1 | F60: 2 | G60: 1 | H60: 18 | I60: 6 | J60: 2 | K60: 21 | L60: 35 | M60: 52 | N60: 60 | O60: 69 | P60: 108 | Q60: 161 | R60: 263 | S60: 465 | T60: 555 | U60: 665 | V60: 950 | W60: 1195 | X60: 1087 | Y60: 829 | Z60: 491 | AA60: 166 | AB60: 26 | AC60: 0
A61: 07 19 | B61: 7695 | C61: 19 | D61: 0 | E61: 1 | F61: 2 | G61: 1 | H61: 23 | I61: 4 | J61: 2 | K61: 21 | L61: 33 | M61: 39 | N61: 51 | O61: 77 | P61: 104 | Q61: 158 | R61: 244 | S61: 485 | T61: 628 | U61: 718 | V61: 963 | W61: 1240 | X61: 1230 | Y61: 923 | Z61: 543 | AA61: 186 | AB61: 23 | AC61: 0
A62: 08 20 | B62: 7764 | C62: 16 | D62: 1 | E62: 1 | F62: 1 | G62: 0 | H62: 19 | I62: 8 | J62: 6 | K62: 15 | L62: 41 | M62: 39 | N62: 56 | O62: 80 | P62: 104 | Q62: 149 | R62: 204 | S62: 471 | T62: 617 | U62: 762 | V62: 940 | W62: 1340 | X62: 1265 | Y62: 888 | Z62: 546 | AA62: 184 | AB62: 30 | AC62: 0
A63: 09 21 | B63: 7931 | C63: 19 | D63: 2 | E63: 0 | F63: 1 | G63: 1 | H63: 23 | I63: 2 | J63: 3 | K63: 13 | L63: 34 | M63: 25 | N63: 52 | O63: 69 | P63: 97 | Q63: 155 | R63: 220 | S63: 451 | T63: 614 | U63: 763 | V63: 965 | W63: 1246 | X63: 1410 | Y63: 1019 | Z63: 552 | AA63: 194 | AB63: 24 | AC63: 0
A64: 10 22 | B64: 8321 | C64: 16 | D64: 2 | E64: 1 | F64: 0 | G64: 0 | H64: 19 | I64: 4 | J64: 6 | K64: 7 | L64: 28 | M64: 45 | N64: 47 | O64: 75 | P64: 77 | Q64: 144 | R64: 237 | S64: 416 | T64: 689 | U64: 796 | V64: 922 | W64: 1295 | X64: 1525 | Y64: 1108 | Z64: 639 | AA64: 201 | AB64: 41 | AC64: 0
A65: 11 23 | B65: 8511 | C65: 20 | D65: 3 | E65: 2 | F65: 1 | G65: 0 | H65: 26 | I65: 0 | J65: 5 | K65: 16 | L65: 32 | M65: 38 | N65: 52 | O65: 65 | P65: 97 | Q65: 153 | R65: 216 | S65: 387 | T65: 719 | U65: 769 | V65: 979 | W65: 1289 | X65: 1516 | Y65: 1267 | Z65: 601 | AA65: 240 | AB65: 44 | AC65: 0
A66: 12 24 | B66: 8666 | C66: 18 | D66: 2 | E66: 3 | F66: 1 | G66: 1 | H66: 25 | I66: 6 | J66: 8 | K66: 7 | L66: 42 | M66: 39 | N66: 44 | O66: 74 | P66: 106 | Q66: 161 | R66: 199 | S66: 367 | T66: 710 | U66: 796 | V66: 946 | W66: 1311 | X66: 1600 | Y66: 1258 | Z66: 649 | AA66: 275 | AB66: 43 | AC66: 0
A67: 13 25 | B67: 8726 | C67: 17 | D67: 3 | E67: 0 | F67: 1 | G67: 2 | H67: 23 | I67: 3 | J67: 1 | K67: 12 | L67: 29 | M67: 30 | N67: 54 | O67: 57 | P67: 100 | Q67: 145 | R67: 204 | S67: 326 | T67: 644 | U67: 787 | V67: 1024 | W67: 1304 | X67: 1610 | Y67: 1382 | Z67: 688 | AA67: 263 | AB67: 40 | AC67: 0
A68: 14 26 | B68: 9233 | C68: 12 | D68: 2 | E68: 2 | F68: 2 | G68: 0 | H68: 18 | I68: 3 | J68: 8 | K68: 14 | L68: 28 | M68: 34 | N68: 47 | O68: 65 | P68: 104 | Q68: 133 | R68: 189 | S68: 287 | T68: 630 | U68: 864 | V68: 1095 | W68: 1307 | X68: 1633 | Y68: 1621 | Z68: 823 | AA68: 289 | AB68: 41 | AC68: 0
A69: 15 27 | B69: 9083 | C69: 19 | D69: 3 | E69: 2 | F69: 1 | G69: 1 | H69: 26 | I69: 1 | J69: 2 | K69: 16 | L69: 25 | M69: 31 | N69: 32 | O69: 44 | P69: 102 | Q69: 131 | R69: 197 | S69: 268 | T69: 569 | U69: 918 | V69: 1076 | W69: 1308 | X69: 1613 | Y69: 1562 | Z69: 855 | AA69: 256 | AB69: 51 | AC69: 0
A70: 16 28 | B70: =SUM(H70:AC70) -> 9654 | C70: ='9 性・年齢別，区別死亡数'!C$18 -> 14 | D70: ='9 性・年齢別，区別死亡数'!D$18 -> 1 | E70: ='9 性・年齢別，区別死亡数'!E$18 -> 2 | F70: ='9 性・年齢別，区別死亡数'!F$18 -> 1 | G70: ='9 性・年齢別，区別死亡数'!G$18 -> 0 | H70: =SUM(C70:G70) -> 18 | I70: ='9 性・年齢別，区別死亡数'!I$18 -> 4 | J70: ='9 性・年齢別，区別死亡数'!J$18 -> 4 | K70: ='9 性・年齢別，区別死亡数'!K$18 -> 14 | L70: ='9 性・年齢別，区別死亡数'!L$18 -> 17 | M70: ='9 性・年齢別，区別死亡数'!M$18 -> 36 | N70: ='9 性・年齢別，区別死亡数'!N$18 -> 33 | O70: ='9 性・年齢別，区別死亡数'!O$18 -> 60 | P70: ='9 性・年齢別，区別死亡数'!P$18 -> 102 | Q70: ='9 性・年齢別，区別死亡数'!Q$18 -> 146 | R70: ='9 性・年齢別，区別死亡数'!R$18 -> 166 | S70: ='9 性・年齢別，区別死亡数'!S$18 -> 321 | T70: ='9 性・年齢別，区別死亡数'!T$18 -> 577 | U70: ='9 性・年齢別，区別死亡数'!U$18 -> 973 | V70: ='9 性・年齢別，区別死亡数'!V$18 -> 1069 | W70: ='9 性・年齢別，区別死亡数'!W$18 -> 1316 | X70: ='9 性・年齢別，区別死亡数'!X$18 -> 1757 | Y70: ='9 性・年齢別，区別死亡数'!Y$18 -> 1692 | Z70: ='9 性・年齢別，区別死亡数'!Z$18 -> 986 | AA70: ='9 性・年齢別，区別死亡数'!AA$18 -> 302 | AB70: ='9 性・年齢別，区別死亡数'!AB$18 -> 61 | AC70: ='9 性・年齢別，区別死亡数'!AC$18 -> 0
B71: 女
A72: 85 60 | B72: 3258 | C72: 53 | D72: 1 | E72: 2 | F72: 3 | G72: 3 | H72: 62 | I72: 8 | J72: 8 | K72: 16 | L72: 26 | M72: 28 | N72: 38 | O72: 63 | P72: 66 | Q72: 99 | R72: 142 | S72: 162 | T72: 241 | U72: 285 | V72: 395 | W72: 500 | X72: 532 | Y72: 385 | Z72: 156 | AA72: 44 | AB72: 2 | AC72: 0
A73: 1986 昭和61年 | B73: 3106 | C73: 37 | D73: 4 | E73: 5 | F73: 3 | G73: 3 | H73: 52 | I73: 10 | J73: 10 | K73: 12 | L73: 24 | M73: 23 | N73: 26 | O73: 61 | P73: 81 | Q73: 99 | R73: 131 | S73: 147 | T73: 199 | U73: 270 | V73: 382 | W73: 478 | X73: 541 | Y73: 368 | Z73: 146 | AA73: 42 | AB73: 4 | AC73: 0
A74: 1987 昭和62年 | B74: 3038 | C74: 46 | D74: 9 | E74: 5 | F74: 3 | G74: 5 | H74: 68 | I74: 6 | J74: 5 | K74: 12 | L74: 14 | M74: 18 | N74: 33 | O74: 50 | P74: 78 | Q74: 96 | R74: 144 | S74: 162 | T74: 184 | U74: 261 | V74: 334 | W74: 487 | X74: 487 | Y74: 395 | Z74: 162 | AA74: 35 | AB74: 7 | AC74: 0
A75: 1988 昭和63年 | B75: 3445 | C75: 39 | D75: 3 | E75: 1 | F75: 2 | G75: 1 | H75: 46 | I75: 8 | J75: 9 | K75: 26 | L75: 20 | M75: 26 | N75: 28 | O75: 51 | P75: 72 | Q75: 105 | R75: 135 | S75: 157 | T75: 215 | U75: 288 | V75: 375 | W75: 539 | X75: 609 | Y75: 476 | Z75: 205 | AA75: 47 | AB75: 8 | AC75: 0
A76: 89 平成元年 | B76: 3583 | C76: 25 | D76: 1 | E76: 5 | F76: 7 | G76: 3 | H76: 41 | I76: 9 | J76: 7 | K76: 25 | L76: 23 | M76: 28 | N76: 23 | O76: 56 | P76: 88 | Q76: 105 | R76: 134 | S76: 169 | T76: 223 | U76: 301 | V76: 432 | W76: 543 | X76: 583 | Y76: 499 | Z76: 240 | AA76: 48 | AB76: 6 | AC76: 0
A77: 90 2 | B77: 3635 | C77: 40 | D77: 7 | E77: 3 | F77: 2 | G77: 0 | H77: 52 | I77: 6 | J77: 2 | K77: 12 | L77: 26 | M77: 17 | N77: 27 | O77: 52 | P77: 63 | Q77: 109 | R77: 107 | S77: 176 | T77: 211 | U77: 304 | V77: 401 | W77: 537 | X77: 634 | Y77: 561 | Z77: 272 | AA77: 57 | AB77: 9 | AC77: 0
A78: 91 3 | B78: 3557 | C78: 27 | D78: 2 | E78: 4 | F78: 1 | G78: 1 | H78: 35 | I78: 6 | J78: 4 | K78: 11 | L78: 17 | M78: 21 | N78: 20 | O78: 41 | P78: 86 | Q78: 119 | R78: 160 | S78: 174 | T78: 247 | U78: 307 | V78: 381 | W78: 499 | X78: 605 | Y78: 482 | Z78: 257 | AA78: 74 | AB78: 11 | AC78: 0
A79: 92 4 | B79: 3816 | C79: 24 | D79: 4 | E79: 1 | F79: 1 | G79: 2 | H79: 32 | I79: 8 | J79: 18 | K79: 19 | L79: 19 | M79: 20 | N79: 22 | O79: 30 | P79: 80 | Q79: 99 | R79: 116 | S79: 182 | T79: 258 | U79: 335 | V79: 414 | W79: 550 | X79: 686 | Y79: 536 | Z79: 313 | AA79: 76 | AB79: 2 | AC79: 1
A80: 1993 平成5年 | B80: 4157 | C80: 22 | D80: 5 | E80: 2 | F80: 1 | G80: 2 | H80: 32 | I80: 12 | J80: 6 | K80: 13 | L80: 25 | M80: 16 | N80: 40 | O80: 47 | P80: 90 | Q80: 124 | R80: 147 | S80: 182 | T80: 271 | U80: 327 | V80: 446 | W80: 539 | X80: 747 | Y80: 626 | Z80: 356 | AA80: 98 | AB80: 13 | AC80: 0
A81: 94 6 | B81: 3838 | C81: 25 | D81: 6 | E81: 8 | F81: 5 | G81: 2 | H81: 46 | I81: 7 | J81: 7 | K81: 9 | L81: 10 | M81: 20 | N81: 30 | O81: 30 | P81: 62 | Q81: 105 | R81: 145 | S81: 174 | T81: 223 | U81: 316 | V81: 389 | W81: 504 | X81: 701 | Y81: 609 | Z81: 340 | AA81: 93 | AB81: 18 | AC81: 0
A82: 95 7 | B82: 4110 | C82: 27 | D82: 6 | E82: 1 | F82: 3 | G82: 0 | H82: 37 | I82: 9 | J82: 7 | K82: 9 | L82: 15 | M82: 19 | N82: 23 | O82: 30 | P82: 78 | Q82: 124 | R82: 147 | S82: 165 | T82: 255 | U82: 322 | V82: 429 | W82: 537 | X82: 718 | Y82: 677 | Z82: 386 | AA82: 110 | AB82: 13 | AC82: 0
A83: 96 8 | B83: 4129 | C83: 20 | D83: 4 | E83: 0 | F83: 1 | G83: 1 | H83: 26 | I83: 4 | J83: 5 | K83: 10 | L83: 27 | M83: 23 | N83: 18 | O83: 32 | P83: 73 | Q83: 122 | R83: 126 | S83: 180 | T83: 289 | U83: 328 | V83: 436 | W83: 559 | X83: 699 | Y83: 677 | Z83: 382 | AA83: 100 | AB83: 13 | AC83: 0
A84: 97 9 | B84: 4210 | C84: 23 | D84: 5 | E84: 5 | F84: 2 | G84: 0 | H84: 35 | I84: 8 | J84: 3 | K84: 8 | L84: 17 | M84: 13 | N84: 23 | O84: 34 | P84: 63 | Q84: 124 | R84: 139 | S84: 191 | T84: 255 | U84: 329 | V84: 463 | W84: 543 | X84: 685 | Y84: 696 | Z84: 411 | AA84: 142 | AB84: 28 | AC84: 0
A85: 1998 平成10年 | B85: 4288 | C85: 20 | D85: 2 | E85: 2 | F85: 3 | G85: 2 | H85: 29 | I85: 4 | J85: 4 | K85: 5 | L85: 16 | M85: 27 | N85: 30 | O85: 35 | P85: 62 | Q85: 137 | R85: 162 | S85: 178 | T85: 232 | U85: 357 | V85: 387 | W85: 581 | X85: 681 | Y85: 718 | Z85: 453 | AA85: 160 | AB85: 30 | AC85: 0
A86: 99 11 | B86: 4762 | C86: 14 | D86: 6 | E86: 3 | F86: 4 | G86: 1 | H86: 28 | I86: 6 | J86: 6 | K86: 14 | L86: 20 | M86: 24 | N86: 41 | O86: 52 | P86: 51 | Q86: 142 | R86: 177 | S86: 195 | T86: 249 | U86: 337 | V86: 461 | W86: 636 | X86: 733 | Y86: 813 | Z86: 538 | AA86: 214 | AB86: 25 | AC86: 0
A87: 2000 12 | B87: 4673 | C87: 11 | D87: 4 | E87: 0 | F87: 4 | G87: 3 | H87: 22 | I87: 5 | J87: 5 | K87: 16 | L87: 16 | M87: 33 | N87: 27 | O87: 36 | P87: 51 | Q87: 102 | R87: 194 | S87: 207 | T87: 229 | U87: 328 | V87: 470 | W87: 637 | X87: 681 | Y87: 815 | Z87: 548 | AA87: 210 | AB87: 41 | AC87: 0
A88: 01 13 | B88: 4689 | C88: 18 | D88: 3 | E88: 2 | F88: 0 | G88: 3 | H88: 26 | I88: 2 | J88: 2 | K88: 6 | L88: 25 | M88: 21 | N88: 37 | O88: 40 | P88: 57 | Q88: 109 | R88: 198 | S88: 183 | T88: 225 | U88: 324 | V88: 464 | W88: 623 | X88: 746 | Y88: 736 | Z88: 582 | AA88: 232 | AB88: 51 | AC88: 0
A89: 02 14 | B89: 4823 | C89: 13 | D89: 4 | E89: 4 | F89: 1 | G89: 0 | H89: 22 | I89: 1 | J89: 5 | K89: 7 | L89: 11 | M89: 24 | N89: 37 | O89: 43 | P89: 45 | Q89: 105 | R89: 173 | S89: 204 | T89: 243 | U89: 303 | V89: 447 | W89: 630 | X89: 760 | Y89: 826 | Z89: 626 | AA89: 256 | AB89: 55 | AC89: 0
A90: 03 15 | B90: 5293 | C90: 20 | D90: 3 | E90: 1 | F90: 1 | G90: 1 | H90: 26 | I90: 6 | J90: 3 | K90: 10 | L90: 16 | M90: 24 | N90: 41 | O90: 38 | P90: 68 | Q90: 97 | R90: 165 | S90: 195 | T90: 245 | U90: 338 | V90: 477 | W90: 650 | X90: 829 | Y90: 959 | Z90: 737 | AA90: 310 | AB90: 59 | AC90: 0
A91: 04 16 | B91: 5489 | C91: 19 | D91: 2 | E91: 0 | F91: 1 | G91: 1 | H91: 23 | I91: 2 | J91: 3 | K91: 6 | L91: 31 | M91: 24 | N91: 23 | O91: 45 | P91: 71 | Q91: 97 | R91: 152 | S91: 244 | T91: 272 | U91: 329 | V91: 495 | W91: 631 | X91: 909 | Y91: 922 | Z91: 774 | AA91: 347 | AB91: 89 | AC91: 0
A92: 05 17 | B92: 5792 | C92: 17 | D92: 14 | E92: 1 | F92: 0 | G92: 0 | H92: 32 | I92: 5 | J92: 1 | K92: 7 | L92: 17 | M92: 29 | N92: 34 | O92: 58 | P92: 55 | Q92: 63 | R92: 159 | S92: 255 | T92: 275 | U92: 350 | V92: 495 | W92: 694 | X92: 928 | Y92: 960 | Z92: 857 | AA92: 427 | AB92: 91 | AC92: 0
A93: 06 18 | B93: 6044 | C93: 21 | D93: 3 | E93: 0 | F93: 3 | G93: 2 | H93: 29 | I93: 6 | J93: 3 | K93: 15 | L93: 23 | M93: 21 | N93: 42 | O93: 41 | P93: 62 | Q93: 84 | R93: 152 | S93: 254 | T93: 267 | U93: 381 | V93: 500 | W93: 690 | X93: 939 | Y93: 1048 | Z93: 927 | AA93: 451 | AB93: 109 | AC93: 0
A94: 07 19 | B94: 6349 | C94: 15 | D94: 4 | E94: 4 | F94: 1 | G94: 0 | H94: 24 | I94: 2 | J94: 1 | K94: 10 | L94: 22 | M94: 21 | N94: 28 | O94: 40 | P94: 60 | Q94: 94 | R94: 147 | S94: 243 | T94: 304 | U94: 380 | V94: 529 | W94: 723 | X94: 1003 | Y94: 1116 | Z94: 989 | AA94: 496 | AB94: 117 | AC94: 0
A95: 08 20 | B95: 6602 | C95: 18 | D95: 1 | E95: 3 | F95: 1 | G95: 0 | H95: 23 | I95: 5 | J95: 0 | K95: 6 | L95: 24 | M95: 28 | N95: 41 | O95: 58 | P95: 52 | Q95: 83 | R95: 141 | S95: 245 | T95: 291 | U95: 370 | V95: 523 | W95: 765 | X95: 1016 | Y95: 1217 | Z95: 1010 | AA95: 568 | AB95: 136 | AC95: 0
A96: 09 21 | B96: 6575 | C96: 14 | D96: 1 | E96: 1 | F96: 1 | G96: 1 | H96: 18 | I96: 3 | J96: 2 | K96: 11 | L96: 24 | M96: 24 | N96: 26 | O96: 51 | P96: 68 | Q96: 80 | R96: 145 | S96: 244 | T96: 285 | U96: 386 | V96: 518 | W96: 686 | X96: 1032 | Y96: 1243 | Z96: 1003 | AA96: 571 | AB96: 155 | AC96: 0
A97: 10 22 | B97: 7161 | C97: 10 | D97: 1 | E97: 2 | F97: 1 | G97: 2 | H97: 16 | I97: 4 | J97: 1 | K97: 8 | L97: 10 | M97: 20 | N97: 40 | O97: 37 | P97: 56 | Q97: 93 | R97: 148 | S97: 220 | T97: 354 | U97: 408 | V97: 502 | W97: 780 | X97: 1121 | Y97: 1343 | Z97: 1172 | AA97: 648 | AB97: 180 | AC97: 0
A98: 11 23 | B98: 7415 | C98: 20 | D98: 2 | E98: 0 | F98: 1 | G98: 2 | H98: 25 | I98: 3 | J98: 4 | K98: 5 | L98: 16 | M98: 23 | N98: 31 | O98: 51 | P98: 67 | Q98: 93 | R98: 126 | S98: 229 | T98: 346 | U98: 386 | V98: 497 | W98: 799 | X98: 1178 | Y98: 1405 | Z98: 1281 | AA98: 638 | AB98: 212 | AC98: 0
A99: 12 24 | B99: 7562 | C99: 16 | D99: 1 | E99: 0 | F99: 1 | G99: 3 | H99: 21 | I99: 5 | J99: 4 | K99: 7 | L99: 17 | M99: 15 | N99: 21 | O99: 36 | P99: 65 | Q99: 64 | R99: 108 | S99: 202 | T99: 338 | U99: 420 | V99: 497 | W99: 785 | X99: 1164 | Y99: 1512 | Z99: 1379 | AA99: 691 | AB99: 211 | AC99: 0
A100: 13 25 | B100: 8118 | C100: 17 | D100: 2 | E100: 2 | F100: 0 | G100: 0 | H100: 21 | I100: 2 | J100: 2 | K100: 9 | L100: 11 | M100: 11 | N100: 29 | O100: 52 | P100: 60 | Q100: 90 | R100: 136 | S100: 184 | T100: 355 | U100: 428 | V100: 558 | W100: 778 | X100: 1327 | Y100: 1625 | Z100: 1477 | AA100: 752 | AB100: 211 | AC100: 0
A101: 14 26 | B101: 8435 | C101: 14 | D101: 1 | E101: 1 | F101: 1 | G101: 0 | H101: 17 | I101: 4 | J101: 3 | K101: 5 | L101: 8 | M101: 22 | N101: 25 | O101: 39 | P101: 58 | Q101: 96 | R101: 104 | S101: 197 | T101: 314 | U101: 467 | V101: 569 | W101: 871 | X101: 1308 | Y101: 1636 | Z101: 1620 | AA101: 822 | AB101: 250 | AC101: 0
A102: 15 27 | B102: 8440 | C102: 8 | D102: 1 | E102: 1 | F102: 1 | G102: 0 | H102: 11 | I102: 4 | J102: 3 | K102: 7 | L102: 7 | M102: 16 | N102: 22 | O102: 24 | P102: 58 | Q102: 85 | R102: 134 | S102: 185 | T102: 330 | U102: 436 | V102: 533 | W102: 756 | X102: 1331 | Y102: 1707 | Z102: 1642 | AA102: 885 | AB102: 264 | AC102: 0
A103: 16 28 | B103: =SUM(H103:AC103) -> 8850 | C103: ='9 性・年齢別，区別死亡数'!C$30 -> 15 | D103: ='9 性・年齢別，区別死亡数'!D$30 -> 3 | E103: ='9 性・年齢別，区別死亡数'!E$30 -> 0 | F103: ='9 性・年齢別，区別死亡数'!F$30 -> 0 | G103: ='9 性・年齢別，区別死亡数'!G$30 -> 0 | H103: =SUM(C103:G103) -> 18 | I103: ='9 性・年齢別，区別死亡数'!I$30 -> 2 | J103: ='9 性・年齢別，区別死亡数'!J$30 -> 1 | K103: ='9 性・年齢別，区別死亡数'!K$30 -> 6 | L103: ='9 性・年齢別，区別死亡数'!L$30 -> 12 | M103: ='9 性・年齢別，区別死亡数'!M$30 -> 15 | N103: ='9 性・年齢別，区別死亡数'!N$30 -> 17 | O103: ='9 性・年齢別，区別死亡数'!O$30 -> 43 | P103: ='9 性・年齢別，区別死亡数'!P$30 -> 60 | Q103: ='9 性・年齢別，区別死亡数'!Q$30 -> 103 | R103: ='9 性・年齢別，区別死亡数'!R$30 -> 115 | S103: ='9 性・年齢別，区別死亡数'!S$30 -> 171 | T103: ='9 性・年齢別，区別死亡数'!T$30 -> 280 | U103: ='9 性・年齢別，区別死亡数'!U$30 -> 521 | V103: ='9 性・年齢別，区別死亡数'!V$30 -> 540 | W103: ='9 性・年齢別，区別死亡数'!W$30 -> 855 | X103: ='9 性・年齢別，区別死亡数'!X$30 -> 1263 | Y103: ='9 性・年齢別，区別死亡数'!Y$30 -> 1795 | Z103: ='9 性・年齢別，区別死亡数'!Z$30 -> 1749 | AA103: ='9 性・年齢別，区別死亡数'!AA$30 -> 963 | AB103: ='9 性・年齢別，区別死亡数'!AB$30 -> 321 | AC103: ='9 性・年齢別，区別死亡数'!AC$30 -> 0

Sheet 9 性・年齢別，区別死亡数
A1: 9 性・年齢（5歳階級）別にみた区別死亡数
AC2: ='3 月・性別，区別死亡数'!$O$2 -> 平成28年
A3: 区 | B3: 年齢 階級
B4: 総数 | C4: 0歳 | D4: 1 | E4: 2 | F4: 3 | G4: 4 | H4: 0～4 | I4: 5～9 | J4: 10～14 | K4: 15～19 | L4: 20～24 | M4: 25～29 | N4: 30～34 | O4: 35～39 | P4: 40～44 | Q4: 45～49 | R4: 50～54 | S4: 55～59 | T4: 60～64 | U4: 65～69 | V4: 70～74 | W4: 75～79 | X4: 80～84 | Y4: 85～89 | Z4: 90～94 | AA4: 95～99 | AB4: 100～ | AC4: 不 詳
B5: 総数
A6: 総数 | B6: =SUM(B18,B30) -> 18504 | C6: 29 | D6: 4 | E6: 2 | F6: 1 | G6: 0 | H6: 36 | I6: 6 | J6: 5 | K6: =SUM(K18,K30) -> 20 | L6: 29 | M6: 51 | N6: 50 | O6: 103 | P6: 162 | Q6: 249 | R6: 281 | S6: 492 | T6: 857 | U6: 1494 | V6: 1609 | W6: 2171 | X6: 3020 | Y6: 3487 | Z6: 2735 | AA6: 1265 | AB6: 382 | AC6: 0
A7: 中央 | B7: =SUM(B19,B31) -> 1995 | C7: 3 | D7: 0 | E7: 1 | F7: 1 | G7: 0 | H7: 5 | I7: 0 | J7: 0 | K7: 4 | L7: 3 | M7: 6 | N7: 13 | O7: 11 | P7: 19 | Q7: 36 | R7: 33 | S7: 67 | T7: 90 | U7: 140 | V7: 173 | W7: 230 | X7: 294 | Y7: 373 | Z7: 306 | AA7: 145 | AB7: 47 | AC7: 0
A8: 北 | B8: =SUM(B20,B32) -> 2558 | C8: 4 | D8: 1 | E8: 0 | F8: 0 | G8: 0 | H8: 5 | I8: 1 | J8: 1 | K8: 4 | L8: 5 | M8: 5 | N8: 4 | O8: 11 | P8: 19 | Q8: 32 | R8: 27 | S8: 58 | T8: 122 | U8: 223 | V8: 220 | W8: 310 | X8: 395 | Y8: 491 | Z8: 377 | AA8: 182 | AB8: 66 | AC8: 0
A9: 東 | B9: =SUM(B21,B33) -> 2449 | C9: 3 | D9: 0 | E9: 0 | F9: 0 | G9: 0 | H9: 3 | I9: 1 | J9: 1 | K9: 3 | L9: 6 | M9: 5 | N9: 9 | O9: 16 | P9: 20 | Q9: 40 | R9: 36 | S9: 59 | T9: 132 | U9: 211 | V9: 213 | W9: 295 | X9: 401 | Y9: 471 | Z9: 340 | AA9: 145 | AB9: 42 | AC9: 0
A10: 白石 | B10: =SUM(B22,B34) -> 2027 | C10: 3 | D10: 2 | E10: 0 | F10: 0 | G10: 0 | H10: 5 | I10: 0 | J10: 0 | K10: 2 | L10: 5 | M10: 13 | N10: 5 | O10: 19 | P10: 23 | Q10: 39 | R10: 37 | S10: 51 | T10: 88 | U10: 187 | V10: 198 | W10: 254 | X10: 343 | Y10: 337 | Z10: 263 | AA10: 127 | AB10: 31 | AC10: 0
A11: 厚別 | B11: =SUM(B23,B35) -> 1282 | C11: 2 | D11: 0 | E11: 0 | F11: 0 | G11: 0 | H11: 2 | I11: 0 | J11: 1 | K11: 2 | L11: 1 | M11: 2 | N11: 3 | O11: 5 | P11: 9 | Q11: 11 | R11: 25 | S11: 35 | T11: 54 | U11: 89 | V11: 103 | W11: 159 | X11: 211 | Y11: 252 | Z11: 202 | AA11: 91 | AB11: 25 | AC11: 0
A12: 豊平 | B12: =SUM(B24,B36) -> 2074 | C12: 9 | D12: 0 | E12: 0 | F12: 0 | G12: 0 | H12: 9 | I12: 1 | J12: 2 | K12: 1 | L12: 3 | M12: 6 | N12: 6 | O12: 14 | P12: 25 | Q12: 27 | R12: 35 | S12: 69 | T12: 97 | U12: 161 | V12: 158 | W12: 229 | X12: 359 | Y12: 372 | Z12: 323 | AA12: 128 | AB12: 49 | AC12: 0
A13: 清田 | B13: =SUM(B25,B37) -> 1036 | C13: 0 | D13: 0 | E13: 1 | F13: 0 | G13: 0 | H13: 1 | I13: 0 | J13: 0 | K13: 1 | L13: 0 | M13: 1 | N13: 4 | O13: 3 | P13: 8 | Q13: 12 | R13: 17 | S13: 16 | T13: 50 | U13: 72 | V13: 86 | W13: 113 | X13: 188 | Y13: 193 | Z13: 161 | AA13: 88 | AB13: 22 | AC13: 0
A14: 南 | B14: =SUM(B26,B38) -> 1607 | C14: 2 | D14: 1 | E14: 0 | F14: 0 | G14: 0 | H14: 3 | I14: 0 | J14: 0 | K14: 0 | L14: 0 | M14: 4 | N14: 2 | O14: 7 | P14: 9 | Q14: 9 | R14: 17 | S14: 36 | T14: 65 | U14: 130 | V14: 123 | W14: 184 | X14: 271 | Y14: 336 | Z14: 257 | AA14: 120 | AB14: 34 | AC14: 0
A15: 西 | B15: =SUM(B27,B39) -> 2042 | C15: 1 | D15: 0 | E15: 0 | F15: 0 | G15: 0 | H15: 1 | I15: 2 | J15: 0 | K15: 0 | L15: 3 | M15: 4 | N15: 3 | O15: 12 | P15: 18 | Q15: 29 | R15: 32 | S15: 66 | T15: 95 | U15: 162 | V15: 190 | W15: 246 | X15: 321 | Y15: 389 | Z15: 301 | AA15: 131 | AB15: 37 | AC15: 0
A16: 手稲 | B16: =SUM(B28,B40) -> 1434 | C16: =SUM(C28,C40) -> 2 | D16: 0 | E16: 0 | F16: 0 | G16: 0 | H16: 2 | I16: 1 | J16: 0 | K16: 3 | L16: 3 | M16: 5 | N16: 1 | O16: 5 | P16: 12 | Q16: 14 | R16: 22 | S16: 35 | T16: 64 | U16: 119 | V16: 145 | W16: 151 | X16: 237 | Y16: 273 | Z16: 205 | AA16: 108 | AB16: 29 | AC16: 0
B17: 男
A18: 総数 | B18: =SUM(B19:B28) -> 9654 | C18: =SUM(C19:C28) -> 14 | D18: 1 | E18: 2 | F18: 1 | G18: 0 | H18: 18 | I18: 4 | J18: 4 | K18: =SUM(K19:K28) -> 14 | L18: 17 | M18: 36 | N18: 33 | O18: 60 | P18: 102 | Q18: 146 | R18: 166 | S18: 321 | T18: 577 | U18: 973 | V18: 1069 | W18: 1316 | X18: 1757 | Y18: 1692 | Z18: 986 | AA18: 302 | AB18: 61 | AC18: 0
A19: 中央 | B19: =SUM(H19:AC19) -> 979 | C19: 2 | D19: 0 | E19: 1 | F19: 1 | G19: 0 | H19: =SUM(C19:G19) -> 4 | I19: 0 | J19: 0 | K19: 1 | L19: 1 | M19: 4 | N19: 9 | O19: 8 | P19: 14 | Q19: 21 | R19: 21 | S19: 43 | T19: 61 | U19: 99 | V19: 112 | W19: 131 | X19: 151 | Y19: 168 | Z19: 97 | AA19: 29 | AB19: 5 | AC19: 0
A20: 北 | B20: 1298 | C20: 3 | D20: 0 | E20: 0 | F20: 0 | G20: 0 | H20: =SUM(C20:G20) -> 3 | I20: 0 | J20: 1 | K20: 4 | L20: 4 | M20: 2 | N20: 4 | O20: 8 | P20: 12 | Q20: 19 | R20: 17 | S20: 35 | T20: 90 | U20: 133 | V20: 146 | W20: 197 | X20: 221 | Y20: 227 | Z20: 131 | AA20: 34 | AB20: 10 | AC20: 0
A21: 東 | B21: 1311 | C21: 2 | D21: 0 | E21: 0 | F21: 0 | G21: 0 | H21: 2 | I21: 1 | J21: 1 | K21: 3 | L21: 4 | M21: 4 | N21: 6 | O21: 6 | P21: 12 | Q21: 25 | R21: 19 | S21: 39 | T21: 82 | U21: 145 | V21: 144 | W21: 188 | X21: 244 | Y21: 217 | Z21: 131 | AA21: 31 | AB21: 7 | AC21: 0
A22: 白石 | B22: 1045 | C22: 0 | D22: 0 | E22: 0 | F22: 0 | G22: 0 | H22: 0 | I22: 0 | J22: 0 | K22: 1 | L22: 3 | M22: 12 | N22: 1 | O22: 11 | P22: 15 | Q22: 21 | R22: 20 | S22: 35 | T22: 60 | U22: 114 | V22: 125 | W22: 149 | X22: 190 | Y22: 173 | Z22: 78 | AA22: 34 | AB22: 3 | AC22: 0
A23: 厚別 | B23: 670 | C23: 1 | D23: 0 | E23: 0 | F23: 0 | G23: 0 | H23: 1 | I23: 0 | J23: 1 | K23: 1 | L23: 0 | M23: 1 | N23: 3 | O23: 3 | P23: 4 | Q23: 7 | R23: 15 | S23: 26 | T23: 37 | U23: 55 | V23: 65 | W23: 101 | X23: 123 | Y23: 137 | Z23: 68 | AA23: 19 | AB23: 3 | AC23: 0
A24: 豊平 | B24: 1075 | C24: 4 | D24: 0 | E24: 0 | F24: 0 | G24: 0 | H24: 4 | I24: 1 | J24: 1 | K24: 0 | L24: 1 | M24: 4 | N24: 4 | O24: 7 | P24: 12 | Q24: 18 | R24: 19 | S24: 40 | T24: 60 | U24: 104 | V24: 103 | W24: 134 | X24: 210 | Y24: 194 | Z24: 124 | AA24: 29 | AB24: 6 | AC24: 0
A25: 清田 | B25: 548 | C25: 0 | D25: 0 | E25: 1 | F25: 0 | G25: 0 | H25: 1 | I25: 0 | J25: 0 | K25: 1 | L25: 0 | M25: 0 | N25: 3 | O25: 1 | P25: 4 | Q25: 7 | R25: 9 | S25: 10 | T25: 37 | U25: 47 | V25: 58 | W25: 71 | X25: 118 | Y25: 82 | Z25: 60 | AA25: 33 | AB25: 6 | AC25: 0
A26: 南 | B26: 873 | C26: 1 | D26: 1 | E26: 0 | F26: 0 | G26: 0 | H26: 2 | I26: 0 | J26: 0 | K26: 0 | L26: 0 | M26: 3 | N26: 1 | O26: 6 | P26: 7 | Q26: 7 | R26: 10 | S26: 25 | T26: 43 | U26: 93 | V26: 91 | W26: 109 | X26: 168 | Y26: 167 | Z26: 109 | AA26: 26 | AB26: 6 | AC26: 0
A27: 西 | B27: 1109 | C27: 1 | D27: 0 | E27: 0 | F27: 0 | G27: 0 | H27: 1 | I27: 2 | J27: 0 | K27: 0 | L27: 2 | M27: 3 | N27: 2 | O27: 9 | P27: 13 | Q27: 14 | R27: 22 | S27: 41 | T27: 66 | U27: 104 | V27: 129 | W27: 144 | X27: 201 | Y27: 192 | Z27: 118 | AA27: 36 | AB27: 10 | AC27: 0
A28: 手稲 | B28: =SUM(H28:AC28) -> 746 | C28: 0 | D28: 0 | E28: 0 | F28: 0 | G28: 0 | H28: 0 | I28: 0 | J28: 0 | K28: 3 | L28: 2 | M28: 3 | N28: 0 | O28: 1 | P28: 9 | Q28: 7 | R28: 14 | S28: 27 | T28: 41 | U28: 79 | V28: 96 | W28: 92 | X28: 131 | Y28: 135 | Z28: 70 | AA28: 31 | AB28: 5 | AC28: 0
B29: 女
A30: 総数 | B30: =SUM(B31:B40) -> 8850 | C30: 15 | D30: 3 | E30: 0 | F30: 0 | G30: 0 | H30: 18 | I30: 2 | J30: 1 | K30: 6 | L30: 12 | M30: 15 | N30: 17 | O30: 43 | P30: 60 | Q30: 103 | R30: 115 | S30: 171 | T30: 280 | U30: 521 | V30: 540 | W30: 855 | X30: 1263 | Y30: 1795 | Z30: 1749 | AA30: 963 | AB30: 321 | AC30: 0
A31: 中央 | B31: =SUM(H31:AC31) -> 1016 | C31: 1 | D31: 0 | E31: 0 | F31: 0 | G31: 0 | H31: =SUM(C31:G31) -> 1 | I31: 0 | J31: 0 | K31: 3 | L31: 2 | M31: 2 | N31: 4 | O31: 3 | P31: 5 | Q31: 15 | R31: 12 | S31: 24 | T31: 29 | U31: 41 | V31: 61 | W31: 99 | X31: 143 | Y31: 205 | Z31: 209 | AA31: 116 | AB31: 42 | AC31: 0
A32: 北 | B32: 1260 | C32: 1 | D32: 1 | E32: 0 | F32: 0 | G32: 0 | H32: =SUM(C32:G32) -> 2 | I32: 1 | J32: 0 | K32: 0 | L32: 1 | M32: 3 | N32: 0 | O32: 3 | P32: 7 | Q32: 13 | R32: 10 | S32: 23 | T32: 32 | U32: 90 | V32: 74 | W32: 113 | X32: 174 | Y32: 264 | Z32: 246 | AA32: 148 | AB32: 56 | AC32: 0
A33: 東 | B33: 1138 | C33: 1 | D33: 0 | E33: 0 | F33: 0 | G33: 0 | H33: 1 | I33: 0 | J33: 0 | K33: 0 | L33: 2 | M33: 1 | N33: 3 | O33: 10 | P33: 8 | Q33: 15 | R33: 17 | S33: 20 | T33: 50 | U33: 66 | V33: 69 | W33: 107 | X33: 157 | Y33: 254 | Z33: 209 | AA33: 114 | AB33: 35 | AC33: 0
A34: 白石 | B34: 982 | C34: 3 | D34: 2 | E34: 0 | F34: 0 | G34: 0 | H34: 5 | I34: 0 | J34: 0 | K34: 1 | L34: 2 | M34: 1 | N34: 4 | O34: 8 | P34: 8 | Q34: 18 | R34: 17 | S34: 16 | T34: 28 | U34: 73 | V34: 73 | W34: 105 | X34: 153 | Y34: 164 | Z34: 185 | AA34: 93 | AB34: 28 | AC34: 0
A35: 厚別 | B35: 612 | C35: 1 | D35: 0 | E35: 0 | F35: 0 | G35: 0 | H35: 1 | I35: 0 | J35: 0 | K35: 1 | L35: 1 | M35: 1 | N35: 0 | O35: 2 | P35: 5 | Q35: 4 | R35: 10 | S35: 9 | T35: 17 | U35: 34 | V35: 38 | W35: 58 | X35: 88 | Y35: 115 | Z35: 134 | AA35: 72 | AB35: 22 | AC35: 0
A36: 豊平 | B36: 999 | C36: 5 | D36: 0 | E36: 0 | F36: 0 | G36: 0 | H36: 5 | I36: 0 | J36: 1 | K36: 1 | L36: 2 | M36: 2 | N36: 2 | O36: 7 | P36: 13 | Q36: 9 | R36: 16 | S36: 29 | T36: 37 | U36: 57 | V36: 55 | W36: 95 | X36: 149 | Y36: 178 | Z36: 199 | AA36: 99 | AB36: 43 | AC36: 0
A37: 清田 | B37: 488 | C37: 0 | D37: 0 | E37: 0 | F37: 0 | G37: 0 | H37: 0 | I37: 0 | J37: 0 | K37: 0 | L37: 0 | M37: 1 | N37: 1 | O37: 2 | P37: 4 | Q37: 5 | R37: 8 | S37: 6 | T37: 13 | U37: 25 | V37: 28 | W37: 42 | X37: 70 | Y37: 111 | Z37: 101 | AA37: 55 | AB37: 16 | AC37: 0
A38: 南 | B38: 734 | C38: 1 | D38: 0 | E38: 0 | F38: 0 | G38: 0 | H38: 1 | I38: 0 | J38: 0 | K38: 0 | L38: 0 | M38: 1 | N38: 1 | O38: 1 | P38: 2 | Q38: 2 | R38: 7 | S38: 11 | T38: 22 | U38: 37 | V38: 32 | W38: 75 | X38: 103 | Y38: 169 | Z38: 148 | AA38: 94 | AB38: 28 | AC38: 0
A39: 西 | B39: 933 | C39: 0 | D39: 0 | E39: 0 | F39: 0 | G39: 0 | H39: 0 | I39: 0 | J39: 0 | K39: 0 | L39: 1 | M39: 1 | N39: 1 | O39: 3 | P39: 5 | Q39: 15 | R39: 10 | S39: 25 | T39: 29 | U39: 58 | V39: 61 | W39: 102 | X39: 120 | Y39: 197 | Z39: 183 | AA39: 95 | AB39: 27 | AC39: 0
A40: 手稲 | B40: 688 | C40: 2 | D40: 0 | E40: 0 | F40: 0 | G40: 0 | H40: =SUM(C40:G40) -> 2 | I40: 1 | J40: 0 | K40: 0 | L40: 1 | M40: 2 | N40: 1 | O40: 4 | P40: 3 | Q40: 7 | R40: 8 | S40: 8 | T40: 23 | U40: 40 | V40: 49 | W40: 59 | X40: 106 | Y40: 138 | Z40: 135 | AA40: 77 | AB40: 24 | AC40: 0

Sheet 10-1 年次別，選択死因分類別死亡数及・率
A1: 10 年次別にみた選択死因分類(主要死因)別死亡数
A3: 簡単分類 番 号 | B3: 死因 | D3: 1985 昭和60年 | E3: 1986 61年 | F3: 1987 62年 | G3: 1988 63年 | H3: 1989 平成元年 | I3: 1990 2年 | J3: 1991 3年 | K3: 1992 4年 | L3: 1993 5年 | M3: 1994 6年
B4: 死 亡 総 数 | D4: 7226 | E4: 7127 | F4: 7074 | G4: 7761 | H4: 8103 | I4: 8278 | J4: 8342 | K4: 8808 | L4: 9428 | M4: 8934
A5: 5～6 | B5: 結 核 | D5: 54 | E5: 39 | F5: 28 | G5: 37 | H5: 29 | I5: 32 | J5: 23 | K5: 28 | L5: 29 | M5: 32
A6: 28～37 | B6: 悪性新生物 | D6: 1986 | E6: 2057 | F6: 2071 | G6: 2288 | H6: 2524 | I6: 2483 | J6: 2569 | K6: 2684 | L6: 2767 | M6: 2779
A7: 28 | B7: （再掲） | C7: 食 道 | D7: 65 | E7: 87 | F7: 83 | G7: 69 | H7: 92 | I7: 105 | J7: 106 | K7: 120 | L7: 95 | M7: 93
A8: 29 | C8: 胃 | D8: 457 | E8: 431 | F8: 423 | G8: 502 | H8: 509 | I8: 453 | J8: 477 | K8: 456 | L8: 479 | M8: 495
A9: 30 | C9: 直腸、直腸Ｓ状結腸移行部及び肛門 | D9: 94 | E9: 78 | F9: 83 | G9: 97 | H9: 104 | I9: 98 | J9: 96 | K9: 90 | L9: 131 | M9: 112
A10: 31 | C10: 肝 | D10: 210 | E10: 212 | F10: 198 | G10: 226 | H10: 229 | I10: 224 | J10: 230 | K10: 287 | L10: 293 | M10: 272
A11: 32 | C11: 膵 | D11: 136 | E11: 144 | F11: 180 | G11: 143 | H11: 186 | I11: 213 | J11: 171 | K11: 181 | L11: 174 | M11: 215
A12: 33 | C12: 気管、気管支及び肺 | D12: 284 | E12: 338 | F12: 343 | G12: 373 | H12: 439 | I12: 426 | J12: 441 | K12: 508 | L12: 476 | M12: 524
A13: 34 | C13: 乳 房 | D13: 72 | E13: 72 | F13: 71 | G13: 78 | H13: 90 | I13: 91 | J13: 90 | K13: 83 | L13: 120 | M13: 92
A14: 35 | C14: 子 宮 | D14: 57 | E14: 48 | F14: 52 | G14: 58 | H14: 58 | I14: 42 | J14: 74 | K14: 52 | L14: 50 | M14: 57
A15: 36 | C15: 白 血 病 | D15: 72 | E15: 64 | F15: 63 | G15: 60 | H15: 75 | I15: 67 | J15: 55 | K15: 66 | L15: 73 | M15: 75
A16: 39 | B16: 糖 尿 病 | D16: 89 | E16: 98 | F16: 98 | G16: 101 | H16: 108 | I16: 121 | J16: 126 | K16: 106 | L16: 123 | M16: 125
A17: 48～49 | B17: 高血圧性疾患 | D17: 69 | E17: 70 | F17: 74 | G17: 46 | H17: 43 | I17: 53 | J17: 56 | K17: 49 | L17: 57 | M17: 51
A18: 46、 51～52、 54～56 | B18: 心 疾 患 | D18: 1511 | E18: 1468 | F18: 1496 | G18: 1716 | H18: 1673 | I18: 1786 | J18: 1714 | K18: 1894 | L18: 1944 | M18: 1637
A19: 51 | B19: （再掲） | C19: 急性心筋梗塞 | D19: 374 | E19: 344 | F19: 369 | G19: 389 | H19: 364 | I19: 370 | J19: 345 | K19: 391 | L19: 375 | M19: 387
A20: 52 | C20: その他虚血性心疾患 | D20: 249 | E20: 237 | F20: 199 | G20: 259 | H20: 227 | I20: 258 | J20: 212 | K20: 203 | L20: 228 | M20: 196
A21: 55 | C21: 心 不 全 | D21: 697 | E21: 700 | F21: 736 | G21: 874 | H21: 874 | I21: 955 | J21: 944 | K21: 1068 | L21: 1120 | M21: 814
A22: 58～60 | B22: 脳血管疾患 | D22: 1075 | E22: 940 | F22: 908 | G22: 899 | H22: 906 | I22: 859 | J22: 905 | K22: 955 | L22: 982 | M22: 1005
A23: 59 | B23: （再掲） | C23: 脳 梗 塞 | D23: 523 | E23: 466 | F23: 449 | G23: 457 | H23: 494 | I23: 463 | J23: 470 | K23: 539 | L23: 539 | M23: 535
A24: 62、63、66 | B24: 肺炎及び気管支炎 | D24: 544 | E24: 502 | F24: 500 | G24: 589 | H24: 745 | I24: 870 | J24: 776 | K24: 861 | L24: 1142 | M24: 971
A25: 63 | B25: （再掲） | C25: 肺 炎 | D25: 485 | E25: 471 | F25: 453 | G25: 537 | H25: 685 | I25: 820 | J25: 732 | K25: 806 | L25: 1066 | M25: 909
A26: 68 | B26: 喘 息 | D26: 39 | E26: 53 | F26: 51 | G26: 52 | H26: 43 | I26: 59 | J26: 43 | K26: 47 | L26: 42 | M26: 50
A27: 69 | B27: 胃及び十二指腸潰瘍 | D27: 33 | E27: 29 | F27: 36 | G27: 29 | H27: 30 | I27: 25 | J27: 28 | K27: 33 | L27: 29 | M27: 33
A28: 73 | B28: 慢性肝疾患及び肝硬変 | D28: 152 | E28: 176 | F28: 128 | G28: 165 | H28: 171 | I28: 153 | J28: 176 | K28: 169 | L28: 192 | M28: 161
A29: 76～77 | B29: 腎炎、ネフローゼ症候群 及びネフローゼ | D29: 176 | E29: 184 | F29: 206 | G29: 207 | H29: 220 | I29: 230 | J29: 229 | K29: 248 | L29: 229 | M29: 255
A30: 88 | B30: 精神病の記載のない老衰 | D30: 67 | E30: 54 | F30: 53 | G30: 65 | H30: 44 | I30: 40 | J30: 47 | K30: 45 | L30: 44 | M30: 39
A31: E104～E114 | B31: 不慮の事故及び有害作用 | D31: 266 | E31: 265 | F31: 255 | G31: 302 | H31: 274 | I31: 343 | J31: 304 | K31: 296 | L31: 326 | M31: 349
A32: E104 | B32: （再掲） | C32: 自動車事故 | D32: 138 | E32: 140 | F32: 122 | G32: 152 | H32: 166 | I32: 203 | J32: 158 | K32: 157 | L32: 149 | M32: 159
A33: E115 | B33: 自 殺 | D33: 261 | E33: 287 | F33: 238 | G33: 275 | H33: 251 | I33: 208 | J33: 192 | K33: 219 | L33: 241 | M33: 222

Sheet 10-2 年次別，選択死因分類別死亡数及・率
A3: 選択死因 分類コード | B3: 死因 | D3: 1995 平成7年 | E3: 1996 8年 | F3: 1997 9年 | G3: 1998 10年 | H3: 1999 11年 | I3: 2000 12年 | J3: 2001 13年 | K3: 2002 14年 | L3: 2003 15年 | M3: 2004 16年 | N3: 2005 17年 | O3: 2006 18年 | P3: 2007 19年 | Q3: 2008 20年 | R3: 2009 21年 | S3: 2010 22年 | T3: 2011 23年 | U3: 2012 24年 | V3: 2013 25年 | W3: 2014 26年 | X3: 2015 27年 | Y3: 2016 28年
B4: 死 亡 総 数 | D4: 9398 | E4: 9512 | F4: 9840 | G4: 9995 | H4: 10806 | I4: 10800 | J4: 10803 | K4: 11151 | L4: 11769 | M4: 12348 | N4: 13105 | O4: 13268 | P4: 14044 | Q4: 14366 | R4: 14506 | S4: 15482 | T4: 15926 | U4: 16228 | V4: 16844 | W4: 17668 | X4: 17523 | Y4: ='11 区別，選択死因分類別死亡数・率'!$F$5 -> 18504
A5: Se 01 | B5: 結 核 | D5: 33 | E5: 18 | F5: 20 | G5: 28 | H5: 32 | I5: 16 | J5: 24 | K5: 31 | L5: 33 | M5: 21 | N5: 25 | O5: 18 | P5: 32 | Q5: 12 | R5: 24 | S5: 26 | T5: 14 | U5: 19 | V5: 22 | W5: 22 | X5: 14 | Y5: ='11 区別，選択死因分類別死亡数・率'!$F$8 -> 14
A6: Se 02 | B6: 悪性新生物 | D6: 3083 | E6: 3295 | F6: 3352 | G6: 3439 | H6: 3515 | I6: 3727 | J6: 3765 | K6: 3926 | L6: 3997 | M6: 4372 | N6: 4490 | O6: 4565 | P6: 4695 | Q6: 4735 | R6: 4981 | S6: 5256 | T6: 5326 | U6: 5302 | V6: 5674 | W6: 5783 | X6: 5769 | Y6: ='11 区別，選択死因分類別死亡数・率'!$F$11 -> 6003
A7: Se 03 | B7: （再掲） | C7: 食道の悪性新生物 | D7: 112 | E7: 120 | F7: 124 | G7: 121 | H7: 138 | I7: 124 | J7: 163 | K7: 161 | L7: 171 | M7: 165 | N7: 181 | O7: 172 | P7: 180 | Q7: 188 | R7: 169 | S7: 182 | T7: 160 | U7: 187 | V7: 190 | W7: 202 | X7: 166 | Y7: ='11 区別，選択死因分類別死亡数・率'!$F$14 -> 187
A8: Se 04 | C8: 胃の悪性新生物 | D8: 511 | E8: 555 | F8: 539 | G8: 535 | H8: 534 | I8: 606 | J8: 577 | K8: 531 | L8: 534 | M8: 601 | N8: 602 | O8: 623 | P8: 605 | Q8: 573 | R8: 617 | S8: 629 | T8: 584 | U8: 626 | V8: 652 | W8: 628 | X8: 573 | Y8: ='11 区別，選択死因分類別死亡数・率'!$F$17 -> 599
A9: Se 05 | C9: 結腸の悪性新生物 | D9: 236 | E9: 293 | F9: 307 | G9: 314 | H9: 304 | I9: 322 | J9: 342 | K9: 341 | L9: 367 | M9: 354 | N9: 370 | O9: 386 | P9: 381 | Q9: 384 | R9: 428 | S9: 438 | T9: 498 | U9: 449 | V9: 530 | W9: 524 | X9: 515 | Y9: ='11 区別，選択死因分類別死亡数・率'!$F$20 -> 569
A10: Se 06 | C10: 直腸Ｓ状結腸移行部及び直腸の悪性新生物 | D10: 114 | E10: 130 | F10: 127 | G10: 135 | H10: 143 | I10: 153 | J10: 180 | K10: 167 | L10: 168 | M10: 189 | N10: 218 | O10: 175 | P10: 169 | Q10: 169 | R10: 174 | S10: 194 | T10: 205 | U10: 204 | V10: 207 | W10: 204 | X10: 220 | Y10: ='11 区別，選択死因分類別死亡数・率'!$F$23 -> 239
A11: Se 07 | C11: 肝及び肝内胆管の悪性新生物 | D11: 341 | E11: 313 | F11: 360 | G11: 342 | H11: 323 | I11: 384 | J11: 313 | K11: 361 | L11: 385 | M11: 418 | N11: 373 | O11: 382 | P11: 382 | Q11: 433 | R11: 406 | S11: 431 | T11: 400 | U11: 386 | V11: 400 | W11: 407 | X11: 391 | Y11: ='11 区別，選択死因分類別死亡数・率'!$F$26 -> 369
A12: Se 08 | C12: 胆のう及びその他の胆道の悪性新生物 | D12: 172 | E12: 180 | F12: 185 | G12: 147 | H12: 170 | I12: 200 | J12: 189 | K12: 199 | L12: 205 | M12: 201 | N12: 242 | O12: 212 | P12: 216 | Q12: 244 | R12: 249 | S12: 249 | T12: 253 | U12: 255 | V12: 248 | W12: 250 | X12: 273 | Y12: ='11 区別，選択死因分類別死亡数・率'!$F$29 -> 234
A13: Se 09 | C13: 膵の悪性新生物 | D13: 226 | E13: 219 | F13: 245 | G13: 268 | H13: 258 | I13: 290 | J13: 249 | K13: 322 | L13: 320 | M13: 377 | N13: 367 | O13: 374 | P13: 429 | Q13: 440 | R13: 455 | S13: 499 | T13: 491 | U13: 563 | V13: 535 | W13: 583 | X13: 599 | Y13: ='11 区別，選択死因分類別死亡数・率'!$F$32 -> 631
A14: Se 10 | C14: 気管、気管支及び肺の悪性新生物 | D14: 561 | E14: 617 | F14: 581 | G14: 622 | H14: 665 | I14: 634 | J14: 709 | K14: 742 | L14: 725 | M14: 867 | N14: 907 | O14: 950 | P14: 976 | Q14: 981 | R14: 1104 | S14: 1111 | T14: 1176 | U14: 1094 | V14: 1253 | W14: 1282 | X14: 1292 | Y14: ='11 区別，選択死因分類別死亡数・率'!$F$35 -> 1334
A15: Se 11 | C15: 乳房の悪性新生物 | D15: 122 | E15: 103 | F15: 129 | G15: 136 | H15: 140 | I15: 145 | J15: 164 | K15: 159 | L15: 149 | M15: 185 | N15: 177 | O15: 186 | P15: 227 | Q15: 210 | R15: 188 | S15: 239 | T15: 232 | U15: 212 | V15: 274 | W15: 245 | X15: 260 | Y15: ='11 区別，選択死因分類別死亡数・率'!$F$38 -> 254
A16: Se 12 | C16: 子宮の悪性新生物 | D16: 50 | E16: 61 | F16: 54 | G16: 61 | H16: 72 | I16: 62 | J16: 70 | K16: 69 | L16: 74 | M16: 77 | N16: 74 | O16: 78 | P16: 82 | Q16: 85 | R16: 75 | S16: 94 | T16: 98 | U16: 98 | V16: 89 | W16: 105 | X16: 91 | Y16: ='11 区別，選択死因分類別死亡数・率'!$F$41 -> 103
A17: Se 13 | C17: 白 血 病 | D17: 69 | E17: 74 | F17: 71 | G17: 73 | H17: 84 | I17: 98 | J17: 83 | K17: 75 | L17: 95 | M17: 97 | N17: 83 | O17: 96 | P17: 97 | Q17: 102 | R17: 107 | S17: 103 | T17: 123 | U17: 110 | V17: 123 | W17: 121 | X17: 118 | Y17: ='11 区別，選択死因分類別死亡数・率'!$F$44 -> 147
A18: Se 14 | B18: 糖 尿 病 | D18: 142 | E18: 133 | F18: 130 | G18: 144 | H18: 158 | I18: 141 | J18: 161 | K18: 136 | L18: 140 | M18: 132 | N18: 164 | O18: 174 | P18: 177 | Q18: 188 | R18: 173 | S18: 189 | T18: 211 | U18: 174 | V18: 184 | W18: 202 | X18: 185 | Y18: ='11 区別，選択死因分類別死亡数・率'!$F$47 -> 198
A19: Se 15 | B19: 高血圧性疾患 | D19: 47 | E19: 45 | F19: 39 | G19: 39 | H19: 34 | I19: 39 | J19: 42 | K19: 44 | L19: 40 | M19: 40 | N19: 34 | O19: 43 | P19: 46 | Q19: 51 | R19: 42 | S19: 51 | T19: 59 | U19: 51 | V19: 59 | W19: 77 | X19: 73 | Y19: ='11 区別，選択死因分類別死亡数・率'!$F$50 -> 71
A20: Se 16 | B20: 心疾患(高血圧性を除く） | D20: 1574 | E20: 1536 | F20: 1541 | G20: 1591 | H20: 1726 | I20: 1651 | J20: 1669 | K20: 1624 | L20: 1761 | M20: 1793 | N20: 1933 | O20: 2074 | P20: 2268 | Q20: 2219 | R20: 2137 | S20: 2313 | T20: 2421 | U20: 2363 | V20: 2287 | W20: 2393 | X20: 2303 | Y20: ='11 区別，選択死因分類別死亡数・率'!$F$53 -> 2414
A21: Se 17 | B21: （再掲） | C21: 急性心筋梗塞 | D21: 573 | E21: 507 | F21: 515 | G21: 532 | H21: 548 | I21: 507 | J21: 451 | K21: 422 | L21: 507 | M21: 506 | N21: 481 | O21: 477 | P21: 485 | Q21: 434 | R21: 432 | S21: 451 | T21: 419 | U21: 388 | V21: 390 | W21: 380 | X21: 341 | Y21: ='11 区別，選択死因分類別死亡数・率'!$F$56 -> 347
A22: Se 18 | C22: その他の虚血性心疾患 | D22: 229 | E22: 233 | F22: 227 | G22: 201 | H22: 199 | I22: 201 | J22: 222 | K22: 198 | L22: 241 | M22: 213 | N22: 240 | O22: 245 | P22: 261 | Q22: 249 | R22: 224 | S22: 277 | T22: 290 | U22: 320 | V22: 300 | W22: 323 | X22: 302 | Y22: ='11 区別，選択死因分類別死亡数・率'!$F$59 -> 314
A23: Se 19 | C23: 不整脈及び伝導障害 | D23: 146 | E23: 135 | F23: 140 | G23: 147 | H23: 200 | I23: 213 | J23: 242 | K23: 224 | L23: 175 | M23: 200 | N23: 256 | O23: 306 | P23: 316 | Q23: 330 | R23: 259 | S23: 308 | T23: 357 | U23: 238 | V23: 331 | W23: 377 | X23: 356 | Y23: ='11 区別，選択死因分類別死亡数・率'!$F$62 -> 379
A24: Se 20 | C24: 心 不 全 | D24: 427 | E24: 454 | F24: 461 | G24: 511 | H24: 561 | I24: 535 | J24: 526 | K24: 543 | L24: 540 | M24: 653 | N24: 723 | O24: 804 | P24: 971 | Q24: 950 | R24: 995 | S24: 1035 | T24: 1125 | U24: 1143 | V24: 1022 | W24: 1039 | X24: 1032 | Y24: ='11 区別，選択死因分類別死亡数・率'!$F$65 -> 1053
A25: Se 21 | B25: 脳血管疾患 | D25: 1278 | E25: 1292 | F25: 1345 | G25: 1307 | H25: 1418 | I25: 1439 | J25: 1341 | K25: 1415 | L25: 1468 | M25: 1423 | N25: 1598 | O25: 1408 | P25: 1492 | Q25: 1380 | R25: 1335 | S25: 1372 | T25: 1368 | U25: 1348 | V25: 1384 | W25: 1389 | X25: 1361 | Y25: ='11 区別，選択死因分類別死亡数・率'!$F$68 -> 1448
A26: Se 22 | B26: （再掲） | C26: くも膜下出血 | D26: 194 | E26: 190 | F26: 184 | G26: 204 | H26: 213 | I26: 245 | J26: 200 | K26: 221 | L26: 237 | M26: 216 | N26: 258 | O26: 208 | P26: 201 | Q26: 170 | R26: 150 | S26: 170 | T26: 145 | U26: 163 | V26: 147 | W26: 147 | X26: 172 | Y26: ='11 区別，選択死因分類別死亡数・率'!$F$71 -> 180
A27: Se 23 | C27: 脳 内 出 血 | D27: 271 | E27: 293 | F27: 308 | G27: 311 | H27: 331 | I27: 283 | J27: 296 | K27: 373 | L27: 372 | M27: 307 | N27: 405 | O27: 336 | P27: 370 | Q27: 376 | R27: 373 | S27: 369 | T27: 421 | U27: 372 | V27: 403 | W27: 403 | X27: 390 | Y27: ='11 区別，選択死因分類別死亡数・率'!$F$74 -> 456
A28: Se 24 | C28: 脳 梗 塞 | D28: 761 | E28: 772 | F28: 828 | G28: 765 | H28: 846 | I28: 884 | J28: 827 | K28: 801 | L28: 837 | M28: 875 | N28: 895 | O28: 845 | P28: 888 | Q28: 811 | R28: 786 | S28: 814 | T28: 785 | U28: 785 | V28: 807 | W28: 819 | X28: 773 | Y28: ='11 区別，選択死因分類別死亡数・率'!$F$77 -> 783
A29: Se 25 | B29: 大動脈瘤及び解離 | D29: 92 | E29: 82 | F29: 89 | G29: 88 | H29: 94 | I29: 107 | J29: 128 | K29: 139 | L29: 134 | M29: 128 | N29: 151 | O29: 152 | P29: 149 | Q29: 192 | R29: 200 | S29: 207 | T29: 197 | U29: 214 | V29: 230 | W29: 223 | X29: 250 | Y29: ='11 区別，選択死因分類別死亡数・率'!$F$80 -> 266
A30: Se 26 | B30: 肺 炎 | D30: 727 | E30: 689 | F30: 728 | G30: 748 | H30: 910 | I30: 820 | J30: 803 | K30: 820 | L30: 960 | M30: 1022 | N30: 1054 | O30: 1117 | P30: 1172 | Q30: 1298 | R30: 1222 | S30: 1439 | T30: 1473 | U30: 1581 | V30: 1477 | W30: 1597 | X30: 1567 | Y30: ='11 区別，選択死因分類別死亡数・率'!$F$83 -> 1736
A31: Se 27 | B31: 慢性閉塞性肺疾患 | D31: 129 | E31: 102 | F31: 122 | G31: 93 | H31: 120 | I31: 125 | J31: 128 | K31: 121 | L31: 144 | M31: 147 | N31: 138 | O31: 134 | P31: 164 | Q31: 179 | R31: 172 | S31: 194 | T31: 181 | U31: 191 | V31: 191 | W31: 183 | X31: 193 | Y31: ='11 区別，選択死因分類別死亡数・率'!$F$86 -> 201
A32: Se 28 | B32: 喘 息 | D32: 61 | E32: 47 | F32: 52 | G32: 52 | H32: 47 | I32: 54 | J32: 38 | K32: 34 | L32: 31 | M32: 19 | N32: 32 | O32: 29 | P32: 28 | Q32: 26 | R32: 27 | S32: 24 | T32: 30 | U32: 27 | V32: 20 | W32: 22 | X32: 19 | Y32: ='11 区別，選択死因分類別死亡数・率'!$F$89 -> 18
A33: Se 29 | B33: 肝 疾 患 | D33: 156 | E33: 158 | F33: 183 | G33: 145 | H33: 166 | I33: 148 | J33: 135 | K33: 150 | L33: 148 | M33: 166 | N33: 169 | O33: 159 | P33: 157 | Q33: 181 | R33: 201 | S33: 167 | T33: 184 | U33: 223 | V33: 183 | W33: 212 | X33: 228 | Y33: ='11 区別，選択死因分類別死亡数・率'!$F$92 -> 216
A34: Se 30 | B34: 腎 不 全 | D34: 204 | E34: 228 | F34: 234 | G34: 198 | H34: 222 | I34: 228 | J34: 257 | K34: 289 | L34: 278 | M34: 236 | N34: 291 | O34: 287 | P34: 326 | Q34: 341 | R34: 356 | S34: 329 | T34: 411 | U34: 387 | V34: 407 | W34: 400 | X34: 418 | Y34: ='11 区別，選択死因分類別死亡数・率'!$F$95 -> 436
A35: Se 31 | B35: 老 衰 | D35: 42 | E35: 48 | F35: 55 | G35: 53 | H35: 71 | I35: 80 | J35: 84 | K35: 98 | L35: 104 | M35: 119 | N35: 121 | O35: 128 | P35: 151 | Q35: 169 | R35: 231 | S35: 222 | T35: 256 | U35: 392 | V35: 514 | W35: 626 | X35: 715 | Y35: ='11 区別，選択死因分類別死亡数・率'!$F$98 -> 893
A36: Se 32 | B36: 不慮の事故 | D36: 377 | E36: 356 | F36: 370 | G36: 322 | H36: 360 | I36: 355 | J36: 375 | K36: 363 | L36: 390 | M36: 399 | N36: 346 | O36: 415 | P36: 372 | Q36: 367 | R36: 383 | S36: 387 | T36: 449 | U36: 366 | V36: 370 | W36: 411 | X36: 395 | Y36: ='11 区別，選択死因分類別死亡数・率'!$F$101 -> 449
A37: Se 33 | B37: （再掲） | C37: 交 通 事 故 | D37: 171 | E37: 156 | F37: 172 | G37: 111 | H37: 134 | I37: 130 | J37: 143 | K37: 133 | L37: 116 | M37: 105 | N37: 86 | O37: 91 | P37: 84 | Q37: 64 | R37: 55 | S37: 67 | T37: 57 | U37: 51 | V37: 53 | W37: 57 | X37: 49 | Y37: ='11 区別，選択死因分類別死亡数・率'!$F$104 -> 50
A38: Se 34 | B38: 自 殺 | D38: 228 | E38: 248 | F38: 308 | G38: 413 | H38: 442 | I38: 475 | J38: 351 | K38: 394 | L38: 467 | M38: 442 | N38: 472 | O38: 409 | P38: 419 | Q38: 477 | R38: 420 | S38: 431 | T38: 434 | U38: 403 | V38: 374 | W38: 345 | X38: 322 | Y38: ='11 区別，選択死因分類別死亡数・率'!$F$107 -> 315

Sheet 11 区別，選択死因分類別死亡数・率
A1: 11 区・性別にみた選択死因分類別死亡数・粗死亡率及び年齢調整死亡率（人口10万対)
AL2: ='3 月・性別，区別死亡数'!$O$2 -> 平成28年
A3: 選択死因 分類コード | B3: 死因・性 | F3: 死 亡 数 | Q3: 粗 死 亡 率 （人口10万対） | AB3: 年 齢 調 整 死 亡 率 （人口10万対） 1)
F4: 総数 | G4: 中央区 | H4: 北区 | I4: 東区 | J4: 白石区 | K4: 厚別区 | L4: 豊平区 | M4: 清田区 | N4: 南区 | O4: 西区 | P4: 手稲区 | Q4: 総数 | R4: 中央区 | S4: 北区 | T4: 東区 | U4: 白石区 | V4: 厚別区 | W4: 豊平区 | X4: 清田区 | Y4: 南区 | Z4: 西区 | AA4: 手稲区 | AB4: 総数 | AC4: 中央区 | AD4: 北区 | AE4: 東区 | AF4: 白石区 | AG4: 厚別区 | AH4: 豊平区 | AI4: 清田区 | AJ4: 南区 | AK4: 西区 | AL4: 手稲区
B5: 死 亡 総 数 | E5: 総数 | F5: ='12 区別，5歳階級別，選択死因分類別死亡数'!F7 -> 18504 | G5: ='12-10'!F7 -> 1995 | H5: ='12-20'!F7 -> 2558 | I5: ='12-30'!F7 -> 2449 | J5: ='12-40'!F7 -> 2027 | K5: ='12-45'!F7 -> 1282 | L5: ='12-50'!F7 -> 2074 | M5: ='12-55'!F7 -> 1036 | N5: ='12-60'!F7 -> 1607 | O5: ='12-70'!F7 -> 2042 | P5: ='12-75'!F7 -> 1434 | Q5: =F5/[1]人口!$B$39*100000 -> 944.8505289 | R5: =G5/[1]人口!$C$39*100000 -> 831.8739054 | S5: =H5/[1]人口!$D$39*100000 -> 891.5843223 | T5: =I5/[1]人口!$E$39*100000 -> 929.4964247 | U5: =J5/[1]人口!$F$39*100000 -> 964.4527551 | V5: =K5/[1]人口!$G$39*100000 -> 1010.196523 | W5: =L5/[1]人口!$H$39*100000 -> 944.18647 | X5: =M5/[1]人口!$I$39*100000 -> 893.8354687 | Y5: =N5/[1]人口!$J$39*100000 -> 1146.350511 | Z5: =O5/[1]人口!$K$39*100000 -> 953.4526472 | AA5: =P5/[1]人口!$L$39*100000 -> 1015.516008 | AB5: =調整死亡率算出!E11 -> 360.0013918 | AC5: ='12-10 算出'!E11 -> 361.9335098 | AD5: ='12-20 算出'!E11 -> 339.2751639 | AE5: ='12-30 算出'!E11 -> 379.4552604 | AF5: ='12-40 算出'!E11 -> 409.4768166 | AG5: ='12-45 算出'!E11 -> 340.8282966 | AH5: ='12-50 算出'!E11 -> 378.6550118 | AI5: ='12-55 算出'!E11 -> 322.5651455 | AJ5: ='12-60 算出'!E11 -> 331.3819134 | AK5: ='12-70 算出'!E11 -> 353.7328895 | AL5: ='12-75 算出'!E11 -> 360.7696393
E6: 男 | F6: ='12 区別，5歳階級別，選択死因分類別死亡数'!F8 -> 9654 | G6: ='12-10'!F8 -> 979 | H6: ='12-20'!F8 -> 1298 | I6: ='12-30'!F8 -> 1311 | J6: ='12-40'!F8 -> 1045 | K6: ='12-45'!F8 -> 670 | L6: ='12-50'!F8 -> 1075 | M6: ='12-55'!F8 -> 548 | N6: ='12-60'!F8 -> 873 | O6: ='12-70'!F8 -> 1109 | P6: ='12-75'!F8 -> 746 | Q6: =F6/[1]人口!$B$40*100000 -> 1057.956371 | R6: =G6/[1]人口!$C$40*100000 -> 901.1662693 | S6: =H6/[1]人口!$D$40*100000 -> 959.0235397 | T6: =I6/[1]人口!$E$40*100000 -> 1046.840315 | U6: =J6/[1]人口!$F$40*100000 -> 1052.917943 | V6: =K6/[1]人口!$G$40*100000 -> 1157.387414 | W6: =L6/[1]人口!$H$40*100000 -> 1055.815826 | X6: =M6/[1]人口!$I$40*100000 -> 1001.718276 | Y6: =N6/[1]人口!$J$40*100000 -> 1349.513062 | Z6: =O6/[1]人口!$K$40*100000 -> 1123.743515 | AA6: =P6/[1]人口!$L$40*100000 -> 1125.884785 | AB6: =調整死亡率算出!E12 -> 500.400258 | AC6: ='12-10 算出'!E12 -> 509.8963193 | AD6: ='12-20 算出'!E12 -> 464.1277625 | AE6: ='12-30 算出'!E12 -> 532.7043655 | AF6: ='12-40 算出'!E12 -> 548.0603039 | AG6: ='12-45 算出'!E12 -> 477.4746114 | AH6: ='12-50 算出'!E12 -> 515.5122074 | AI6: ='12-55 算出'!E12 -> 444.0087108 | AJ6: ='12-60 算出'!E12 -> 483.7530879 | AK6: ='12-70 算出'!E12 -> 511.7610503 | AL6: ='12-75 算出'!E12 -> 490.7535025
E7: 女 | F7: ='12 区別，5歳階級別，選択死因分類別死亡数'!F9 -> 8850 | G7: ='12-10'!F9 -> 1016 | H7: ='12-20'!F9 -> 1260 | I7: ='12-30'!F9 -> 1138 | J7: ='12-40'!F9 -> 982 | K7: ='12-45'!F9 -> 612 | L7: ='12-50'!F9 -> 999 | M7: ='12-55'!F9 -> 488 | N7: ='12-60'!F9 -> 734 | O7: ='12-70'!F9 -> 933 | P7: ='12-75'!F9 -> 688 | Q7: =F7/[1]人口!$B$41*100000 -> 846.1684822 | R7: =G7/[1]人口!$C$41*100000 -> 774.4905971 | S7: =H7/[1]人口!$D$41*100000 -> 831.3594046 | T7: =I7/[1]人口!$E$41*100000 -> 823.1941089 | U7: =J7/[1]人口!$F$41*100000 -> 885.2988109 | V7: =K7/[1]人口!$G$41*100000 -> 886.73805 | W7: =L7/[1]人口!$H$41*100000 -> 847.7380922 | X7: =M7/[1]人口!$I$41*100000 -> 797.3986503 | Y7: =N7/[1]人口!$J$41*100000 -> 972.2626964 | Z7: =O7/[1]人口!$K$41*100000 -> 807.9251132 | AA7: =P7/[1]人口!$L$41*100000 -> 917.9452969 | AB7: =調整死亡率算出!E13 -> 256.8737747 | AC7: ='12-10 算出'!E13 -> 257.3034466 | AD7: ='12-20 算出'!E13 -> 243.5190508 | AE7: ='12-30 算出'!E13 -> 266.139766 | AF7: ='12-40 算出'!E13 -> 308.4668494 | AG7: ='12-45 算出'!E13 -> 242.6591434 | AH7: ='12-50 算出'!E13 -> 284.2116209 | AI7: ='12-55 算出'!E13 -> 230.964973 | AJ7: ='12-60 算出'!E13 -> 215.1065103 | AK7: ='12-70 算出'!E13 -> 239.3463512 | AL7: ='12-75 算出'!E13 -> 263.5551
A8: Se 01 | B8: 結 核 | E8: 総数 | F8: ='12 区別，5歳階級別，選択死因分類別死亡数'!F10 -> 14 | G8: ='12-10'!F10 -> 0 | H8: ='12-20'!F10 -> 3 | I8: ='12-30'!F10 -> 1 | J8: ='12-40'!F10 -> 4 | K8: ='12-45'!F10 -> 0 | L8: ='12-50'!F10 -> 2 | M8: ='12-55'!F10 -> 0 | N8: ='12-60'!F10 -> 1 | O8: ='12-70'!F10 -> 3 | P8: ='12-75'!F10 -> 0 | Q8: =F8/[1]人口!$B$39*100000 -> 0.7148674559 | R8: =G8/[1]人口!$C$39*100000 -> 0 | S8: =H8/[1]人口!$D$39*100000 -> 1.045642286 | T8: =I8/[1]人口!$E$39*100000 -> 0.3795412106 | U8: =J8/[1]人口!$F$39*100000 -> 1.903212146 | V8: =K8/[1]人口!$G$39*100000 -> 0 | W8: =L8/[1]人口!$H$39*100000 -> 0.9104980424 | X8: =M8/[1]人口!$I$39*100000 -> 0 | Y8: =N8/[1]人口!$J$39*100000 -> 0.713348171 | Z8: =O8/[1]人口!$K$39*100000 -> 1.400762949 | AA8: =P8/[1]人口!$L$39*100000 -> 0 | AB8: =調整死亡率算出!E14 -> 0.237370111 | AC8: ='12-10 算出'!E14 -> 0 | AD8: ='12-20 算出'!E14 -> 0.1956497416 | AE8: ='12-30 算出'!E14 -> 0.07391409684 | AF8: ='12-40 算出'!E14 -> 0.9076598571 | AG8: ='12-45 算出'!E14 -> 0 | AH8: ='12-50 算出'!E14 -> 0.5204986319 | AI8: ='12-55 算出'!E14 -> 0 | AJ8: ='12-60 算出'!E14 -> 0.09664509282 | AK8: ='12-70 算出'!E14 -> 0.3614825105 | AL8: ='12-75 算出'!E14 -> 0
E9: 男 | F9: ='12 区別，5歳階級別，選択死因分類別死亡数'!F11 -> 12 | G9: ='12-10'!F11 -> 0 | H9: ='12-20'!F11 -> 3 | I9: ='12-30'!F11 -> 1 | J9: ='12-40'!F11 -> 3 | K9: ='12-45'!F11 -> 0 | L9: ='12-50'!F11 -> 1 | M9: ='12-55'!F11 -> 0 | N9: ='12-60'!F11 -> 1 | O9: ='12-70'!F11 -> 3 | P9: ='12-75'!F11 -> 0 | Q9: =F9/[1]人口!$B$40*100000 -> 1.315048317 | R9: =G9/[1]人口!$C$40*100000 -> 0 | S9: =H9/[1]人口!$D$40*100000 -> 2.216541309 | T9: =I9/[1]人口!$E$40*100000 -> 0.7985051983 | U9: =J9/[1]人口!$F$40*100000 -> 3.022730937 | V9: =K9/[1]人口!$G$40*100000 -> 0 | W9: =L9/[1]人口!$H$40*100000 -> 0.9821542571 | X9: =M9/[1]人口!$I$40*100000 -> 0 | Y9: =N9/[1]人口!$J$40*100000 -> 1.545833977 | Z9: =O9/[1]人口!$K$40*100000 -> 3.039883268 | AA9: =P9/[1]人口!$L$40*100000 -> 0 | AB9: =調整死亡率算出!E15 -> 0.5320893973 | AC9: ='12-10 算出'!E15 -> 0 | AD9: ='12-20 算出'!E15 -> 0.6592459602 | AE9: ='12-30 算出'!E15 -> 0.2466973906 | AF9: ='12-40 算出'!E15 -> 1.567376671 | AG9: ='12-45 算出'!E15 -> 0 | AH9: ='12-50 算出'!E15 -> 0.9315174007 | AI9: ='12-55 算出'!E15 -> 0 | AJ9: ='12-60 算出'!E15 -> 0.3091909421 | AK9: ='12-70 算出'!E15 -> 1.014724176 | AL9: ='12-75 算出'!E15 -> 0
E10: 女 | F10: ='12 区別，5歳階級別，選択死因分類別死亡数'!F12 -> 2 | G10: ='12-10'!F12 -> 0 | H10: ='12-20'!F12 -> 0 | I10: ='12-30'!F12 -> 0 | J10: ='12-40'!F12 -> 1 | K10: ='12-45'!F12 -> 0 | L10: ='12-50'!F12 -> 1 | M10: ='12-55'!F12 -> 0 | N10: ='12-60'!F12 -> 0 | O10: ='12-70'!F12 -> 0 | P10: ='12-75'!F12 -> 0 | Q10: =F10/[1]人口!$B$41*100000 -> 0.1912245157 | R10: =G10/[1]人口!$C$41*100000 -> 0 | S10: =H10/[1]人口!$D$41*100000 -> 0 | T10: =I10/[1]人口!$E$41*100000 -> 0 | U10: =J10/[1]人口!$F$41*100000 -> 0.901526284 | V10: =K10/[1]人口!$G$41*100000 -> 0 | W10: =L10/[1]人口!$H$41*100000 -> 0.8485866789 | X10: =M10/[1]人口!$I$41*100000 -> 0 | Y10: =N10/[1]人口!$J$41*100000 -> 0 | Z10: =O10/[1]人口!$K$41*100000 -> 0 | AA10: =P10/[1]人口!$L$41*100000 -> 0 | AB10: =調整死亡率算出!E16 -> 0.05288429534 | AC10: ='12-10 算出'!E16 -> 0 | AD10: ='12-20 算出'!E16 -> 0 | AE10: ='12-30 算出'!E16 -> 0 | AF10: ='12-40 算出'!E16 -> 0.384194098 | AG10: ='12-45 算出'!E16 -> 0 | AH10: ='12-50 算出'!E16 -> 0.1211026581 | AI10: ='12-55 算出'!E16 -> 0 | AJ10: ='12-60 算出'!E16 -> 0 | AK10: ='12-70 算出'!E16 -> 0 | AL10: ='12-75 算出'!E16 -> 0
A11: Se 02 | B11: 悪性新生物 | E11: 総数 | F11: ='12 区別，5歳階級別，選択死因分類別死亡数'!F13 -> 6003 | G11: ='12-10'!F13 -> 669 | H11: ='12-20'!F13 -> 807 | I11: ='12-30'!F13 -> 793 | J11: ='12-40'!F13 -> 652 | K11: ='12-45'!F13 -> 415 | L11: ='12-50'!F13 -> 656 | M11: ='12-55'!F13 -> 325 | N11: ='12-60'!F13 -> 488 | O11: ='12-70'!F13 -> 691 | P11: ='12-75'!F13 -> 507 | Q11: =F11/[1]人口!$B$39*100000 -> 306.5249527 | R11: =G11/[1]人口!$C$39*100000 -> 278.9592194 | S11: =H11/[1]人口!$D$39*100000 -> 281.2777749 | T11: =I11/[1]人口!$E$39*100000 -> 300.97618 | U11: =J11/[1]人口!$F$39*100000 -> 310.2235798 | V11: =K11/[1]人口!$G$39*100000 -> 327.0136952 | W11: =L11/[1]人口!$H$39*100000 -> 298.6433579 | X11: =M11/[1]人口!$I$39*100000 -> 280.4020534 | Y11: =N11/[1]人口!$J$39*100000 -> 348.1139074 | Z11: =O11/[1]人口!$K$39*100000 -> 322.6423992 | AA11: =P11/[1]人口!$L$39*100000 -> 359.0422707 | AB11: =調整死亡率算出!E17 -> 134.3085063 | AC11: ='12-10 算出'!E17 -> 137.4446973 | AD11: ='12-20 算出'!E17 -> 122.7119584 | AE11: ='12-30 算出'!E17 -> 140.9356517 | AF11: ='12-40 算出'!E17 -> 146.8034939 | AG11: ='12-45 算出'!E17 -> 127.0691379 | AH11: ='12-50 算出'!E17 -> 139.7532902 | AI11: ='12-55 算出'!E17 -> 118.3953413 | AJ11: ='12-60 算出'!E17 -> 119.4136752 | AK11: ='12-70 算出'!E17 -> 140.8442259 | AL11: ='12-75 算出'!E17 -> 143.1736061
E12: 男 | F12: ='12 区別，5歳階級別，選択死因分類別死亡数'!F14 -> 3413 | G12: ='12-10'!F14 -> 359 | H12: ='12-20'!F14 -> 454 | I12: ='12-30'!F14 -> 442 | J12: ='12-40'!F14 -> 374 | K12: ='12-45'!F14 -> 238 | L12: ='12-50'!F14 -> 373 | M12: ='12-55'!F14 -> 195 | N12: ='12-60'!F14 -> 301 | O12: ='12-70'!F14 -> 393 | P12: ='12-75'!F14 -> 284 | Q12: =F12/[1]人口!$B$40*100000 -> 374.0216588 | R12: =G12/[1]人口!$C$40*100000 -> 330.4583153 | S12: =H12/[1]人口!$D$40*100000 -> 335.4365848 | T12: =I12/[1]人口!$E$40*100000 -> 352.9392976 | U12: =J12/[1]人口!$F$40*100000 -> 376.8337901 | V12: =K12/[1]人口!$G$40*100000 -> 411.1316485 | W12: =L12/[1]人口!$H$40*100000 -> 366.3435379 | X12: =M12/[1]人口!$I$40*100000 -> 356.4508463 | Y12: =N12/[1]人口!$J$40*100000 -> 465.2960272 | Z12: =O12/[1]人口!$K$40*100000 -> 398.2247082 | AA12: =P12/[1]人口!$L$40*100000 -> 428.6210175 | AB12: =調整死亡率算出!E18 -> 183.5352223 | AC12: ='12-10 算出'!E18 -> 190.9730792 | AD12: ='12-20 算出'!E18 -> 165.4790436 | AE12: ='12-30 算出'!E18 -> 186.5736567 | AF12: ='12-40 算出'!E18 -> 201.199538 | AG12: ='12-45 算出'!E18 -> 176.5295554 | AH12: ='12-50 算出'!E18 -> 187.2200897 | AI12: ='12-55 算出'!E18 -> 164.8763238 | AJ12: ='12-60 算出'!E18 -> 175.9113171 | AK12: ='12-70 算出'!E18 -> 193.7256708 | AL12: ='12-75 算出'!E18 -> 192.9651758
E13: 女 | F13: ='12 区別，5歳階級別，選択死因分類別死亡数'!F15 -> 2590 | G13: ='12-10'!F15 -> 310 | H13: ='12-20'!F15 -> 353 | I13: ='12-30'!F15 -> 351 | J13: ='12-40'!F15 -> 278 | K13: ='12-45'!F15 -> 177 | L13: ='12-50'!F15 -> 283 | M13: ='12-55'!F15 -> 130 | N13: ='12-60'!F15 -> 187 | O13: ='12-70'!F15 -> 298 | P13: ='12-75'!F15 -> 223 | Q13: =F13/[1]人口!$B$41*100000 -> 247.6357479 | R13: =G13/[1]人口!$C$41*100000 -> 236.3111074 | S13: =H13/[1]人口!$D$41*100000 -> 232.9125951 | T13: =I13/[1]人口!$E$41*100000 -> 253.9025766 | U13: =J13/[1]人口!$F$41*100000 -> 250.624307 | V13: =K13/[1]人口!$G$41*100000 -> 256.4585537 | W13: =L13/[1]人口!$H$41*100000 -> 240.1500301 | X13: =M13/[1]人口!$I$41*100000 -> 212.4217716 | Y13: =N13/[1]人口!$J$41*100000 -> 247.7018041 | Z13: =O13/[1]人口!$K$41*100000 -> 258.051108 | AA13: =P13/[1]人口!$L$41*100000 -> 297.5316878 | AB13: =調整死亡率算出!E19 -> 99.10115779 | AC13: ='12-10 算出'!E19 -> 102.3763989 | AD13: ='12-20 算出'!E19 -> 92.28358802 | AE13: ='12-30 算出'!E19 -> 108.2331471 | AF13: ='12-40 算出'!E19 -> 108.8638884 | AG13: ='12-45 算出'!E19 -> 90.29347946 | AH13: ='12-50 算出'!E19 -> 108.1469237 | AI13: ='12-55 算出'!E19 -> 83.0080103 | AJ13: ='12-60 算出'!E19 -> 76.87245884 | AK13: ='12-70 算出'!E19 -> 102.6513158 | AL13: ='12-75 算出'!E19 -> 105.6150837
A14: Se 03 | B14: (再掲) | C14: 食道の悪性新生物 | E14: 総数 | F14: ='12 区別，5歳階級別，選択死因分類別死亡数'!F16 -> 187 | G14: ='12-10'!F16 -> 25 | H14: ='12-20'!F16 -> 20 | I14: ='12-30'!F16 -> 23 | J14: ='12-40'!F16 -> 22 | K14: ='12-45'!F16 -> 11 | L14: ='12-50'!F16 -> 18 | M14: ='12-55'!F16 -> 12 | N14: ='12-60'!F16 -> 20 | O14: ='12-70'!F16 -> 22 | P14: ='12-75'!F16 -> 14 | Q14: =F14/[1]人口!$B$39*100000 -> 9.548586733 | R14: =G14/[1]人口!$C$39*100000 -> 10.42448503 | S14: =H14/[1]人口!$D$39*100000 -> 6.970948572 | T14: =I14/[1]人口!$E$39*100000 -> 8.729447843 | U14: =J14/[1]人口!$F$39*100000 -> 10.4676668 | V14: =K14/[1]人口!$G$39*100000 -> 8.667832884 | W14: =L14/[1]人口!$H$39*100000 -> 8.194482382 | X14: =M14/[1]人口!$I$39*100000 -> 10.35330659 | Y14: =N14/[1]人口!$J$39*100000 -> 14.26696342 | Z14: =O14/[1]人口!$K$39*100000 -> 10.27226163 | AA14: =P14/[1]人口!$L$39*100000 -> 9.914382228 | AB14: =調整死亡率算出!E20 -> 4.419662877 | AC14: ='12-10 算出'!E20 -> 6.092490623 | AD14: ='12-20 算出'!E20 -> 2.734637709 | AE14: ='12-30 算出'!E20 -> 4.496229033 | AF14: ='12-40 算出'!E20 -> 5.223121384 | AG14: ='12-45 算出'!E20 -> 4.494352981 | AH14: ='12-50 算出'!E20 -> 3.908640936 | AI14: ='12-55 算出'!E20 -> 4.311110449 | AJ14: ='12-60 算出'!E20 -> 4.900833906 | AK14: ='12-70 算出'!E20 -> 4.594092517 | AL14: ='12-75 算出'!E20 -> 4.112817982
E15: 男 | F15: ='12 区別，5歳階級別，選択死因分類別死亡数'!F17 -> 145 | G15: ='12-10'!F17 -> 19 | H15: ='12-20'!F17 -> 13 | I15: ='12-30'!F17 -> 19 | J15: ='12-40'!F17 -> 20 | K15: ='12-45'!F17 -> 9 | L15: ='12-50'!F17 -> 12 | M15: ='12-55'!F17 -> 10 | N15: ='12-60'!F17 -> 17 | O15: ='12-70'!F17 -> 17 | P15: ='12-75'!F17 -> 9 | Q15: =F15/[1]人口!$B$40*100000 -> 15.89016716 | R15: =G15/[1]人口!$C$40*100000 -> 17.4894373 | S15: =H15/[1]人口!$D$40*100000 -> 9.605012339 | T15: =I15/[1]人口!$E$40*100000 -> 15.17159877 | U15: =J15/[1]人口!$F$40*100000 -> 20.15153958 | V15: =K15/[1]人口!$G$40*100000 -> 15.54699511 | W15: =L15/[1]人口!$H$40*100000 -> 11.78585109 | X15: =M15/[1]人口!$I$40*100000 -> 18.27953058 | Y15: =N15/[1]人口!$J$40*100000 -> 26.27917762 | Z15: =O15/[1]人口!$K$40*100000 -> 17.22600519 | AA15: =P15/[1]人口!$L$40*100000 -> 13.58306041 | AB15: =調整死亡率算出!E21 -> 8.018240019 | AC15: ='12-10 算出'!E21 -> 11.00223733 | AD15: ='12-20 算出'!E21 -> 4.326603457 | AE15: ='12-30 算出'!E21 -> 8.337603249 | AF15: ='12-40 算出'!E21 -> 11.37823786 | AG15: ='12-45 算出'!E21 -> 7.93971899 | AH15: ='12-50 算出'!E21 -> 5.883989484 | AI15: ='12-55 算出'!E21 -> 8.35605376 | AJ15: ='12-60 算出'!E21 -> 9.892103776 | AK15: ='12-70 算出'!E21 -> 8.423024999 | AL15: ='12-75 算出'!E21 -> 5.871120287
E16: 女 | F16: ='12 区別，5歳階級別，選択死因分類別死亡数'!F18 -> 42 | G16: ='12-10'!F18 -> 6 | H16: ='12-20'!F18 -> 7 | I16: ='12-30'!F18 -> 4 | J16: ='12-40'!F18 -> 2 | K16: ='12-45'!F18 -> 2 | L16: ='12-50'!F18 -> 6 | M16: ='12-55'!F18 -> 2 | N16: ='12-60'!F18 -> 3 | O16: ='12-70'!F18 -> 5 | P16: ='12-75'!F18 -> 5 | Q16: =F16/[1]人口!$B$41*100000 -> 4.015714831 | R16: =G16/[1]人口!$C$41*100000 -> 4.573763369 | S16: =H16/[1]人口!$D$41*100000 -> 4.618663359 | T16: =I16/[1]人口!$E$41*100000 -> 2.893476657 | U16: =J16/[1]人口!$F$41*100000 -> 1.803052568 | V16: =K16/[1]人口!$G$41*100000 -> 2.897836765 | W16: =L16/[1]人口!$H$41*100000 -> 5.091520073 | X16: =M16/[1]人口!$I$41*100000 -> 3.268027255 | Y16: =N16/[1]人口!$J$41*100000 -> 3.973825734 | Z16: =O16/[1]人口!$K$41*100000 -> 4.329716577 | AA16: =P16/[1]人口!$L$41*100000 -> 6.671114076 | AB16: =調整死亡率算出!E22 -> 1.690449677 | AC16: ='12-10 算出'!E22 -> 2.431712348 | AD16: ='12-20 算出'!E22 -> 1.614677905 | AE16: ='12-30 算出'!E22 -> 1.662503935 | AF16: ='12-40 算出'!E22 -> 0.5194170246 | AG16: ='12-45 算出'!E22 -> 1.767313237 | AH16: ='12-50 算出'!E22 -> 2.662307664 | AI16: ='12-55 算出'!E22 -> 0.978288601 | AJ16: ='12-60 算出'!E22 -> 1.115390093 | AK16: ='12-70 算出'!E22 -> 1.642349377 | AL16: ='12-75 算出'!E22 -> 2.745813629
A17: Se 04 | C17: 胃の悪性新生物 | E17: 総数 | F17: ='12 区別，5歳階級別，選択死因分類別死亡数'!F19 -> 599 | G17: ='12-10'!F19 -> 75 | H17: ='12-20'!F19 -> 79 | I17: ='12-30'!F19 -> 91 | J17: ='12-40'!F19 -> 72 | K17: ='12-45'!F19 -> 33 | L17: ='12-50'!F19 -> 54 | M17: ='12-55'!F19 -> 32 | N17: ='12-60'!F19 -> 51 | O17: ='12-70'!F19 -> 63 | P17: ='12-75'!F19 -> 49 | Q17: =F17/[1]人口!$B$39*100000 -> 30.58611472 | R17: =G17/[1]人口!$C$39*100000 -> 31.27345509 | S17: =H17/[1]人口!$D$39*100000 -> 27.53524686 | T17: =I17/[1]人口!$E$39*100000 -> 34.53825016 | U17: =J17/[1]人口!$F$39*100000 -> 34.25781863 | V17: =K17/[1]人口!$G$39*100000 -> 26.00349865 | W17: =L17/[1]人口!$H$39*100000 -> 24.58344715 | X17: =M17/[1]人口!$I$39*100000 -> 27.60881757 | Y17: =N17/[1]人口!$J$39*100000 -> 36.38075672 | Z17: =O17/[1]人口!$K$39*100000 -> 29.41602193 | AA17: =P17/[1]人口!$L$39*100000 -> 34.7003378 | AB17: =調整死亡率算出!E23 -> 12.61062505 | AC17: ='12-10 算出'!E23 -> 14.42146149 | AD17: ='12-20 算出'!E23 -> 10.99505515 | AE17: ='12-30 算出'!E23 -> 14.13284809 | AF17: ='12-40 算出'!E23 -> 15.46972562 | AG17: ='12-45 算出'!E23 -> 9.536616843 | AH17: ='12-50 算出'!E23 -> 11.0177304 | AI17: ='12-55 算出'!E23 -> 10.60858102 | AJ17: ='12-60 算出'!E23 -> 11.85259345 | AK17: ='12-70 算出'!E23 -> 12.34872504 | AL17: ='12-75 算出'!E23 -> 14.52673597
E18: 男 | F18: ='12 区別，5歳階級別，選択死因分類別死亡数'!F20 -> 379 | G18: ='12-10'!F20 -> 37 | H18: ='12-20'!F20 -> 48 | I18: ='12-30'!F20 -> 60 | J18: ='12-40'!F20 -> 41 | K18: ='12-45'!F20 -> 23 | L18: ='12-50'!F20 -> 39 | M18: ='12-55'!F20 -> 23 | N18: ='12-60'!F20 -> 34 | O18: ='12-70'!F20 -> 42 | P18: ='12-75'!F20 -> 32 | Q18: =F18/[1]人口!$B$40*100000 -> 41.53360935 | R18: =G18/[1]人口!$C$40*100000 -> 34.0583779 | S18: =H18/[1]人口!$D$40*100000 -> 35.46466094 | T18: =I18/[1]人口!$E$40*100000 -> 47.9103119 | U18: =J18/[1]人口!$F$40*100000 -> 41.31065613 | V18: =K18/[1]人口!$G$40*100000 -> 39.73120973 | W18: =L18/[1]人口!$H$40*100000 -> 38.30401603 | X18: =M18/[1]人口!$I$40*100000 -> 42.04292034 | Y18: =N18/[1]人口!$J$40*100000 -> 52.55835523 | Z18: =O18/[1]人口!$K$40*100000 -> 42.55836576 | AA18: =P18/[1]人口!$L$40*100000 -> 48.29532592 | AB18: =調整死亡率算出!E24 -> 19.86687185 | AC18: ='12-10 算出'!E24 -> 19.05323513 | AD18: ='12-20 算出'!E24 -> 16.87489223 | AE18: ='12-30 算出'!E24 -> 23.18160517 | AF18: ='12-40 算出'!E24 -> 22.58374539 | AG18: ='12-45 算出'!E24 -> 17.25700087 | AH18: ='12-50 算出'!E24 -> 19.33579961 | AI18: ='12-55 算出'!E24 -> 19.31223478 | AJ18: ='12-60 算出'!E24 -> 18.14769362 | AK18: ='12-70 算出'!E24 -> 20.95230251 | AL18: ='12-75 算出'!E24 -> 20.81406488
E19: 女 | F19: ='12 区別，5歳階級別，選択死因分類別死亡数'!F21 -> 220 | G19: ='12-10'!F21 -> 38 | H19: ='12-20'!F21 -> 31 | I19: ='12-30'!F21 -> 31 | J19: ='12-40'!F21 -> 31 | K19: ='12-45'!F21 -> 10 | L19: ='12-50'!F21 -> 15 | M19: ='12-55'!F21 -> 9 | N19: ='12-60'!F21 -> 17 | O19: ='12-70'!F21 -> 21 | P19: ='12-75'!F21 -> 17 | Q19: =F19/[1]人口!$B$41*100000 -> 21.03469673 | R19: =G19/[1]人口!$C$41*100000 -> 28.967168 | S19: =H19/[1]人口!$D$41*100000 -> 20.45408059 | T19: =I19/[1]人口!$E$41*100000 -> 22.42444409 | U19: =J19/[1]人口!$F$41*100000 -> 27.9473148 | V19: =K19/[1]人口!$G$41*100000 -> 14.48918382 | W19: =L19/[1]人口!$H$41*100000 -> 12.72880018 | X19: =M19/[1]人口!$I$41*100000 -> 14.70612265 | Y19: =N19/[1]人口!$J$41*100000 -> 22.51834583 | Z19: =O19/[1]人口!$K$41*100000 -> 18.18480962 | AA19: =P19/[1]人口!$L$41*100000 -> 22.68178786 | AB19: =調整死亡率算出!E25 -> 7.302194696 | AC19: ='12-10 算出'!E25 -> 11.53464358 | AD19: ='12-20 算出'!E25 -> 6.694222166 | AE19: ='12-30 算出'!E25 -> 7.778505524 | AF19: ='12-40 算出'!E25 -> 9.803440951 | AG19: ='12-45 算出'!E25 -> 3.73126917 | AH19: ='12-50 算出'!E25 -> 5.02508477 | AI19: ='12-55 算出'!E25 -> 3.634672427 | AJ19: ='12-60 算出'!E25 -> 7.230163281 | AK19: ='12-70 算出'!E25 -> 5.912103389 | AL19: ='12-75 算出'!E25 -> 10.04189869
A20: Se 05 | C20: 結腸の悪性新生物 | E20: 総数 | F20: ='12 区別，5歳階級別，選択死因分類別死亡数'!F22 -> 569 | G20: ='12-10'!F22 -> 64 | H20: ='12-20'!F22 -> 85 | I20: ='12-30'!F22 -> 75 | J20: ='12-40'!F22 -> 51 | K20: ='12-45'!F22 -> 41 | L20: ='12-50'!F22 -> 55 | M20: ='12-55'!F22 -> 32 | N20: ='12-60'!F22 -> 48 | O20: ='12-70'!F22 -> 69 | P20: ='12-75'!F22 -> 49 | Q20: =F20/[1]人口!$B$39*100000 -> 29.05425589 | R20: =G20/[1]人口!$C$39*100000 -> 26.68668168 | S20: =H20/[1]人口!$D$39*100000 -> 29.62653143 | T20: =I20/[1]人口!$E$39*100000 -> 28.46559079 | U20: =J20/[1]人口!$F$39*100000 -> 24.26595487 | V20: =K20/[1]人口!$G$39*100000 -> 32.30737711 | W20: =L20/[1]人口!$H$39*100000 -> 25.03869617 | X20: =M20/[1]人口!$I$39*100000 -> 27.60881757 | Y20: =N20/[1]人口!$J$39*100000 -> 34.24071221 | Z20: =O20/[1]人口!$K$39*100000 -> 32.21754782 | AA20: =P20/[1]人口!$L$39*100000 -> 34.7003378 | AB20: =調整死亡率算出!E26 -> 11.93322505 | AC20: ='12-10 算出'!E26 -> 12.00370432 | AD20: ='12-20 算出'!E26 -> 12.48406893 | AE20: ='12-30 算出'!E26 -> 13.3640391 | AF20: ='12-40 算出'!E26 -> 11.04689563 | AG20: ='12-45 算出'!E26 -> 10.20375943 | AH20: ='12-50 算出'!E26 -> 11.55095421 | AI20: ='12-55 算出'!E26 -> 10.67391773 | AJ20: ='12-60 算出'!E26 -> 9.116370083 | AK20: ='12-70 算出'!E26 -> 12.84876613 | AL20: ='12-75 算出'!E26 -> 14.08523354
E21: 男 | F21: ='12 区別，5歳階級別，選択死因分類別死亡数'!F23 -> 248 | G21: ='12-10'!F23 -> 28 | H21: ='12-20'!F23 -> 32 | I21: ='12-30'!F23 -> 35 | J21: ='12-40'!F23 -> 26 | K21: ='12-45'!F23 -> 19 | L21: ='12-50'!F23 -> 26 | M21: ='12-55'!F23 -> 13 | N21: ='12-60'!F23 -> 21 | O21: ='12-70'!F23 -> 32 | P21: ='12-75'!F23 -> 16 | Q21: =F21/[1]人口!$B$40*100000 -> 27.17766522 | R21: =G21/[1]人口!$C$40*100000 -> 25.7739076 | S21: =H21/[1]人口!$D$40*100000 -> 23.6431073 | T21: =I21/[1]人口!$E$40*100000 -> 27.94768194 | U21: =J21/[1]人口!$F$40*100000 -> 26.19700145 | V21: =K21/[1]人口!$G$40*100000 -> 32.82143412 | W21: =L21/[1]人口!$H$40*100000 -> 25.53601069 | X21: =M21/[1]人口!$I$40*100000 -> 23.76338976 | Y21: =N21/[1]人口!$J$40*100000 -> 32.46251353 | Z21: =O21/[1]人口!$K$40*100000 -> 32.42542153 | AA21: =P21/[1]人口!$L$40*100000 -> 24.14766296 | AB21: =調整死亡率算出!E27 -> 13.45817172 | AC21: ='12-10 算出'!E27 -> 15.40551908 | AD21: ='12-20 算出'!E27 -> 12.34189855 | AE21: ='12-30 算出'!E27 -> 14.8028611 | AF21: ='12-40 算出'!E27 -> 14.12630689 | AG21: ='12-45 算出'!E27 -> 12.83236997 | AH21: ='12-50 算出'!E27 -> 13.64301838 | AI21: ='12-55 算出'!E27 -> 11.03059059 | AJ21: ='12-60 算出'!E27 -> 11.18023055 | AK21: ='12-70 算出'!E27 -> 15.12422961 | AL21: ='12-75 算出'!E27 -> 12.02008593
E22: 女 | F22: ='12 区別，5歳階級別，選択死因分類別死亡数'!F24 -> 321 | G22: ='12-10'!F24 -> 36 | H22: ='12-20'!F24 -> 53 | I22: ='12-30'!F24 -> 40 | J22: ='12-40'!F24 -> 25 | K22: ='12-45'!F24 -> 22 | L22: ='12-50'!F24 -> 29 | M22: ='12-55'!F24 -> 19 | N22: ='12-60'!F24 -> 27 | O22: ='12-70'!F24 -> 37 | P22: ='12-75'!F24 -> 33 | Q22: =F22/[1]人口!$B$41*100000 -> 30.69153478 | R22: =G22/[1]人口!$C$41*100000 -> 27.44258021 | S22: =H22/[1]人口!$D$41*100000 -> 34.96987972 | T22: =I22/[1]人口!$E$41*100000 -> 28.93476657 | U22: =J22/[1]人口!$F$41*100000 -> 22.5381571 | V22: =K22/[1]人口!$G$41*100000 -> 31.87620441 | W22: =L22/[1]人口!$H$41*100000 -> 24.60901369 | X22: =M22/[1]人口!$I$41*100000 -> 31.04625893 | Y22: =N22/[1]人口!$J$41*100000 -> 35.76443161 | Z22: =O22/[1]人口!$K$41*100000 -> 32.03990267 | AA22: =P22/[1]人口!$L$41*100000 -> 44.0293529 | AB22: =調整死亡率算出!E28 -> 10.72478184 | AC22: ='12-10 算出'!E28 -> 9.306551241 | AD22: ='12-20 算出'!E28 -> 12.44941857 | AE22: ='12-30 算出'!E28 -> 12.36897574 | AF22: ='12-40 算出'!E28 -> 8.856313665 | AG22: ='12-45 算出'!E28 -> 8.298540961 | AH22: ='12-50 算出'!E28 -> 9.988938765 | AI22: ='12-55 算出'!E28 -> 10.44975359 | AJ22: ='12-60 算出'!E28 -> 7.341317268 | AK22: ='12-70 算出'!E28 -> 11.24791346 | AL22: ='12-75 算出'!E28 -> 15.36882636
A23: Se 06 | C23: 直腸Ｓ状結腸移行部及び直腸の悪性新生物 | E23: 総数 | F23: ='12 区別，5歳階級別，選択死因分類別死亡数'!F25 -> 239 | G23: ='12-10'!F25 -> 25 | H23: ='12-20'!F25 -> 34 | I23: ='12-30'!F25 -> 36 | J23: ='12-40'!F25 -> 23 | K23: ='12-45'!F25 -> 14 | L23: ='12-50'!F25 -> 21 | M23: ='12-55'!F25 -> 17 | N23: ='12-60'!F25 -> 13 | O23: ='12-70'!F25 -> 31 | P23: ='12-75'!F25 -> 25 | Q23: =F23/[1]人口!$B$39*100000 -> 12.20380871 | R23: =G23/[1]人口!$C$39*100000 -> 10.42448503 | S23: =H23/[1]人口!$D$39*100000 -> 11.85061257 | T23: =I23/[1]人口!$E$39*100000 -> 13.66348358 | U23: =J23/[1]人口!$F$39*100000 -> 10.94346984 | V23: =K23/[1]人口!$G$39*100000 -> 11.03178731 | W23: =L23/[1]人口!$H$39*100000 -> 9.560229446 | X23: =M23/[1]人口!$I$39*100000 -> 14.66718433 | Y23: =N23/[1]人口!$J$39*100000 -> 9.273526223 | Z23: =O23/[1]人口!$K$39*100000 -> 14.47455047 | AA23: =P23/[1]人口!$L$39*100000 -> 17.70425398 | AB23: =調整死亡率算出!E29 -> 5.782453106 | AC23: ='12-10 算出'!E29 -> 6.189935193 | AD23: ='12-20 算出'!E29 -> 5.117282618 | AE23: ='12-30 算出'!E29 -> 6.65896641 | AF23: ='12-40 算出'!E29 -> 6.092066319 | AG23: ='12-45 算出'!E29 -> 5.572115968 | AH23: ='12-50 算出'!E29 -> 4.589503066 | AI23: ='12-55 算出'!E29 -> 6.199488423 | AJ23: ='12-60 算出'!E29 -> 2.524480369 | AK23: ='12-70 算出'!E29 -> 7.436965527 | AL23: ='12-75 算出'!E29 -> 7.309453387
E24: 男 | F24: ='12 区別，5歳階級別，選択死因分類別死亡数'!F26 -> 150 | G24: ='12-10'!F26 -> 13 | H24: ='12-20'!F26 -> 20 | I24: ='12-30'!F26 -> 23 | J24: ='12-40'!F26 -> 14 | K24: ='12-45'!F26 -> 9 | L24: ='12-50'!F26 -> 14 | M24: ='12-55'!F26 -> 13 | N24: ='12-60'!F26 -> 6 | O24: ='12-70'!F26 -> 18 | P24: ='12-75'!F26 -> 20 | Q24: =F24/[1]人口!$B$40*100000 -> 16.43810396 | R24: =G24/[1]人口!$C$40*100000 -> 11.9664571 | S24: =H24/[1]人口!$D$40*100000 -> 14.77694206 | T24: =I24/[1]人口!$E$40*100000 -> 18.36561956 | U24: =J24/[1]人口!$F$40*100000 -> 14.1060777 | V24: =K24/[1]人口!$G$40*100000 -> 15.54699511 | W24: =L24/[1]人口!$H$40*100000 -> 13.7501596 | X24: =M24/[1]人口!$I$40*100000 -> 23.76338976 | Y24: =N24/[1]人口!$J$40*100000 -> 9.275003865 | Z24: =O24/[1]人口!$K$40*100000 -> 18.23929961 | AA24: =P24/[1]人口!$L$40*100000 -> 30.1845787 | AB24: =調整死亡率算出!E30 -> 8.560256775 | AC24: ='12-10 算出'!E30 -> 7.434013721 | AD24: ='12-20 算出'!E30 -> 7.153154693 | AE24: ='12-30 算出'!E30 -> 10.75344041 | AF24: ='12-40 算出'!E30 -> 8.180304843 | AG24: ='12-45 算出'!E30 -> 7.801029614 | AH24: ='12-50 算出'!E30 -> 7.1589301 | AI24: ='12-55 算出'!E30 -> 10.73205862 | AJ24: ='12-60 算出'!E30 -> 3.110027157 | AK24: ='12-70 算出'!E30 -> 9.991116653 | AL24: ='12-75 算出'!E30 -> 13.76017151
E25: 女 | F25: ='12 区別，5歳階級別，選択死因分類別死亡数'!F27 -> 89 | G25: ='12-10'!F27 -> 12 | H25: ='12-20'!F27 -> 14 | I25: ='12-30'!F27 -> 13 | J25: ='12-40'!F27 -> 9 | K25: ='12-45'!F27 -> 5 | L25: ='12-50'!F27 -> 7 | M25: ='12-55'!F27 -> 4 | N25: ='12-60'!F27 -> 7 | O25: ='12-70'!F27 -> 13 | P25: ='12-75'!F27 -> 5 | Q25: =F25/[1]人口!$B$41*100000 -> 8.509490951 | R25: =G25/[1]人口!$C$41*100000 -> 9.147526737 | S25: =H25/[1]人口!$D$41*100000 -> 9.237326718 | T25: =I25/[1]人口!$E$41*100000 -> 9.403799135 | U25: =J25/[1]人口!$F$41*100000 -> 8.113736556 | V25: =K25/[1]人口!$G$41*100000 -> 7.244591912 | W25: =L25/[1]人口!$H$41*100000 -> 5.940106752 | X25: =M25/[1]人口!$I$41*100000 -> 6.536054511 | Y25: =N25/[1]人口!$J$41*100000 -> 9.272260047 | Z25: =O25/[1]人口!$K$41*100000 -> 11.2572631 | AA25: =P25/[1]人口!$L$41*100000 -> 6.671114076 | AB25: =調整死亡率算出!E31 -> 3.598717189 | AC25: ='12-10 算出'!E31 -> 5.365230281 | AD25: ='12-20 算出'!E31 -> 3.657350017 | AE25: ='12-30 算出'!E31 -> 3.138383574 | AF25: ='12-40 算出'!E31 -> 4.395233404 | AG25: ='12-45 算出'!E31 -> 3.889329769 | AH25: ='12-50 算出'!E31 -> 2.850942839 | AI25: ='12-55 算出'!E31 -> 2.490493803 | AJ25: ='12-60 算出'!E31 -> 2.048852543 | AK25: ='12-70 算出'!E31 -> 5.357807243 | AL25: ='12-75 算出'!E31 -> 1.714357883
A26: Se 07 | C26: 肝及び肝内胆管の悪性新生物 | E26: 総数 | F26: ='12 区別，5歳階級別，選択死因分類別死亡数'!F28 -> 369 | G26: ='12-10'!F28 -> 43 | H26: ='12-20'!F28 -> 48 | I26: ='12-30'!F28 -> 40 | J26: ='12-40'!F28 -> 40 | K26: ='12-45'!F28 -> 31 | L26: ='12-50'!F28 -> 50 | M26: ='12-55'!F28 -> 14 | N26: ='12-60'!F28 -> 30 | O26: ='12-70'!F28 -> 46 | P26: ='12-75'!F28 -> 27 | Q26: =F26/[1]人口!$B$39*100000 -> 18.84186366 | R26: =G26/[1]人口!$C$39*100000 -> 17.93011425 | S26: =H26/[1]人口!$D$39*100000 -> 16.73027657 | T26: =I26/[1]人口!$E$39*100000 -> 15.18164842 | U26: =J26/[1]人口!$F$39*100000 -> 19.03212146 | V26: =K26/[1]人口!$G$39*100000 -> 24.42752904 | W26: =L26/[1]人口!$H$39*100000 -> 22.76245106 | X26: =M26/[1]人口!$I$39*100000 -> 12.07885769 | Y26: =N26/[1]人口!$J$39*100000 -> 21.40044513 | Z26: =O26/[1]人口!$K$39*100000 -> 21.47836522 | AA26: =P26/[1]人口!$L$39*100000 -> 19.1205943 | AB26: =調整死亡率算出!E32 -> 8.311585537 | AC26: ='12-10 算出'!E32 -> 8.730468619 | AD26: ='12-20 算出'!E32 -> 7.549776041 | AE26: ='12-30 算出'!E32 -> 7.474868386 | AF26: ='12-40 算出'!E32 -> 8.651796757 | AG26: ='12-45 算出'!E32 -> 9.779908545 | AH26: ='12-50 算出'!E32 -> 10.19084178 | AI26: ='12-55 算出'!E32 -> 4.817739327 | AJ26: ='12-60 算出'!E32 -> 7.462834465 | AK26: ='12-70 算出'!E32 -> 10.20320925 | AL26: ='12-75 算出'!E32 -> 7.448643405
E27: 男 | F27: ='12 区別，5歳階級別，選択死因分類別死亡数'!F29 -> 252 | G27: ='12-10'!F29 -> 31 | H27: ='12-20'!F29 -> 28 | I27: ='12-30'!F29 -> 31 | J27: ='12-40'!F29 -> 25 | K27: ='12-45'!F29 -> 22 | L27: ='12-50'!F29 -> 33 | M27: ='12-55'!F29 -> 8 | N27: ='12-60'!F29 -> 19 | O27: ='12-70'!F29 -> 37 | P27: ='12-75'!F29 -> 18 | Q27: =F27/[1]人口!$B$40*100000 -> 27.61601466 | R27: =G27/[1]人口!$C$40*100000 -> 28.5353977 | S27: =H27/[1]人口!$D$40*100000 -> 20.68771888 | T27: =I27/[1]人口!$E$40*100000 -> 24.75366115 | U27: =J27/[1]人口!$F$40*100000 -> 25.18942447 | V27: =K27/[1]人口!$G$40*100000 -> 38.00376583 | W27: =L27/[1]人口!$H$40*100000 -> 32.41109049 | X27: =M27/[1]人口!$I$40*100000 -> 14.62362447 | Y27: =N27/[1]人口!$J$40*100000 -> 29.37084557 | Z27: =O27/[1]人口!$K$40*100000 -> 37.49189364 | AA27: =P27/[1]人口!$L$40*100000 -> 27.16612083 | AB27: =調整死亡率算出!E33 -> 14.12377223 | AC27: ='12-10 算出'!E33 -> 16.95980151 | AD27: ='12-20 算出'!E33 -> 11.55458765 | AE27: ='12-30 算出'!E33 -> 13.83849686 | AF27: ='12-40 算出'!E33 -> 13.17592186 | AG27: ='12-45 算出'!E33 -> 17.21552264 | AH27: ='12-50 算出'!E33 -> 16.88272668 | AI27: ='12-55 算出'!E33 -> 7.283683091 | AJ27: ='12-60 算出'!E33 -> 11.40253286 | AK27: ='12-70 算出'!E33 -> 19.70435648 | AL27: ='12-75 算出'!E33 -> 12.35615062
E28: 女 | F28: ='12 区別，5歳階級別，選択死因分類別死亡数'!F30 -> 117 | G28: ='12-10'!F30 -> 12 | H28: ='12-20'!F30 -> 20 | I28: ='12-30'!F30 -> 9 | J28: ='12-40'!F30 -> 15 | K28: ='12-45'!F30 -> 9 | L28: ='12-50'!F30 -> 17 | M28: ='12-55'!F30 -> 6 | N28: ='12-60'!F30 -> 11 | O28: ='12-70'!F30 -> 9 | P28: ='12-75'!F30 -> 9 | Q28: =F28/[1]人口!$B$41*100000 -> 11.18663417 | R28: =G28/[1]人口!$C$41*100000 -> 9.147526737 | S28: =H28/[1]人口!$D$41*100000 -> 13.19618103 | T28: =I28/[1]人口!$E$41*100000 -> 6.510322478 | U28: =J28/[1]人口!$F$41*100000 -> 13.52289426 | V28: =K28/[1]人口!$G$41*100000 -> 13.04026544 | W28: =L28/[1]人口!$H$41*100000 -> 14.42597354 | X28: =M28/[1]人口!$I$41*100000 -> 9.804081766 | Y28: =N28/[1]人口!$J$41*100000 -> 14.57069436 | Z28: =O28/[1]人口!$K$41*100000 -> 7.793489838 | AA28: =P28/[1]人口!$L$41*100000 -> 12.00800534 | AB28: =調整死亡率算出!E34 -> 3.82672231 | AC28: ='12-10 算出'!E34 -> 3.503070626 | AD28: ='12-20 算出'!E34 -> 4.143457373 | AE28: ='12-30 算出'!E34 -> 2.378372038 | AF28: ='12-40 算出'!E34 -> 4.948627428 | AG28: ='12-45 算出'!E34 -> 4.120686788 | AH28: ='12-50 算出'!E34 -> 5.282609872 | AI28: ='12-55 算出'!E34 -> 3.047809025 | AJ28: ='12-60 算出'!E34 -> 4.452992851 | AK28: ='12-70 算出'!E34 -> 2.752515485 | AL28: ='12-75 算出'!E34 -> 3.65176919
A29: Se 08 | C29: 胆のう及びその他の胆道の悪性新生物 | E29: 総数 | F29: ='12 区別，5歳階級別，選択死因分類別死亡数'!F31 -> 234 | G29: ='12-10'!F31 -> 22 | H29: ='12-20'!F31 -> 30 | I29: ='12-30'!F31 -> 31 | J29: ='12-40'!F31 -> 28 | K29: ='12-45'!F31 -> 16 | L29: ='12-50'!F31 -> 25 | M29: ='12-55'!F31 -> 11 | N29: ='12-60'!F31 -> 22 | O29: ='12-70'!F31 -> 35 | P29: ='12-75'!F31 -> 14 | Q29: =F29/[1]人口!$B$39*100000 -> 11.94849891 | R29: =G29/[1]人口!$C$39*100000 -> 9.173546827 | S29: =H29/[1]人口!$D$39*100000 -> 10.45642286 | T29: =I29/[1]人口!$E$39*100000 -> 11.76577753 | U29: =J29/[1]人口!$F$39*100000 -> 13.32248502 | V29: =K29/[1]人口!$G$39*100000 -> 12.60775692 | W29: =L29/[1]人口!$H$39*100000 -> 11.38122553 | X29: =M29/[1]人口!$I$39*100000 -> 9.490531038 | Y29: =N29/[1]人口!$J$39*100000 -> 15.69365976 | Z29: =O29/[1]人口!$K$39*100000 -> 16.3422344 | AA29: =P29/[1]人口!$L$39*100000 -> 9.914382228 | AB29: =調整死亡率算出!E35 -> 4.228439008 | AC29: ='12-10 算出'!E35 -> 3.815206476 | AD29: ='12-20 算出'!E35 -> 3.696242143 | AE29: ='12-30 算出'!E35 -> 3.87580592 | AF29: ='12-40 算出'!E35 -> 4.832439698 | AG29: ='12-45 算出'!E35 -> 4.165491499 | AH29: ='12-50 算出'!E35 -> 3.993264905 | AI29: ='12-55 算出'!E35 -> 3.552125549 | AJ29: ='12-60 算出'!E35 -> 4.744817837 | AK29: ='12-70 算出'!E35 -> 6.092423778 | AL29: ='12-75 算出'!E35 -> 3.236402301
E30: 男 | F30: ='12 区別，5歳階級別，選択死因分類別死亡数'!F32 -> 125 | G30: ='12-10'!F32 -> 9 | H30: ='12-20'!F32 -> 20 | I30: ='12-30'!F32 -> 16 | J30: ='12-40'!F32 -> 16 | K30: ='12-45'!F32 -> 9 | L30: ='12-50'!F32 -> 12 | M30: ='12-55'!F32 -> 8 | N30: ='12-60'!F32 -> 11 | O30: ='12-70'!F32 -> 17 | P30: ='12-75'!F32 -> 7 | Q30: =F30/[1]人口!$B$40*100000 -> 13.69841997 | R30: =G30/[1]人口!$C$40*100000 -> 8.2844703 | S30: =H30/[1]人口!$D$40*100000 -> 14.77694206 | T30: =I30/[1]人口!$E$40*100000 -> 12.77608317 | U30: =J30/[1]人口!$F$40*100000 -> 16.12123166 | V30: =K30/[1]人口!$G$40*100000 -> 15.54699511 | W30: =L30/[1]人口!$H$40*100000 -> 11.78585109 | X30: =M30/[1]人口!$I$40*100000 -> 14.62362447 | Y30: =N30/[1]人口!$J$40*100000 -> 17.00417375 | Z30: =O30/[1]人口!$K$40*100000 -> 17.22600519 | AA30: =P30/[1]人口!$L$40*100000 -> 10.56460254 | AB30: =調整死亡率算出!E36 -> 5.862315193 | AC30: ='12-10 算出'!E36 -> 4.526421603 | AD30: ='12-20 算出'!E36 -> 5.956587769 | AE30: ='12-30 算出'!E36 -> 5.99355177 | AF30: ='12-40 算出'!E36 -> 7.603355967 | AG30: ='12-45 算出'!E36 -> 5.779684853 | AH30: ='12-50 算出'!E36 -> 4.660613462 | AI30: ='12-55 算出'!E36 -> 5.988129731 | AJ30: ='12-60 算出'!E36 -> 5.928066408 | AK30: ='12-70 算出'!E36 -> 7.677576788 | AL30: ='12-75 算出'!E36 -> 4.268935722
E31: 女 | F31: ='12 区別，5歳階級別，選択死因分類別死亡数'!F33 -> 109 | G31: ='12-10'!F33 -> 13 | H31: ='12-20'!F33 -> 10 | I31: ='12-30'!F33 -> 15 | J31: ='12-40'!F33 -> 12 | K31: ='12-45'!F33 -> 7 | L31: ='12-50'!F33 -> 13 | M31: ='12-55'!F33 -> 3 | N31: ='12-60'!F33 -> 11 | O31: ='12-70'!F33 -> 18 | P31: ='12-75'!F33 -> 7 | Q31: =F31/[1]人口!$B$41*100000 -> 10.42173611 | R31: =G31/[1]人口!$C$41*100000 -> 9.909820632 | S31: =H31/[1]人口!$D$41*100000 -> 6.598090513 | T31: =I31/[1]人口!$E$41*100000 -> 10.85053746 | U31: =J31/[1]人口!$F$41*100000 -> 10.81831541 | V31: =K31/[1]人口!$G$41*100000 -> 10.14242868 | W31: =L31/[1]人口!$H$41*100000 -> 11.03162683 | X31: =M31/[1]人口!$I$41*100000 -> 4.902040883 | Y31: =N31/[1]人口!$J$41*100000 -> 14.57069436 | Z31: =O31/[1]人口!$K$41*100000 -> 15.58697968 | AA31: =P31/[1]人口!$L$41*100000 -> 9.339559706 | AB31: =調整死亡率算出!E37 -> 3.172323861 | AC31: ='12-10 算出'!E37 -> 3.371184263 | AD31: ='12-20 算出'!E37 -> 2.407139943 | AE31: ='12-30 算出'!E37 -> 2.296066245 | AF31: ='12-40 算出'!E37 -> 2.982960211 | AG31: ='12-45 算出'!E37 -> 3.045764681 | AH31: ='12-50 算出'!E37 -> 3.763905571 | AI31: ='12-55 算出'!E37 -> 1.966000588 | AJ31: ='12-60 算出'!E37 -> 3.982225746 | AK31: ='12-70 算出'!E37 -> 4.953028581 | AL31: ='12-75 算出'!E37 -> 2.565294338
A32: Se 09 | C32: 膵の悪性新生物 | E32: 総数 | F32: ='12 区別，5歳階級別，選択死因分類別死亡数'!F34 -> 631 | G32: ='12-10'!F34 -> 63 | H32: ='12-20'!F34 -> 91 | I32: ='12-30'!F34 -> 83 | J32: ='12-40'!F34 -> 62 | K32: ='12-45'!F34 -> 53 | L32: ='12-50'!F34 -> 77 | M32: ='12-55'!F34 -> 32 | N32: ='12-60'!F34 -> 42 | O32: ='12-70'!F34 -> 74 | P32: ='12-75'!F34 -> 54 | Q32: =F32/[1]人口!$B$39*100000 -> 32.22009748 | R32: =G32/[1]人口!$C$39*100000 -> 26.26970228 | S32: =H32/[1]人口!$D$39*100000 -> 31.717816 | T32: =I32/[1]人口!$E$39*100000 -> 31.50192048 | U32: =J32/[1]人口!$F$39*100000 -> 29.49978827 | V32: =K32/[1]人口!$G$39*100000 -> 41.76319481 | W32: =L32/[1]人口!$H$39*100000 -> 35.05417463 | X32: =M32/[1]人口!$I$39*100000 -> 27.60881757 | Y32: =N32/[1]人口!$J$39*100000 -> 29.96062318 | Z32: =O32/[1]人口!$K$39*100000 -> 34.55215274 | AA32: =P32/[1]人口!$L$39*100000 -> 38.24118859 | AB32: =調整死亡率算出!E38 -> 14.10393264 | AC32: ='12-10 算出'!E38 -> 12.34584055 | AD32: ='12-20 算出'!E38 -> 13.9104118 | AE32: ='12-30 算出'!E38 -> 14.87391852 | AF32: ='12-40 算出'!E38 -> 14.19065758 | AG32: ='12-45 算出'!E38 -> 16.86937422 | AH32: ='12-50 算出'!E38 -> 16.4267045 | AI32: ='12-55 算出'!E38 -> 10.95436597 | AJ32: ='12-60 算出'!E38 -> 10.69589344 | AK32: ='12-70 算出'!E38 -> 14.46767527 | AL32: ='12-75 算出'!E38 -> 15.03623123
E33: 男 | F33: ='12 区別，5歳階級別，選択死因分類別死亡数'!F35 -> 302 | G33: ='12-10'!F35 -> 32 | H33: ='12-20'!F35 -> 39 | I33: ='12-30'!F35 -> 42 | J33: ='12-40'!F35 -> 36 | K33: ='12-45'!F35 -> 22 | L33: ='12-50'!F35 -> 35 | M33: ='12-55'!F35 -> 14 | N33: ='12-60'!F35 -> 25 | O33: ='12-70'!F35 -> 31 | P33: ='12-75'!F35 -> 26 | Q33: =F33/[1]人口!$B$40*100000 -> 33.09538265 | R33: =G33/[1]人口!$C$40*100000 -> 29.4558944 | S33: =H33/[1]人口!$D$40*100000 -> 28.81503702 | T33: =I33/[1]人口!$E$40*100000 -> 33.53721833 | U33: =J33/[1]人口!$F$40*100000 -> 36.27277124 | V33: =K33/[1]人口!$G$40*100000 -> 38.00376583 | W33: =L33/[1]人口!$H$40*100000 -> 34.375399 | X33: =M33/[1]人口!$I$40*100000 -> 25.59134281 | Y33: =N33/[1]人口!$J$40*100000 -> 38.64584944 | Z33: =O33/[1]人口!$K$40*100000 -> 31.41212711 | AA33: =P33/[1]人口!$L$40*100000 -> 39.23995231 | AB33: =調整死亡率算出!E39 -> 17.15158875 | AC33: ='12-10 算出'!E39 -> 18.73638624 | AD33: ='12-20 算出'!E39 -> 14.08149307 | AE33: ='12-30 算出'!E39 -> 18.41543169 | AF33: ='12-40 算出'!E39 -> 21.22039054 | AG33: ='12-45 算出'!E39 -> 17.69995968 | AH33: ='12-50 算出'!E39 -> 18.06000752 | AI33: ='12-55 算出'!E39 -> 11.02515942 | AJ33: ='12-60 算出'!E39 -> 14.73600545 | AK33: ='12-70 算出'!E39 -> 17.43307786 | AL33: ='12-75 算出'!E39 -> 17.86574608
E34: 女 | F34: ='12 区別，5歳階級別，選択死因分類別死亡数'!F36 -> 329 | G34: ='12-10'!F36 -> 31 | H34: ='12-20'!F36 -> 52 | I34: ='12-30'!F36 -> 41 | J34: ='12-40'!F36 -> 26 | K34: ='12-45'!F36 -> 31 | L34: ='12-50'!F36 -> 42 | M34: ='12-55'!F36 -> 18 | N34: ='12-60'!F36 -> 17 | O34: ='12-70'!F36 -> 43 | P34: ='12-75'!F36 -> 28 | Q34: =F34/[1]人口!$B$41*100000 -> 31.45643284 | R34: =G34/[1]人口!$C$41*100000 -> 23.63111074 | S34: =H34/[1]人口!$D$41*100000 -> 34.31007067 | T34: =I34/[1]人口!$E$41*100000 -> 29.65813573 | U34: =J34/[1]人口!$F$41*100000 -> 23.43968338 | V34: =K34/[1]人口!$G$41*100000 -> 44.91646986 | W34: =L34/[1]人口!$H$41*100000 -> 35.64064051 | X34: =M34/[1]人口!$I$41*100000 -> 29.4122453 | Y34: =N34/[1]人口!$J$41*100000 -> 22.51834583 | Z34: =O34/[1]人口!$K$41*100000 -> 37.23556256 | AA34: =P34/[1]人口!$L$41*100000 -> 37.35823883 | AB34: =調整死亡率算出!E40 -> 11.58290497 | AC34: ='12-10 算出'!E40 -> 7.395551255 | AD34: ='12-20 算出'!E40 -> 14.09532172 | AE34: ='12-30 算出'!E40 -> 11.95647745 | AF34: ='12-40 算出'!E40 -> 8.162395223 | AG34: ='12-45 算出'!E40 -> 15.80784244 | AH34: ='12-50 算出'!E40 -> 15.49092656 | AI34: ='12-55 算出'!E40 -> 11.24445393 | AJ34: ='12-60 算出'!E40 -> 7.549727634 | AK34: ='12-70 算出'!E40 -> 11.49517332 | AL34: ='12-75 算出'!E40 -> 12.38517397
A35: Se 10 | C35: 気管、気管支及び肺の悪性新生物 | E35: 総数 | F35: ='12 区別，5歳階級別，選択死因分類別死亡数'!F37 -> 1334 | G35: ='12-10'!F37 -> 135 | H35: ='12-20'!F37 -> 194 | I35: ='12-30'!F37 -> 172 | J35: ='12-40'!F37 -> 143 | K35: ='12-45'!F37 -> 92 | L35: ='12-50'!F37 -> 136 | M35: ='12-55'!F37 -> 80 | N35: ='12-60'!F37 -> 105 | O35: ='12-70'!F37 -> 163 | P35: ='12-75'!F37 -> 114 | Q35: =F35/[1]人口!$B$39*100000 -> 68.11665616 | R35: =G35/[1]人口!$C$39*100000 -> 56.29221916 | S35: =H35/[1]人口!$D$39*100000 -> 67.61820115 | T35: =I35/[1]人口!$E$39*100000 -> 65.28108822 | U35: =J35/[1]人口!$F$39*100000 -> 68.03983423 | V35: =K35/[1]人口!$G$39*100000 -> 72.4946023 | W35: =L35/[1]人口!$H$39*100000 -> 61.91386689 | X35: =M35/[1]人口!$I$39*100000 -> 69.02204392 | Y35: =N35/[1]人口!$J$39*100000 -> 74.90155795 | Z35: =O35/[1]人口!$K$39*100000 -> 76.10812022 | AA35: =P35/[1]人口!$L$39*100000 -> 80.73139814 | AB35: =調整死亡率算出!E41 -> 29.27313815 | AC35: ='12-10 算出'!E41 -> 27.31383444 | AD35: ='12-20 算出'!E41 -> 28.91753012 | AE35: ='12-30 算出'!E41 -> 30.14315324 | AF35: ='12-40 算出'!E41 -> 32.16489314 | AG35: ='12-45 算出'!E41 -> 25.71830471 | AH35: ='12-50 算出'!E41 -> 28.7002075 | AI35: ='12-55 算出'!E41 -> 30.89629931 | AJ35: ='12-60 算出'!E41 -> 26.69200875 | AK35: ='12-70 算出'!E41 -> 31.39457334 | AL35: ='12-75 算出'!E41 -> 30.26581184
E36: 男 | F36: ='12 区別，5歳階級別，選択死因分類別死亡数'!F38 -> 909 | G36: ='12-10'!F38 -> 89 | H36: ='12-20'!F38 -> 127 | I36: ='12-30'!F38 -> 114 | J36: ='12-40'!F38 -> 91 | K36: ='12-45'!F38 -> 61 | L36: ='12-50'!F38 -> 101 | M36: ='12-55'!F38 -> 56 | N36: ='12-60'!F38 -> 82 | O36: ='12-70'!F38 -> 107 | P36: ='12-75'!F38 -> 81 | Q36: =F36/[1]人口!$B$40*100000 -> 99.61491002 | R36: =G36/[1]人口!$C$40*100000 -> 81.9242063 | S36: =H36/[1]人口!$D$40*100000 -> 93.83358208 | T36: =I36/[1]人口!$E$40*100000 -> 91.0295926 | U36: =J36/[1]人口!$F$40*100000 -> 91.68950508 | V36: =K36/[1]人口!$G$40*100000 -> 105.374078 | W36: =L36/[1]人口!$H$40*100000 -> 99.19757997 | X36: =M36/[1]人口!$I$40*100000 -> 102.3653713 | Y36: =N36/[1]人口!$J$40*100000 -> 126.7583861 | Z36: =O36/[1]人口!$K$40*100000 -> 108.4225032 | AA36: =P36/[1]人口!$L$40*100000 -> 122.2475437 | AB36: =調整死亡率算出!E42 -> 47.83136852 | AC36: ='12-10 算出'!E42 -> 46.25582537 | AD36: ='12-20 算出'!E42 -> 46.46996129 | AE36: ='12-30 算出'!E42 -> 46.70365519 | AF36: ='12-40 算出'!E42 -> 48.49736204 | AG36: ='12-45 算出'!E42 -> 42.70083681 | AH36: ='12-50 算出'!E42 -> 49.82729593 | AI36: ='12-55 算出'!E42 -> 47.70068797 | AJ36: ='12-60 算出'!E42 -> 48.63322596 | AK36: ='12-70 算出'!E42 -> 49.4958385 | AL36: ='12-75 算出'!E42 -> 52.55576307
E37: 女 | F37: ='12 区別，5歳階級別，選択死因分類別死亡数'!F39 -> 425 | G37: ='12-10'!F39 -> 46 | H37: ='12-20'!F39 -> 67 | I37: ='12-30'!F39 -> 58 | J37: ='12-40'!F39 -> 52 | K37: ='12-45'!F39 -> 31 | L37: ='12-50'!F39 -> 35 | M37: ='12-55'!F39 -> 24 | N37: ='12-60'!F39 -> 23 | O37: ='12-70'!F39 -> 56 | P37: ='12-75'!F39 -> 33 | Q37: =F37/[1]人口!$B$41*100000 -> 40.6352096 | R37: =G37/[1]人口!$C$41*100000 -> 35.06551916 | S37: =H37/[1]人口!$D$41*100000 -> 44.20720643 | T37: =I37/[1]人口!$E$41*100000 -> 41.95541152 | U37: =J37/[1]人口!$F$41*100000 -> 46.87936677 | V37: =K37/[1]人口!$G$41*100000 -> 44.91646986 | W37: =L37/[1]人口!$H$41*100000 -> 29.70053376 | X37: =M37/[1]人口!$I$41*100000 -> 39.21632706 | Y37: =N37/[1]人口!$J$41*100000 -> 30.4659973 | Z37: =O37/[1]人口!$K$41*100000 -> 48.49282566 | AA37: =P37/[1]人口!$L$41*100000 -> 44.0293529 | AB37: =調整死亡率算出!E43 -> 15.80786819 | AC37: ='12-10 算出'!E43 -> 14.779621 | AD37: ='12-20 算出'!E43 -> 15.67970375 | AE37: ='12-30 算出'!E43 -> 18.22325995 | AF37: ='12-40 算出'!E43 -> 20.76186277 | AG37: ='12-45 算出'!E43 -> 12.86844412 | AH37: ='12-50 算出'!E43 -> 14.08137792 | AI37: ='12-55 算出'!E43 -> 16.9190233 | AJ37: ='12-60 算出'!E43 -> 9.913581843 | AK37: ='12-70 算出'!E43 -> 18.59747489 | AL37: ='12-75 算出'!E43 -> 14.0831251
A38: Se 11 | C38: 乳房の悪性新生物 | E38: 総数 | F38: ='12 区別，5歳階級別，選択死因分類別死亡数'!F40 -> 254 | G38: ='12-10'!F40 -> 28 | H38: ='12-20'!F40 -> 28 | I38: ='12-30'!F40 -> 37 | J38: ='12-40'!F40 -> 32 | K38: ='12-45'!F40 -> 18 | L38: ='12-50'!F40 -> 34 | M38: ='12-55'!F40 -> 10 | N38: ='12-60'!F40 -> 17 | O38: ='12-70'!F40 -> 29 | P38: ='12-75'!F40 -> 21 | Q38: =F38/[1]人口!$B$39*100000 -> 12.96973813 | R38: =G38/[1]人口!$C$39*100000 -> 11.67542323 | S38: =H38/[1]人口!$D$39*100000 -> 9.759328001 | T38: =I38/[1]人口!$E$39*100000 -> 14.04302479 | U38: =J38/[1]人口!$F$39*100000 -> 15.22569717 | V38: =K38/[1]人口!$G$39*100000 -> 14.18372654 | W38: =L38/[1]人口!$H$39*100000 -> 15.47846672 | X38: =M38/[1]人口!$I$39*100000 -> 8.627755489 | Y38: =N38/[1]人口!$J$39*100000 -> 12.12691891 | Z38: =O38/[1]人口!$K$39*100000 -> 13.54070851 | AA38: =P38/[1]人口!$L$39*100000 -> 14.87157334 | AB38: =調整死亡率算出!E44 -> 7.642269241 | AC38: ='12-10 算出'!E44 -> 7.09664771 | AD38: ='12-20 算出'!E44 -> 6.20316373 | AE38: ='12-30 算出'!E44 -> 8.923596319 | AF38: ='12-40 算出'!E44 -> 9.34437951 | AG38: ='12-45 算出'!E44 -> 7.25172206 | AH38: ='12-50 算出'!E44 -> 9.136090691 | AI38: ='12-55 算出'!E44 -> 5.565847167 | AJ38: ='12-60 算出'!E44 -> 5.162049195 | AK38: ='12-70 算出'!E44 -> 8.117381768 | AL38: ='12-75 算出'!E44 -> 8.427262662
E39: 男 | F39: ='12 区別，5歳階級別，選択死因分類別死亡数'!F41 -> 2 | G39: ='12-10'!F41 -> 0 | H39: ='12-20'!F41 -> 0 | I39: ='12-30'!F41 -> 0 | J39: ='12-40'!F41 -> 0 | K39: ='12-45'!F41 -> 0 | L39: ='12-50'!F41 -> 1 | M39: ='12-55'!F41 -> 0 | N39: ='12-60'!F41 -> 1 | O39: ='12-70'!F41 -> 0 | P39: ='12-75'!F41 -> 0 | Q39: =F39/[1]人口!$B$40*100000 -> 0.2191747195 | R39: =G39/[1]人口!$C$40*100000 -> 0 | S39: =H39/[1]人口!$D$40*100000 -> 0 | T39: =I39/[1]人口!$E$40*100000 -> 0 | U39: =J39/[1]人口!$F$40*100000 -> 0 | V39: =K39/[1]人口!$G$40*100000 -> 0 | W39: =L39/[1]人口!$H$40*100000 -> 0.9821542571 | X39: =M39/[1]人口!$I$40*100000 -> 0 | Y39: =N39/[1]人口!$J$40*100000 -> 1.545833977 | Z39: =O39/[1]人口!$K$40*100000 -> 0 | AA39: =P39/[1]人口!$L$40*100000 -> 0 | AB39: =調整死亡率算出!E45 -> 0.103874953 | AC39: ='12-10 算出'!E45 -> 0 | AD39: ='12-20 算出'!E45 -> 0 | AE39: ='12-30 算出'!E45 -> 0 | AF39: ='12-40 算出'!E45 -> 0 | AG39: ='12-45 算出'!E45 -> 0 | AH39: ='12-50 算出'!E45 -> 0.7316152894 | AI39: ='12-55 算出'!E45 -> 0 | AJ39: ='12-60 算出'!E45 -> 0.3091909421 | AK39: ='12-70 算出'!E45 -> 0 | AL39: ='12-75 算出'!E45 -> 0
E40: 女 | F40: ='12 区別，5歳階級別，選択死因分類別死亡数'!F42 -> 252 | G40: ='12-10'!F42 -> 28 | H40: ='12-20'!F42 -> 28 | I40: ='12-30'!F42 -> 37 | J40: ='12-40'!F42 -> 32 | K40: ='12-45'!F42 -> 18 | L40: ='12-50'!F42 -> 33 | M40: ='12-55'!F42 -> 10 | N40: ='12-60'!F42 -> 16 | O40: ='12-70'!F42 -> 29 | P40: ='12-75'!F42 -> 21 | Q40: =F40/[1]人口!$B$41*100000 -> 24.09428898 | R40: =G40/[1]人口!$C$41*100000 -> 21.34422905 | S40: =H40/[1]人口!$D$41*100000 -> 18.47465344 | T40: =I40/[1]人口!$E$41*100000 -> 26.76465908 | U40: =J40/[1]人口!$F$41*100000 -> 28.84884109 | V40: =K40/[1]人口!$G$41*100000 -> 26.08053088 | W40: =L40/[1]人口!$H$41*100000 -> 28.0033604 | X40: =M40/[1]人口!$I$41*100000 -> 16.34013628 | Y40: =N40/[1]人口!$J$41*100000 -> 21.19373725 | Z40: =O40/[1]人口!$K$41*100000 -> 25.11235615 | AA40: =P40/[1]人口!$L$41*100000 -> 28.01867912 | AB40: =調整死亡率算出!E46 -> 14.0074831 | AC40: ='12-10 算出'!E46 -> 12.56256005 | AD40: ='12-20 算出'!E46 -> 11.63497126 | AE40: ='12-30 算出'!E46 -> 16.79908321 | AF40: ='12-40 算出'!E46 -> 17.47395226 | AG40: ='12-45 算出'!E46 -> 13.10103472 | AH40: ='12-50 算出'!E46 -> 15.90118936 | AI40: ='12-55 算出'!E46 -> 10.62343278 | AJ40: ='12-60 算出'!E46 -> 9.22756856 | AK40: ='12-70 算出'!E46 -> 14.9362333 | AL40: ='12-75 算出'!E46 -> 15.67876048
A41: Se 12 | C41: 子宮の悪性新生物 | E41: 総数 | F41: ='12 区別，5歳階級別，選択死因分類別死亡数'!F43 -> 103 | G41: ='12-10'!F43 -> 14 | H41: ='12-20'!F43 -> 9 | I41: ='12-30'!F43 -> 20 | J41: ='12-40'!F43 -> 16 | K41: ='12-45'!F43 -> 3 | L41: ='12-50'!F43 -> 14 | M41: ='12-55'!F43 -> 5 | N41: ='12-60'!F43 -> 4 | O41: ='12-70'!F43 -> 6 | P41: ='12-75'!F43 -> 12 | Q41: =F41/[1]人口!$B$39*100000 -> 5.259381997 | R41: =G41/[1]人口!$C$39*100000 -> 5.837711617 | S41: =H41/[1]人口!$D$39*100000 -> 3.136926857 | T41: =I41/[1]人口!$E$39*100000 -> 7.590824212 | U41: =J41/[1]人口!$F$39*100000 -> 7.612848585 | V41: =K41/[1]人口!$G$39*100000 -> 2.363954423 | W41: =L41/[1]人口!$H$39*100000 -> 6.373486297 | X41: =M41/[1]人口!$I$39*100000 -> 4.313877745 | Y41: =N41/[1]人口!$J$39*100000 -> 2.853392684 | Z41: =O41/[1]人口!$K$39*100000 -> 2.801525898 | AA41: =P41/[1]人口!$L$39*100000 -> 8.49804191 | AB41: =調整死亡率算出!E47 -> 2.927541768 | AC41: ='12-10 算出'!E47 -> 3.690955419 | AD41: ='12-20 算出'!E47 -> 1.677096512 | AE41: ='12-30 算出'!E47 -> 4.603016267 | AF41: ='12-40 算出'!E47 -> 4.710391989 | AG41: ='12-45 算出'!E47 -> 0.9029197661 | AH41: ='12-50 算出'!E47 -> 3.836016813 | AI41: ='12-55 算出'!E47 -> 2.925142878 | AJ41: ='12-60 算出'!E47 -> 0.6825760749 | AK41: ='12-70 算出'!E47 -> 1.888233339 | AL41: ='12-75 算出'!E47 -> 3.222331106
E42: 男 | F42: ='12 区別，5歳階級別，選択死因分類別死亡数'!F44 -> ・ | G42: ='12-10'!F44 -> ・ | H42: ='12-10'!G44 -> ・ | I42: ='12-10'!H44 -> ・ | J42: ='12-10'!I44 -> ・ | K42: ='12-10'!J44 -> ・ | L42: ='12-10'!K44 -> ・ | M42: ='12-10'!L44 -> ・ | N42: ='12-10'!M44 -> ・ | O42: ='12-10'!N44 -> ・ | P42: ='12-10'!O44 -> ・ | Q42: ='12 区別，5歳階級別，選択死因分類別死亡数'!Q44 -> ・ | R42: ='12-10'!Q44 -> ・ | S42: ='12-20'!Q44 -> ・ | T42: ='12-30'!Q44 -> ・ | U42: ='12-40'!Q44 -> ・ | V42: ='12-45'!Q44 -> ・ | W42: ='12-50'!Q44 -> ・ | X42: ='12-55'!Q44 -> ・ | Y42: ='12-60'!Q44 -> ・ | Z42: ='12-70'!Q44 -> ・ | AA42: ='12-75'!Q44 -> ・ | AB42: ・ | AC42: ・ | AD42: ・ | AE42: ・ | AF42: ・ | AG42: ・ | AH42: ・ | AI42: ・ | AJ42: ・ | AK42: ・ | AL42: ・
E43: 女 | F43: ='12 区別，5歳階級別，選択死因分類別死亡数'!F45 -> 103 | G43: ='12-10'!F45 -> 14 | H43: ='12-20'!F45 -> 9 | I43: ='12-30'!F45 -> 20 | J43: ='12-40'!F45 -> 16 | K43: ='12-45'!F45 -> 3 | L43: ='12-50'!F45 -> 14 | M43: ='12-55'!F45 -> 5 | N43: ='12-60'!F45 -> 4 | O43: ='12-70'!F45 -> 6 | P43: ='12-75'!F45 -> 12 | Q43: =F43/[1]人口!$B$41*100000 -> 9.848062561 | R43: =G43/[1]人口!$C$41*100000 -> 10.67211453 | S43: =H43/[1]人口!$D$41*100000 -> 5.938281461 | T43: =I43/[1]人口!$E$41*100000 -> 14.46738328 | U43: =J43/[1]人口!$F$41*100000 -> 14.42442054 | V43: =K43/[1]人口!$G$41*100000 -> 4.346755147 | W43: =L43/[1]人口!$H$41*100000 -> 11.8802135 | X43: =M43/[1]人口!$I$41*100000 -> 8.170068138 | Y43: =N43/[1]人口!$J$41*100000 -> 5.298434313 | Z43: =O43/[1]人口!$K$41*100000 -> 5.195659892 | AA43: =P43/[1]人口!$L$41*100000 -> 16.01067378 | AB43: =調整死亡率算出!E49 -> 5.35741418 | AC43: ='12-10 算出'!E49 -> 6.561865484 | AD43: ='12-20 算出'!E49 -> 3.092764326 | AE43: ='12-30 算出'!E49 -> 8.635768567 | AF43: ='12-40 算出'!E49 -> 8.812148324 | AG43: ='12-45 算出'!E49 -> 1.59518733 | AH43: ='12-50 算出'!E49 -> 6.997389519 | AI43: ='12-55 算出'!E49 -> 5.476622731 | AJ43: ='12-60 算出'!E49 -> 1.133474192 | AK43: ='12-70 算出'!E49 -> 3.5077167 | AL43: ='12-75 算出'!E49 -> 5.655232529
A44: Se 13 | C44: 白 血 病 | E44: 総数 | F44: ='12 区別，5歳階級別，選択死因分類別死亡数'!F46 -> 147 | G44: ='12-10'!F46 -> 11 | H44: ='12-20'!F46 -> 28 | I44: ='12-30'!F46 -> 15 | J44: ='12-40'!F46 -> 12 | K44: ='12-45'!F46 -> 9 | L44: ='12-50'!F46 -> 21 | M44: ='12-55'!F46 -> 7 | N44: ='12-60'!F46 -> 16 | O44: ='12-70'!F46 -> 16 | P44: ='12-75'!F46 -> 12 | Q44: =F44/[1]人口!$B$39*100000 -> 7.506108287 | R44: =G44/[1]人口!$C$39*100000 -> 4.586773413 | S44: =H44/[1]人口!$D$39*100000 -> 9.759328001 | T44: =I44/[1]人口!$E$39*100000 -> 5.693118159 | U44: =J44/[1]人口!$F$39*100000 -> 5.709636439 | V44: =K44/[1]人口!$G$39*100000 -> 7.091863269 | W44: =L44/[1]人口!$H$39*100000 -> 9.560229446 | X44: =M44/[1]人口!$I$39*100000 -> 6.039428843 | Y44: =N44/[1]人口!$J$39*100000 -> 11.41357074 | Z44: =O44/[1]人口!$K$39*100000 -> 7.470735727 | AA44: =P44/[1]人口!$L$39*100000 -> 8.49804191 | AB44: =調整死亡率算出!E50 -> 3.718078264 | AC44: ='12-10 算出'!E50 -> 2.539481233 | AD44: ='12-20 算出'!E50 -> 4.49551045 | AE44: ='12-30 算出'!E50 -> 3.850509443 | AF44: ='12-40 算出'!E50 -> 2.842506691 | AG44: ='12-45 算出'!E50 -> 2.508394356 | AH44: ='12-50 算出'!E50 -> 5.496815534 | AI44: ='12-55 算出'!E50 -> 2.300774054 | AJ44: ='12-60 算出'!E50 -> 4.586903218 | AK44: ='12-70 算出'!E50 -> 3.793078293 | AL44: ='12-75 算出'!E50 -> 3.598585275
E45: 男 | F45: ='12 区別，5歳階級別，選択死因分類別死亡数'!F47 -> 95 | G45: ='12-10'!F47 -> 5 | H45: ='12-20'!F47 -> 21 | I45: ='12-30'!F47 -> 9 | J45: ='12-40'!F47 -> 9 | K45: ='12-45'!F47 -> 5 | L45: ='12-50'!F47 -> 15 | M45: ='12-55'!F47 -> 4 | N45: ='12-60'!F47 -> 8 | O45: ='12-70'!F47 -> 11 | P45: ='12-75'!F47 -> 8 | Q45: =F45/[1]人口!$B$40*100000 -> 10.41079918 | R45: =G45/[1]人口!$C$40*100000 -> 4.6024835 | S45: =H45/[1]人口!$D$40*100000 -> 15.51578916 | T45: =I45/[1]人口!$E$40*100000 -> 7.186546784 | U45: =J45/[1]人口!$F$40*100000 -> 9.06819281 | V45: =K45/[1]人口!$G$40*100000 -> 8.637219506 | W45: =L45/[1]人口!$H$40*100000 -> 14.73231386 | X45: =M45/[1]人口!$I$40*100000 -> 7.311812233 | Y45: =N45/[1]人口!$J$40*100000 -> 12.36667182 | Z45: =O45/[1]人口!$K$40*100000 -> 11.14623865 | AA45: =P45/[1]人口!$L$40*100000 -> 12.07383148 | AB45: =調整死亡率算出!E51 -> 5.965682847 | AC45: ='12-10 算出'!E51 -> 3.189190136 | AD45: ='12-20 算出'!E51 -> 8.178228437 | AE45: ='12-30 算出'!E51 -> 6.153236241 | AF45: ='12-40 算出'!E51 -> 5.127677639 | AG45: ='12-45 算出'!E51 -> 2.775544806 | AH45: ='12-50 算出'!E51 -> 9.89850438 | AI45: ='12-55 算出'!E51 -> 3.379463832 | AJ45: ='12-60 算出'!E51 -> 6.328522492 | AK45: ='12-70 算出'!E51 -> 6.227746185 | AL45: ='12-75 算出'!E51 -> 5.221475674
E46: 女 | F46: ='12 区別，5歳階級別，選択死因分類別死亡数'!F48 -> 52 | G46: ='12-10'!F48 -> 6 | H46: ='12-20'!F48 -> 7 | I46: ='12-30'!F48 -> 6 | J46: ='12-40'!F48 -> 3 | K46: ='12-45'!F48 -> 4 | L46: ='12-50'!F48 -> 6 | M46: ='12-55'!F48 -> 3 | N46: ='12-60'!F48 -> 8 | O46: ='12-70'!F48 -> 5 | P46: ='12-75'!F48 -> 4 | Q46: =F46/[1]人口!$B$41*100000 -> 4.971837409 | R46: =G46/[1]人口!$C$41*100000 -> 4.573763369 | S46: =H46/[1]人口!$D$41*100000 -> 4.618663359 | T46: =I46/[1]人口!$E$41*100000 -> 4.340214985 | U46: =J46/[1]人口!$F$41*100000 -> 2.704578852 | V46: =K46/[1]人口!$G$41*100000 -> 5.79567353 | W46: =L46/[1]人口!$H$41*100000 -> 5.091520073 | X46: =M46/[1]人口!$I$41*100000 -> 4.902040883 | Y46: =N46/[1]人口!$J$41*100000 -> 10.59686863 | Z46: =O46/[1]人口!$K$41*100000 -> 4.329716577 | AA46: =P46/[1]人口!$L$41*100000 -> 5.336891261 | AB46: =調整死亡率算出!E52 -> 1.882733521 | AC46: ='12-10 算出'!E52 -> 1.842577979 | AD46: ='12-20 算出'!E52 -> 1.667999651 | AE46: ='12-30 算出'!E52 -> 1.704515804 | AF46: ='12-40 算出'!E52 -> 1.117631676 | AG46: ='12-45 算出'!E52 -> 2.631470459 | AH46: ='12-50 算出'!E52 -> 1.708523077 | AI46: ='12-55 算出'!E52 -> 1.225796239 | AJ46: ='12-60 算出'!E52 -> 3.172376883 | AK46: ='12-70 算出'!E52 -> 1.891152088 | AL46: ='12-75 算出'!E52 -> 2.274460995
A47: Se 14 | B47: 糖 尿 病 | E47: 総数 | F47: ='12 区別，5歳階級別，選択死因分類別死亡数'!F49 -> 198 | G47: ='12-10'!F49 -> 17 | H47: ='12-20'!F49 -> 37 | I47: ='12-30'!F49 -> 26 | J47: ='12-40'!F49 -> 19 | K47: ='12-45'!F49 -> 18 | L47: ='12-50'!F49 -> 19 | M47: ='12-55'!F49 -> 12 | N47: ='12-60'!F49 -> 12 | O47: ='12-70'!F49 -> 20 | P47: ='12-75'!F49 -> 18 | Q47: =F47/[1]人口!$B$39*100000 -> 10.11026831 | R47: =G47/[1]人口!$C$39*100000 -> 7.088649821 | S47: =H47/[1]人口!$D$39*100000 -> 12.89625486 | T47: =I47/[1]人口!$E$39*100000 -> 9.868071475 | U47: =J47/[1]人口!$F$39*100000 -> 9.040257695 | V47: =K47/[1]人口!$G$39*100000 -> 14.18372654 | W47: =L47/[1]人口!$H$39*100000 -> 8.649731403 | X47: =M47/[1]人口!$I$39*100000 -> 10.35330659 | Y47: =N47/[1]人口!$J$39*100000 -> 8.560178052 | Z47: =O47/[1]人口!$K$39*100000 -> 9.338419659 | AA47: =P47/[1]人口!$L$39*100000 -> 12.74706286 | AB47: =調整死亡率算出!E53 -> 4.007526665 | AC47: ='12-10 算出'!E53 -> 3.733447442 | AD47: ='12-20 算出'!E53 -> 4.876821233 | AE47: ='12-30 算出'!E53 -> 3.613230592 | AF47: ='12-40 算出'!E53 -> 3.859836852 | AG47: ='12-45 算出'!E53 -> 4.750813319 | AH47: ='12-50 算出'!E53 -> 4.41450182 | AI47: ='12-55 算出'!E53 -> 3.868808585 | AJ47: ='12-60 算出'!E53 -> 2.520147346 | AK47: ='12-70 算出'!E53 -> 3.280857685 | AL47: ='12-75 算出'!E53 -> 5.466641688
E48: 男 | F48: ='12 区別，5歳階級別，選択死因分類別死亡数'!F50 -> 117 | G48: ='12-10'!F50 -> 12 | H48: ='12-20'!F50 -> 23 | I48: ='12-30'!F50 -> 14 | J48: ='12-40'!F50 -> 7 | K48: ='12-45'!F50 -> 9 | L48: ='12-50'!F50 -> 11 | M48: ='12-55'!F50 -> 5 | N48: ='12-60'!F50 -> 11 | O48: ='12-70'!F50 -> 13 | P48: ='12-75'!F50 -> 12 | Q48: =F48/[1]人口!$B$40*100000 -> 12.82172109 | R48: =G48/[1]人口!$C$40*100000 -> 11.0459604 | S48: =H48/[1]人口!$D$40*100000 -> 16.99348337 | T48: =I48/[1]人口!$E$40*100000 -> 11.17907278 | U48: =J48/[1]人口!$F$40*100000 -> 7.053038852 | V48: =K48/[1]人口!$G$40*100000 -> 15.54699511 | W48: =L48/[1]人口!$H$40*100000 -> 10.80369683 | X48: =M48/[1]人口!$I$40*100000 -> 9.139765291 | Y48: =N48/[1]人口!$J$40*100000 -> 17.00417375 | Z48: =O48/[1]人口!$K$40*100000 -> 13.1728275 | AA48: =P48/[1]人口!$L$40*100000 -> 18.11074722 | AB48: =調整死亡率算出!E54 -> 6.262368012 | AC48: ='12-10 算出'!E54 -> 7.107590375 | AD48: ='12-20 算出'!E54 -> 8.001875535 | AE48: ='12-30 算出'!E54 -> 5.697075022 | AF48: ='12-40 算出'!E54 -> 3.902336438 | AG48: ='12-45 算出'!E54 -> 5.709049187 | AH48: ='12-50 算出'!E54 -> 5.867446099 | AI48: ='12-55 算出'!E54 -> 4.873042857 | AJ48: ='12-60 算出'!E54 -> 5.494388928 | AK48: ='12-70 算出'!E54 -> 6.178593772 | AL48: ='12-75 算出'!E54 -> 9.214948381
E49: 女 | F49: ='12 区別，5歳階級別，選択死因分類別死亡数'!F51 -> 81 | G49: ='12-10'!F51 -> 5 | H49: ='12-20'!F51 -> 14 | I49: ='12-30'!F51 -> 12 | J49: ='12-40'!F51 -> 12 | K49: ='12-45'!F51 -> 9 | L49: ='12-50'!F51 -> 8 | M49: ='12-55'!F51 -> 7 | N49: ='12-60'!F51 -> 1 | O49: ='12-70'!F51 -> 7 | P49: ='12-75'!F51 -> 6 | Q49: =F49/[1]人口!$B$41*100000 -> 7.744592888 | R49: =G49/[1]人口!$C$41*100000 -> 3.811469474 | S49: =H49/[1]人口!$D$41*100000 -> 9.237326718 | T49: =I49/[1]人口!$E$41*100000 -> 8.680429971 | U49: =J49/[1]人口!$F$41*100000 -> 10.81831541 | V49: =K49/[1]人口!$G$41*100000 -> 13.04026544 | W49: =L49/[1]人口!$H$41*100000 -> 6.788693431 | X49: =M49/[1]人口!$I$41*100000 -> 11.43809539 | Y49: =N49/[1]人口!$J$41*100000 -> 1.324608578 | Z49: =O49/[1]人口!$K$41*100000 -> 6.061603207 | AA49: =P49/[1]人口!$L$41*100000 -> 8.005336891 | AB49: =調整死亡率算出!E55 -> 2.251817703 | AC49: ='12-10 算出'!E55 -> 1.218333399 | AD49: ='12-20 算出'!E55 -> 2.52192673 | AE49: ='12-30 算出'!E55 -> 1.941889858 | AF49: ='12-40 算出'!E55 -> 3.681459298 | AG49: ='12-45 算出'!E55 -> 4.219730702 | AH49: ='12-50 算出'!E55 -> 3.357118759 | AI49: ='12-55 算出'!E55 -> 2.758742672 | AJ49: ='12-60 算出'!E55 -> 0.4261472545 | AK49: ='12-70 算出'!E55 -> 1.032564184 | AL49: ='12-75 算出'!E55 -> 2.211745698
A50: Se 15 | B50: 高血圧性疾患 | E50: 総数 | F50: ='12 区別，5歳階級別，選択死因分類別死亡数'!F52 -> 71 | G50: ='12-10'!F52 -> 12 | H50: ='12-20'!F52 -> 6 | I50: ='12-30'!F52 -> 6 | J50: ='12-40'!F52 -> 4 | K50: ='12-45'!F52 -> 2 | L50: ='12-50'!F52 -> 9 | M50: ='12-55'!F52 -> 1 | N50: ='12-60'!F52 -> 19 | O50: ='12-70'!F52 -> 4 | P50: ='12-75'!F52 -> 8 | Q50: =F50/[1]人口!$B$39*100000 -> 3.625399241 | R50: =G50/[1]人口!$C$39*100000 -> 5.003752815 | S50: =H50/[1]人口!$D$39*100000 -> 2.091284572 | T50: =I50/[1]人口!$E$39*100000 -> 2.277247264 | U50: =J50/[1]人口!$F$39*100000 -> 1.903212146 | V50: =K50/[1]人口!$G$39*100000 -> 1.575969615 | W50: =L50/[1]人口!$H$39*100000 -> 4.097241191 | X50: =M50/[1]人口!$I$39*100000 -> 0.8627755489 | Y50: =N50/[1]人口!$J$39*100000 -> 13.55361525 | Z50: =O50/[1]人口!$K$39*100000 -> 1.867683932 | AA50: =P50/[1]人口!$L$39*100000 -> 5.665361273 | AB50: =調整死亡率算出!E56 -> 1.147979734 | AC50: ='12-10 算出'!E56 -> 2.401151609 | AD50: ='12-20 算出'!E56 -> 0.5005610041 | AE50: ='12-30 算出'!E56 -> 0.9814733799 | AF50: ='12-40 算出'!E56 -> 0.3782788775 | AG50: ='12-45 算出'!E56 -> 0.457621716 | AH50: ='12-50 算出'!E56 -> 1.008383148 | AI50: ='12-55 算出'!E56 -> 0.2993267904 | AJ50: ='12-60 算出'!E56 -> 3.652011027 | AK50: ='12-70 算出'!E56 -> 0.4415334201 | AL50: ='12-75 算出'!E56 -> 1.457408862
E51: 男 | F51: ='12 区別，5歳階級別，選択死因分類別死亡数'!F53 -> 31 | G51: ='12-10'!F53 -> 10 | H51: ='12-20'!F53 -> 3 | I51: ='12-30'!F53 -> 3 | J51: ='12-40'!F53 -> 1 | K51: ='12-45'!F53 -> 0 | L51: ='12-50'!F53 -> 2 | M51: ='12-55'!F53 -> 0 | N51: ='12-60'!F53 -> 8 | O51: ='12-70'!F53 -> 1 | P51: ='12-75'!F53 -> 3 | Q51: =F51/[1]人口!$B$40*100000 -> 3.397208152 | R51: =G51/[1]人口!$C$40*100000 -> 9.204967 | S51: =H51/[1]人口!$D$40*100000 -> 2.216541309 | T51: =I51/[1]人口!$E$40*100000 -> 2.395515595 | U51: =J51/[1]人口!$F$40*100000 -> 1.007576979 | V51: =K51/[1]人口!$G$40*100000 -> 0 | W51: =L51/[1]人口!$H$40*100000 -> 1.964308514 | X51: =M51/[1]人口!$I$40*100000 -> 0 | Y51: =N51/[1]人口!$J$40*100000 -> 12.36667182 | Z51: =O51/[1]人口!$K$40*100000 -> 1.013294423 | AA51: =P51/[1]人口!$L$40*100000 -> 4.527686805 | AB51: =調整死亡率算出!E57 -> 1.482608818 | AC51: ='12-10 算出'!E57 -> 5.149800056 | AD51: ='12-20 算出'!E57 -> 0.8310829194 | AE51: ='12-30 算出'!E57 -> 1.15220567 | AF51: ='12-40 算出'!E57 -> 0.3145629855 | AG51: ='12-45 算出'!E57 -> 0 | AH51: ='12-50 算出'!E57 -> 0.661777504 | AI51: ='12-55 算出'!E57 -> 0 | AJ51: ='12-60 算出'!E57 -> 4.50102104 | AK51: ='12-70 算出'!E57 -> 0.4817932635 | AL51: ='12-75 算出'!E57 -> 1.492772524
E52: 女 | F52: ='12 区別，5歳階級別，選択死因分類別死亡数'!F54 -> 40 | G52: ='12-10'!F54 -> 2 | H52: ='12-20'!F54 -> 3 | I52: ='12-30'!F54 -> 3 | J52: ='12-40'!F54 -> 3 | K52: ='12-45'!F54 -> 2 | L52: ='12-50'!F54 -> 7 | M52: ='12-55'!F54 -> 1 | N52: ='12-60'!F54 -> 11 | O52: ='12-70'!F54 -> 3 | P52: ='12-75'!F54 -> 5 | Q52: =F52/[1]人口!$B$41*100000 -> 3.824490315 | R52: =G52/[1]人口!$C$41*100000 -> 1.52458779 | S52: =H52/[1]人口!$D$41*100000 -> 1.979427154 | T52: =I52/[1]人口!$E$41*100000 -> 2.170107493 | U52: =J52/[1]人口!$F$41*100000 -> 2.704578852 | V52: =K52/[1]人口!$G$41*100000 -> 2.897836765 | W52: =L52/[1]人口!$H$41*100000 -> 5.940106752 | X52: =M52/[1]人口!$I$41*100000 -> 1.634013628 | Y52: =N52/[1]人口!$J$41*100000 -> 14.57069436 | Z52: =O52/[1]人口!$K$41*100000 -> 2.597829946 | AA52: =P52/[1]人口!$L$41*100000 -> 6.671114076 | AB52: =調整死亡率算出!E58 -> 0.8816382573 | AC52: ='12-10 算出'!E58 -> 0.5882276774 | AD52: ='12-20 算出'!E58 -> 0.2782190549 | AE52: ='12-30 算出'!E58 -> 0.8734860031 | AF52: ='12-40 算出'!E58 -> 0.4056687797 | AG52: ='12-45 算出'!E58 -> 0.7805269861 | AH52: ='12-50 算出'!E58 -> 1.197861975 | AI52: ='12-55 算出'!E58 -> 0.4980277446 | AJ52: ='12-60 算出'!E58 -> 2.861116827 | AK52: ='12-70 算出'!E58 -> 0.343280112 | AL52: ='12-75 算出'!E58 -> 1.438241286
A53: Se 16 | B53: 心疾患（高血圧性を除く） | E53: 総数 | F53: ='12 区別，5歳階級別，選択死因分類別死亡数'!F55 -> 2414 | G53: ='12-10'!F55 -> 258 | H53: ='12-20'!F55 -> 281 | I53: ='12-30'!F55 -> 318 | J53: ='12-40'!F55 -> 277 | K53: ='12-45'!F55 -> 169 | L53: ='12-50'!F55 -> 278 | M53: ='12-55'!F55 -> 141 | N53: ='12-60'!F55 -> 205 | O53: ='12-70'!F55 -> 285 | P53: ='12-75'!F55 -> 202 | Q53: =F53/[1]人口!$B$39*100000 -> 123.2635742 | R53: =G53/[1]人口!$C$39*100000 -> 107.5806855 | S53: =H53/[1]人口!$D$39*100000 -> 97.94182743 | T53: =I53/[1]人口!$E$39*100000 -> 120.694105 | U53: =J53/[1]人口!$F$39*100000 -> 131.7974411 | V53: =K53/[1]人口!$G$39*100000 -> 133.1694325 | W53: =L53/[1]人口!$H$39*100000 -> 126.5592279 | X53: =M53/[1]人口!$I$39*100000 -> 121.6513524 | Y53: =N53/[1]人口!$J$39*100000 -> 146.236375 | Z53: =O53/[1]人口!$K$39*100000 -> 133.0724801 | AA53: =P53/[1]人口!$L$39*100000 -> 143.0503721 | AB53: =調整死亡率算出!E59 -> 40.48640019 | AC53: ='12-10 算出'!E59 -> 36.98895423 | AD53: ='12-20 算出'!E59 -> 29.51968627 | AE53: ='12-30 算出'!E59 -> 44.46524407 | AF53: ='12-40 算出'!E59 -> 50.43232837 | AG53: ='12-45 算出'!E59 -> 40.91127814 | AH53: ='12-50 算出'!E59 -> 47.58581549 | AI53: ='12-55 算出'!E59 -> 38.43893346 | AJ53: ='12-60 算出'!E59 -> 35.23633367 | AK53: ='12-70 算出'!E59 -> 45.29761023 | AL53: ='12-75 算出'!E59 -> 37.10103099
E54: 男 | F54: ='12 区別，5歳階級別，選択死因分類別死亡数'!F56 -> 1073 | G54: ='12-10'!F56 -> 97 | H54: ='12-20'!F56 -> 114 | I54: ='12-30'!F56 -> 139 | J54: ='12-40'!F56 -> 121 | K54: ='12-45'!F56 -> 74 | L54: ='12-50'!F56 -> 129 | M54: ='12-55'!F56 -> 68 | N54: ='12-60'!F56 -> 91 | O54: ='12-70'!F56 -> 149 | P54: ='12-75'!F56 -> 91 | Q54: =F54/[1]人口!$B$40*100000 -> 117.587237 | R54: =G54/[1]人口!$C$40*100000 -> 89.2881799 | S54: =H54/[1]人口!$D$40*100000 -> 84.22856974 | T54: =I54/[1]人口!$E$40*100000 -> 110.9922226 | U54: =J54/[1]人口!$F$40*100000 -> 121.9168144 | V54: =K54/[1]人口!$G$40*100000 -> 127.8308487 | W54: =L54/[1]人口!$H$40*100000 -> 126.6978992 | X54: =M54/[1]人口!$I$40*100000 -> 124.300808 | Y54: =N54/[1]人口!$J$40*100000 -> 140.6708919 | Z54: =O54/[1]人口!$K$40*100000 -> 150.980869 | AA54: =P54/[1]人口!$L$40*100000 -> 137.3398331 | AB54: =調整死亡率算出!E60 -> 53.1775843 | AC54: ='12-10 算出'!E60 -> 47.59912878 | AD54: ='12-20 算出'!E60 -> 37.84829433 | AE54: ='12-30 算出'!E60 -> 54.79232996 | AF54: ='12-40 算出'!E60 -> 63.78147743 | AG54: ='12-45 算出'!E60 -> 51.64291131 | AH54: ='12-50 算出'!E60 -> 62.2326607 | AI54: ='12-55 算出'!E60 -> 53.05367111 | AJ54: ='12-60 算出'!E60 -> 46.73791709 | AK54: ='12-70 算出'!E60 -> 67.44401558 | AL54: ='12-75 算出'!E60 -> 51.35983601
E55: 女 | F55: ='12 区別，5歳階級別，選択死因分類別死亡数'!F57 -> 1341 | G55: ='12-10'!F57 -> 161 | H55: ='12-20'!F57 -> 167 | I55: ='12-30'!F57 -> 179 | J55: ='12-40'!F57 -> 156 | K55: ='12-45'!F57 -> 95 | L55: ='12-50'!F57 -> 149 | M55: ='12-55'!F57 -> 73 | N55: ='12-60'!F57 -> 114 | O55: ='12-70'!F57 -> 136 | P55: ='12-75'!F57 -> 111 | Q55: =F55/[1]人口!$B$41*100000 -> 128.2160378 | R55: =G55/[1]人口!$C$41*100000 -> 122.7293171 | S55: =H55/[1]人口!$D$41*100000 -> 110.1881116 | T55: =I55/[1]人口!$E$41*100000 -> 129.4830804 | U55: =J55/[1]人口!$F$41*100000 -> 140.6381003 | V55: =K55/[1]人口!$G$41*100000 -> 137.6472463 | W55: =L55/[1]人口!$H$41*100000 -> 126.4394152 | X55: =M55/[1]人口!$I$41*100000 -> 119.2829948 | Y55: =N55/[1]人口!$J$41*100000 -> 151.0053779 | Z55: =O55/[1]人口!$K$41*100000 -> 117.7682909 | AA55: =P55/[1]人口!$L$41*100000 -> 148.0987325 | AB55: =調整死亡率算出!E61 -> 30.22985537 | AC55: ='12-10 算出'!E61 -> 28.38796026 | AD55: ='12-20 算出'!E61 -> 22.00366127 | AE55: ='12-30 算出'!E61 -> 36.04063406 | AF55: ='12-40 算出'!E61 -> 38.33401355 | AG55: ='12-45 算出'!E61 -> 32.85880858 | AH55: ='12-50 算出'!E61 -> 36.53593942 | AI55: ='12-55 算出'!E61 -> 26.5644629 | AJ55: ='12-60 算出'!E61 -> 25.61622647 | AK55: ='12-70 算出'!E61 -> 28.62821296 | AL55: ='12-75 算出'!E61 -> 26.35465078
A56: Se 17 | B56: (再掲) | C56: 急性心筋梗塞 | E56: 総数 | F56: ='12 区別，5歳階級別，選択死因分類別死亡数'!F58 -> 347 | G56: ='12-10'!F58 -> 37 | H56: ='12-20'!F58 -> 38 | I56: ='12-30'!F58 -> 36 | J56: ='12-40'!F58 -> 45 | K56: ='12-45'!F58 -> 20 | L56: ='12-50'!F58 -> 35 | M56: ='12-55'!F58 -> 17 | N56: ='12-60'!F58 -> 26 | O56: ='12-70'!F58 -> 81 | P56: ='12-75'!F58 -> 12 | Q56: =F56/[1]人口!$B$39*100000 -> 17.71850051 | R56: =G56/[1]人口!$C$39*100000 -> 15.42823785 | S56: =H56/[1]人口!$D$39*100000 -> 13.24480229 | T56: =I56/[1]人口!$E$39*100000 -> 13.66348358 | U56: =J56/[1]人口!$F$39*100000 -> 21.41113665 | V56: =K56/[1]人口!$G$39*100000 -> 15.75969615 | W56: =L56/[1]人口!$H$39*100000 -> 15.93371574 | X56: =M56/[1]人口!$I$39*100000 -> 14.66718433 | Y56: =N56/[1]人口!$J$39*100000 -> 18.54705245 | Z56: =O56/[1]人口!$K$39*100000 -> 37.82059962 | AA56: =P56/[1]人口!$L$39*100000 -> 8.49804191 | AB56: =調整死亡率算出!E62 -> 7.081256028 | AC56: ='12-10 算出'!E62 -> 6.649554648 | AD56: ='12-20 算出'!E62 -> 5.269851697 | AE56: ='12-30 算出'!E62 -> 5.137953367 | AF56: ='12-40 算出'!E62 -> 9.956016291 | AG56: ='12-45 算出'!E62 -> 6.387893649 | AH56: ='12-50 算出'!E62 -> 7.096262036 | AI56: ='12-55 算出'!E62 -> 5.679461751 | AJ56: ='12-60 算出'!E62 -> 4.946225741 | AK56: ='12-70 算出'!E62 -> 14.70876695 | AL56: ='12-75 算出'!E62 -> 3.59066157
E57: 男 | F57: ='12 区別，5歳階級別，選択死因分類別死亡数'!F59 -> 189 | G57: ='12-10'!F59 -> 15 | H57: ='12-20'!F59 -> 21 | I57: ='12-30'!F59 -> 23 | J57: ='12-40'!F59 -> 22 | K57: ='12-45'!F59 -> 11 | L57: ='12-50'!F59 -> 18 | M57: ='12-55'!F59 -> 12 | N57: ='12-60'!F59 -> 11 | O57: ='12-70'!F59 -> 47 | P57: ='12-75'!F59 -> 9 | Q57: =F57/[1]人口!$B$40*100000 -> 20.71201099 | R57: =G57/[1]人口!$C$40*100000 -> 13.8074505 | S57: =H57/[1]人口!$D$40*100000 -> 15.51578916 | T57: =I57/[1]人口!$E$40*100000 -> 18.36561956 | U57: =J57/[1]人口!$F$40*100000 -> 22.16669354 | V57: =K57/[1]人口!$G$40*100000 -> 19.00188291 | W57: =L57/[1]人口!$H$40*100000 -> 17.67877663 | X57: =M57/[1]人口!$I$40*100000 -> 21.9354367 | Y57: =N57/[1]人口!$J$40*100000 -> 17.00417375 | Z57: =O57/[1]人口!$K$40*100000 -> 47.62483787 | AA57: =P57/[1]人口!$L$40*100000 -> 13.58306041 | AB57: =調整死亡率算出!E63 -> 10.70401799 | AC57: ='12-10 算出'!E63 -> 8.941394257 | AD57: ='12-20 算出'!E63 -> 8.398028912 | AE57: ='12-30 算出'!E63 -> 8.35829693 | AF57: ='12-40 算出'!E63 -> 13.73781439 | AG57: ='12-45 算出'!E63 -> 10.55354692 | AH57: ='12-50 算出'!E63 -> 9.690932871 | AI57: ='12-55 算出'!E63 -> 10.97801565 | AJ57: ='12-60 算出'!E63 -> 6.09699478 | AK57: ='12-70 算出'!E63 -> 23.16285156 | AL57: ='12-75 算出'!E63 -> 6.189447875
E58: 女 | F58: ='12 区別，5歳階級別，選択死因分類別死亡数'!F60 -> 158 | G58: ='12-10'!F60 -> 22 | H58: ='12-20'!F60 -> 17 | I58: ='12-30'!F60 -> 13 | J58: ='12-40'!F60 -> 23 | K58: ='12-45'!F60 -> 9 | L58: ='12-50'!F60 -> 17 | M58: ='12-55'!F60 -> 5 | N58: ='12-60'!F60 -> 15 | O58: ='12-70'!F60 -> 34 | P58: ='12-75'!F60 -> 3 | Q58: =F58/[1]人口!$B$41*100000 -> 15.10673674 | R58: =G58/[1]人口!$C$41*100000 -> 16.77046569 | S58: =H58/[1]人口!$D$41*100000 -> 11.21675387 | T58: =I58/[1]人口!$E$41*100000 -> 9.403799135 | U58: =J58/[1]人口!$F$41*100000 -> 20.73510453 | V58: =K58/[1]人口!$G$41*100000 -> 13.04026544 | W58: =L58/[1]人口!$H$41*100000 -> 14.42597354 | X58: =M58/[1]人口!$I$41*100000 -> 8.170068138 | Y58: =N58/[1]人口!$J$41*100000 -> 19.86912867 | Z58: =O58/[1]人口!$K$41*100000 -> 29.44207272 | AA58: =P58/[1]人口!$L$41*100000 -> 4.002668446 | AB58: =調整死亡率算出!E64 -> 4.099465576 | AC58: ='12-10 算出'!E64 -> 4.296742109 | AD58: ='12-20 算出'!E64 -> 2.530680217 | AE58: ='12-30 算出'!E64 -> 3.067068256 | AF58: ='12-40 算出'!E64 -> 6.341636814 | AG58: ='12-45 算出'!E64 -> 2.869628439 | AH58: ='12-50 算出'!E64 -> 5.05609822 | AI58: ='12-55 算出'!E64 -> 1.416990742 | AJ58: ='12-60 算出'!E64 -> 3.802378947 | AK58: ='12-70 算出'!E64 -> 8.103925066 | AL58: ='12-75 算出'!E64 -> 1.684102804
A59: Se 18 | C59: その他の虚血性心疾患 | E59: 総数 | F59: ='12 区別，5歳階級別，選択死因分類別死亡数'!F61 -> 314 | G59: ='12-10'!F61 -> 29 | H59: ='12-20'!F61 -> 32 | I59: ='12-30'!F61 -> 43 | J59: ='12-40'!F61 -> 29 | K59: ='12-45'!F61 -> 10 | L59: ='12-50'!F61 -> 36 | M59: ='12-55'!F61 -> 9 | N59: ='12-60'!F61 -> 28 | O59: ='12-70'!F61 -> 60 | P59: ='12-75'!F61 -> 38 | Q59: =F59/[1]人口!$B$39*100000 -> 16.0334558 | R59: =G59/[1]人口!$C$39*100000 -> 12.09240264 | S59: =H59/[1]人口!$D$39*100000 -> 11.15351771 | T59: =I59/[1]人口!$E$39*100000 -> 16.32027206 | U59: =J59/[1]人口!$F$39*100000 -> 13.79828806 | V59: =K59/[1]人口!$G$39*100000 -> 7.879848077 | W59: =L59/[1]人口!$H$39*100000 -> 16.38896476 | X59: =M59/[1]人口!$I$39*100000 -> 7.76497994 | Y59: =N59/[1]人口!$J$39*100000 -> 19.97374879 | Z59: =O59/[1]人口!$K$39*100000 -> 28.01525898 | AA59: =P59/[1]人口!$L$39*100000 -> 26.91046605 | AB59: =調整死亡率算出!E65 -> 6.28729653 | AC59: ='12-10 算出'!E65 -> 5.703960349 | AD59: ='12-20 算出'!E65 -> 3.775592641 | AE59: ='12-30 算出'!E65 -> 6.567717003 | AF59: ='12-40 算出'!E65 -> 5.408946937 | AG59: ='12-45 算出'!E65 -> 2.761857035 | AH59: ='12-50 算出'!E65 -> 7.641278779 | AI59: ='12-55 算出'!E65 -> 2.880524012 | AJ59: ='12-60 算出'!E65 -> 5.853245785 | AK59: ='12-70 算出'!E65 -> 11.87850644 | AL59: ='12-75 算出'!E65 -> 9.036130307
E60: 男 | F60: ='12 区別，5歳階級別，選択死因分類別死亡数'!F62 -> 174 | G60: ='12-10'!F62 -> 15 | H60: ='12-20'!F62 -> 21 | I60: ='12-30'!F62 -> 19 | J60: ='12-40'!F62 -> 13 | K60: ='12-45'!F62 -> 5 | L60: ='12-50'!F62 -> 24 | M60: ='12-55'!F62 -> 4 | N60: ='12-60'!F62 -> 15 | O60: ='12-70'!F62 -> 33 | P60: ='12-75'!F62 -> 25 | Q60: =F60/[1]人口!$B$40*100000 -> 19.0682006 | R60: =G60/[1]人口!$C$40*100000 -> 13.8074505 | S60: =H60/[1]人口!$D$40*100000 -> 15.51578916 | T60: =I60/[1]人口!$E$40*100000 -> 15.17159877 | U60: =J60/[1]人口!$F$40*100000 -> 13.09850073 | V60: =K60/[1]人口!$G$40*100000 -> 8.637219506 | W60: =L60/[1]人口!$H$40*100000 -> 23.57170217 | X60: =M60/[1]人口!$I$40*100000 -> 7.311812233 | Y60: =N60/[1]人口!$J$40*100000 -> 23.18750966 | Z60: =O60/[1]人口!$K$40*100000 -> 33.43871595 | AA60: =P60/[1]人口!$L$40*100000 -> 37.73072337 | AB60: =調整死亡率算出!E66 -> 9.032852082 | AC60: ='12-10 算出'!E66 -> 8.434567395 | AD60: ='12-20 算出'!E66 -> 6.88174417 | AE60: ='12-30 算出'!E66 -> 7.358819298 | AF60: ='12-40 算出'!E66 -> 6.652059869 | AG60: ='12-45 算出'!E66 -> 3.202687249 | AH60: ='12-50 算出'!E66 -> 13.33657928 | AI60: ='12-55 算出'!E66 -> 3.69504685 | AJ60: ='12-60 算出'!E66 -> 7.650052802 | AK60: ='12-70 算出'!E66 -> 16.11418691 | AL60: ='12-75 算出'!E66 -> 14.8395647
E61: 女 | F61: ='12 区別，5歳階級別，選択死因分類別死亡数'!F63 -> 140 | G61: ='12-10'!F63 -> 14 | H61: ='12-20'!F63 -> 11 | I61: ='12-30'!F63 -> 24 | J61: ='12-40'!F63 -> 16 | K61: ='12-45'!F63 -> 5 | L61: ='12-50'!F63 -> 12 | M61: ='12-55'!F63 -> 5 | N61: ='12-60'!F63 -> 13 | O61: ='12-70'!F63 -> 27 | P61: ='12-75'!F63 -> 13 | Q61: =F61/[1]人口!$B$41*100000 -> 13.3857161 | R61: =G61/[1]人口!$C$41*100000 -> 10.67211453 | S61: =H61/[1]人口!$D$41*100000 -> 7.257899564 | T61: =I61/[1]人口!$E$41*100000 -> 17.36085994 | U61: =J61/[1]人口!$F$41*100000 -> 14.42442054 | V61: =K61/[1]人口!$G$41*100000 -> 7.244591912 | W61: =L61/[1]人口!$H$41*100000 -> 10.18304015 | X61: =M61/[1]人口!$I$41*100000 -> 8.170068138 | Y61: =N61/[1]人口!$J$41*100000 -> 17.21991152 | Z61: =O61/[1]人口!$K$41*100000 -> 23.38046951 | AA61: =P61/[1]人口!$L$41*100000 -> 17.3448966 | AB61: =調整死亡率算出!E67 -> 4.263192896 | AC61: ='12-10 算出'!E67 -> 3.730732575 | AD61: ='12-20 算出'!E67 -> 1.476348575 | AE61: ='12-30 算出'!E67 -> 5.907135151 | AF61: ='12-40 算出'!E67 -> 4.551871668 | AG61: ='12-45 算出'!E67 -> 2.539267078 | AH61: ='12-50 算出'!E67 -> 3.03603836 | AI61: ='12-55 算出'!E67 -> 2.20408484 | AJ61: ='12-60 算出'!E67 -> 4.524984207 | AK61: ='12-70 算出'!E67 -> 8.894432635 | AL61: ='12-75 算出'!E67 -> 5.212923592
A62: Se 19 | C62: 不整脈及び伝導障害 | E62: 総数 | F62: ='12 区別，5歳階級別，選択死因分類別死亡数'!F64 -> 379 | G62: ='12-10'!F64 -> 34 | H62: ='12-20'!F64 -> 45 | I62: ='12-30'!F64 -> 36 | J62: ='12-40'!F64 -> 73 | K62: ='12-45'!F64 -> 40 | L62: ='12-50'!F64 -> 44 | M62: ='12-55'!F64 -> 25 | N62: ='12-60'!F64 -> 31 | O62: ='12-70'!F64 -> 31 | P62: ='12-75'!F64 -> 20 | Q62: =F62/[1]人口!$B$39*100000 -> 19.35248327 | R62: =G62/[1]人口!$C$39*100000 -> 14.17729964 | S62: =H62/[1]人口!$D$39*100000 -> 15.68463429 | T62: =I62/[1]人口!$E$39*100000 -> 13.66348358 | U62: =J62/[1]人口!$F$39*100000 -> 34.73362167 | V62: =K62/[1]人口!$G$39*100000 -> 31.51939231 | W62: =L62/[1]人口!$H$39*100000 -> 20.03095693 | X62: =M62/[1]人口!$I$39*100000 -> 21.56938872 | Y62: =N62/[1]人口!$J$39*100000 -> 22.1137933 | Z62: =O62/[1]人口!$K$39*100000 -> 14.47455047 | AA62: =P62/[1]人口!$L$39*100000 -> 14.16340318 | AB62: =調整死亡率算出!E68 -> 6.872792248 | AC62: ='12-10 算出'!E68 -> 5.010783429 | AD62: ='12-20 算出'!E68 -> 5.228834301 | AE62: ='12-30 算出'!E68 -> 4.38015413 | AF62: ='12-40 算出'!E68 -> 15.5462866 | AG62: ='12-45 算出'!E68 -> 11.18809428 | AH62: ='12-50 算出'!E68 -> 8.094588817 | AI62: ='12-55 算出'!E68 -> 7.98370886 | AJ62: ='12-60 算出'!E68 -> 5.142747634 | AK62: ='12-70 算出'!E68 -> 4.943461867 | AL62: ='12-75 算出'!E68 -> 3.237561615
E63: 男 | F63: ='12 区別，5歳階級別，選択死因分類別死亡数'!F65 -> 189 | G63: ='12-10'!F65 -> 14 | H63: ='12-20'!F65 -> 22 | I63: ='12-30'!F65 -> 15 | J63: ='12-40'!F65 -> 41 | K63: ='12-45'!F65 -> 19 | L63: ='12-50'!F65 -> 27 | M63: ='12-55'!F65 -> 12 | N63: ='12-60'!F65 -> 15 | O63: ='12-70'!F65 -> 17 | P63: ='12-75'!F65 -> 7 | Q63: =F63/[1]人口!$B$40*100000 -> 20.71201099 | R63: =G63/[1]人口!$C$40*100000 -> 12.8869538 | S63: =H63/[1]人口!$D$40*100000 -> 16.25463627 | T63: =I63/[1]人口!$E$40*100000 -> 11.97757797 | U63: =J63/[1]人口!$F$40*100000 -> 41.31065613 | V63: =K63/[1]人口!$G$40*100000 -> 32.82143412 | W63: =L63/[1]人口!$H$40*100000 -> 26.51816494 | X63: =M63/[1]人口!$I$40*100000 -> 21.9354367 | Y63: =N63/[1]人口!$J$40*100000 -> 23.18750966 | Z63: =O63/[1]人口!$K$40*100000 -> 17.22600519 | AA63: =P63/[1]人口!$L$40*100000 -> 10.56460254 | AB63: =調整死亡率算出!E69 -> 9.929580207 | AC63: ='12-10 算出'!E69 -> 7.680674917 | AD63: ='12-20 算出'!E69 -> 7.578358879 | AE63: ='12-30 算出'!E69 -> 5.275774295 | AF63: ='12-40 算出'!E69 -> 22.5920175 | AG63: ='12-45 算出'!E69 -> 15.78870778 | AH63: ='12-50 算出'!E69 -> 13.0627117 | AI63: ='12-55 算出'!E69 -> 9.717686026 | AJ63: ='12-60 算出'!E69 -> 7.559184294 | AK63: ='12-70 算出'!E69 -> 8.205723007 | AL63: ='12-75 算出'!E69 -> 4.391424963
E64: 女 | F64: ='12 区別，5歳階級別，選択死因分類別死亡数'!F66 -> 190 | G64: ='12-10'!F66 -> 20 | H64: ='12-20'!F66 -> 23 | I64: ='12-30'!F66 -> 21 | J64: ='12-40'!F66 -> 32 | K64: ='12-45'!F66 -> 21 | L64: ='12-50'!F66 -> 17 | M64: ='12-55'!F66 -> 13 | N64: ='12-60'!F66 -> 16 | O64: ='12-70'!F66 -> 14 | P64: ='12-75'!F66 -> 13 | Q64: =F64/[1]人口!$B$41*100000 -> 18.166329 | R64: =G64/[1]人口!$C$41*100000 -> 15.2458779 | S64: =H64/[1]人口!$D$41*100000 -> 15.17560818 | T64: =I64/[1]人口!$E$41*100000 -> 15.19075245 | U64: =J64/[1]人口!$F$41*100000 -> 28.84884109 | V64: =K64/[1]人口!$G$41*100000 -> 30.42728603 | W64: =L64/[1]人口!$H$41*100000 -> 14.42597354 | X64: =M64/[1]人口!$I$41*100000 -> 21.24217716 | Y64: =N64/[1]人口!$J$41*100000 -> 21.19373725 | Z64: =O64/[1]人口!$K$41*100000 -> 12.12320641 | AA64: =P64/[1]人口!$L$41*100000 -> 17.3448966 | AB64: =調整死亡率算出!E70 -> 4.42074935 | AC64: ='12-10 算出'!E70 -> 2.924821699 | AD64: ='12-20 算出'!E70 -> 3.384776408 | AE64: ='12-30 算出'!E70 -> 3.839898009 | AF64: ='12-40 算出'!E70 -> 9.518798501 | AG64: ='12-45 算出'!E70 -> 7.273661079 | AH64: ='12-50 算出'!E70 -> 4.572811254 | AI64: ='12-55 算出'!E70 -> 6.384686959 | AJ64: ='12-60 算出'!E70 -> 3.253562035 | AK64: ='12-70 算出'!E70 -> 2.450152051 | AL64: ='12-75 算出'!E70 -> 2.160394844
A65: Se 20 | C65: 心 不 全 | E65: 総数 | F65: ='12 区別，5歳階級別，選択死因分類別死亡数'!F67 -> 1053 | G65: ='12-10'!F67 -> 115 | H65: ='12-20'!F67 -> 137 | I65: ='12-30'!F67 -> 155 | J65: ='12-40'!F67 -> 87 | K65: ='12-45'!F67 -> 72 | L65: ='12-50'!F67 -> 132 | M65: ='12-55'!F67 -> 77 | N65: ='12-60'!F67 -> 90 | O65: ='12-70'!F67 -> 84 | P65: ='12-75'!F67 -> 104 | Q65: =F65/[1]人口!$B$39*100000 -> 53.76824508 | R65: =G65/[1]人口!$C$39*100000 -> 47.95263114 | S65: =H65/[1]人口!$D$39*100000 -> 47.75099772 | T65: =I65/[1]人口!$E$39*100000 -> 58.82888764 | U65: =J65/[1]人口!$F$39*100000 -> 41.39486418 | V65: =K65/[1]人口!$G$39*100000 -> 56.73490615 | W65: =L65/[1]人口!$H$39*100000 -> 60.0928708 | X65: =M65/[1]人口!$I$39*100000 -> 66.43371727 | Y65: =N65/[1]人口!$J$39*100000 -> 64.20133539 | Z65: =O65/[1]人口!$K$39*100000 -> 39.22136257 | AA65: =P65/[1]人口!$L$39*100000 -> 73.64969655 | AB65: =調整死亡率算出!E71 -> 15.021847 | AC65: ='12-10 算出'!E71 -> 13.31647639 | AD65: ='12-20 算出'!E71 -> 12.19682795 | AE65: ='12-30 算出'!E71 -> 22.19052314 | AF65: ='12-40 算出'!E71 -> 12.60837941 | AG65: ='12-45 算出'!E71 -> 13.70882236 | AH65: ='12-50 算出'!E71 -> 18.89466569 | AI65: ='12-55 算出'!E71 -> 18.80894629 | AJ65: ='12-60 算出'!E71 -> 13.76810783 | AK65: ='12-70 算出'!E71 -> 9.897748141 | AL65: ='12-75 算出'!E71 -> 16.03562584
E66: 男 | F66: ='12 区別，5歳階級別，選択死因分類別死亡数'!F68 -> 406 | G66: ='12-10'!F68 -> 39 | H66: ='12-20'!F68 -> 39 | I66: ='12-30'!F68 -> 68 | J66: ='12-40'!F68 -> 30 | K66: ='12-45'!F68 -> 31 | L66: ='12-50'!F68 -> 50 | M66: ='12-55'!F68 -> 33 | N66: ='12-60'!F68 -> 38 | O66: ='12-70'!F68 -> 41 | P66: ='12-75'!F68 -> 37 | Q66: =F66/[1]人口!$B$40*100000 -> 44.49246806 | R66: =G66/[1]人口!$C$40*100000 -> 35.8993713 | S66: =H66/[1]人口!$D$40*100000 -> 28.81503702 | T66: =I66/[1]人口!$E$40*100000 -> 54.29835348 | U66: =J66/[1]人口!$F$40*100000 -> 30.22730937 | V66: =K66/[1]人口!$G$40*100000 -> 53.55076094 | W66: =L66/[1]人口!$H$40*100000 -> 49.10771286 | X66: =M66/[1]人口!$I$40*100000 -> 60.32245092 | Y66: =N66/[1]人口!$J$40*100000 -> 58.74169114 | Z66: =O66/[1]人口!$K$40*100000 -> 41.54507134 | AA66: =P66/[1]人口!$L$40*100000 -> 55.84147059 | AB66: =調整死亡率算出!E72 -> 18.0451677 | AC66: ='12-10 算出'!E72 -> 15.73633822 | AD66: ='12-20 算出'!E72 -> 11.53823084 | AE66: ='12-30 算出'!E72 -> 28.20183153 | AF66: ='12-40 算出'!E72 -> 13.53174395 | AG66: ='12-45 算出'!E72 -> 17.16951319 | AH66: ='12-50 算出'!E72 -> 21.55330259 | AI66: ='12-55 算出'!E72 -> 24.12680543 | AJ66: ='12-60 算出'!E72 -> 18.40377954 | AK66: ='12-70 算出'!E72 -> 15.12739753 | AL66: ='12-75 算出'!E72 -> 18.51158016
E67: 女 | F67: ='12 区別，5歳階級別，選択死因分類別死亡数'!F69 -> 647 | G67: ='12-10'!F69 -> 76 | H67: ='12-20'!F69 -> 98 | I67: ='12-30'!F69 -> 87 | J67: ='12-40'!F69 -> 57 | K67: ='12-45'!F69 -> 41 | L67: ='12-50'!F69 -> 82 | M67: ='12-55'!F69 -> 44 | N67: ='12-60'!F69 -> 52 | O67: ='12-70'!F69 -> 43 | P67: ='12-75'!F69 -> 67 | Q67: =F67/[1]人口!$B$41*100000 -> 61.86113084 | R67: =G67/[1]人口!$C$41*100000 -> 57.934336 | S67: =H67/[1]人口!$D$41*100000 -> 64.66128702 | T67: =I67/[1]人口!$E$41*100000 -> 62.93311729 | U67: =J67/[1]人口!$F$41*100000 -> 51.38699819 | V67: =K67/[1]人口!$G$41*100000 -> 59.40565368 | W67: =L67/[1]人口!$H$41*100000 -> 69.58410767 | X67: =M67/[1]人口!$I$41*100000 -> 71.89659962 | Y67: =N67/[1]人口!$J$41*100000 -> 68.87964606 | Z67: =O67/[1]人口!$K$41*100000 -> 37.23556256 | AA67: =P67/[1]人口!$L$41*100000 -> 89.39292862 | AB67: =調整死亡率算出!E73 -> 12.47557927 | AC67: ='12-10 算出'!E73 -> 11.4545413 | AD67: ='12-20 算出'!E73 -> 11.89351477 | AE67: ='12-30 算出'!E73 -> 16.88194486 | AF67: ='12-40 算出'!E73 -> 11.59290221 | AG67: ='12-45 算出'!E73 -> 11.67827678 | AH67: ='12-50 算出'!E73 -> 16.71515789 | AI67: ='12-55 算出'!E73 -> 14.22723362 | AJ67: ='12-60 算出'!E73 -> 10.00832766 | AK67: ='12-70 算出'!E73 -> 6.211540171 | AL67: ='12-75 算出'!E73 -> 13.90801345
A68: Se 21 | B68: 脳血管疾患 | E68: 総数 | F68: ='12 区別，5歳階級別，選択死因分類別死亡数'!F70 -> 1448 | G68: ='12-10'!F70 -> 143 | H68: ='12-20'!F70 -> 190 | I68: ='12-30'!F70 -> 184 | J68: ='12-40'!F70 -> 161 | K68: ='12-45'!F70 -> 107 | L68: ='12-50'!F70 -> 149 | M68: ='12-55'!F70 -> 72 | N68: ='12-60'!F70 -> 153 | O68: ='12-70'!F70 -> 175 | P68: ='12-75'!F70 -> 114 | Q68: =F68/[1]人口!$B$39*100000 -> 73.93771973 | R68: =G68/[1]人口!$C$39*100000 -> 59.62805437 | S68: =H68/[1]人口!$D$39*100000 -> 66.22401143 | T68: =I68/[1]人口!$E$39*100000 -> 69.83558275 | U68: =J68/[1]人口!$F$39*100000 -> 76.60428889 | V68: =K68/[1]人口!$G$39*100000 -> 84.31437442 | W68: =L68/[1]人口!$H$39*100000 -> 67.83210416 | X68: =M68/[1]人口!$I$39*100000 -> 62.11983952 | Y68: =N68/[1]人口!$J$39*100000 -> 109.1422702 | Z68: =O68/[1]人口!$K$39*100000 -> 81.71117202 | AA68: =P68/[1]人口!$L$39*100000 -> 80.73139814 | AB68: =調整死亡率算出!E74 -> 25.98246353 | AC68: ='12-10 算出'!E74 -> 24.30284383 | AD68: ='12-20 算出'!E74 -> 22.52964383 | AE68: ='12-30 算出'!E74 -> 27.8030149 | AF68: ='12-40 算出'!E74 -> 29.91912842 | AG68: ='12-45 算出'!E74 -> 25.98769543 | AH68: ='12-50 算出'!E74 -> 23.16128058 | AI68: ='12-55 算出'!E74 -> 19.47693594 | AJ68: ='12-60 算出'!E74 -> 30.43762322 | AK68: ='12-70 算出'!E74 -> 26.31246655 | AL68: ='12-75 算出'!E74 -> 30.12412861
E69: 男 | F69: ='12 区別，5歳階級別，選択死因分類別死亡数'!F71 -> 718 | G69: ='12-10'!F71 -> 66 | H69: ='12-20'!F71 -> 90 | I69: ='12-30'!F71 -> 104 | J69: ='12-40'!F71 -> 82 | K69: ='12-45'!F71 -> 59 | L69: ='12-50'!F71 -> 70 | M69: ='12-55'!F71 -> 30 | N69: ='12-60'!F71 -> 74 | O69: ='12-70'!F71 -> 82 | P69: ='12-75'!F71 -> 61 | Q69: =F69/[1]人口!$B$40*100000 -> 78.6837243 | R69: =G69/[1]人口!$C$40*100000 -> 60.7527822 | S69: =H69/[1]人口!$D$40*100000 -> 66.49623927 | T69: =I69/[1]人口!$E$40*100000 -> 83.04454062 | U69: =J69/[1]人口!$F$40*100000 -> 82.62131227 | V69: =K69/[1]人口!$G$40*100000 -> 101.9191902 | W69: =L69/[1]人口!$H$40*100000 -> 68.750798 | X69: =M69/[1]人口!$I$40*100000 -> 54.83859174 | Y69: =N69/[1]人口!$J$40*100000 -> 114.3917143 | Z69: =O69/[1]人口!$K$40*100000 -> 83.09014267 | AA69: =P69/[1]人口!$L$40*100000 -> 92.06296503 | AB69: =調整死亡率算出!E75 -> 35.65661987 | AC69: ='12-10 算出'!E75 -> 34.0905248 | AD69: ='12-20 算出'!E75 -> 29.74362422 | AE69: ='12-30 算出'!E75 -> 41.27258597 | AF69: ='12-40 算出'!E75 -> 40.50934452 | AG69: ='12-45 算出'!E75 -> 40.43456807 | AH69: ='12-50 算出'!E75 -> 30.72272589 | AI69: ='12-55 算出'!E75 -> 23.5726294 | AJ69: ='12-60 算出'!E75 -> 37.77156764 | AK69: ='12-70 算出'!E75 -> 34.0262649 | AL69: ='12-75 算出'!E75 -> 43.61883147
E70: 女 | F70: ='12 区別，5歳階級別，選択死因分類別死亡数'!F72 -> 730 | G70: ='12-10'!F72 -> 77 | H70: ='12-20'!F72 -> 100 | I70: ='12-30'!F72 -> 80 | J70: ='12-40'!F72 -> 79 | K70: ='12-45'!F72 -> 48 | L70: ='12-50'!F72 -> 79 | M70: ='12-55'!F72 -> 42 | N70: ='12-60'!F72 -> 79 | O70: ='12-70'!F72 -> 93 | P70: ='12-75'!F72 -> 53 | Q70: =F70/[1]人口!$B$41*100000 -> 69.79694825 | R70: =G70/[1]人口!$C$41*100000 -> 58.6966299 | S70: =H70/[1]人口!$D$41*100000 -> 65.98090513 | T70: =I70/[1]人口!$E$41*100000 -> 57.86953314 | U70: =J70/[1]人口!$F$41*100000 -> 71.22057644 | V70: =K70/[1]人口!$G$41*100000 -> 69.54808236 | W70: =L70/[1]人口!$H$41*100000 -> 67.03834763 | X70: =M70/[1]人口!$I$41*100000 -> 68.62857236 | Y70: =N70/[1]人口!$J$41*100000 -> 104.6440777 | Z70: =O70/[1]人口!$K$41*100000 -> 80.53272833 | AA70: =P70/[1]人口!$L$41*100000 -> 70.71380921 | AB70: =調整死亡率算出!E76 -> 18.88324321 | AC70: ='12-10 算出'!E76 -> 17.07881688 | AD70: ='12-20 算出'!E76 -> 17.29284155 | AE70: ='12-30 算出'!E76 -> 18.17983834 | AF70: ='12-40 算出'!E76 -> 22.38395233 | AG70: ='12-45 算出'!E76 -> 15.86117151 | AH70: ='12-50 算出'!E76 -> 17.89606846 | AI70: ='12-55 算出'!E76 -> 15.19377905 | AJ70: ='12-60 算出'!E76 -> 25.31201578 | AK70: ='12-70 算出'!E76 -> 20.95089253 | AL70: ='12-75 算出'!E76 -> 19.09829239
A71: Se 22 | B71: (再掲) | C71: くも膜下出血 | E71: 総数 | F71: ='12 区別，5歳階級別，選択死因分類別死亡数'!F73 -> 180 | G71: ='12-10'!F73 -> 23 | H71: ='12-20'!F73 -> 20 | I71: ='12-30'!F73 -> 18 | J71: ='12-40'!F73 -> 24 | K71: ='12-45'!F73 -> 6 | L71: ='12-50'!F73 -> 21 | M71: ='12-55'!F73 -> 11 | N71: ='12-60'!F73 -> 30 | O71: ='12-70'!F73 -> 15 | P71: ='12-75'!F73 -> 12 | Q71: =F71/[1]人口!$B$39*100000 -> 9.191153005 | R71: =G71/[1]人口!$C$39*100000 -> 9.590526228 | S71: =H71/[1]人口!$D$39*100000 -> 6.970948572 | T71: =I71/[1]人口!$E$39*100000 -> 6.831741791 | U71: =J71/[1]人口!$F$39*100000 -> 11.41927288 | V71: =K71/[1]人口!$G$39*100000 -> 4.727908846 | W71: =L71/[1]人口!$H$39*100000 -> 9.560229446 | X71: =M71/[1]人口!$I$39*100000 -> 9.490531038 | Y71: =N71/[1]人口!$J$39*100000 -> 21.40044513 | Z71: =O71/[1]人口!$K$39*100000 -> 7.003814744 | AA71: =P71/[1]人口!$L$39*100000 -> 8.49804191 | AB71: =調整死亡率算出!E77 -> 4.614722276 | AC71: ='12-10 算出'!E77 -> 5.511339036 | AD71: ='12-20 算出'!E77 -> 3.060735951 | AE71: ='12-30 算出'!E77 -> 4.034893118 | AF71: ='12-40 算出'!E77 -> 6.205741983 | AG71: ='12-45 算出'!E77 -> 2.798142139 | AH71: ='12-50 算出'!E77 -> 4.469634099 | AI71: ='12-55 算出'!E77 -> 3.869610984 | AJ71: ='12-60 算出'!E77 -> 9.657723002 | AK71: ='12-70 算出'!E77 -> 2.700781251 | AL71: ='12-75 算出'!E77 -> 5.899383433
E72: 男 | F72: ='12 区別，5歳階級別，選択死因分類別死亡数'!F74 -> 67 | G72: ='12-10'!F74 -> 8 | H72: ='12-20'!F74 -> 4 | I72: ='12-30'!F74 -> 6 | J72: ='12-40'!F74 -> 11 | K72: ='12-45'!F74 -> 2 | L72: ='12-50'!F74 -> 7 | M72: ='12-55'!F74 -> 4 | N72: ='12-60'!F74 -> 11 | O72: ='12-70'!F74 -> 5 | P72: ='12-75'!F74 -> 9 | Q72: =F72/[1]人口!$B$40*100000 -> 7.342353104 | R72: =G72/[1]人口!$C$40*100000 -> 7.3639736 | S72: =H72/[1]人口!$D$40*100000 -> 2.955388412 | T72: =I72/[1]人口!$E$40*100000 -> 4.79103119 | U72: =J72/[1]人口!$F$40*100000 -> 11.08334677 | V72: =K72/[1]人口!$G$40*100000 -> 3.454887803 | W72: =L72/[1]人口!$H$40*100000 -> 6.8750798 | X72: =M72/[1]人口!$I$40*100000 -> 7.311812233 | Y72: =N72/[1]人口!$J$40*100000 -> 17.00417375 | Z72: =O72/[1]人口!$K$40*100000 -> 5.066472114 | AA72: =P72/[1]人口!$L$40*100000 -> 13.58306041 | AB72: =調整死亡率算出!E78 -> 4.555351247 | AC72: ='12-10 算出'!E78 -> 4.843309216 | AD72: ='12-20 算出'!E78 -> 1.867771398 | AE72: ='12-30 算出'!E78 -> 3.734633422 | AF72: ='12-40 算出'!E78 -> 6.948751227 | AG72: ='12-45 算出'!E78 -> 2.663787966 | AH72: ='12-50 算出'!E78 -> 3.983530634 | AI72: ='12-55 算出'!E78 -> 4.287842994 | AJ72: ='12-60 算出'!E78 -> 7.822110382 | AK72: ='12-70 算出'!E78 -> 2.431261985 | AL72: ='12-75 算出'!E78 -> 10.40570221
E73: 女 | F73: ='12 区別，5歳階級別，選択死因分類別死亡数'!F75 -> 113 | G73: ='12-10'!F75 -> 15 | H73: ='12-20'!F75 -> 16 | I73: ='12-30'!F75 -> 12 | J73: ='12-40'!F75 -> 13 | K73: ='12-45'!F75 -> 4 | L73: ='12-50'!F75 -> 14 | M73: ='12-55'!F75 -> 7 | N73: ='12-60'!F75 -> 19 | O73: ='12-70'!F75 -> 10 | P73: ='12-75'!F75 -> 3 | Q73: =F73/[1]人口!$B$41*100000 -> 10.80418514 | R73: =G73/[1]人口!$C$41*100000 -> 11.43440842 | S73: =H73/[1]人口!$D$41*100000 -> 10.55694482 | T73: =I73/[1]人口!$E$41*100000 -> 8.680429971 | U73: =J73/[1]人口!$F$41*100000 -> 11.71984169 | V73: =K73/[1]人口!$G$41*100000 -> 5.79567353 | W73: =L73/[1]人口!$H$41*100000 -> 11.8802135 | X73: =M73/[1]人口!$I$41*100000 -> 11.43809539 | Y73: =N73/[1]人口!$J$41*100000 -> 25.16756299 | Z73: =O73/[1]人口!$K$41*100000 -> 8.659433154 | AA73: =P73/[1]人口!$L$41*100000 -> 4.002668446 | AB73: =調整死亡率算出!E79 -> 4.542135458 | AC73: ='12-10 算出'!E79 -> 5.95268289 | AD73: ='12-20 算出'!E79 -> 3.846436471 | AE73: ='12-30 算出'!E79 -> 4.016691941 | AF73: ='12-40 算出'!E79 -> 5.560816411 | AG73: ='12-45 算出'!E79 -> 2.85304664 | AH73: ='12-50 算出'!E79 -> 4.718412401 | AI73: ='12-55 算出'!E79 -> 3.277549774 | AJ73: ='12-60 算出'!E79 -> 11.26650002 | AK73: ='12-70 算出'!E79 -> 2.867853349 | AL73: ='12-75 算出'!E79 -> 1.818999426
A74: Se 23 | C74: 脳 内 出 血 | E74: 総数 | F74: ='12 区別，5歳階級別，選択死因分類別死亡数'!F76 -> 456 | G74: ='12-10'!F76 -> 41 | H74: ='12-20'!F76 -> 57 | I74: ='12-30'!F76 -> 62 | J74: ='12-40'!F76 -> 60 | K74: ='12-45'!F76 -> 39 | L74: ='12-50'!F76 -> 48 | M74: ='12-55'!F76 -> 18 | N74: ='12-60'!F76 -> 37 | O74: ='12-70'!F76 -> 64 | P74: ='12-75'!F76 -> 30 | Q74: =F74/[1]人口!$B$39*100000 -> 23.28425428 | R74: =G74/[1]人口!$C$39*100000 -> 17.09615545 | S74: =H74/[1]人口!$D$39*100000 -> 19.86720343 | T74: =I74/[1]人口!$E$39*100000 -> 23.53155506 | U74: =J74/[1]人口!$F$39*100000 -> 28.54818219 | V74: =K74/[1]人口!$G$39*100000 -> 30.7314075 | W74: =L74/[1]人口!$H$39*100000 -> 21.85195302 | X74: =M74/[1]人口!$I$39*100000 -> 15.52995988 | Y74: =N74/[1]人口!$J$39*100000 -> 26.39388233 | Z74: =O74/[1]人口!$K$39*100000 -> 29.88294291 | AA74: =P74/[1]人口!$L$39*100000 -> 21.24510477 | AB74: =調整死亡率算出!E80 -> 9.851917107 | AC74: ='12-10 算出'!E80 -> 8.103447366 | AD74: ='12-20 算出'!E80 -> 8.600469504 | AE74: ='12-30 算出'!E80 -> 11.11725963 | AF74: ='12-40 算出'!E80 -> 13.1641497 | AG74: ='12-45 算出'!E80 -> 11.15146039 | AH74: ='12-50 算出'!E80 -> 9.407973374 | AI74: ='12-55 算出'!E80 -> 5.952086037 | AJ74: ='12-60 算出'!E80 -> 8.557861934 | AK74: ='12-70 算出'!E80 -> 11.42091016 | AL74: ='12-75 算出'!E80 -> 9.074104191
E75: 男 | F75: ='12 区別，5歳階級別，選択死因分類別死亡数'!F77 -> 270 | G75: ='12-10'!F77 -> 22 | H75: ='12-20'!F77 -> 35 | I75: ='12-30'!F77 -> 39 | J75: ='12-40'!F77 -> 30 | K75: ='12-45'!F77 -> 27 | L75: ='12-50'!F77 -> 26 | M75: ='12-55'!F77 -> 12 | N75: ='12-60'!F77 -> 23 | O75: ='12-70'!F77 -> 36 | P75: ='12-75'!F77 -> 20 | Q75: =F75/[1]人口!$B$40*100000 -> 29.58858713 | R75: =G75/[1]人口!$C$40*100000 -> 20.2509274 | S75: =H75/[1]人口!$D$40*100000 -> 25.8596486 | T75: =I75/[1]人口!$E$40*100000 -> 31.14170273 | U75: =J75/[1]人口!$F$40*100000 -> 30.22730937 | V75: =K75/[1]人口!$G$40*100000 -> 46.64098533 | W75: =L75/[1]人口!$H$40*100000 -> 25.53601069 | X75: =M75/[1]人口!$I$40*100000 -> 21.9354367 | Y75: =N75/[1]人口!$J$40*100000 -> 35.55418148 | Z75: =O75/[1]人口!$K$40*100000 -> 36.47859922 | AA75: =P75/[1]人口!$L$40*100000 -> 30.1845787 | AB75: =調整死亡率算出!E81 -> 14.92449921 | AC75: ='12-10 算出'!E81 -> 13.2177772 | AD75: ='12-20 算出'!E81 -> 13.37794168 | AE75: ='12-30 算出'!E81 -> 17.39705953 | AF75: ='12-40 算出'!E81 -> 16.82544645 | AG75: ='12-45 算出'!E81 -> 20.17011844 | AH75: ='12-50 算出'!E81 -> 13.42032591 | AI75: ='12-55 算出'!E81 -> 9.262954007 | AJ75: ='12-60 算出'!E81 -> 12.623323 | AK75: ='12-70 算出'!E81 -> 15.90239118 | AL75: ='12-75 算出'!E81 -> 14.90928088
E76: 女 | F76: ='12 区別，5歳階級別，選択死因分類別死亡数'!F78 -> 186 | G76: ='12-10'!F78 -> 19 | H76: ='12-20'!F78 -> 22 | I76: ='12-30'!F78 -> 23 | J76: ='12-40'!F78 -> 30 | K76: ='12-45'!F78 -> 12 | L76: ='12-50'!F78 -> 22 | M76: ='12-55'!F78 -> 6 | N76: ='12-60'!F78 -> 14 | O76: ='12-70'!F78 -> 28 | P76: ='12-75'!F78 -> 10 | Q76: =F76/[1]人口!$B$41*100000 -> 17.78387996 | R76: =G76/[1]人口!$C$41*100000 -> 14.483584 | S76: =H76/[1]人口!$D$41*100000 -> 14.51579913 | T76: =I76/[1]人口!$E$41*100000 -> 16.63749078 | U76: =J76/[1]人口!$F$41*100000 -> 27.04578852 | V76: =K76/[1]人口!$G$41*100000 -> 17.38702059 | W76: =L76/[1]人口!$H$41*100000 -> 18.66890694 | X76: =M76/[1]人口!$I$41*100000 -> 9.804081766 | Y76: =N76/[1]人口!$J$41*100000 -> 18.54452009 | Z76: =O76/[1]人口!$K$41*100000 -> 24.24641283 | AA76: =P76/[1]人口!$L$41*100000 -> 13.34222815 | AB76: =調整死亡率算出!E82 -> 5.927058767 | AC76: ='12-10 算出'!E82 -> 4.202253786 | AD76: ='12-20 算出'!E82 -> 4.91683888 | AE76: ='12-30 算出'!E82 -> 6.257586986 | AF76: ='12-40 算出'!E82 -> 9.999282469 | AG76: ='12-45 算出'!E82 -> 4.489827234 | AH76: ='12-50 算出'!E82 -> 6.311071131 | AI76: ='12-55 算出'!E82 -> 3.142985359 | AJ76: ='12-60 算出'!E82 -> 5.692639648 | AK76: ='12-70 算出'!E82 -> 8.256836527 | AL76: ='12-75 算出'!E82 -> 4.16801912
A77: Se 24 | C77: 脳 梗 塞 | E77: 総数 | F77: ='12 区別，5歳階級別，選択死因分類別死亡数'!F79 -> 783 | G77: ='12-10'!F79 -> 76 | H77: ='12-20'!F79 -> 112 | I77: ='12-30'!F79 -> 99 | J77: ='12-40'!F79 -> 75 | K77: ='12-45'!F79 -> 60 | L77: ='12-50'!F79 -> 79 | M77: ='12-55'!F79 -> 41 | N77: ='12-60'!F79 -> 81 | O77: ='12-70'!F79 -> 91 | P77: ='12-75'!F79 -> 69 | Q77: =F77/[1]人口!$B$39*100000 -> 39.98151557 | R77: =G77/[1]人口!$C$39*100000 -> 31.69043449 | S77: =H77/[1]人口!$D$39*100000 -> 39.037312 | T77: =I77/[1]人口!$E$39*100000 -> 37.57457985 | U77: =J77/[1]人口!$F$39*100000 -> 35.68522774 | V77: =K77/[1]人口!$G$39*100000 -> 47.27908846 | W77: =L77/[1]人口!$H$39*100000 -> 35.96467268 | X77: =M77/[1]人口!$I$39*100000 -> 35.37379751 | Y77: =N77/[1]人口!$J$39*100000 -> 57.78120185 | Z77: =O77/[1]人口!$K$39*100000 -> 42.48980945 | AA77: =P77/[1]人口!$L$39*100000 -> 48.86374098 | AB77: =調整死亡率算出!E83 -> 10.95498598 | AC77: ='12-10 算出'!E83 -> 9.773171172 | AD77: ='12-20 算出'!E83 -> 10.8032218 | AE77: ='12-30 算出'!E83 -> 11.88055785 | AF77: ='12-40 算出'!E83 -> 10.22736939 | AG77: ='12-45 算出'!E83 -> 11.38611894 | AH77: ='12-50 算出'!E83 -> 9.198839776 | AI77: ='12-55 算出'!E83 -> 9.334956608 | AJ77: ='12-60 算出'!E83 -> 11.73881282 | AK77: ='12-70 算出'!E83 -> 11.29665244 | AL77: ='12-75 算出'!E83 -> 14.22098277
E78: 男 | F78: ='12 区別，5歳階級別，選択死因分類別死亡数'!F80 -> 369 | G78: ='12-10'!F80 -> 35 | H78: ='12-20'!F80 -> 51 | I78: ='12-30'!F80 -> 56 | J78: ='12-40'!F80 -> 39 | K78: ='12-45'!F80 -> 29 | L78: ='12-50'!F80 -> 37 | M78: ='12-55'!F80 -> 13 | N78: ='12-60'!F80 -> 37 | O78: ='12-70'!F80 -> 41 | P78: ='12-75'!F80 -> 31 | Q78: =F78/[1]人口!$B$40*100000 -> 40.43773575 | R78: =G78/[1]人口!$C$40*100000 -> 32.2173845 | S78: =H78/[1]人口!$D$40*100000 -> 37.68120225 | T78: =I78/[1]人口!$E$40*100000 -> 44.7162911 | U78: =J78/[1]人口!$F$40*100000 -> 39.29550218 | V78: =K78/[1]人口!$G$40*100000 -> 50.09587314 | W78: =L78/[1]人口!$H$40*100000 -> 36.33970751 | X78: =M78/[1]人口!$I$40*100000 -> 23.76338976 | Y78: =N78/[1]人口!$J$40*100000 -> 57.19585716 | Z78: =O78/[1]人口!$K$40*100000 -> 41.54507134 | AA78: =P78/[1]人口!$L$40*100000 -> 46.78609698 | AB78: =調整死亡率算出!E84 -> 15.60314581 | AC78: ='12-10 算出'!E84 -> 15.0690208 | AD78: ='12-20 算出'!E84 -> 14.49791114 | AE78: ='12-30 算出'!E84 -> 19.30065221 | AF78: ='12-40 算出'!E84 -> 15.86399767 | AG78: ='12-45 算出'!E84 -> 16.89993196 | AH78: ='12-50 算出'!E84 -> 13.31886935 | AI78: ='12-55 算出'!E84 -> 9.493223719 | AJ78: ='12-60 算出'!E84 -> 16.39856144 | AK78: ='12-70 算出'!E84 -> 15.69261174 | AL78: ='12-75 算出'!E84 -> 17.43669781
E79: 女 | F79: ='12 区別，5歳階級別，選択死因分類別死亡数'!F81 -> 414 | G79: ='12-10'!F81 -> 41 | H79: ='12-20'!F81 -> 61 | I79: ='12-30'!F81 -> 43 | J79: ='12-40'!F81 -> 36 | K79: ='12-45'!F81 -> 31 | L79: ='12-50'!F81 -> 42 | M79: ='12-55'!F81 -> 28 | N79: ='12-60'!F81 -> 44 | O79: ='12-70'!F81 -> 50 | P79: ='12-75'!F81 -> 38 | Q79: =F79/[1]人口!$B$41*100000 -> 39.58347476 | R79: =G79/[1]人口!$C$41*100000 -> 31.25404969 | S79: =H79/[1]人口!$D$41*100000 -> 40.24835213 | T79: =I79/[1]人口!$E$41*100000 -> 31.10487406 | U79: =J79/[1]人口!$F$41*100000 -> 32.45494622 | V79: =K79/[1]人口!$G$41*100000 -> 44.91646986 | W79: =L79/[1]人口!$H$41*100000 -> 35.64064051 | X79: =M79/[1]人口!$I$41*100000 -> 45.75238157 | Y79: =N79/[1]人口!$J$41*100000 -> 58.28277744 | Z79: =O79/[1]人口!$K$41*100000 -> 43.29716577 | AA79: =P79/[1]人口!$L$41*100000 -> 50.70046698 | AB79: =調整死亡率算出!E85 -> 7.829293139 | AC79: ='12-10 算出'!E85 -> 6.082884823 | AD79: ='12-20 算出'!E85 -> 8.436826518 | AE79: ='12-30 算出'!E85 -> 6.981545427 | AF79: ='12-40 算出'!E85 -> 6.823853449 | AG79: ='12-45 算出'!E85 -> 7.888858441 | AH79: ='12-50 算出'!E85 -> 6.745482271 | AI79: ='12-55 算出'!E85 -> 8.543503168 | AJ79: ='12-60 算出'!E85 -> 8.071696427 | AK79: ='12-70 算出'!E85 -> 8.277701485 | AL79: ='12-75 算出'!E85 -> 12.19484061
A80: Se 25 | B80: 大動脈瘤及び解離 | E80: 総数 | F80: ='12 区別，5歳階級別，選択死因分類別死亡数'!F82 -> 266 | G80: ='12-10'!F82 -> 46 | H80: ='12-20'!F82 -> 32 | I80: ='12-30'!F82 -> 35 | J80: ='12-40'!F82 -> 28 | K80: ='12-45'!F82 -> 12 | L80: ='12-50'!F82 -> 29 | M80: ='12-55'!F82 -> 7 | N80: ='12-60'!F82 -> 16 | O80: ='12-70'!F82 -> 42 | P80: ='12-75'!F82 -> 19 | Q80: =F80/[1]人口!$B$39*100000 -> 13.58248166 | R80: =G80/[1]人口!$C$39*100000 -> 19.18105246 | S80: =H80/[1]人口!$D$39*100000 -> 11.15351771 | T80: =I80/[1]人口!$E$39*100000 -> 13.28394237 | U80: =J80/[1]人口!$F$39*100000 -> 13.32248502 | V80: =K80/[1]人口!$G$39*100000 -> 9.455817692 | W80: =L80/[1]人口!$H$39*100000 -> 13.20222162 | X80: =M80/[1]人口!$I$39*100000 -> 6.039428843 | Y80: =N80/[1]人口!$J$39*100000 -> 11.41357074 | Z80: =O80/[1]人口!$K$39*100000 -> 19.61068128 | AA80: =P80/[1]人口!$L$39*100000 -> 13.45523302 | AB80: =調整死亡率算出!E86 -> 4.90890773 | AC80: ='12-10 算出'!E86 -> 8.439316187 | AD80: ='12-20 算出'!E86 -> 4.429747772 | AE80: ='12-30 算出'!E86 -> 5.161523676 | AF80: ='12-40 算出'!E86 -> 5.527896505 | AG80: ='12-45 算出'!E86 -> 3.17066927 | AH80: ='12-50 算出'!E86 -> 4.938568356 | AI80: ='12-55 算出'!E86 -> 1.716755733 | AJ80: ='12-60 算出'!E86 -> 2.854785319 | AK80: ='12-70 算出'!E86 -> 5.938611849 | AL80: ='12-75 算出'!E86 -> 4.680139577
E81: 男 | F81: ='12 区別，5歳階級別，選択死因分類別死亡数'!F83 -> 131 | G81: ='12-10'!F83 -> 26 | H81: ='12-20'!F83 -> 14 | I81: ='12-30'!F83 -> 17 | J81: ='12-40'!F83 -> 14 | K81: ='12-45'!F83 -> 6 | L81: ='12-50'!F83 -> 18 | M81: ='12-55'!F83 -> 4 | N81: ='12-60'!F83 -> 5 | O81: ='12-70'!F83 -> 18 | P81: ='12-75'!F83 -> 9 | Q81: =F81/[1]人口!$B$40*100000 -> 14.35594413 | R81: =G81/[1]人口!$C$40*100000 -> 23.9329142 | S81: =H81/[1]人口!$D$40*100000 -> 10.34385944 | T81: =I81/[1]人口!$E$40*100000 -> 13.57458837 | U81: =J81/[1]人口!$F$40*100000 -> 14.1060777 | V81: =K81/[1]人口!$G$40*100000 -> 10.36466341 | W81: =L81/[1]人口!$H$40*100000 -> 17.67877663 | X81: =M81/[1]人口!$I$40*100000 -> 7.311812233 | Y81: =N81/[1]人口!$J$40*100000 -> 7.729169887 | Z81: =O81/[1]人口!$K$40*100000 -> 18.23929961 | AA81: =P81/[1]人口!$L$40*100000 -> 13.58306041 | AB81: =調整死亡率算出!E87 -> 6.655795316 | AC81: ='12-10 算出'!E87 -> 13.53457117 | AD81: ='12-20 算出'!E87 -> 5.754339603 | AE81: ='12-30 算出'!E87 -> 6.695308017 | AF81: ='12-40 算出'!E87 -> 7.099563219 | AG81: ='12-45 算出'!E87 -> 4.178797013 | AH81: ='12-50 算出'!E87 -> 7.6407039 | AI81: ='12-55 算出'!E87 -> 2.950291103 | AJ81: ='12-60 算出'!E87 -> 1.929648877 | AK81: ='12-70 算出'!E87 -> 7.715989357 | AL81: ='12-75 算出'!E87 -> 6.222403783
E82: 女 | F82: ='12 区別，5歳階級別，選択死因分類別死亡数'!F84 -> 135 | G82: ='12-10'!F84 -> 20 | H82: ='12-20'!F84 -> 18 | I82: ='12-30'!F84 -> 18 | J82: ='12-40'!F84 -> 14 | K82: ='12-45'!F84 -> 6 | L82: ='12-50'!F84 -> 11 | M82: ='12-55'!F84 -> 3 | N82: ='12-60'!F84 -> 11 | O82: ='12-70'!F84 -> 24 | P82: ='12-75'!F84 -> 10 | Q82: =F82/[1]人口!$B$41*100000 -> 12.90765481 | R82: =G82/[1]人口!$C$41*100000 -> 15.2458779 | S82: =H82/[1]人口!$D$41*100000 -> 11.87656292 | T82: =I82/[1]人口!$E$41*100000 -> 13.02064496 | U82: =J82/[1]人口!$F$41*100000 -> 12.62136798 | V82: =K82/[1]人口!$G$41*100000 -> 8.693510295 | W82: =L82/[1]人口!$H$41*100000 -> 9.334453468 | X82: =M82/[1]人口!$I$41*100000 -> 4.902040883 | Y82: =N82/[1]人口!$J$41*100000 -> 14.57069436 | Z82: =O82/[1]人口!$K$41*100000 -> 20.78263957 | AA82: =P82/[1]人口!$L$41*100000 -> 13.34222815 | AB82: =調整死亡率算出!E88 -> 3.570233257 | AC82: ='12-10 算出'!E88 -> 4.574430917 | AD82: ='12-20 算出'!E88 -> 3.07419946 | AE82: ='12-30 算出'!E88 -> 4.08296626 | AF82: ='12-40 算出'!E88 -> 4.330048543 | AG82: ='12-45 算出'!E88 -> 2.68730166 | AH82: ='12-50 算出'!E88 -> 3.379105894 | AI82: ='12-55 算出'!E88 -> 0.6892222481 | AJ82: ='12-60 算出'!E88 -> 3.675577575 | AK82: ='12-70 算出'!E88 -> 4.406533893 | AL82: ='12-75 算出'!E88 -> 3.408113153
A83: Se 26 | B83: 肺 炎 | E83: 総数 | F83: ='12 区別，5歳階級別，選択死因分類別死亡数'!F85 -> 1736 | G83: ='12-10'!F85 -> 161 | H83: ='12-20'!F85 -> 257 | I83: ='12-30'!F85 -> 258 | J83: ='12-40'!F85 -> 184 | K83: ='12-45'!F85 -> 132 | L83: ='12-50'!F85 -> 191 | M83: ='12-55'!F85 -> 98 | N83: ='12-60'!F85 -> 163 | O83: ='12-70'!F85 -> 188 | P83: ='12-75'!F85 -> 104 | Q83: =F83/[1]人口!$B$39*100000 -> 88.64356453 | R83: =G83/[1]人口!$C$39*100000 -> 67.1336836 | S83: =H83/[1]人口!$D$39*100000 -> 89.57668915 | T83: =I83/[1]人口!$E$39*100000 -> 97.92163233 | U83: =J83/[1]人口!$F$39*100000 -> 87.54775873 | V83: =K83/[1]人口!$G$39*100000 -> 104.0139946 | W83: =L83/[1]人口!$H$39*100000 -> 86.95256305 | X83: =M83/[1]人口!$I$39*100000 -> 84.5520038 | Y83: =N83/[1]人口!$J$39*100000 -> 116.2757519 | Z83: =O83/[1]人口!$K$39*100000 -> 87.7811448 | AA83: =P83/[1]人口!$L$39*100000 -> 73.64969655 | AB83: =調整死亡率算出!E89 -> 24.68899193 | AC83: ='12-10 算出'!E89 -> 21.3902231 | AD83: ='12-20 算出'!E89 -> 26.4125902 | AE83: ='12-30 算出'!E89 -> 30.06200115 | AF83: ='12-40 算出'!E89 -> 29.49151043 | AG83: ='12-45 算出'!E89 -> 26.61035349 | AH83: ='12-50 算出'!E89 -> 23.24002506 | AI83: ='12-55 算出'!E89 -> 23.45609236 | AJ83: ='12-60 算出'!E89 -> 22.28745355 | AK83: ='12-70 算出'!E89 -> 21.89797683 | AL83: ='12-75 算出'!E89 -> 19.20814813
E84: 男 | F84: ='12 区別，5歳階級別，選択死因分類別死亡数'!F86 -> 1009 | G84: ='12-10'!F86 -> 89 | H84: ='12-20'!F86 -> 146 | I84: ='12-30'!F86 -> 137 | J84: ='12-40'!F86 -> 105 | K84: ='12-45'!F86 -> 77 | L84: ='12-50'!F86 -> 119 | M84: ='12-55'!F86 -> 63 | N84: ='12-60'!F86 -> 92 | O84: ='12-70'!F86 -> 121 | P84: ='12-75'!F86 -> 60 | Q84: =F84/[1]人口!$B$40*100000 -> 110.573646 | R84: =G84/[1]人口!$C$40*100000 -> 81.9242063 | S84: =H84/[1]人口!$D$40*100000 -> 107.871677 | T84: =I84/[1]人口!$E$40*100000 -> 109.3952122 | U84: =J84/[1]人口!$F$40*100000 -> 105.7955828 | V84: =K84/[1]人口!$G$40*100000 -> 133.0131804 | W84: =L84/[1]人口!$H$40*100000 -> 116.8763566 | X84: =M84/[1]人口!$I$40*100000 -> 115.1610427 | Y84: =N84/[1]人口!$J$40*100000 -> 142.2167259 | Z84: =O84/[1]人口!$K$40*100000 -> 122.6086252 | AA84: =P84/[1]人口!$L$40*100000 -> 90.5537361 | AB84: =調整死亡率算出!E90 -> 41.50306887 | AC84: ='12-10 算出'!E90 -> 36.75850046 | AD84: ='12-20 算出'!E90 -> 43.0666783 | AE84: ='12-30 算出'!E90 -> 45.84231507 | AF84: ='12-40 算出'!E90 -> 47.20537134 | AG84: ='12-45 算出'!E90 -> 46.04229765 | AH84: ='12-50 算出'!E90 -> 43.55695106 | AI84: ='12-55 算出'!E90 -> 42.39833861 | AJ84: ='12-60 算出'!E90 -> 36.49345258 | AK84: ='12-70 算出'!E90 -> 40.69418236 | AL84: ='12-75 算出'!E90 -> 30.848406
E85: 女 | F85: ='12 区別，5歳階級別，選択死因分類別死亡数'!F87 -> 727 | G85: ='12-10'!F87 -> 72 | H85: ='12-20'!F87 -> 111 | I85: ='12-30'!F87 -> 121 | J85: ='12-40'!F87 -> 79 | K85: ='12-45'!F87 -> 55 | L85: ='12-50'!F87 -> 72 | M85: ='12-55'!F87 -> 35 | N85: ='12-60'!F87 -> 71 | O85: ='12-70'!F87 -> 67 | P85: ='12-75'!F87 -> 44 | Q85: =F85/[1]人口!$B$41*100000 -> 69.51011147 | R85: =G85/[1]人口!$C$41*100000 -> 54.88516042 | S85: =H85/[1]人口!$D$41*100000 -> 73.23880469 | T85: =I85/[1]人口!$E$41*100000 -> 87.52766887 | U85: =J85/[1]人口!$F$41*100000 -> 71.22057644 | V85: =K85/[1]人口!$G$41*100000 -> 79.69051103 | W85: =L85/[1]人口!$H$41*100000 -> 61.09824088 | X85: =M85/[1]人口!$I$41*100000 -> 57.19047697 | Y85: =N85/[1]人口!$J$41*100000 -> 94.04720905 | Z85: =O85/[1]人口!$K$41*100000 -> 58.01820213 | AA85: =P85/[1]人口!$L$41*100000 -> 58.70580387 | AB85: =調整死亡率算出!E91 -> 14.46002812 | AC85: ='12-10 算出'!E91 -> 12.4109507 | AD85: ='12-20 算出'!E91 -> 15.92239808 | AE85: ='12-30 算出'!E91 -> 20.14256383 | AF85: ='12-40 算出'!E91 -> 18.1260407 | AG85: ='12-45 算出'!E91 -> 14.13664657 | AH85: ='12-50 算出'!E91 -> 11.35220145 | AI85: ='12-55 算出'!E91 -> 12.41726949 | AJ85: ='12-60 算出'!E91 -> 13.49651124 | AK85: ='12-70 算出'!E91 -> 11.50257119 | AL85: ='12-75 算出'!E91 -> 12.30721401
A86: Se 27 | B86: 慢性閉塞性肺疾患 | E86: 総数 | F86: ='12 区別，5歳階級別，選択死因分類別死亡数'!F88 -> 201 | G86: ='12-10'!F88 -> 22 | H86: ='12-20'!F88 -> 23 | I86: ='12-30'!F88 -> 24 | J86: ='12-40'!F88 -> 27 | K86: ='12-45'!F88 -> 14 | L86: ='12-50'!F88 -> 28 | M86: ='12-55'!F88 -> 10 | N86: ='12-60'!F88 -> 14 | O86: ='12-70'!F88 -> 17 | P86: ='12-75'!F88 -> 22 | Q86: =F86/[1]人口!$B$39*100000 -> 10.26345419 | R86: =G86/[1]人口!$C$39*100000 -> 9.173546827 | S86: =H86/[1]人口!$D$39*100000 -> 8.016590858 | T86: =I86/[1]人口!$E$39*100000 -> 9.108989054 | U86: =J86/[1]人口!$F$39*100000 -> 12.84668199 | V86: =K86/[1]人口!$G$39*100000 -> 11.03178731 | W86: =L86/[1]人口!$H$39*100000 -> 12.74697259 | X86: =M86/[1]人口!$I$39*100000 -> 8.627755489 | Y86: =N86/[1]人口!$J$39*100000 -> 9.986874394 | Z86: =O86/[1]人口!$K$39*100000 -> 7.93765671 | AA86: =P86/[1]人口!$L$39*100000 -> 15.5797435 | AB86: =調整死亡率算出!E92 -> 3.108006065 | AC86: ='12-10 算出'!E92 -> 3.035999551 | AD86: ='12-20 算出'!E92 -> 2.754615121 | AE86: ='12-30 算出'!E92 -> 2.968300508 | AF86: ='12-40 算出'!E92 -> 4.293871359 | AG86: ='12-45 算出'!E92 -> 2.757728751 | AH86: ='12-50 算出'!E92 -> 3.763824732 | AI86: ='12-55 算出'!E92 -> 2.132019896 | AJ86: ='12-60 算出'!E92 -> 2.149013381 | AK86: ='12-70 算出'!E92 -> 2.586263005 | AL86: ='12-75 算出'!E92 -> 4.783515706
E87: 男 | F87: ='12 区別，5歳階級別，選択死因分類別死亡数'!F89 -> 156 | G87: ='12-10'!F89 -> 17 | H87: ='12-20'!F89 -> 16 | I87: ='12-30'!F89 -> 20 | J87: ='12-40'!F89 -> 19 | K87: ='12-45'!F89 -> 12 | L87: ='12-50'!F89 -> 19 | M87: ='12-55'!F89 -> 8 | N87: ='12-60'!F89 -> 10 | O87: ='12-70'!F89 -> 15 | P87: ='12-75'!F89 -> 20 | Q87: =F87/[1]人口!$B$40*100000 -> 17.09562812 | R87: =G87/[1]人口!$C$40*100000 -> 15.6484439 | S87: =H87/[1]人口!$D$40*100000 -> 11.82155365 | T87: =I87/[1]人口!$E$40*100000 -> 15.97010397 | U87: =J87/[1]人口!$F$40*100000 -> 19.1439626 | V87: =K87/[1]人口!$G$40*100000 -> 20.72932682 | W87: =L87/[1]人口!$H$40*100000 -> 18.66093089 | X87: =M87/[1]人口!$I$40*100000 -> 14.62362447 | Y87: =N87/[1]人口!$J$40*100000 -> 15.45833977 | Z87: =O87/[1]人口!$K$40*100000 -> 15.19941634 | AA87: =P87/[1]人口!$L$40*100000 -> 30.1845787 | AB87: =調整死亡率算出!E93 -> 6.643593095 | AC87: ='12-10 算出'!E93 -> 7.084108137 | AD87: ='12-20 算出'!E93 -> 5.065684674 | AE87: ='12-30 算出'!E93 -> 6.81035813 | AF87: ='12-40 算出'!E93 -> 8.542047007 | AG87: ='12-45 算出'!E93 -> 6.712038941 | AH87: ='12-50 算出'!E93 -> 6.614203772 | AI87: ='12-55 算出'!E93 -> 4.840131576 | AJ87: ='12-60 算出'!E93 -> 4.45058993 | AK87: ='12-70 算出'!E93 -> 6.064355054 | AL87: ='12-75 算出'!E93 -> 11.31791825
E88: 女 | F88: ='12 区別，5歳階級別，選択死因分類別死亡数'!F90 -> 45 | G88: ='12-10'!F90 -> 5 | H88: ='12-20'!F90 -> 7 | I88: ='12-30'!F90 -> 4 | J88: ='12-40'!F90 -> 8 | K88: ='12-45'!F90 -> 2 | L88: ='12-50'!F90 -> 9 | M88: ='12-55'!F90 -> 2 | N88: ='12-60'!F90 -> 4 | O88: ='12-70'!F90 -> 2 | P88: ='12-75'!F90 -> 2 | Q88: =F88/[1]人口!$B$41*100000 -> 4.302551604 | R88: =G88/[1]人口!$C$41*100000 -> 3.811469474 | S88: =H88/[1]人口!$D$41*100000 -> 4.618663359 | T88: =I88/[1]人口!$E$41*100000 -> 2.893476657 | U88: =J88/[1]人口!$F$41*100000 -> 7.212210272 | V88: =K88/[1]人口!$G$41*100000 -> 2.897836765 | W88: =L88/[1]人口!$H$41*100000 -> 7.63728011 | X88: =M88/[1]人口!$I$41*100000 -> 3.268027255 | Y88: =N88/[1]人口!$J$41*100000 -> 5.298434313 | Z88: =O88/[1]人口!$K$41*100000 -> 1.731886631 | AA88: =P88/[1]人口!$L$41*100000 -> 2.66844563 | AB88: =調整死亡率算出!E94 -> 0.8846119242 | AC88: ='12-10 算出'!E94 -> 0.6958715769 | AD88: ='12-20 算出'!E94 -> 1.205281049 | AE88: ='12-30 算出'!E94 -> 0.5407366704 | AF88: ='12-40 算出'!E94 -> 1.454497174 | AG88: ='12-45 算出'!E94 -> 0.3962155052 | AH88: ='12-50 算出'!E94 -> 2.303428633 | AI88: ='12-55 算出'!E94 -> 0.727768494 | AJ88: ='12-60 算出'!E94 -> 0.5623593667 | AK88: ='12-70 算出'!E94 -> 0.228853408 | AL88: ='12-75 算出'!E94 -> 0.3323684375
A89: Se 28 | B89: 喘 息 | E89: 総数 | F89: ='12 区別，5歳階級別，選択死因分類別死亡数'!F91 -> 18 | G89: ='12-10'!F91 -> 2 | H89: ='12-20'!F91 -> 2 | I89: ='12-30'!F91 -> 2 | J89: ='12-40'!F91 -> 5 | K89: ='12-45'!F91 -> 1 | L89: ='12-50'!F91 -> 2 | M89: ='12-55'!F91 -> 1 | N89: ='12-60'!F91 -> 1 | O89: ='12-70'!F91 -> 0 | P89: ='12-75'!F91 -> 2 | Q89: =F89/[1]人口!$B$39*100000 -> 0.9191153005 | R89: =G89/[1]人口!$C$39*100000 -> 0.8339588024 | S89: =H89/[1]人口!$D$39*100000 -> 0.6970948572 | T89: =I89/[1]人口!$E$39*100000 -> 0.7590824212 | U89: =J89/[1]人口!$F$39*100000 -> 2.379015183 | V89: =K89/[1]人口!$G$39*100000 -> 0.7879848077 | W89: =L89/[1]人口!$H$39*100000 -> 0.9104980424 | X89: =M89/[1]人口!$I$39*100000 -> 0.8627755489 | Y89: =N89/[1]人口!$J$39*100000 -> 0.713348171 | Z89: =O89/[1]人口!$K$39*100000 -> 0 | AA89: =P89/[1]人口!$L$39*100000 -> 1.416340318 | AB89: =調整死亡率算出!E95 -> 0.3284296836 | AC89: ='12-10 算出'!E95 -> 0.1634544216 | AD89: ='12-20 算出'!E95 -> 0.2229679196 | AE89: ='12-30 算出'!E95 -> 0.4359881047 | AF89: ='12-40 算出'!E95 -> 1.108879071 | AG89: ='12-45 算出'!E95 -> 0.1382929145 | AH89: ='12-50 算出'!E95 -> 0.2308874534 | AI89: ='12-55 算出'!E95 -> 0.1601411563 | AJ89: ='12-60 算出'!E95 -> 0.09664509282 | AK89: ='12-70 算出'!E95 -> 0 | AL89: ='12-75 算出'!E95 -> 0.5680422798
E90: 男 | F90: ='12 区別，5歳階級別，選択死因分類別死亡数'!F92 -> 3 | G90: ='12-10'!F92 -> 0 | H90: ='12-20'!F92 -> 0 | I90: ='12-30'!F92 -> 0 | J90: ='12-40'!F92 -> 2 | K90: ='12-45'!F92 -> 0 | L90: ='12-50'!F92 -> 1 | M90: ='12-55'!F92 -> 0 | N90: ='12-60'!F92 -> 0 | O90: ='12-70'!F92 -> 0 | P90: ='12-75'!F92 -> 0 | Q90: =F90/[1]人口!$B$40*100000 -> 0.3287620793 | R90: =G90/[1]人口!$C$40*100000 -> 0 | S90: =H90/[1]人口!$D$40*100000 -> 0 | T90: =I90/[1]人口!$E$40*100000 -> 0 | U90: =J90/[1]人口!$F$40*100000 -> 2.015153958 | V90: =K90/[1]人口!$G$40*100000 -> 0 | W90: =L90/[1]人口!$H$40*100000 -> 0.9821542571 | X90: =M90/[1]人口!$I$40*100000 -> 0 | Y90: =N90/[1]人口!$J$40*100000 -> 0 | Z90: =O90/[1]人口!$K$40*100000 -> 0 | AA90: =P90/[1]人口!$L$40*100000 -> 0 | AB90: =調整死亡率算出!E96 -> 0.2066283178 | AC90: ='12-10 算出'!E96 -> 0 | AD90: ='12-20 算出'!E96 -> 0 | AE90: ='12-30 算出'!E96 -> 0 | AF90: ='12-40 算出'!E96 -> 1.396204089 | AG90: ='12-45 算出'!E96 -> 0 | AH90: ='12-50 算出'!E96 -> 0.3785204393 | AI90: ='12-55 算出'!E96 -> 0 | AJ90: ='12-60 算出'!E96 -> 0 | AK90: ='12-70 算出'!E96 -> 0 | AL90: ='12-75 算出'!E96 -> 0
E91: 女 | F91: ='12 区別，5歳階級別，選択死因分類別死亡数'!F93 -> 15 | G91: ='12-10'!F93 -> 2 | H91: ='12-20'!F93 -> 2 | I91: ='12-30'!F93 -> 2 | J91: ='12-40'!F93 -> 3 | K91: ='12-45'!F93 -> 1 | L91: ='12-50'!F93 -> 1 | M91: ='12-55'!F93 -> 1 | N91: ='12-60'!F93 -> 1 | O91: ='12-70'!F93 -> 0 | P91: ='12-75'!F93 -> 2 | Q91: =F91/[1]人口!$B$41*100000 -> 1.434183868 | R91: =G91/[1]人口!$C$41*100000 -> 1.52458779 | S91: =H91/[1]人口!$D$41*100000 -> 1.319618103 | T91: =I91/[1]人口!$E$41*100000 -> 1.446738328 | U91: =J91/[1]人口!$F$41*100000 -> 2.704578852 | V91: =K91/[1]人口!$G$41*100000 -> 1.448918382 | W91: =L91/[1]人口!$H$41*100000 -> 0.8485866789 | X91: =M91/[1]人口!$I$41*100000 -> 1.634013628 | Y91: =N91/[1]人口!$J$41*100000 -> 1.324608578 | Z91: =O91/[1]人口!$K$41*100000 -> 0 | AA91: =P91/[1]人口!$L$41*100000 -> 2.66844563 | AB91: =調整死亡率算出!E97 -> 0.3940529963 | AC91: ='12-10 算出'!E97 -> 0.2303904228 | AD91: ='12-20 算出'!E97 -> 0.370157761 | AE91: ='12-30 算出'!E97 -> 0.8235271259 | AF91: ='12-40 算出'!E97 -> 0.7616502276 | AG91: ='12-45 算出'!E97 -> 0.1981077526 | AH91: ='12-50 算出'!E97 -> 0.1211026581 | AI91: ='12-55 算出'!E97 -> 0.2297407494 | AJ91: ='12-60 算出'!E97 -> 0.1405898417 | AK91: ='12-70 算出'!E97 -> 0 | AL91: ='12-75 算出'!E97 -> 1.007962053
A92: Se 29 | B92: 肝 疾 患 | E92: 総数 | F92: ='12 区別，5歳階級別，選択死因分類別死亡数'!F94 -> 216 | G92: ='12-10'!F94 -> 20 | H92: ='12-20'!F94 -> 22 | I92: ='12-30'!F94 -> 30 | J92: ='12-40'!F94 -> 33 | K92: ='12-45'!F94 -> 10 | L92: ='12-50'!F94 -> 27 | M92: ='12-55'!F94 -> 11 | N92: ='12-60'!F94 -> 16 | O92: ='12-70'!F94 -> 22 | P92: ='12-75'!F94 -> 25 | Q92: =F92/[1]人口!$B$39*100000 -> 11.02938361 | R92: =G92/[1]人口!$C$39*100000 -> 8.339588024 | S92: =H92/[1]人口!$D$39*100000 -> 7.668043429 | T92: =I92/[1]人口!$E$39*100000 -> 11.38623632 | U92: =J92/[1]人口!$F$39*100000 -> 15.70150021 | V92: =K92/[1]人口!$G$39*100000 -> 7.879848077 | W92: =L92/[1]人口!$H$39*100000 -> 12.29172357 | X92: =M92/[1]人口!$I$39*100000 -> 9.490531038 | Y92: =N92/[1]人口!$J$39*100000 -> 11.41357074 | Z92: =O92/[1]人口!$K$39*100000 -> 10.27226163 | AA92: =P92/[1]人口!$L$39*100000 -> 17.70425398 | AB92: =調整死亡率算出!E98 -> 5.947305019 | AC92: ='12-10 算出'!E98 -> 5.643570338 | AD92: ='12-20 算出'!E98 -> 4.821446476 | AE92: ='12-30 算出'!E98 -> 6.698727784 | AF92: ='12-40 算出'!E98 -> 7.591017743 | AG92: ='12-45 算出'!E98 -> 5.181770227 | AH92: ='12-50 算出'!E98 -> 7.224145769 | AI92: ='12-55 算出'!E98 -> 4.204274536 | AJ92: ='12-60 算出'!E98 -> 5.18876611 | AK92: ='12-70 算出'!E98 -> 5.219180879 | AL92: ='12-75 算出'!E98 -> 8.230611913
E93: 男 | F93: ='12 区別，5歳階級別，選択死因分類別死亡数'!F95 -> 134 | G93: ='12-10'!F95 -> 10 | H93: ='12-20'!F95 -> 15 | I93: ='12-30'!F95 -> 21 | J93: ='12-40'!F95 -> 19 | K93: ='12-45'!F95 -> 7 | L93: ='12-50'!F95 -> 14 | M93: ='12-55'!F95 -> 8 | N93: ='12-60'!F95 -> 11 | O93: ='12-70'!F95 -> 17 | P93: ='12-75'!F95 -> 12 | Q93: =F93/[1]人口!$B$40*100000 -> 14.68470621 | R93: =G93/[1]人口!$C$40*100000 -> 9.204967 | S93: =H93/[1]人口!$D$40*100000 -> 11.08270654 | T93: =I93/[1]人口!$E$40*100000 -> 16.76860916 | U93: =J93/[1]人口!$F$40*100000 -> 19.1439626 | V93: =K93/[1]人口!$G$40*100000 -> 12.09210731 | W93: =L93/[1]人口!$H$40*100000 -> 13.7501596 | X93: =M93/[1]人口!$I$40*100000 -> 14.62362447 | Y93: =N93/[1]人口!$J$40*100000 -> 17.00417375 | Z93: =O93/[1]人口!$K$40*100000 -> 17.22600519 | AA93: =P93/[1]人口!$L$40*100000 -> 18.11074722 | AB93: =調整死亡率算出!E99 -> 9.050202577 | AC93: ='12-10 算出'!E99 -> 7.685548754 | AD93: ='12-20 算出'!E99 -> 7.34218374 | AE93: ='12-30 算出'!E99 -> 10.54914254 | AF93: ='12-40 算出'!E99 -> 10.87883241 | AG93: ='12-45 算出'!E99 -> 7.838509981 | AH93: ='12-50 算出'!E99 -> 9.41437154 | AI93: ='12-55 算出'!E99 -> 7.34336758 | AJ93: ='12-60 算出'!E99 -> 8.697105478 | AK93: ='12-70 算出'!E99 -> 10.16015036 | AL93: ='12-75 算出'!E99 -> 11.3060129
E94: 女 | F94: ='12 区別，5歳階級別，選択死因分類別死亡数'!F96 -> 82 | G94: ='12-10'!F96 -> 10 | H94: ='12-20'!F96 -> 7 | I94: ='12-30'!F96 -> 9 | J94: ='12-40'!F96 -> 14 | K94: ='12-45'!F96 -> 3 | L94: ='12-50'!F96 -> 13 | M94: ='12-55'!F96 -> 3 | N94: ='12-60'!F96 -> 5 | O94: ='12-70'!F96 -> 5 | P94: ='12-75'!F96 -> 13 | Q94: =F94/[1]人口!$B$41*100000 -> 7.840205146 | R94: =G94/[1]人口!$C$41*100000 -> 7.622938948 | S94: =H94/[1]人口!$D$41*100000 -> 4.618663359 | T94: =I94/[1]人口!$E$41*100000 -> 6.510322478 | U94: =J94/[1]人口!$F$41*100000 -> 12.62136798 | V94: =K94/[1]人口!$G$41*100000 -> 4.346755147 | W94: =L94/[1]人口!$H$41*100000 -> 11.03162683 | X94: =M94/[1]人口!$I$41*100000 -> 4.902040883 | Y94: =N94/[1]人口!$J$41*100000 -> 6.623042891 | Z94: =O94/[1]人口!$K$41*100000 -> 4.329716577 | AA94: =P94/[1]人口!$L$41*100000 -> 17.3448966 | AB94: =調整死亡率算出!E100 -> 3.30869555 | AC94: ='12-10 算出'!E100 -> 3.709754007 | AD94: ='12-20 算出'!E100 -> 2.68997113 | AE94: ='12-30 算出'!E100 -> 3.442578098 | AF94: ='12-40 算出'!E100 -> 4.809237576 | AG94: ='12-45 算出'!E100 -> 3.019590029 | AH94: ='12-50 算出'!E100 -> 5.278906639 | AI94: ='12-55 算出'!E100 -> 1.447193485 | AJ94: ='12-60 算出'!E100 -> 2.391229112 | AK94: ='12-70 算出'!E100 -> 1.100858996 | AL94: ='12-75 算出'!E100 -> 5.552785212
A95: Se 30 | B95: 腎 不 全 | E95: 総数 | F95: ='12 区別，5歳階級別，選択死因分類別死亡数'!F97 -> 436 | G95: ='12-10'!F97 -> 59 | H95: ='12-20'!F97 -> 62 | I95: ='12-30'!F97 -> 54 | J95: ='12-40'!F97 -> 38 | K95: ='12-45'!F97 -> 33 | L95: ='12-50'!F97 -> 45 | M95: ='12-55'!F97 -> 19 | N95: ='12-60'!F97 -> 41 | O95: ='12-70'!F97 -> 55 | P95: ='12-75'!F97 -> 30 | Q95: =F95/[1]人口!$B$39*100000 -> 22.26301506 | R95: =G95/[1]人口!$C$39*100000 -> 24.60178467 | S95: =H95/[1]人口!$D$39*100000 -> 21.60994057 | T95: =I95/[1]人口!$E$39*100000 -> 20.49522537 | U95: =J95/[1]人口!$F$39*100000 -> 18.08051539 | V95: =K95/[1]人口!$G$39*100000 -> 26.00349865 | W95: =L95/[1]人口!$H$39*100000 -> 20.48620595 | X95: =M95/[1]人口!$I$39*100000 -> 16.39273543 | Y95: =N95/[1]人口!$J$39*100000 -> 29.24727501 | Z95: =O95/[1]人口!$K$39*100000 -> 25.68065406 | AA95: =P95/[1]人口!$L$39*100000 -> 21.24510477 | AB95: =調整死亡率算出!E101 -> 6.607890751 | AC95: ='12-10 算出'!E101 -> 8.409949059 | AD95: ='12-20 算出'!E101 -> 6.144868807 | AE95: ='12-30 算出'!E101 -> 6.365792324 | AF95: ='12-40 算出'!E101 -> 5.831976836 | AG95: ='12-45 算出'!E101 -> 6.035390125 | AH95: ='12-50 算出'!E101 -> 5.959322405 | AI95: ='12-55 算出'!E101 -> 5.075483261 | AJ95: ='12-60 算出'!E101 -> 7.442062198 | AK95: ='12-70 算出'!E101 -> 8.080233038 | AL95: ='12-75 算出'!E101 -> 5.822077742
E96: 男 | F96: ='12 区別，5歳階級別，選択死因分類別死亡数'!F98 -> 214 | G96: ='12-10'!F98 -> 28 | H96: ='12-20'!F98 -> 25 | I96: ='12-30'!F98 -> 27 | J96: ='12-40'!F98 -> 19 | K96: ='12-45'!F98 -> 18 | L96: ='12-50'!F98 -> 25 | M96: ='12-55'!F98 -> 8 | N96: ='12-60'!F98 -> 24 | O96: ='12-70'!F98 -> 28 | P96: ='12-75'!F98 -> 12 | Q96: =F96/[1]人口!$B$40*100000 -> 23.45169499 | R96: =G96/[1]人口!$C$40*100000 -> 25.7739076 | S96: =H96/[1]人口!$D$40*100000 -> 18.47117757 | T96: =I96/[1]人口!$E$40*100000 -> 21.55964035 | U96: =J96/[1]人口!$F$40*100000 -> 19.1439626 | V96: =K96/[1]人口!$G$40*100000 -> 31.09399022 | W96: =L96/[1]人口!$H$40*100000 -> 24.55385643 | X96: =M96/[1]人口!$I$40*100000 -> 14.62362447 | Y96: =N96/[1]人口!$J$40*100000 -> 37.10001546 | Z96: =O96/[1]人口!$K$40*100000 -> 28.37224384 | AA96: =P96/[1]人口!$L$40*100000 -> 18.11074722 | AB96: =調整死亡率算出!E102 -> 9.277149522 | AC96: ='12-10 算出'!E102 -> 12.26075522 | AD96: ='12-20 算出'!E102 -> 7.408796504 | AE96: ='12-30 算出'!E102 -> 8.495417574 | AF96: ='12-40 算出'!E102 -> 8.521288204 | AG96: ='12-45 算出'!E102 -> 10.13845446 | AH96: ='12-50 算出'!E102 -> 9.519419091 | AI96: ='12-55 算出'!E102 -> 5.519208921 | AJ96: ='12-60 算出'!E102 -> 11.31717236 | AK96: ='12-70 算出'!E102 -> 11.48458397 | AL96: ='12-75 算出'!E102 -> 7.058425899
E97: 女 | F97: ='12 区別，5歳階級別，選択死因分類別死亡数'!F99 -> 222 | G97: ='12-10'!F99 -> 31 | H97: ='12-20'!F99 -> 37 | I97: ='12-30'!F99 -> 27 | J97: ='12-40'!F99 -> 19 | K97: ='12-45'!F99 -> 15 | L97: ='12-50'!F99 -> 20 | M97: ='12-55'!F99 -> 11 | N97: ='12-60'!F99 -> 17 | O97: ='12-70'!F99 -> 27 | P97: ='12-75'!F99 -> 18 | Q97: =F97/[1]人口!$B$41*100000 -> 21.22592125 | R97: =G97/[1]人口!$C$41*100000 -> 23.63111074 | S97: =H97/[1]人口!$D$41*100000 -> 24.4129349 | T97: =I97/[1]人口!$E$41*100000 -> 19.53096743 | U97: =J97/[1]人口!$F$41*100000 -> 17.1289994 | V97: =K97/[1]人口!$G$41*100000 -> 21.73377574 | W97: =L97/[1]人口!$H$41*100000 -> 16.97173358 | X97: =M97/[1]人口!$I$41*100000 -> 17.9741499 | Y97: =N97/[1]人口!$J$41*100000 -> 22.51834583 | Z97: =O97/[1]人口!$K$41*100000 -> 23.38046951 | AA97: =P97/[1]人口!$L$41*100000 -> 24.01601067 | AB97: =調整死亡率算出!E103 -> 4.860840263 | AC97: ='12-10 算出'!E103 -> 5.790235291 | AD97: ='12-20 算出'!E103 -> 5.20155761 | AE97: ='12-30 算出'!E103 -> 5.353622382 | AF97: ='12-40 算出'!E103 -> 4.040866525 | AG97: ='12-45 算出'!E103 -> 3.33663238 | AH97: ='12-50 算出'!E103 -> 3.928834866 | AI97: ='12-55 算出'!E103 -> 4.715319874 | AJ97: ='12-60 算出'!E103 -> 4.894334211 | AK97: ='12-70 算出'!E103 -> 5.786249651 | AL97: ='12-75 算出'!E103 -> 4.728964163
A98: Se 31 | B98: 老 衰 | E98: 総数 | F98: ='12 区別，5歳階級別，選択死因分類別死亡数'!F100 -> 893 | G98: ='12-10'!F100 -> 97 | H98: ='12-20'!F100 -> 120 | I98: ='12-30'!F100 -> 113 | J98: ='12-40'!F100 -> 66 | K98: ='12-45'!F100 -> 79 | L98: ='12-50'!F100 -> 130 | M98: ='12-55'!F100 -> 72 | N98: ='12-60'!F100 -> 76 | O98: ='12-70'!F100 -> 94 | P98: ='12-75'!F100 -> 46 | Q98: =F98/[1]人口!$B$39*100000 -> 45.5983313 | R98: =G98/[1]人口!$C$39*100000 -> 40.44700192 | S98: =H98/[1]人口!$D$39*100000 -> 41.82569143 | T98: =I98/[1]人口!$E$39*100000 -> 42.8881568 | U98: =J98/[1]人口!$F$39*100000 -> 31.40300041 | V98: =K98/[1]人口!$G$39*100000 -> 62.2507998 | W98: =L98/[1]人口!$H$39*100000 -> 59.18237276 | X98: =M98/[1]人口!$I$39*100000 -> 62.11983952 | Y98: =N98/[1]人口!$J$39*100000 -> 54.21446099 | Z98: =O98/[1]人口!$K$39*100000 -> 43.8905724 | AA98: =P98/[1]人口!$L$39*100000 -> 32.57582732 | AB98: =調整死亡率算出!E104 -> 9.069515313 | AC98: ='12-10 算出'!E104 -> 8.543811602 | AD98: ='12-20 算出'!E104 -> 8.607759255 | AE98: ='12-30 算出'!E104 -> 9.510004519 | AF98: ='12-40 算出'!E104 -> 7.024685035 | AG98: ='12-45 算出'!E104 -> 11.20615619 | AH98: ='12-50 算出'!E104 -> 12.15625426 | AI98: ='12-55 算出'!E104 -> 13.82099253 | AJ98: ='12-60 算出'!E104 -> 8.216757562 | AK98: ='12-70 算出'!E104 -> 8.041478037 | AL98: ='12-75 算出'!E104 -> 5.489622431
E99: 男 | F99: ='12 区別，5歳階級別，選択死因分類別死亡数'!F101 -> 222 | G99: ='12-10'!F101 -> 19 | H99: ='12-20'!F101 -> 23 | I99: ='12-30'!F101 -> 42 | J99: ='12-40'!F101 -> 15 | K99: ='12-45'!F101 -> 22 | L99: ='12-50'!F101 -> 29 | M99: ='12-55'!F101 -> 19 | N99: ='12-60'!F101 -> 15 | O99: ='12-70'!F101 -> 26 | P99: ='12-75'!F101 -> 12 | Q99: =F99/[1]人口!$B$40*100000 -> 24.32839387 | R99: =G99/[1]人口!$C$40*100000 -> 17.4894373 | S99: =H99/[1]人口!$D$40*100000 -> 16.99348337 | T99: =I99/[1]人口!$E$40*100000 -> 33.53721833 | U99: =J99/[1]人口!$F$40*100000 -> 15.11365468 | V99: =K99/[1]人口!$G$40*100000 -> 38.00376583 | W99: =L99/[1]人口!$H$40*100000 -> 28.48247346 | X99: =M99/[1]人口!$I$40*100000 -> 34.73110811 | Y99: =N99/[1]人口!$J$40*100000 -> 23.18750966 | Z99: =O99/[1]人口!$K$40*100000 -> 26.34565499 | AA99: =P99/[1]人口!$L$40*100000 -> 18.11074722 | AB99: =調整死亡率算出!E105 -> 7.569891577 | AC99: ='12-10 算出'!E105 -> 5.717949911 | AD99: ='12-20 算出'!E105 -> 5.660293656 | AE99: ='12-30 算出'!E105 -> 11.67697655 | AF99: ='12-40 算出'!E105 -> 5.259433478 | AG99: ='12-45 算出'!E105 -> 10.34844645 | AH99: ='12-50 算出'!E105 -> 9.033733902 | AI99: ='12-55 算出'!E105 -> 12.16086658 | AJ99: ='12-60 算出'!E105 -> 5.386804051 | AK99: ='12-70 算出'!E105 -> 7.485509001 | AL99: ='12-75 算出'!E105 -> 4.705953112
E100: 女 | F100: ='12 区別，5歳階級別，選択死因分類別死亡数'!F102 -> 671 | G100: ='12-10'!F102 -> 78 | H100: ='12-20'!F102 -> 97 | I100: ='12-30'!F102 -> 71 | J100: ='12-40'!F102 -> 51 | K100: ='12-45'!F102 -> 57 | L100: ='12-50'!F102 -> 101 | M100: ='12-55'!F102 -> 53 | N100: ='12-60'!F102 -> 61 | O100: ='12-70'!F102 -> 68 | P100: ='12-75'!F102 -> 34 | Q100: =F100/[1]人口!$B$41*100000 -> 64.15582503 | R100: =G100/[1]人口!$C$41*100000 -> 59.45892379 | S100: =H100/[1]人口!$D$41*100000 -> 64.00147797 | T100: =I100/[1]人口!$E$41*100000 -> 51.35921066 | U100: =J100/[1]人口!$F$41*100000 -> 45.97784048 | V100: =K100/[1]人口!$G$41*100000 -> 82.5883478 | W100: =L100/[1]人口!$H$41*100000 -> 85.70725457 | X100: =M100/[1]人口!$I$41*100000 -> 86.60272227 | Y100: =N100/[1]人口!$J$41*100000 -> 80.80112327 | Z100: =O100/[1]人口!$K$41*100000 -> 58.88414544 | AA100: =P100/[1]人口!$L$41*100000 -> 45.36357572 | AB100: =調整死亡率算出!E106 -> 9.587467789 | AC100: ='12-10 算出'!E106 -> 9.704599608 | AD100: ='12-20 算出'!E106 -> 9.782726413 | AE100: ='12-30 算出'!E106 -> 8.167141771 | AF100: ='12-40 算出'!E106 -> 7.767025359 | AG100: ='12-45 算出'!E106 -> 11.47464994 | AH100: ='12-50 算出'!E106 -> 13.45931371 | AI100: ='12-55 算出'!E106 -> 14.01873491 | AJ100: ='12-60 算出'!E106 -> 9.327293755 | AK100: ='12-70 算出'!E106 -> 8.148007858 | AL100: ='12-75 算出'!E106 -> 5.871122635
A101: Se 32 | B101: 不慮の事故 | E101: 総数 | F101: ='12 区別，5歳階級別，選択死因分類別死亡数'!F103 -> 449 | G101: ='12-10'!F103 -> 46 | H101: ='12-20'!F103 -> 70 | I101: ='12-30'!F103 -> 59 | J101: ='12-40'!F103 -> 54 | K101: ='12-45'!F103 -> 26 | L101: ='12-50'!F103 -> 47 | M101: ='12-55'!F103 -> 26 | N101: ='12-60'!F103 -> 37 | O101: ='12-70'!F103 -> 48 | P101: ='12-75'!F103 -> 36 | Q101: =F101/[1]人口!$B$39*100000 -> 22.92682055 | R101: =G101/[1]人口!$C$39*100000 -> 19.18105246 | S101: =H101/[1]人口!$D$39*100000 -> 24.39832 | T101: =I101/[1]人口!$E$39*100000 -> 22.39293142 | U101: =J101/[1]人口!$F$39*100000 -> 25.69336398 | V101: =K101/[1]人口!$G$39*100000 -> 20.487605 | W101: =L101/[1]人口!$H$39*100000 -> 21.396704 | X101: =M101/[1]人口!$I$39*100000 -> 22.43216427 | Y101: =N101/[1]人口!$J$39*100000 -> 26.39388233 | Z101: =O101/[1]人口!$K$39*100000 -> 22.41220718 | AA101: =P101/[1]人口!$L$39*100000 -> 25.49412573 | AB101: =調整死亡率算出!E107 -> 11.70042816 | AC101: ='12-10 算出'!E107 -> 11.37675592 | AD101: ='12-20 算出'!E107 -> 12.0523393 | AE101: ='12-30 算出'!E107 -> 11.35615671 | AF101: ='12-40 算出'!E107 -> 15.90039162 | AG101: ='12-45 算出'!E107 -> 9.224335801 | AH101: ='12-50 算出'!E107 -> 10.12489902 | AI101: ='12-55 算出'!E107 -> 11.03592648 | AJ101: ='12-60 算出'!E107 -> 11.31708545 | AK101: ='12-70 算出'!E107 -> 10.49758477 | AL101: ='12-75 算出'!E107 -> 13.20669628
E102: 男 | F102: ='12 区別，5歳階級別，選択死因分類別死亡数'!F104 -> 252 | G102: ='12-10'!F104 -> 21 | H102: ='12-20'!F104 -> 36 | I102: ='12-30'!F104 -> 34 | J102: ='12-40'!F104 -> 35 | K102: ='12-45'!F104 -> 16 | L102: ='12-50'!F104 -> 23 | M102: ='12-55'!F104 -> 11 | N102: ='12-60'!F104 -> 19 | O102: ='12-70'!F104 -> 38 | P102: ='12-75'!F104 -> 19 | Q102: =F102/[1]人口!$B$40*100000 -> 27.61601466 | R102: =G102/[1]人口!$C$40*100000 -> 19.3304307 | S102: =H102/[1]人口!$D$40*100000 -> 26.59849571 | T102: =I102/[1]人口!$E$40*100000 -> 27.14917674 | U102: =J102/[1]人口!$F$40*100000 -> 35.26519426 | V102: =K102/[1]人口!$G$40*100000 -> 27.63910242 | W102: =L102/[1]人口!$H$40*100000 -> 22.58954791 | X102: =M102/[1]人口!$I$40*100000 -> 20.10748364 | Y102: =N102/[1]人口!$J$40*100000 -> 29.37084557 | Z102: =O102/[1]人口!$K$40*100000 -> 38.50518807 | AA102: =P102/[1]人口!$L$40*100000 -> 28.67534976 | AB102: =調整死亡率算出!E108 -> 17.19648956 | AC102: ='12-10 算出'!E108 -> 14.66170713 | AD102: ='12-20 算出'!E108 -> 17.57546797 | AE102: ='12-30 算出'!E108 -> 18.17099878 | AF102: ='12-40 算出'!E108 -> 25.47784309 | AG102: ='12-45 算出'!E108 -> 13.65004284 | AH102: ='12-50 算出'!E108 -> 12.34384619 | AI102: ='12-55 算出'!E108 -> 9.76776843 | AJ102: ='12-60 算出'!E108 -> 15.41558058 | AK102: ='12-70 算出'!E108 -> 20.29383293 | AL102: ='12-75 算出'!E108 -> 18.12373137
E103: 女 | F103: ='12 区別，5歳階級別，選択死因分類別死亡数'!F105 -> 197 | G103: ='12-10'!F105 -> 25 | H103: ='12-20'!F105 -> 34 | I103: ='12-30'!F105 -> 25 | J103: ='12-40'!F105 -> 19 | K103: ='12-45'!F105 -> 10 | L103: ='12-50'!F105 -> 24 | M103: ='12-55'!F105 -> 15 | N103: ='12-60'!F105 -> 18 | O103: ='12-70'!F105 -> 10 | P103: ='12-75'!F105 -> 17 | Q103: =F103/[1]人口!$B$41*100000 -> 18.8356148 | R103: =G103/[1]人口!$C$41*100000 -> 19.05734737 | S103: =H103/[1]人口!$D$41*100000 -> 22.43350774 | T103: =I103/[1]人口!$E$41*100000 -> 18.08422911 | U103: =J103/[1]人口!$F$41*100000 -> 17.1289994 | V103: =K103/[1]人口!$G$41*100000 -> 14.48918382 | W103: =L103/[1]人口!$H$41*100000 -> 20.36608029 | X103: =M103/[1]人口!$I$41*100000 -> 24.51020442 | Y103: =N103/[1]人口!$J$41*100000 -> 23.84295441 | Z103: =O103/[1]人口!$K$41*100000 -> 8.659433154 | AA103: =P103/[1]人口!$L$41*100000 -> 22.68178786 | AB103: =調整死亡率算出!E109 -> 7.140366606 | AC103: ='12-10 算出'!E109 -> 8.205413222 | AD103: ='12-20 算出'!E109 -> 6.708460255 | AE103: ='12-30 算出'!E109 -> 5.331633417 | AF103: ='12-40 算出'!E109 -> 7.471487583 | AG103: ='12-45 算出'!E109 -> 6.248764299 | AH103: ='12-50 算出'!E109 -> 8.767278736 | AI103: ='12-55 算出'!E109 -> 12.4678008 | AJ103: ='12-60 算出'!E109 -> 7.876145809 | AK103: ='12-70 算出'!E109 -> 3.251463243 | AL103: ='12-75 算出'!E109 -> 9.02605237
A104: Se 33 | B104: (再掲) | C104: 交 通 事 故 | E104: 総数 | F104: ='12 区別，5歳階級別，選択死因分類別死亡数'!F106 -> 50 | G104: ='12-10'!F106 -> 4 | H104: ='12-20'!F106 -> 9 | I104: ='12-30'!F106 -> 5 | J104: ='12-40'!F106 -> 9 | K104: ='12-45'!F106 -> 1 | L104: ='12-50'!F106 -> 6 | M104: ='12-55'!F106 -> 2 | N104: ='12-60'!F106 -> 4 | O104: ='12-70'!F106 -> 5 | P104: ='12-75'!F106 -> 5 | Q104: =F104/[1]人口!$B$39*100000 -> 2.553098057 | R104: =G104/[1]人口!$C$39*100000 -> 1.667917605 | S104: =H104/[1]人口!$D$39*100000 -> 3.136926857 | T104: =I104/[1]人口!$E$39*100000 -> 1.897706053 | U104: =J104/[1]人口!$F$39*100000 -> 4.282227329 | V104: =K104/[1]人口!$G$39*100000 -> 0.7879848077 | W104: =L104/[1]人口!$H$39*100000 -> 2.731494127 | X104: =M104/[1]人口!$I$39*100000 -> 1.725551098 | Y104: =N104/[1]人口!$J$39*100000 -> 2.853392684 | Z104: =O104/[1]人口!$K$39*100000 -> 2.334604915 | AA104: =P104/[1]人口!$L$39*100000 -> 3.540850796 | AB104: =調整死亡率算出!E110 -> 1.805484268 | AC104: ='12-10 算出'!E110 -> 0.854732957 | AD104: ='12-20 算出'!E110 -> 1.75496448 | AE104: ='12-30 算出'!E110 -> 1.124209739 | AF104: ='12-40 算出'!E110 -> 4.567171156 | AG104: ='12-45 算出'!E110 -> 0.4611100664 | AH104: ='12-50 算出'!E110 -> 1.446145178 | AI104: ='12-55 算出'!E110 -> 1.036361531 | AJ104: ='12-60 算出'!E110 -> 3.309121147 | AK104: ='12-70 算出'!E110 -> 1.757251703 | AL104: ='12-75 算出'!E110 -> 1.730508904
E105: 男 | F105: ='12 区別，5歳階級別，選択死因分類別死亡数'!F107 -> 34 | G105: ='12-10'!F107 -> 2 | H105: ='12-20'!F107 -> 6 | I105: ='12-30'!F107 -> 4 | J105: ='12-40'!F107 -> 9 | K105: ='12-45'!F107 -> 1 | L105: ='12-50'!F107 -> 2 | M105: ='12-55'!F107 -> 1 | N105: ='12-60'!F107 -> 2 | O105: ='12-70'!F107 -> 5 | P105: ='12-75'!F107 -> 2 | Q105: =F105/[1]人口!$B$40*100000 -> 3.725970232 | R105: =G105/[1]人口!$C$40*100000 -> 1.8409934 | S105: =H105/[1]人口!$D$40*100000 -> 4.433082618 | T105: =I105/[1]人口!$E$40*100000 -> 3.194020793 | U105: =J105/[1]人口!$F$40*100000 -> 9.06819281 | V105: =K105/[1]人口!$G$40*100000 -> 1.727443901 | W105: =L105/[1]人口!$H$40*100000 -> 1.964308514 | X105: =M105/[1]人口!$I$40*100000 -> 1.827953058 | Y105: =N105/[1]人口!$J$40*100000 -> 3.091667955 | Z105: =O105/[1]人口!$K$40*100000 -> 5.066472114 | AA105: =P105/[1]人口!$L$40*100000 -> 3.01845787 | AB105: =調整死亡率算出!E111 -> 3.113278337 | AC105: ='12-10 算出'!E111 -> 1.343540925 | AD105: ='12-20 算出'!E111 -> 2.79191853 | AE105: ='12-30 算出'!E111 -> 2.110744919 | AF105: ='12-40 算出'!E111 -> 9.246021753 | AG105: ='12-45 算出'!E111 -> 0.9919620382 | AH105: ='12-50 算出'!E111 -> 1.541075398 | AI105: ='12-55 算出'!E111 -> 1.433345995 | AJ105: ='12-60 算出'!E111 -> 5.283601913 | AK105: ='12-70 算出'!E111 -> 3.896364182 | AL105: ='12-75 算出'!E111 -> 1.874658077
E106: 女 | F106: ='12 区別，5歳階級別，選択死因分類別死亡数'!F108 -> 16 | G106: ='12-10'!F108 -> 2 | H106: ='12-20'!F108 -> 3 | I106: ='12-30'!F108 -> 1 | J106: ='12-40'!F108 -> 0 | K106: ='12-45'!F108 -> 0 | L106: ='12-50'!F108 -> 4 | M106: ='12-55'!F108 -> 1 | N106: ='12-60'!F108 -> 2 | O106: ='12-70'!F108 -> 0 | P106: ='12-75'!F108 -> 3 | Q106: =F106/[1]人口!$B$41*100000 -> 1.529796126 | R106: =G106/[1]人口!$C$41*100000 -> 1.52458779 | S106: =H106/[1]人口!$D$41*100000 -> 1.979427154 | T106: =I106/[1]人口!$E$41*100000 -> 0.7233691642 | U106: =J106/[1]人口!$F$41*100000 -> 0 | V106: =K106/[1]人口!$G$41*100000 -> 0 | W106: =L106/[1]人口!$H$41*100000 -> 3.394346716 | X106: =M106/[1]人口!$I$41*100000 -> 1.634013628 | Y106: =N106/[1]人口!$J$41*100000 -> 2.649217156 | Z106: =O106/[1]人口!$K$41*100000 -> 0 | AA106: =P106/[1]人口!$L$41*100000 -> 4.002668446 | AB106: =調整死亡率算出!E112 -> 0.6007546554 | AC106: ='12-10 算出'!E112 -> 0.3502859428 | AD106: ='12-20 算出'!E112 -> 0.8101906054 | AE106: ='12-30 算出'!E112 -> 0.3053894998 | AF106: ='12-40 算出'!E112 -> 0 | AG106: ='12-45 算出'!E112 -> 0 | AH106: ='12-50 算出'!E112 -> 1.323838185 | AI106: ='12-55 算出'!E112 -> 0.7062518728 | AJ106: ='12-60 算出'!E112 -> 1.204381726 | AK106: ='12-70 算出'!E112 -> 0 | AL106: ='12-75 算出'!E112 -> 1.628880689
A107: Se 34 | B107: 自 殺 | E107: 総数 | F107: ='12 区別，5歳階級別，選択死因分類別死亡数'!F109 -> 315 | G107: ='12-10'!F109 -> 46 | H107: ='12-20'!F109 -> 46 | I107: ='12-30'!F109 -> 44 | J107: ='12-40'!F109 -> 40 | K107: ='12-45'!F109 -> 11 | L107: ='12-50'!F109 -> 43 | M107: ='12-55'!F109 -> 14 | N107: ='12-60'!F109 -> 24 | O107: ='12-70'!F109 -> 33 | P107: ='12-75'!F109 -> 14 | Q107: =F107/[1]人口!$B$39*100000 -> 16.08451776 | R107: =G107/[1]人口!$C$39*100000 -> 19.18105246 | S107: =H107/[1]人口!$D$39*100000 -> 16.03318172 | T107: =I107/[1]人口!$E$39*100000 -> 16.69981327 | U107: =J107/[1]人口!$F$39*100000 -> 19.03212146 | V107: =K107/[1]人口!$G$39*100000 -> 8.667832884 | W107: =L107/[1]人口!$H$39*100000 -> 19.57570791 | X107: =M107/[1]人口!$I$39*100000 -> 12.07885769 | Y107: =N107/[1]人口!$J$39*100000 -> 17.1203561 | Z107: =O107/[1]人口!$K$39*100000 -> 15.40839244 | AA107: =P107/[1]人口!$L$39*100000 -> 9.914382228 | AB107: =調整死亡率算出!E113 -> 14.86571565 | AC107: ='12-10 算出'!E113 -> 18.51715918 | AD107: ='12-20 算出'!E113 -> 13.68549591 | AE107: ='12-30 算出'!E113 -> 14.60586857 | AF107: ='12-40 算出'!E113 -> 17.20592835 | AG107: ='12-45 算出'!E113 -> 6.918569256 | AH107: ='12-50 算出'!E113 -> 18.45324748 | AI107: ='12-55 算出'!E113 -> 12.18437479 | AJ107: ='12-60 算出'!E113 -> 14.65374795 | AK107: ='12-70 算出'!E113 -> 14.23126745 | AL107: ='12-75 算出'!E113 -> 11.63589927
E108: 男 | F108: ='12 区別，5歳階級別，選択死因分類別死亡数'!F110 -> 225 | G108: ='12-10'!F110 -> 33 | H108: ='12-20'!F110 -> 33 | I108: ='12-30'!F110 -> 35 | J108: ='12-40'!F110 -> 22 | K108: ='12-45'!F110 -> 7 | L108: ='12-50'!F110 -> 28 | M108: ='12-55'!F110 -> 10 | N108: ='12-60'!F110 -> 17 | O108: ='12-70'!F110 -> 27 | P108: ='12-75'!F110 -> 13 | Q108: =F108/[1]人口!$B$40*100000 -> 24.65715595 | R108: =G108/[1]人口!$C$40*100000 -> 30.3763911 | S108: =H108/[1]人口!$D$40*100000 -> 24.3819544 | T108: =I108/[1]人口!$E$40*100000 -> 27.94768194 | U108: =J108/[1]人口!$F$40*100000 -> 22.16669354 | V108: =K108/[1]人口!$G$40*100000 -> 12.09210731 | W108: =L108/[1]人口!$H$40*100000 -> 27.5003192 | X108: =M108/[1]人口!$I$40*100000 -> 18.27953058 | Y108: =N108/[1]人口!$J$40*100000 -> 26.27917762 | Z108: =O108/[1]人口!$K$40*100000 -> 27.35894942 | AA108: =P108/[1]人口!$L$40*100000 -> 19.61997615 | AB108: =調整死亡率算出!E114 -> 22.64522568 | AC108: ='12-10 算出'!E114 -> 27.92729772 | AD108: ='12-20 算出'!E114 -> 21.84648169 | AE108: ='12-30 算出'!E114 -> 24.21335195 | AF108: ='12-40 算出'!E114 -> 19.75400998 | AG108: ='12-45 算出'!E114 -> 9.16629809 | AH108: ='12-50 算出'!E114 -> 25.38083469 | AI108: ='12-55 算出'!E114 -> 16.19310097 | AJ108: ='12-60 算出'!E114 -> 26.55489009 | AK108: ='12-70 算出'!E114 -> 24.68270109 | AL108: ='12-75 算出'!E114 -> 21.28414427
E109: 女 | F109: ='12 区別，5歳階級別，選択死因分類別死亡数'!F111 -> 90 | G109: ='12-10'!F111 -> 13 | H109: ='12-20'!F111 -> 13 | I109: ='12-30'!F111 -> 9 | J109: ='12-40'!F111 -> 18 | K109: ='12-45'!F111 -> 4 | L109: ='12-50'!F111 -> 15 | M109: ='12-55'!F111 -> 4 | N109: ='12-60'!F111 -> 7 | O109: ='12-70'!F111 -> 6 | P109: ='12-75'!F111 -> 1 | Q109: =F109/[1]人口!$B$41*100000 -> 8.605103209 | R109: =G109/[1]人口!$C$41*100000 -> 9.909820632 | S109: =H109/[1]人口!$D$41*100000 -> 8.577517666 | T109: =I109/[1]人口!$E$41*100000 -> 6.510322478 | U109: =J109/[1]人口!$F$41*100000 -> 16.22747311 | V109: =K109/[1]人口!$G$41*100000 -> 5.79567353 | W109: =L109/[1]人口!$H$41*100000 -> 12.72880018 | X109: =M109/[1]人口!$I$41*100000 -> 6.536054511 | Y109: =N109/[1]人口!$J$41*100000 -> 9.272260047 | Z109: =O109/[1]人口!$K$41*100000 -> 5.195659892 | AA109: =P109/[1]人口!$L$41*100000 -> 1.334222815 | AB109: =調整死亡率算出!E115 -> 7.836288302 | AC109: ='12-10 算出'!E115 -> 10.65011548 | AD109: ='12-20 算出'!E115 -> 6.036544055 | AE109: ='12-30 算出'!E115 -> 5.621365809 | AF109: ='12-40 算出'!E115 -> 14.86318717 | AG109: ='12-45 算出'!E115 -> 5.184222086 | AH109: ='12-50 算出'!E115 -> 12.27169782 | AI109: ='12-55 算出'!E115 -> 8.536545769 | AJ109: ='12-60 算出'!E115 -> 3.356852779 | AK109: ='12-70 算出'!E115 -> 5.088967443 | AL109: ='12-75 算出'!E115 -> 2.519874202
A110: 1) 10月1日現在、住民基本台帳の人口により算出した率である。

Sheet 12 区別，5歳階級別，選択死因分類別死亡数
A1: 12 区・年齢（5歳階級）・性別にみた選択死因分類別死亡数
A3: 総 数 | AG3: ='3 月・性別，区別死亡数'!$O$2 -> 平成28年
A4: 選択死因 分類コード | B4: 死因・性 | F4: 年齢階級
F5: 総数 | G5: 0歳 | H5: 1 | I5: 2 | J5: 3 | K5: 4 | L5: 0～4 | M5: 5～9 | N5: 10～14 | O5: 15～19 | P5: 20～24 | Q5: 25～29 | R5: 30～34 | S5: 35～39 | T5: 40～44 | U5: 45～49 | V5: 50～54 | W5: 55～59 | X5: 60～64 | Y5: 65～69 | Z5: 70～74 | AA5: 75～79 | AB5: 80～84 | AC5: 85～89 | AD5: 90～94 | AE5: 95～99 | AF5: 100～ | AG5: 不 詳
B7: 死 亡 総 数 | E7: 総数 | F7: =SUM('12-10:12-75'!F7) -> 18504 | G7: =SUM('12-10:12-75'!G7) -> 29 | H7: =SUM('12-10:12-75'!H7) -> 4 | I7: =SUM('12-10:12-75'!I7) -> 2 | J7: =SUM('12-10:12-75'!J7) -> 1 | K7: =SUM('12-10:12-75'!K7) -> 0 | L7: =SUM('12-10:12-75'!L7) -> 36 | M7: =SUM('12-10:12-75'!M7) -> 6 | N7: =SUM('12-10:12-75'!N7) -> 5 | O7: =SUM('12-10:12-75'!O7) -> 20 | P7: =SUM('12-10:12-75'!P7) -> 29 | Q7: =SUM('12-10:12-75'!Q7) -> 51 | R7: =SUM('12-10:12-75'!R7) -> 50 | S7: =SUM('12-10:12-75'!S7) -> 103 | T7: =SUM('12-10:12-75'!T7) -> 162 | U7: =SUM('12-10:12-75'!U7) -> 249 | V7: =SUM('12-10:12-75'!V7) -> 281 | W7: =SUM('12-10:12-75'!W7) -> 492 | X7: =SUM('12-10:12-75'!X7) -> 857 | Y7: =SUM('12-10:12-75'!Y7) -> 1494 | Z7: =SUM('12-10:12-75'!Z7) -> 1609 | AA7: =SUM('12-10:12-75'!AA7) -> 2171 | AB7: =SUM('12-10:12-75'!AB7) -> 3020 | AC7: =SUM('12-10:12-75'!AC7) -> 3487 | AD7: =SUM('12-10:12-75'!AD7) -> 2735 | AE7: =SUM('12-10:12-75'!AE7) -> 1265 | AF7: =SUM('12-10:12-75'!AF7) -> 382 | AG7: =SUM('12-10:12-75'!AG7) -> 0
E8: 男 | F8: =SUM('12-10:12-75'!F8) -> 9654 | G8: =SUM('12-10:12-75'!G8) -> 14 | H8: =SUM('12-10:12-75'!H8) -> 1 | I8: =SUM('12-10:12-75'!I8) -> 2 | J8: =SUM('12-10:12-75'!J8) -> 1 | K8: =SUM('12-10:12-75'!K8) -> 0 | L8: =SUM('12-10:12-75'!L8) -> 18 | M8: =SUM('12-10:12-75'!M8) -> 4 | N8: =SUM('12-10:12-75'!N8) -> 4 | O8: =SUM('12-10:12-75'!O8) -> 14 | P8: =SUM('12-10:12-75'!P8) -> 17 | Q8: =SUM('12-10:12-75'!Q8) -> 36 | R8: =SUM('12-10:12-75'!R8) -> 33 | S8: =SUM('12-10:12-75'!S8) -> 60 | T8: =SUM('12-10:12-75'!T8) -> 102 | U8: =SUM('12-10:12-75'!U8) -> 146 | V8: =SUM('12-10:12-75'!V8) -> 166 | W8: =SUM('12-10:12-75'!W8) -> 321 | X8: =SUM('12-10:12-75'!X8) -> 577 | Y8: =SUM('12-10:12-75'!Y8) -> 973 | Z8: =SUM('12-10:12-75'!Z8) -> 1069 | AA8: =SUM('12-10:12-75'!AA8) -> 1316 | AB8: =SUM('12-10:12-75'!AB8) -> 1757 | AC8: =SUM('12-10:12-75'!AC8) -> 1692 | AD8: =SUM('12-10:12-75'!AD8) -> 986 | AE8: =SUM('12-10:12-75'!AE8) -> 302 | AF8: =SUM('12-10:12-75'!AF8) -> 61 | AG8: =SUM('12-10:12-75'!AG8) -> 0
E9: 女 | F9: =SUM('12-10:12-75'!F9) -> 8850 | G9: =SUM('12-10:12-75'!G9) -> 15 | H9: =SUM('12-10:12-75'!H9) -> 3 | I9: =SUM('12-10:12-75'!I9) -> 0 | J9: =SUM('12-10:12-75'!J9) -> 0 | K9: =SUM('12-10:12-75'!K9) -> 0 | L9: =SUM('12-10:12-75'!L9) -> 18 | M9: =SUM('12-10:12-75'!M9) -> 2 | N9: =SUM('12-10:12-75'!N9) -> 1 | O9: =SUM('12-10:12-75'!O9) -> 6 | P9: =SUM('12-10:12-75'!P9) -> 12 | Q9: =SUM('12-10:12-75'!Q9) -> 15 | R9: =SUM('12-10:12-75'!R9) -> 17 | S9: =SUM('12-10:12-75'!S9) -> 43 | T9: =SUM('12-10:12-75'!T9) -> 60 | U9: =SUM('12-10:12-75'!U9) -> 103 | V9: =SUM('12-10:12-75'!V9) -> 115 | W9: =SUM('12-10:12-75'!W9) -> 171 | X9: =SUM('12-10:12-75'!X9) -> 280 | Y9: =SUM('12-10:12-75'!Y9) -> 521 | Z9: =SUM('12-10:12-75'!Z9) -> 540 | AA9: =SUM('12-10:12-75'!AA9) -> 855 | AB9: =SUM('12-10:12-75'!AB9) -> 1263 | AC9: =SUM('12-10:12-75'!AC9) -> 1795 | AD9: =SUM('12-10:12-75'!AD9) -> 1749 | AE9: =SUM('12-10:12-75'!AE9) -> 963 | AF9: =SUM('12-10:12-75'!AF9) -> 321 | AG9: =SUM('12-10:12-75'!AG9) -> 0
A10: Se 01 | B10: 結 核 | E10: 総数 | F10: =SUM('12-10:12-75'!F10) -> 14 | G10: =SUM('12-10:12-75'!G10) -> 0 | H10: =SUM('12-10:12-75'!H10) -> 0 | I10: =SUM('12-10:12-75'!I10) -> 0 | J10: =SUM('12-10:12-75'!J10) -> 0 | K10: =SUM('12-10:12-75'!K10) -> 0 | L10: =SUM('12-10:12-75'!L10) -> 0 | M10: =SUM('12-10:12-75'!M10) -> 0 | N10: =SUM('12-10:12-75'!N10) -> 0 | O10: =SUM('12-10:12-75'!O10) -> 0 | P10: =SUM('12-10:12-75'!P10) -> 0 | Q10: =SUM('12-10:12-75'!Q10) -> 0 | R10: =SUM('12-10:12-75'!R10) -> 0 | S10: =SUM('12-10:12-75'!S10) -> 0 | T10: =SUM('12-10:12-75'!T10) -> 0 | U10: =SUM('12-10:12-75'!U10) -> 0 | V10: =SUM('12-10:12-75'!V10) -> 1 | W10: =SUM('12-10:12-75'!W10) -> 0 | X10: =SUM('12-10:12-75'!X10) -> 0 | Y10: =SUM('12-10:12-75'!Y10) -> 1 | Z10: =SUM('12-10:12-75'!Z10) -> 1 | AA10: =SUM('12-10:12-75'!AA10) -> 2 | AB10: =SUM('12-10:12-75'!AB10) -> 1 | AC10: =SUM('12-10:12-75'!AC10) -> 5 | AD10: =SUM('12-10:12-75'!AD10) -> 2 | AE10: =SUM('12-10:12-75'!AE10) -> 1 | AF10: =SUM('12-10:12-75'!AF10) -> 0 | AG10: =SUM('12-10:12-75'!AG10) -> 0
E11: 男 | F11: =SUM('12-10:12-75'!F11) -> 12 | G11: =SUM('12-10:12-75'!G11) -> 0 | H11: =SUM('12-10:12-75'!H11) -> 0 | I11: =SUM('12-10:12-75'!I11) -> 0 | J11: =SUM('12-10:12-75'!J11) -> 0 | K11: =SUM('12-10:12-75'!K11) -> 0 | L11: =SUM('12-10:12-75'!L11) -> 0 | M11: =SUM('12-10:12-75'!M11) -> 0 | N11: =SUM('12-10:12-75'!N11) -> 0 | O11: =SUM('12-10:12-75'!O11) -> 0 | P11: =SUM('12-10:12-75'!P11) -> 0 | Q11: =SUM('12-10:12-75'!Q11) -> 0 | R11: =SUM('12-10:12-75'!R11) -> 0 | S11: =SUM('12-10:12-75'!S11) -> 0 | T11: =SUM('12-10:12-75'!T11) -> 0 | U11: =SUM('12-10:12-75'!U11) -> 0 | V11: =SUM('12-10:12-75'!V11) -> 1 | W11: =SUM('12-10:12-75'!W11) -> 0 | X11: =SUM('12-10:12-75'!X11) -> 0 | Y11: =SUM('12-10:12-75'!Y11) -> 1 | Z11: =SUM('12-10:12-75'!Z11) -> 1 | AA11: =SUM('12-10:12-75'!AA11) -> 1 | AB11: =SUM('12-10:12-75'!AB11) -> 1 | AC11: =SUM('12-10:12-75'!AC11) -> 5 | AD11: =SUM('12-10:12-75'!AD11) -> 2 | AE11: =SUM('12-10:12-75'!AE11) -> 0 | AF11: =SUM('12-10:12-75'!AF11) -> 0 | AG11: =SUM('12-10:12-75'!AG11) -> 0
E12: 女 | F12: =SUM('12-10:12-75'!F12) -> 2 | G12: =SUM('12-10:12-75'!G12) -> 0 | H12: =SUM('12-10:12-75'!H12) -> 0 | I12: =SUM('12-10:12-75'!I12) -> 0 | J12: =SUM('12-10:12-75'!J12) -> 0 | K12: =SUM('12-10:12-75'!K12) -> 0 | L12: =SUM('12-10:12-75'!L12) -> 0 | M12: =SUM('12-10:12-75'!M12) -> 0 | N12: =SUM('12-10:12-75'!N12) -> 0 | O12: =SUM('12-10:12-75'!O12) -> 0 | P12: =SUM('12-10:12-75'!P12) -> 0 | Q12: =SUM('12-10:12-75'!Q12) -> 0 | R12: =SUM('12-10:12-75'!R12) -> 0 | S12: =SUM('12-10:12-75'!S12) -> 0 | T12: =SUM('12-10:12-75'!T12) -> 0 | U12: =SUM('12-10:12-75'!U12) -> 0 | V12: =SUM('12-10:12-75'!V12) -> 0 | W12: =SUM('12-10:12-75'!W12) -> 0 | X12: =SUM('12-10:12-75'!X12) -> 0 | Y12: =SUM('12-10:12-75'!Y12) -> 0 | Z12: =SUM('12-10:12-75'!Z12) -> 0 | AA12: =SUM('12-10:12-75'!AA12) -> 1 | AB12: =SUM('12-10:12-75'!AB12) -> 0 | AC12: =SUM('12-10:12-75'!AC12) -> 0 | AD12: =SUM('12-10:12-75'!AD12) -> 0 | AE12: =SUM('12-10:12-75'!AE12) -> 1 | AF12: =SUM('12-10:12-75'!AF12) -> 0 | AG12: =SUM('12-10:12-75'!AG12) -> 0
A13: Se 02 | B13: 悪性新生物 | E13: 総数 | F13: =SUM('12-10:12-75'!F13) -> 6003 | G13: =SUM('12-10:12-75'!G13) -> 0 | H13: =SUM('12-10:12-75'!H13) -> 0 | I13: =SUM('12-10:12-75'!I13) -> 0 | J13: =SUM('12-10:12-75'!J13) -> 0 | K13: =SUM('12-10:12-75'!K13) -> 0 | L13: =SUM('12-10:12-75'!L13) -> 0 | M13: =SUM('12-10:12-75'!M13) -> 1 | N13: =SUM('12-10:12-75'!N13) -> 1 | O13: =SUM('12-10:12-75'!O13) -> 2 | P13: =SUM('12-10:12-75'!P13) -> 2 | Q13: =SUM('12-10:12-75'!Q13) -> 3 | R13: =SUM('12-10:12-75'!R13) -> 10 | S13: =SUM('12-10:12-75'!S13) -> 22 | T13: =SUM('12-10:12-75'!T13) -> 44 | U13: =SUM('12-10:12-75'!U13) -> 103 | V13: =SUM('12-10:12-75'!V13) -> 124 | W13: =SUM('12-10:12-75'!W13) -> 245 | X13: =SUM('12-10:12-75'!X13) -> 449 | Y13: =SUM('12-10:12-75'!Y13) -> 795 | Z13: =SUM('12-10:12-75'!Z13) -> 773 | AA13: =SUM('12-10:12-75'!AA13) -> 891 | AB13: =SUM('12-10:12-75'!AB13) -> 1023 | AC13: =SUM('12-10:12-75'!AC13) -> 850 | AD13: =SUM('12-10:12-75'!AD13) -> 483 | AE13: =SUM('12-10:12-75'!AE13) -> 157 | AF13: =SUM('12-10:12-75'!AF13) -> 25 | AG13: =SUM('12-10:12-75'!AG13) -> 0
